{"text_format":"1","workbook":"xlsx","n_sheets":15,"sheets":["Sheet1","Sheet2","الادارة","المصبغة","التجهيز","مخزن الكيماويات","المعامل","الورشة","التريكو","الامن الصناعي","الامن","الخدمات","المخازن","الاستيك","العقود المنتهية"],"not_rendered":{"charts":0,"images":0,"macros":1,"external_links":0,"defined_names":4,"comments":0,"pivot_tables":0},"unopened":[],"bounds":{"document_bytes":16777216,"sheet_cells":100000,"rows_first":2000,"rows_last":500,"rows_between":2000,"halvings":0,"cell_chars":16384,"cell_head_chars":4096},"cells_cut":0,"cells_raw":0,"read":"whole","date_system":"1900"}

{"sheet":"Sheet1","index":0,"n_rows":1010,"n_cols":10,"rows_kept":1010,"cut":false,"hidden":false,"merged":[]}
["الاسم","بداية تعيين","نوع العقد","مدة العقد","تاريخ الانتهاء","تاريخ اليوم ","يوم","شهر","سنة","اجمالي المتبقي بالايام"]
[null,null,"محدد المدة",1,{"$f":"IF(OR(N(B2)=0,N(D2)=0),\"\",SUM(N(B2),N(D2*365)))","v":""},{"$f":"IF(A2=\"\",\"\",TODAY())","v":""},{"$f":"IFERROR(DATEDIF(F2,E2,\"md\"),\"\")","v":""},{"$f":"IFERROR(DATEDIF(F2,E2,\"ym\"),\"\")","v":""},{"$f":"IFERROR(DATEDIF(F2,E2,\"y\"),\"\")","v":""},{"$f":"IF(OR(N(E2)=0,N(F2)=0),\"\",SUM(E2-F2))","v":""}]
[null,null,"محدد المدة",1,{"$f":"IF(OR(N(B3)=0,N(D3)=0),\"\",SUM(N(B3),N(D3*365)))","v":""},{"$f":"IF(A3=\"\",\"\",TODAY())","v":""},"","","",{"$f":"IF(OR(N(E3)=0,N(F3)=0),\"\",SUM(E3-F3))","v":""}]
[null,null,"محدد المدة",1,"","","","","",""]
[null,null,"محدد المدة",1,"","","","","",""]
[null,null,"محدد المدة",1,"","",{"$f":"IFERROR(DATEDIF(F6,E6,\"md\"),\"\")","v":""},"",{"$f":"IFERROR(DATEDIF(F6,E6,\"y\"),\"\")","v":""},""]
[null,null,"محدد المدة",1,"","",{"$f":"IFERROR(DATEDIF(F7,E7,\"md\"),\"\")","v":""},{"$f":"IFERROR(DATEDIF(F7,E7,\"ym\"),\"\")","v":""},{"$f":"IFERROR(DATEDIF(F7,E7,\"y\"),\"\")","v":""},""]
[null,null,"محدد المدة",1,"","","","","",""]
[null,null,"محدد المدة",1,"","","","","",""]
[null,null,"محدد المدة",1,"","","","","",""]
[null,null,"محدد المدة",1,"","","","","",""]
[null,null,"محدد المدة",1,"","",{"$f":"IFERROR(DATEDIF(F12,E12,\"md\"),\"\")","v":""},{"$f":"IFERROR(DATEDIF(F12,E12,\"ym\"),\"\")","v":""},{"$f":"IFERROR(DATEDIF(F12,E12,\"y\"),\"\")","v":""},""]
[null,null,"محدد المدة",1,"","","","","",""]
[null,null,"محدد المدة",1,"","","","","",""]
[null,null,"محدد المدة",1,"","","","","",""]
[null,null,"محدد المدة",1,"","","","","",""]
[null,null,"محدد المدة",1,"","","","","",""]
[null,null,"محدد المدة",1,"","","","","",""]
[null,null,"محدد المدة",1,"","","","","",""]
[null,null,"محدد المدة",1,"","","","","",""]
[null,null,"محدد المدة",1,"","","","","",""]
[null,null,"محدد المدة",1,"","","","","",""]
[null,null,"محدد المدة",1,"","","","","",""]
[null,null,"محدد المدة",1,"","","","","",""]
[null,null,"محدد المدة",1,"","","","","",""]
[null,null,"محدد المدة",1,"","","","","",""]
[null,null,"محدد المدة",1,"","","","","",""]
[null,null,"محدد المدة",1,"","","","","",""]
[null,null,"محدد المدة",1,"","","","","",""]
[null,null,"محدد المدة",1,"","","","","",""]
[null,null,"محدد المدة",1,"","","","","",""]
[null,null,"محدد المدة",1,"","","","","",""]
[null,null,"محدد المدة",1,"","","","","",""]
[null,null,"محدد المدة",1,"","","","","",""]
[null,null,"محدد المدة",1,"","","","","",""]
[null,null,"محدد المدة",1,"","","","","",""]
[null,null,"محدد المدة",1,"","","","","",""]
[null,null,"محدد المدة",1,"","","","","",""]
[null,null,"محدد المدة",1,"","","","","",""]
[null,null,"محدد المدة",1,"","","","","",""]
[null,null,"محدد المدة",1,"","","","","",""]
[null,null,"محدد المدة",1,"","","","","",""]
[null,null,"محدد المدة",1,"","","","","",""]
[null,null,"محدد المدة",1,"","","","","",""]
[null,null,"محدد المدة",1,"","","","","",""]
[null,null,"محدد المدة",1,"","","","","",""]
[null,null,"محدد المدة",1,"","","","","",""]
[null,null,"محدد المدة",1,"","","","","",""]
[null,null,"محدد المدة",1,"","","","","",""]
[null,null,"محدد المدة",1,"","","","","",""]
[null,null,"محدد المدة",1,"","","","","",""]
[null,null,"محدد المدة",1,"","","","","",""]
[null,null,"محدد المدة",1,"","","","","",""]
[null,null,"محدد المدة",1,"","","","","",""]
[null,null,"محدد المدة",1,"","","","","",""]
[null,null,"محدد المدة",1,"","","","","",""]
[null,null,"محدد المدة",1,"","","","","",""]
[null,null,"محدد المدة",1,"","","","","",""]
[null,null,"محدد المدة",1,"","","","","",""]
[null,null,"محدد المدة",1,"","","","","",""]
[null,null,"محدد المدة",1,"","","","","",""]
[null,null,"محدد المدة",1,"","","","","",""]
[null,null,"محدد المدة",1,"","","","","",""]
[null,null,"محدد المدة",1,"","","","","",""]
[null,null,"محدد المدة",1,"","","","","",""]
[null,null,"محدد المدة",1,"","","","","",""]
[null,null,"محدد المدة",1,{"$f":"IF(OR(N(B67)=0,N(D67)=0),\"\",SUM(N(B67),N(D67*365)))","v":""},{"$f":"IF(A67=\"\",\"\",TODAY())","v":""},"","","",{"$f":"IF(OR(N(E67)=0,N(F67)=0),\"\",SUM(E67-F67))","v":""}]
[null,null,"محدد المدة",1,"","","","","",""]
[null,null,"محدد المدة",1,"","","","","",""]
[null,null,"محدد المدة",1,"","","","","",""]
[null,null,"محدد المدة",1,"","","","","",""]
[null,null,"محدد المدة",1,"","","","","",""]
[null,null,"محدد المدة",1,"","","","","",""]
[null,null,"محدد المدة",1,"","","","","",""]
[null,null,"محدد المدة",1,"","","","","",""]
[null,null,"محدد المدة",1,"","",{"$f":"IFERROR(DATEDIF(F76,E76,\"md\"),\"\")","v":""},{"$f":"IFERROR(DATEDIF(F76,E76,\"ym\"),\"\")","v":""},{"$f":"IFERROR(DATEDIF(F76,E76,\"y\"),\"\")","v":""},""]
[null,null,"محدد المدة",1,"","","","","",""]
[null,null,"محدد المدة",1,"","","","","",""]
[null,null,"محدد المدة",1,"","","","","",""]
[null,null,"محدد المدة",1,"","","","","",""]
[null,null,"محدد المدة",1,"","","","","",""]
[null,null,"محدد المدة",1,"","","","","",""]
[null,null,"محدد المدة",1,"","","","","",""]
[null,null,"محدد المدة",1,"","","","","",""]
[null,null,"محدد المدة",1,"","","","","",""]
[null,null,"محدد المدة",1,"","","","","",""]
[null,null,"محدد المدة",1,"","","","","",""]
[null,null,"محدد المدة",1,"","","","","",""]
[null,null,"محدد المدة",1,"","","","","",""]
[null,null,"محدد المدة",1,"","","","","",""]
[null,null,"محدد المدة",1,"","","","","",""]
[null,null,"محدد المدة",1,"","","","","",""]
[null,null,"محدد المدة",1,"","","","","",""]
[null,null,"محدد المدة",1,"","","","","",""]
[null,null,"محدد المدة",1,"","","","","",""]
[null,null,"محدد المدة",1,"","","","","",""]
[null,null,"محدد المدة",1,"","","","","",""]
[null,null,"محدد المدة",1,"","","","","",""]
[null,null,"محدد المدة",1,"","","","","",""]
[null,null,"محدد المدة",1,"","","","","",""]
[null,null,"محدد المدة",1,"","","","","",""]
[null,null,"محدد المدة",1,"","","","","",""]
[null,null,"محدد المدة",1,"","","","","",""]
[null,null,"محدد المدة",1,"","","","","",""]
[null,null,"محدد المدة",1,"","","","","",""]
[null,null,"محدد المدة",1,"","","","","",""]
[null,null,"محدد المدة",1,"","","","","",""]
[null,null,"محدد المدة",1,"","","","","",""]
[null,null,"محدد المدة",1,"","","","","",""]
[null,null,"محدد المدة",1,"","","","","",""]
[null,null,"محدد المدة",1,"","","","","",""]
[null,null,"محدد المدة",1,"","","","","",""]
[null,null,"محدد المدة",1,"","","","","",""]
[null,null,"محدد المدة",1,"","","","","",""]
[null,null,"محدد المدة",1,"","","","","",""]
[null,null,"محدد المدة",1,"","","","","",""]
[null,null,"محدد المدة",1,"","","","","",""]
[null,null,"محدد المدة",1,"","","","","",""]
[null,null,"محدد المدة",1,"","","","","",""]
[null,null,"محدد المدة",1,"","","","","",""]
[null,null,"محدد المدة",1,"","","","","",""]
[null,null,"محدد المدة",1,"","","","","",""]
[null,null,"محدد المدة",1,"","","","","",""]
[null,null,"محدد المدة",1,"","","","","",""]
[null,null,"محدد المدة",1,"","","","","",""]
[null,null,"محدد المدة",1,"","","","","",""]
[null,null,"محدد المدة",1,"","","","","",""]
[null,null,"محدد المدة",1,"","","","","",""]
[null,null,"محدد المدة",1,"","","","","",""]
[null,null,"محدد المدة",1,"","","","","",""]
[null,null,"محدد المدة",1,{"$f":"IF(OR(N(B131)=0,N(D131)=0),\"\",SUM(N(B131),N(D131*365)))","v":""},{"$f":"IF(A131=\"\",\"\",TODAY())","v":""},"","","",{"$f":"IF(OR(N(E131)=0,N(F131)=0),\"\",SUM(E131-F131))","v":""}]
[null,null,"محدد المدة",1,"","","","","",""]
[null,null,"محدد المدة",1,"","","","","",""]
[null,null,"محدد المدة",1,"","","","","",""]
[null,null,"محدد المدة",1,"","","","","",""]
[null,null,"محدد المدة",1,"","","","","",""]
[null,null,"محدد المدة",1,"","","","","",""]
[null,null,"محدد المدة",1,"","","","","",""]
[null,null,"محدد المدة",1,"","","","","",""]
[null,null,"محدد المدة",1,"","",{"$f":"IFERROR(DATEDIF(F140,E140,\"md\"),\"\")","v":""},{"$f":"IFERROR(DATEDIF(F140,E140,\"ym\"),\"\")","v":""},{"$f":"IFERROR(DATEDIF(F140,E140,\"y\"),\"\")","v":""},""]
[null,null,"محدد المدة",1,"","","","","",""]
[null,null,"محدد المدة",1,"","","","","",""]
[null,null,"محدد المدة",1,"","","","","",""]
[null,null,"محدد المدة",1,"","","","","",""]
[null,null,"محدد المدة",1,"","","","","",""]
[null,null,"محدد المدة",1,"","","","","",""]
[null,null,"محدد المدة",1,"","","","","",""]
[null,null,"محدد المدة",1,"","","","","",""]
[null,null,"محدد المدة",1,"","","","","",""]
[null,null,"محدد المدة",1,"","","","","",""]
[null,null,"محدد المدة",1,"","","","","",""]
[null,null,"محدد المدة",1,"","","","","",""]
[null,null,"محدد المدة",1,"","","","","",""]
[null,null,"محدد المدة",1,"","","","","",""]
[null,null,"محدد المدة",1,"","","","","",""]
[null,null,"محدد المدة",1,"","","","","",""]
[null,null,"محدد المدة",1,"","","","","",""]
[null,null,"محدد المدة",1,"","","","","",""]
[null,null,"محدد المدة",1,"","","","","",""]
[null,null,"محدد المدة",1,"","","","","",""]
[null,null,"محدد المدة",1,"","","","","",""]
[null,null,"محدد المدة",1,"","","","","",""]
[null,null,"محدد المدة",1,"","","","","",""]
[null,null,"محدد المدة",1,"","","","","",""]
[null,null,"محدد المدة",1,"","","","","",""]
[null,null,"محدد المدة",1,"","","","","",""]
[null,null,"محدد المدة",1,"","","","","",""]
[null,null,"محدد المدة",1,"","","","","",""]
[null,null,"محدد المدة",1,"","","","","",""]
[null,null,"محدد المدة",1,"","","","","",""]
[null,null,"محدد المدة",1,"","","","","",""]
[null,null,"محدد المدة",1,"","","","","",""]
[null,null,"محدد المدة",1,"","","","","",""]
[null,null,"محدد المدة",1,"","","","","",""]
[null,null,"محدد المدة",1,"","","","","",""]
[null,null,"محدد المدة",1,"","","","","",""]
[null,null,"محدد المدة",1,"","","","","",""]
[null,null,"محدد المدة",1,"","","","","",""]
[null,null,"محدد المدة",1,"","","","","",""]
[null,null,"محدد المدة",1,"","","","","",""]
[null,null,"محدد المدة",1,"","","","","",""]
[null,null,"محدد المدة",1,"","","","","",""]
[null,null,"محدد المدة",1,"","","","","",""]
[null,null,"محدد المدة",1,"","","","","",""]
[null,null,"محدد المدة",1,"","","","","",""]
[null,null,"محدد المدة",1,"","","","","",""]
[null,null,"محدد المدة",1,"","","","","",""]
[null,null,"محدد المدة",1,"","","","","",""]
[null,null,"محدد المدة",1,"","","","","",""]
[null,null,"محدد المدة",1,"","","","","",""]
[null,null,"محدد المدة",1,"","","","","",""]
[null,null,"محدد المدة",1,"","","","","",""]
[null,null,"محدد المدة",1,"","","","","",""]
[null,null,"محدد المدة",1,"","","","","",""]
[null,null,"محدد المدة",1,{"$f":"IF(OR(N(B195)=0,N(D195)=0),\"\",SUM(N(B195),N(D195*365)))","v":""},{"$f":"IF(A195=\"\",\"\",TODAY())","v":""},"","","",{"$f":"IF(OR(N(E195)=0,N(F195)=0),\"\",SUM(E195-F195))","v":""}]
[null,null,"محدد المدة",1,"","","","","",""]
[null,null,"محدد المدة",1,"","","","","",""]
[null,null,"محدد المدة",1,"","","","","",""]
[null,null,"محدد المدة",1,"","","","","",""]
[null,null,"محدد المدة",1,"","","","","",""]
[null,null,"محدد المدة",1,"","","","","",""]
[null,null,"محدد المدة",1,"","","","","",""]
[null,null,"محدد المدة",1,"","","","","",""]
[null,null,"محدد المدة",1,"","",{"$f":"IFERROR(DATEDIF(F204,E204,\"md\"),\"\")","v":""},{"$f":"IFERROR(DATEDIF(F204,E204,\"ym\"),\"\")","v":""},{"$f":"IFERROR(DATEDIF(F204,E204,\"y\"),\"\")","v":""},""]
[null,null,"محدد المدة",1,"","","","","",""]
[null,null,"محدد المدة",1,"","","","","",""]
[null,null,"محدد المدة",1,"","","","","",""]
[null,null,"محدد المدة",1,"","","","","",""]
[null,null,"محدد المدة",1,"","","","","",""]
[null,null,"محدد المدة",1,"","","","","",""]
[null,null,"محدد المدة",1,"","","","","",""]
[null,null,"محدد المدة",1,"","","","","",""]
[null,null,"محدد المدة",1,"","","","","",""]
[null,null,"محدد المدة",1,"","","","","",""]
[null,null,"محدد المدة",1,"","","","","",""]
[null,null,"محدد المدة",1,"","","","","",""]
[null,null,"محدد المدة",1,"","","","","",""]
[null,null,"محدد المدة",1,"","","","","",""]
[null,null,"محدد المدة",1,"","","","","",""]
[null,null,"محدد المدة",1,"","","","","",""]
[null,null,"محدد المدة",1,"","","","","",""]
[null,null,"محدد المدة",1,"","","","","",""]
[null,null,"محدد المدة",1,"","","","","",""]
[null,null,"محدد المدة",1,"","","","","",""]
[null,null,"محدد المدة",1,"","","","","",""]
[null,null,"محدد المدة",1,"","","","","",""]
[null,null,"محدد المدة",1,"","","","","",""]
[null,null,"محدد المدة",1,"","","","","",""]
[null,null,"محدد المدة",1,"","","","","",""]
[null,null,"محدد المدة",1,"","","","","",""]
[null,null,"محدد المدة",1,"","","","","",""]
[null,null,"محدد المدة",1,"","","","","",""]
[null,null,"محدد المدة",1,"","","","","",""]
[null,null,"محدد المدة",1,"","","","","",""]
[null,null,"محدد المدة",1,"","","","","",""]
[null,null,"محدد المدة",1,"","","","","",""]
[null,null,"محدد المدة",1,"","","","","",""]
[null,null,"محدد المدة",1,"","","","","",""]
[null,null,"محدد المدة",1,"","","","","",""]
[null,null,"محدد المدة",1,"","","","","",""]
[null,null,"محدد المدة",1,"","","","","",""]
[null,null,"محدد المدة",1,"","","","","",""]
[null,null,"محدد المدة",1,"","","","","",""]
[null,null,"محدد المدة",1,"","","","","",""]
[null,null,"محدد المدة",1,"","","","","",""]
[null,null,"محدد المدة",1,"","","","","",""]
[null,null,"محدد المدة",1,"","","","","",""]
[null,null,"محدد المدة",1,"","","","","",""]
[null,null,"محدد المدة",1,"","","","","",""]
[null,null,"محدد المدة",1,"","","","","",""]
[null,null,"محدد المدة",1,"","","","","",""]
[null,null,"محدد المدة",1,"","","","","",""]
[null,null,"محدد المدة",1,"","","","","",""]
[null,null,"محدد المدة",1,"","","","","",""]
[null,null,"محدد المدة",1,"","","","","",""]
[null,null,"محدد المدة",1,"","","","","",""]
[null,null,"محدد المدة",1,"","","","","",""]
[null,null,"محدد المدة",1,"","","","","",""]
[null,null,"محدد المدة",1,{"$f":"IF(OR(N(B259)=0,N(D259)=0),\"\",SUM(N(B259),N(D259*365)))","v":""},{"$f":"IF(A259=\"\",\"\",TODAY())","v":""},"","","",{"$f":"IF(OR(N(E259)=0,N(F259)=0),\"\",SUM(E259-F259))","v":""}]
[null,null,"محدد المدة",1,"","","","","",""]
[null,null,"محدد المدة",1,"","","","","",""]
[null,null,"محدد المدة",1,"","","","","",""]
[null,null,"محدد المدة",1,"","","","","",""]
[null,null,"محدد المدة",1,"","","","","",""]
[null,null,"محدد المدة",1,"","","","","",""]
[null,null,"محدد المدة",1,"","","","","",""]
[null,null,"محدد المدة",1,"","","","","",""]
[null,null,"محدد المدة",1,"","",{"$f":"IFERROR(DATEDIF(F268,E268,\"md\"),\"\")","v":""},{"$f":"IFERROR(DATEDIF(F268,E268,\"ym\"),\"\")","v":""},{"$f":"IFERROR(DATEDIF(F268,E268,\"y\"),\"\")","v":""},""]
[null,null,"محدد المدة",1,"","","","","",""]
[null,null,"محدد المدة",1,"","","","","",""]
[null,null,"محدد المدة",1,"","","","","",""]
[null,null,"محدد المدة",1,"","","","","",""]
[null,null,"محدد المدة",1,"","","","","",""]
[null,null,"محدد المدة",1,"","","","","",""]
[null,null,"محدد المدة",1,"","","","","",""]
[null,null,"محدد المدة",1,"","","","","",""]
[null,null,"محدد المدة",1,"","","","","",""]
[null,null,"محدد المدة",1,"","","","","",""]
[null,null,"محدد المدة",1,"","","","","",""]
[null,null,"محدد المدة",1,"","","","","",""]
[null,null,"محدد المدة",1,"","","","","",""]
[null,null,"محدد المدة",1,"","","","","",""]
[null,null,"محدد المدة",1,"","","","","",""]
[null,null,"محدد المدة",1,"","","","","",""]
[null,null,"محدد المدة",1,"","","","","",""]
[null,null,"محدد المدة",1,"","","","","",""]
[null,null,"محدد المدة",1,"","","","","",""]
[null,null,"محدد المدة",1,"","","","","",""]
[null,null,"محدد المدة",1,"","","","","",""]
[null,null,"محدد المدة",1,"","","","","",""]
[null,null,"محدد المدة",1,"","","","","",""]
[null,null,"محدد المدة",1,"","","","","",""]
[null,null,"محدد المدة",1,"","","","","",""]
[null,null,"محدد المدة",1,"","","","","",""]
[null,null,"محدد المدة",1,"","","","","",""]
[null,null,"محدد المدة",1,"","","","","",""]
[null,null,"محدد المدة",1,"","","","","",""]
[null,null,"محدد المدة",1,"","","","","",""]
[null,null,"محدد المدة",1,"","","","","",""]
[null,null,"محدد المدة",1,"","","","","",""]
[null,null,"محدد المدة",1,"","","","","",""]
[null,null,"محدد المدة",1,"","","","","",""]
[null,null,"محدد المدة",1,"","","","","",""]
[null,null,"محدد المدة",1,"","","","","",""]
[null,null,"محدد المدة",1,"","","","","",""]
[null,null,"محدد المدة",1,"","","","","",""]
[null,null,"محدد المدة",1,"","","","","",""]
[null,null,"محدد المدة",1,"","","","","",""]
[null,null,"محدد المدة",1,"","","","","",""]
[null,null,"محدد المدة",1,"","","","","",""]
[null,null,"محدد المدة",1,"","","","","",""]
[null,null,"محدد المدة",1,"","","","","",""]
[null,null,"محدد المدة",1,"","","","","",""]
[null,null,"محدد المدة",1,"","","","","",""]
[null,null,"محدد المدة",1,"","","","","",""]
[null,null,"محدد المدة",1,"","","","","",""]
[null,null,"محدد المدة",1,"","","","","",""]
[null,null,"محدد المدة",1,"","","","","",""]
[null,null,"محدد المدة",1,"","","","","",""]
[null,null,"محدد المدة",1,"","","","","",""]
[null,null,"محدد المدة",1,"","","","","",""]
[null,null,"محدد المدة",1,"","","","","",""]
[null,null,"محدد المدة",1,{"$f":"IF(OR(N(B323)=0,N(D323)=0),\"\",SUM(N(B323),N(D323*365)))","v":""},{"$f":"IF(A323=\"\",\"\",TODAY())","v":""},"","","",{"$f":"IF(OR(N(E323)=0,N(F323)=0),\"\",SUM(E323-F323))","v":""}]
[null,null,"محدد المدة",1,"","","","","",""]
[null,null,"محدد المدة",1,"","","","","",""]
[null,null,"محدد المدة",1,"","","","","",""]
[null,null,"محدد المدة",1,"","","","","",""]
[null,null,"محدد المدة",1,"","","","","",""]
[null,null,"محدد المدة",1,"","","","","",""]
[null,null,"محدد المدة",1,"","","","","",""]
[null,null,"محدد المدة",1,"","","","","",""]
[null,null,"محدد المدة",1,"","",{"$f":"IFERROR(DATEDIF(F332,E332,\"md\"),\"\")","v":""},{"$f":"IFERROR(DATEDIF(F332,E332,\"ym\"),\"\")","v":""},{"$f":"IFERROR(DATEDIF(F332,E332,\"y\"),\"\")","v":""},""]
[null,null,"محدد المدة",1,"","","","","",""]
[null,null,"محدد المدة",1,"","","","","",""]
[null,null,"محدد المدة",1,"","","","","",""]
[null,null,"محدد المدة",1,"","","","","",""]
[null,null,"محدد المدة",1,"","","","","",""]
[null,null,"محدد المدة",1,"","","","","",""]
[null,null,"محدد المدة",1,"","","","","",""]
[null,null,"محدد المدة",1,"","","","","",""]
[null,null,"محدد المدة",1,"","","","","",""]
[null,null,"محدد المدة",1,"","","","","",""]
[null,null,"محدد المدة",1,"","","","","",""]
[null,null,"محدد المدة",1,"","","","","",""]
[null,null,"محدد المدة",1,"","","","","",""]
[null,null,"محدد المدة",1,"","","","","",""]
[null,null,"محدد المدة",1,"","","","","",""]
[null,null,"محدد المدة",1,"","","","","",""]
[null,null,"محدد المدة",1,"","","","","",""]
[null,null,"محدد المدة",1,"","","","","",""]
[null,null,"محدد المدة",1,"","","","","",""]
[null,null,"محدد المدة",1,"","","","","",""]
[null,null,"محدد المدة",1,"","","","","",""]
[null,null,"محدد المدة",1,"","","","","",""]
[null,null,"محدد المدة",1,"","","","","",""]
[null,null,"محدد المدة",1,"","","","","",""]
[null,null,"محدد المدة",1,"","","","","",""]
[null,null,"محدد المدة",1,"","","","","",""]
[null,null,"محدد المدة",1,"","","","","",""]
[null,null,"محدد المدة",1,"","","","","",""]
[null,null,"محدد المدة",1,"","","","","",""]
[null,null,"محدد المدة",1,"","","","","",""]
[null,null,"محدد المدة",1,"","","","","",""]
[null,null,"محدد المدة",1,"","","","","",""]
[null,null,"محدد المدة",1,"","","","","",""]
[null,null,"محدد المدة",1,"","","","","",""]
[null,null,"محدد المدة",1,"","","","","",""]
[null,null,"محدد المدة",1,"","","","","",""]
[null,null,"محدد المدة",1,"","","","","",""]
[null,null,"محدد المدة",1,"","","","","",""]
[null,null,"محدد المدة",1,"","","","","",""]
[null,null,"محدد المدة",1,"","","","","",""]
[null,null,"محدد المدة",1,"","","","","",""]
[null,null,"محدد المدة",1,"","","","","",""]
[null,null,"محدد المدة",1,"","","","","",""]
[null,null,"محدد المدة",1,"","","","","",""]
[null,null,"محدد المدة",1,"","","","","",""]
[null,null,"محدد المدة",1,"","","","","",""]
[null,null,"محدد المدة",1,"","","","","",""]
[null,null,"محدد المدة",1,"","","","","",""]
[null,null,"محدد المدة",1,"","","","","",""]
[null,null,"محدد المدة",1,"","","","","",""]
[null,null,"محدد المدة",1,"","","","","",""]
[null,null,"محدد المدة",1,"","","","","",""]
[null,null,"محدد المدة",1,"","","","","",""]
[null,null,"محدد المدة",1,"","","","","",""]
[null,null,"محدد المدة",1,{"$f":"IF(OR(N(B387)=0,N(D387)=0),\"\",SUM(N(B387),N(D387*365)))","v":""},{"$f":"IF(A387=\"\",\"\",TODAY())","v":""},"","","",{"$f":"IF(OR(N(E387)=0,N(F387)=0),\"\",SUM(E387-F387))","v":""}]
[null,null,"محدد المدة",1,"","","","","",""]
[null,null,"محدد المدة",1,"","","","","",""]
[null,null,"محدد المدة",1,"","","","","",""]
[null,null,"محدد المدة",1,"","","","","",""]
[null,null,"محدد المدة",1,"","","","","",""]
[null,null,"محدد المدة",1,"","","","","",""]
[null,null,"محدد المدة",1,"","","","","",""]
[null,null,"محدد المدة",1,"","","","","",""]
[null,null,"محدد المدة",1,"","",{"$f":"IFERROR(DATEDIF(F396,E396,\"md\"),\"\")","v":""},{"$f":"IFERROR(DATEDIF(F396,E396,\"ym\"),\"\")","v":""},{"$f":"IFERROR(DATEDIF(F396,E396,\"y\"),\"\")","v":""},""]
[null,null,"محدد المدة",1,"","","","","",""]
[null,null,"محدد المدة",1,"","","","","",""]
[null,null,"محدد المدة",1,"","","","","",""]
[null,null,"محدد المدة",1,"","","","","",""]
[null,null,"محدد المدة",1,"","","","","",""]
[null,null,"محدد المدة",1,"","","","","",""]
[null,null,"محدد المدة",1,"","","","","",""]
[null,null,"محدد المدة",1,"","","","","",""]
[null,null,"محدد المدة",1,"","","","","",""]
[null,null,"محدد المدة",1,"","","","","",""]
[null,null,"محدد المدة",1,"","","","","",""]
[null,null,"محدد المدة",1,"","","","","",""]
[null,null,"محدد المدة",1,"","","","","",""]
[null,null,"محدد المدة",1,"","","","","",""]
[null,null,"محدد المدة",1,"","","","","",""]
[null,null,"محدد المدة",1,"","","","","",""]
[null,null,"محدد المدة",1,"","","","","",""]
[null,null,"محدد المدة",1,"","","","","",""]
[null,null,"محدد المدة",1,"","","","","",""]
[null,null,"محدد المدة",1,"","","","","",""]
[null,null,"محدد المدة",1,"","","","","",""]
[null,null,"محدد المدة",1,"","","","","",""]
[null,null,"محدد المدة",1,"","","","","",""]
[null,null,"محدد المدة",1,"","","","","",""]
[null,null,"محدد المدة",1,"","","","","",""]
[null,null,"محدد المدة",1,"","","","","",""]
[null,null,"محدد المدة",1,"","","","","",""]
[null,null,"محدد المدة",1,"","","","","",""]
[null,null,"محدد المدة",1,"","","","","",""]
[null,null,"محدد المدة",1,"","","","","",""]
[null,null,"محدد المدة",1,"","","","","",""]
[null,null,"محدد المدة",1,"","","","","",""]
[null,null,"محدد المدة",1,"","","","","",""]
[null,null,"محدد المدة",1,"","","","","",""]
[null,null,"محدد المدة",1,"","","","","",""]
[null,null,"محدد المدة",1,"","","","","",""]
[null,null,"محدد المدة",1,"","","","","",""]
[null,null,"محدد المدة",1,"","","","","",""]
[null,null,"محدد المدة",1,"","","","","",""]
[null,null,"محدد المدة",1,"","","","","",""]
[null,null,"محدد المدة",1,"","","","","",""]
[null,null,"محدد المدة",1,"","","","","",""]
[null,null,"محدد المدة",1,"","","","","",""]
[null,null,"محدد المدة",1,"","","","","",""]
[null,null,"محدد المدة",1,"","","","","",""]
[null,null,"محدد المدة",1,"","","","","",""]
[null,null,"محدد المدة",1,"","","","","",""]
[null,null,"محدد المدة",1,"","","","","",""]
[null,null,"محدد المدة",1,"","","","","",""]
[null,null,"محدد المدة",1,"","","","","",""]
[null,null,"محدد المدة",1,"","","","","",""]
[null,null,"محدد المدة",1,"","","","","",""]
[null,null,"محدد المدة",1,"","","","","",""]
[null,null,"محدد المدة",1,"","","","","",""]
[null,null,"محدد المدة",1,{"$f":"IF(OR(N(B451)=0,N(D451)=0),\"\",SUM(N(B451),N(D451*365)))","v":""},{"$f":"IF(A451=\"\",\"\",TODAY())","v":""},"","","",{"$f":"IF(OR(N(E451)=0,N(F451)=0),\"\",SUM(E451-F451))","v":""}]
[null,null,"محدد المدة",1,"","","","","",""]
[null,null,"محدد المدة",1,"","","","","",""]
[null,null,"محدد المدة",1,"","","","","",""]
[null,null,"محدد المدة",1,"","","","","",""]
[null,null,"محدد المدة",1,"","","","","",""]
[null,null,"محدد المدة",1,"","","","","",""]
[null,null,"محدد المدة",1,"","","","","",""]
[null,null,"محدد المدة",1,"","","","","",""]
[null,null,"محدد المدة",1,"","",{"$f":"IFERROR(DATEDIF(F460,E460,\"md\"),\"\")","v":""},{"$f":"IFERROR(DATEDIF(F460,E460,\"ym\"),\"\")","v":""},{"$f":"IFERROR(DATEDIF(F460,E460,\"y\"),\"\")","v":""},""]
[null,null,"محدد المدة",1,"","","","","",""]
[null,null,"محدد المدة",1,"","","","","",""]
[null,null,"محدد المدة",1,"","","","","",""]
[null,null,"محدد المدة",1,"","","","","",""]
[null,null,"محدد المدة",1,"","","","","",""]
[null,null,"محدد المدة",1,"","","","","",""]
[null,null,"محدد المدة",1,"","","","","",""]
[null,null,"محدد المدة",1,"","","","","",""]
[null,null,"محدد المدة",1,"","","","","",""]
[null,null,"محدد المدة",1,"","","","","",""]
[null,null,"محدد المدة",1,"","","","","",""]
[null,null,"محدد المدة",1,"","","","","",""]
[null,null,"محدد المدة",1,"","","","","",""]
[null,null,"محدد المدة",1,"","","","","",""]
[null,null,"محدد المدة",1,"","","","","",""]
[null,null,"محدد المدة",1,"","","","","",""]
[null,null,"محدد المدة",1,"","","","","",""]
[null,null,"محدد المدة",1,"","","","","",""]
[null,null,"محدد المدة",1,"","","","","",""]
[null,null,"محدد المدة",1,"","","","","",""]
[null,null,"محدد المدة",1,"","","","","",""]
[null,null,"محدد المدة",1,"","","","","",""]
[null,null,"محدد المدة",1,"","","","","",""]
[null,null,"محدد المدة",1,"","","","","",""]
[null,null,"محدد المدة",1,"","","","","",""]
[null,null,"محدد المدة",1,"","","","","",""]
[null,null,"محدد المدة",1,"","","","","",""]
[null,null,"محدد المدة",1,"","","","","",""]
[null,null,"محدد المدة",1,"","","","","",""]
[null,null,"محدد المدة",1,"","","","","",""]
[null,null,"محدد المدة",1,"","","","","",""]
[null,null,"محدد المدة",1,"","","","","",""]
[null,null,"محدد المدة",1,"","","","","",""]
[null,null,"محدد المدة",1,"","","","","",""]
[null,null,"محدد المدة",1,"","","","","",""]
[null,null,"محدد المدة",1,"","","","","",""]
[null,null,"محدد المدة",1,"","","","","",""]
[null,null,"محدد المدة",1,"","","","","",""]
[null,null,"محدد المدة",1,"","","","","",""]
[null,null,"محدد المدة",1,"","","","","",""]
[null,null,"محدد المدة",1,"","","","","",""]
[null,null,"محدد المدة",1,"","","","","",""]
[null,null,"محدد المدة",1,"","","","","",""]
[null,null,"محدد المدة",1,"","","","","",""]
[null,null,"محدد المدة",1,"","","","","",""]
[null,null,"محدد المدة",1,"","","","","",""]
[null,null,"محدد المدة",1,"","","","","",""]
[null,null,"محدد المدة",1,"","","","","",""]
[null,null,"محدد المدة",1,"","","","","",""]
[null,null,"محدد المدة",1,"","","","","",""]
[null,null,"محدد المدة",1,"","","","","",""]
[null,null,"محدد المدة",1,"","","","","",""]
[null,null,"محدد المدة",1,"","","","","",""]
[null,null,"محدد المدة",1,"","","","","",""]
[null,null,"محدد المدة",1,{"$f":"IF(OR(N(B515)=0,N(D515)=0),\"\",SUM(N(B515),N(D515*365)))","v":""},{"$f":"IF(A515=\"\",\"\",TODAY())","v":""},"","","",{"$f":"IF(OR(N(E515)=0,N(F515)=0),\"\",SUM(E515-F515))","v":""}]
[null,null,"محدد المدة",1,"","","","","",""]
[null,null,"محدد المدة",1,"","","","","",""]
[null,null,"محدد المدة",1,"","","","","",""]
[null,null,"محدد المدة",1,"","","","","",""]
[null,null,"محدد المدة",1,"","","","","",""]
[null,null,"محدد المدة",1,"","","","","",""]
[null,null,"محدد المدة",1,"","","","","",""]
[null,null,"محدد المدة",1,"","","","","",""]
[null,null,"محدد المدة",1,"","",{"$f":"IFERROR(DATEDIF(F524,E524,\"md\"),\"\")","v":""},{"$f":"IFERROR(DATEDIF(F524,E524,\"ym\"),\"\")","v":""},{"$f":"IFERROR(DATEDIF(F524,E524,\"y\"),\"\")","v":""},""]
[null,null,"محدد المدة",1,"","","","","",""]
[null,null,"محدد المدة",1,"","","","","",""]
[null,null,"محدد المدة",1,"","","","","",""]
[null,null,"محدد المدة",1,"","","","","",""]
[null,null,"محدد المدة",1,"","","","","",""]
[null,null,"محدد المدة",1,"","","","","",""]
[null,null,"محدد المدة",1,"","","","","",""]
[null,null,"محدد المدة",1,"","","","","",""]
[null,null,"محدد المدة",1,"","","","","",""]
[null,null,"محدد المدة",1,"","","","","",""]
[null,null,"محدد المدة",1,"","","","","",""]
[null,null,"محدد المدة",1,"","","","","",""]
[null,null,"محدد المدة",1,"","","","","",""]
[null,null,"محدد المدة",1,"","","","","",""]
[null,null,"محدد المدة",1,"","","","","",""]
[null,null,"محدد المدة",1,"","","","","",""]
[null,null,"محدد المدة",1,"","","","","",""]
[null,null,"محدد المدة",1,"","","","","",""]
[null,null,"محدد المدة",1,"","","","","",""]
[null,null,"محدد المدة",1,"","","","","",""]
[null,null,"محدد المدة",1,"","","","","",""]
[null,null,"محدد المدة",1,"","","","","",""]
[null,null,"محدد المدة",1,"","","","","",""]
[null,null,"محدد المدة",1,"","","","","",""]
[null,null,"محدد المدة",1,"","","","","",""]
[null,null,"محدد المدة",1,"","","","","",""]
[null,null,"محدد المدة",1,"","","","","",""]
[null,null,"محدد المدة",1,"","","","","",""]
[null,null,"محدد المدة",1,"","","","","",""]
[null,null,"محدد المدة",1,"","","","","",""]
[null,null,"محدد المدة",1,"","","","","",""]
[null,null,"محدد المدة",1,"","","","","",""]
[null,null,"محدد المدة",1,"","","","","",""]
[null,null,"محدد المدة",1,"","","","","",""]
[null,null,"محدد المدة",1,"","","","","",""]
[null,null,"محدد المدة",1,"","","","","",""]
[null,null,"محدد المدة",1,"","","","","",""]
[null,null,"محدد المدة",1,"","","","","",""]
[null,null,"محدد المدة",1,"","","","","",""]
[null,null,"محدد المدة",1,"","","","","",""]
[null,null,"محدد المدة",1,"","","","","",""]
[null,null,"محدد المدة",1,"","","","","",""]
[null,null,"محدد المدة",1,"","","","","",""]
[null,null,"محدد المدة",1,"","","","","",""]
[null,null,"محدد المدة",1,"","","","","",""]
[null,null,"محدد المدة",1,"","","","","",""]
[null,null,"محدد المدة",1,"","","","","",""]
[null,null,"محدد المدة",1,"","","","","",""]
[null,null,"محدد المدة",1,"","","","","",""]
[null,null,"محدد المدة",1,"","","","","",""]
[null,null,"محدد المدة",1,"","","","","",""]
[null,null,"محدد المدة",1,"","","","","",""]
[null,null,"محدد المدة",1,"","","","","",""]
[null,null,"محدد المدة",1,"","","","","",""]
[null,null,"محدد المدة",1,{"$f":"IF(OR(N(B579)=0,N(D579)=0),\"\",SUM(N(B579),N(D579*365)))","v":""},{"$f":"IF(A579=\"\",\"\",TODAY())","v":""},"","","",{"$f":"IF(OR(N(E579)=0,N(F579)=0),\"\",SUM(E579-F579))","v":""}]
[null,null,"محدد المدة",1,"","","","","",""]
[null,null,"محدد المدة",1,"","","","","",""]
[null,null,"محدد المدة",1,"","","","","",""]
[null,null,"محدد المدة",1,"","","","","",""]
[null,null,"محدد المدة",1,"","","","","",""]
[null,null,"محدد المدة",1,"","","","","",""]
[null,null,"محدد المدة",1,"","","","","",""]
[null,null,"محدد المدة",1,"","","","","",""]
[null,null,"محدد المدة",1,"","",{"$f":"IFERROR(DATEDIF(F588,E588,\"md\"),\"\")","v":""},{"$f":"IFERROR(DATEDIF(F588,E588,\"ym\"),\"\")","v":""},{"$f":"IFERROR(DATEDIF(F588,E588,\"y\"),\"\")","v":""},""]
[null,null,"محدد المدة",1,"","","","","",""]
[null,null,"محدد المدة",1,"","","","","",""]
[null,null,"محدد المدة",1,"","","","","",""]
[null,null,"محدد المدة",1,"","","","","",""]
[null,null,"محدد المدة",1,"","","","","",""]
[null,null,"محدد المدة",1,"","","","","",""]
[null,null,"محدد المدة",1,"","","","","",""]
[null,null,"محدد المدة",1,"","","","","",""]
[null,null,"محدد المدة",1,"","","","","",""]
[null,null,"محدد المدة",1,"","","","","",""]
[null,null,"محدد المدة",1,"","","","","",""]
[null,null,"محدد المدة",1,"","","","","",""]
[null,null,"محدد المدة",1,"","","","","",""]
[null,null,"محدد المدة",1,"","","","","",""]
[null,null,"محدد المدة",1,"","","","","",""]
[null,null,"محدد المدة",1,"","","","","",""]
[null,null,"محدد المدة",1,"","","","","",""]
[null,null,"محدد المدة",1,"","","","","",""]
[null,null,"محدد المدة",1,"","","","","",""]
[null,null,"محدد المدة",1,"","","","","",""]
[null,null,"محدد المدة",1,"","","","","",""]
[null,null,"محدد المدة",1,"","","","","",""]
[null,null,"محدد المدة",1,"","","","","",""]
[null,null,"محدد المدة",1,"","","","","",""]
[null,null,"محدد المدة",1,"","","","","",""]
[null,null,"محدد المدة",1,"","","","","",""]
[null,null,"محدد المدة",1,"","","","","",""]
[null,null,"محدد المدة",1,"","","","","",""]
[null,null,"محدد المدة",1,"","","","","",""]
[null,null,"محدد المدة",1,"","","","","",""]
[null,null,"محدد المدة",1,"","","","","",""]
[null,null,"محدد المدة",1,"","","","","",""]
[null,null,"محدد المدة",1,"","","","","",""]
[null,null,"محدد المدة",1,"","","","","",""]
[null,null,"محدد المدة",1,"","","","","",""]
[null,null,"محدد المدة",1,"","","","","",""]
[null,null,"محدد المدة",1,"","","","","",""]
[null,null,"محدد المدة",1,"","","","","",""]
[null,null,"محدد المدة",1,"","","","","",""]
[null,null,"محدد المدة",1,"","","","","",""]
[null,null,"محدد المدة",1,"","","","","",""]
[null,null,"محدد المدة",1,"","","","","",""]
[null,null,"محدد المدة",1,"","","","","",""]
[null,null,"محدد المدة",1,"","","","","",""]
[null,null,"محدد المدة",1,"","","","","",""]
[null,null,"محدد المدة",1,"","","","","",""]
[null,null,"محدد المدة",1,"","","","","",""]
[null,null,"محدد المدة",1,"","","","","",""]
[null,null,"محدد المدة",1,"","","","","",""]
[null,null,"محدد المدة",1,"","","","","",""]
[null,null,"محدد المدة",1,"","","","","",""]
[null,null,"محدد المدة",1,"","","","","",""]
[null,null,"محدد المدة",1,"","","","","",""]
[null,null,"محدد المدة",1,"","","","","",""]
[null,null,"محدد المدة",1,{"$f":"IF(OR(N(B643)=0,N(D643)=0),\"\",SUM(N(B643),N(D643*365)))","v":""},{"$f":"IF(A643=\"\",\"\",TODAY())","v":""},"","","",{"$f":"IF(OR(N(E643)=0,N(F643)=0),\"\",SUM(E643-F643))","v":""}]
[null,null,"محدد المدة",1,"","","","","",""]
[null,null,"محدد المدة",1,"","","","","",""]
[null,null,"محدد المدة",1,"","","","","",""]
[null,null,"محدد المدة",1,"","","","","",""]
[null,null,"محدد المدة",1,"","","","","",""]
[null,null,"محدد المدة",1,"","","","","",""]
[null,null,"محدد المدة",1,"","","","","",""]
[null,null,"محدد المدة",1,"","","","","",""]
[null,null,"محدد المدة",1,"","",{"$f":"IFERROR(DATEDIF(F652,E652,\"md\"),\"\")","v":""},{"$f":"IFERROR(DATEDIF(F652,E652,\"ym\"),\"\")","v":""},{"$f":"IFERROR(DATEDIF(F652,E652,\"y\"),\"\")","v":""},""]
[null,null,"محدد المدة",1,"","","","","",""]
[null,null,"محدد المدة",1,"","","","","",""]
[null,null,"محدد المدة",1,"","","","","",""]
[null,null,"محدد المدة",1,"","","","","",""]
[null,null,"محدد المدة",1,"","","","","",""]
[null,null,"محدد المدة",1,"","","","","",""]
[null,null,"محدد المدة",1,"","","","","",""]
[null,null,"محدد المدة",1,"","","","","",""]
[null,null,"محدد المدة",1,"","","","","",""]
[null,null,"محدد المدة",1,"","","","","",""]
[null,null,"محدد المدة",1,"","","","","",""]
[null,null,"محدد المدة",1,"","","","","",""]
[null,null,"محدد المدة",1,"","","","","",""]
[null,null,"محدد المدة",1,"","","","","",""]
[null,null,"محدد المدة",1,"","","","","",""]
[null,null,"محدد المدة",1,"","","","","",""]
[null,null,"محدد المدة",1,"","","","","",""]
[null,null,"محدد المدة",1,"","","","","",""]
[null,null,"محدد المدة",1,"","","","","",""]
[null,null,"محدد المدة",1,"","","","","",""]
[null,null,"محدد المدة",1,"","","","","",""]
[null,null,"محدد المدة",1,"","","","","",""]
[null,null,"محدد المدة",1,"","","","","",""]
[null,null,"محدد المدة",1,"","","","","",""]
[null,null,"محدد المدة",1,"","","","","",""]
[null,null,"محدد المدة",1,"","","","","",""]
[null,null,"محدد المدة",1,"","","","","",""]
[null,null,"محدد المدة",1,"","","","","",""]
[null,null,"محدد المدة",1,"","","","","",""]
[null,null,"محدد المدة",1,"","","","","",""]
[null,null,"محدد المدة",1,"","","","","",""]
[null,null,"محدد المدة",1,"","","","","",""]
[null,null,"محدد المدة",1,"","","","","",""]
[null,null,"محدد المدة",1,"","","","","",""]
[null,null,"محدد المدة",1,"","","","","",""]
[null,null,"محدد المدة",1,"","","","","",""]
[null,null,"محدد المدة",1,"","","","","",""]
[null,null,"محدد المدة",1,"","","","","",""]
[null,null,"محدد المدة",1,"","","","","",""]
[null,null,"محدد المدة",1,"","","","","",""]
[null,null,"محدد المدة",1,"","","","","",""]
[null,null,"محدد المدة",1,"","","","","",""]
[null,null,"محدد المدة",1,"","","","","",""]
[null,null,"محدد المدة",1,"","","","","",""]
[null,null,"محدد المدة",1,"","","","","",""]
[null,null,"محدد المدة",1,"","","","","",""]
[null,null,"محدد المدة",1,"","","","","",""]
[null,null,"محدد المدة",1,"","","","","",""]
[null,null,"محدد المدة",1,"","","","","",""]
[null,null,"محدد المدة",1,"","","","","",""]
[null,null,"محدد المدة",1,"","","","","",""]
[null,null,"محدد المدة",1,"","","","","",""]
[null,null,"محدد المدة",1,"","","","","",""]
[null,null,"محدد المدة",1,"","","","","",""]
[null,null,"محدد المدة",1,{"$f":"IF(OR(N(B707)=0,N(D707)=0),\"\",SUM(N(B707),N(D707*365)))","v":""},{"$f":"IF(A707=\"\",\"\",TODAY())","v":""},"","","",{"$f":"IF(OR(N(E707)=0,N(F707)=0),\"\",SUM(E707-F707))","v":""}]
[null,null,"محدد المدة",1,"","","","","",""]
[null,null,"محدد المدة",1,"","","","","",""]
[null,null,"محدد المدة",1,"","","","","",""]
[null,null,"محدد المدة",1,"","","","","",""]
[null,null,"محدد المدة",1,"","","","","",""]
[null,null,"محدد المدة",1,"","","","","",""]
[null,null,"محدد المدة",1,"","","","","",""]
[null,null,"محدد المدة",1,"","","","","",""]
[null,null,"محدد المدة",1,"","",{"$f":"IFERROR(DATEDIF(F716,E716,\"md\"),\"\")","v":""},{"$f":"IFERROR(DATEDIF(F716,E716,\"ym\"),\"\")","v":""},{"$f":"IFERROR(DATEDIF(F716,E716,\"y\"),\"\")","v":""},""]
[null,null,"محدد المدة",1,"","","","","",""]
[null,null,"محدد المدة",1,"","","","","",""]
[null,null,"محدد المدة",1,"","","","","",""]
[null,null,"محدد المدة",1,"","","","","",""]
[null,null,"محدد المدة",1,"","","","","",""]
[null,null,"محدد المدة",1,"","","","","",""]
[null,null,"محدد المدة",1,"","","","","",""]
[null,null,"محدد المدة",1,"","","","","",""]
[null,null,"محدد المدة",1,"","","","","",""]
[null,null,"محدد المدة",1,"","","","","",""]
[null,null,"محدد المدة",1,"","","","","",""]
[null,null,"محدد المدة",1,"","","","","",""]
[null,null,"محدد المدة",1,"","","","","",""]
[null,null,"محدد المدة",1,"","","","","",""]
[null,null,"محدد المدة",1,"","","","","",""]
[null,null,"محدد المدة",1,"","","","","",""]
[null,null,"محدد المدة",1,"","","","","",""]
[null,null,"محدد المدة",1,"","","","","",""]
[null,null,"محدد المدة",1,"","","","","",""]
[null,null,"محدد المدة",1,"","","","","",""]
[null,null,"محدد المدة",1,"","","","","",""]
[null,null,"محدد المدة",1,"","","","","",""]
[null,null,"محدد المدة",1,"","","","","",""]
[null,null,"محدد المدة",1,"","","","","",""]
[null,null,"محدد المدة",1,"","","","","",""]
[null,null,"محدد المدة",1,"","","","","",""]
[null,null,"محدد المدة",1,"","","","","",""]
[null,null,"محدد المدة",1,"","","","","",""]
[null,null,"محدد المدة",1,"","","","","",""]
[null,null,"محدد المدة",1,"","","","","",""]
[null,null,"محدد المدة",1,"","","","","",""]
[null,null,"محدد المدة",1,"","","","","",""]
[null,null,"محدد المدة",1,"","","","","",""]
[null,null,"محدد المدة",1,"","","","","",""]
[null,null,"محدد المدة",1,"","","","","",""]
[null,null,"محدد المدة",1,"","","","","",""]
[null,null,"محدد المدة",1,"","","","","",""]
[null,null,"محدد المدة",1,"","","","","",""]
[null,null,"محدد المدة",1,"","","","","",""]
[null,null,"محدد المدة",1,"","","","","",""]
[null,null,"محدد المدة",1,"","","","","",""]
[null,null,"محدد المدة",1,"","","","","",""]
[null,null,"محدد المدة",1,"","","","","",""]
[null,null,"محدد المدة",1,"","","","","",""]
[null,null,"محدد المدة",1,"","","","","",""]
[null,null,"محدد المدة",1,"","","","","",""]
[null,null,"محدد المدة",1,"","","","","",""]
[null,null,"محدد المدة",1,"","","","","",""]
[null,null,"محدد المدة",1,"","","","","",""]
[null,null,"محدد المدة",1,"","","","","",""]
[null,null,"محدد المدة",1,"","","","","",""]
[null,null,"محدد المدة",1,"","","","","",""]
[null,null,"محدد المدة",1,"","","","","",""]
[null,null,"محدد المدة",1,"","","","","",""]
[null,null,"محدد المدة",1,{"$f":"IF(OR(N(B771)=0,N(D771)=0),\"\",SUM(N(B771),N(D771*365)))","v":""},{"$f":"IF(A771=\"\",\"\",TODAY())","v":""},"","","",{"$f":"IF(OR(N(E771)=0,N(F771)=0),\"\",SUM(E771-F771))","v":""}]
[null,null,"محدد المدة",1,"","","","","",""]
[null,null,"محدد المدة",1,"","","","","",""]
[null,null,"محدد المدة",1,"","","","","",""]
[null,null,"محدد المدة",1,"","","","","",""]
[null,null,"محدد المدة",1,"","","","","",""]
[null,null,"محدد المدة",1,"","","","","",""]
[null,null,"محدد المدة",1,"","","","","",""]
[null,null,"محدد المدة",1,"","","","","",""]
[null,null,"محدد المدة",1,"","",{"$f":"IFERROR(DATEDIF(F780,E780,\"md\"),\"\")","v":""},{"$f":"IFERROR(DATEDIF(F780,E780,\"ym\"),\"\")","v":""},{"$f":"IFERROR(DATEDIF(F780,E780,\"y\"),\"\")","v":""},""]
[null,null,"محدد المدة",1,"","","","","",""]
[null,null,"محدد المدة",1,"","","","","",""]
[null,null,"محدد المدة",1,"","","","","",""]
[null,null,"محدد المدة",1,"","","","","",""]
[null,null,"محدد المدة",1,"","","","","",""]
[null,null,"محدد المدة",1,"","","","","",""]
[null,null,"محدد المدة",1,"","","","","",""]
[null,null,"محدد المدة",1,"","","","","",""]
[null,null,"محدد المدة",1,"","","","","",""]
[null,null,"محدد المدة",1,"","","","","",""]
[null,null,"محدد المدة",1,"","","","","",""]
[null,null,"محدد المدة",1,"","","","","",""]
[null,null,"محدد المدة",1,"","","","","",""]
[null,null,"محدد المدة",1,"","","","","",""]
[null,null,"محدد المدة",1,"","","","","",""]
[null,null,"محدد المدة",1,"","","","","",""]
[null,null,"محدد المدة",1,"","","","","",""]
[null,null,"محدد المدة",1,"","","","","",""]
[null,null,"محدد المدة",1,"","","","","",""]
[null,null,"محدد المدة",1,"","","","","",""]
[null,null,"محدد المدة",1,"","","","","",""]
[null,null,"محدد المدة",1,"","","","","",""]
[null,null,"محدد المدة",1,"","","","","",""]
[null,null,"محدد المدة",1,"","","","","",""]
[null,null,"محدد المدة",1,"","","","","",""]
[null,null,"محدد المدة",1,"","","","","",""]
[null,null,"محدد المدة",1,"","","","","",""]
[null,null,"محدد المدة",1,"","","","","",""]
[null,null,"محدد المدة",1,"","","","","",""]
[null,null,"محدد المدة",1,"","","","","",""]
[null,null,"محدد المدة",1,"","","","","",""]
[null,null,"محدد المدة",1,"","","","","",""]
[null,null,"محدد المدة",1,"","","","","",""]
[null,null,"محدد المدة",1,"","","","","",""]
[null,null,"محدد المدة",1,"","","","","",""]
[null,null,"محدد المدة",1,"","","","","",""]
[null,null,"محدد المدة",1,"","","","","",""]
[null,null,"محدد المدة",1,"","","","","",""]
[null,null,"محدد المدة",1,"","","","","",""]
[null,null,"محدد المدة",1,"","","","","",""]
[null,null,"محدد المدة",1,"","","","","",""]
[null,null,"محدد المدة",1,"","","","","",""]
[null,null,"محدد المدة",1,"","","","","",""]
[null,null,"محدد المدة",1,"","","","","",""]
[null,null,"محدد المدة",1,"","","","","",""]
[null,null,"محدد المدة",1,"","","","","",""]
[null,null,"محدد المدة",1,"","","","","",""]
[null,null,"محدد المدة",1,"","","","","",""]
[null,null,"محدد المدة",1,"","","","","",""]
[null,null,"محدد المدة",1,"","","","","",""]
[null,null,"محدد المدة",1,"","","","","",""]
[null,null,"محدد المدة",1,"","","","","",""]
[null,null,"محدد المدة",1,"","","","","",""]
[null,null,"محدد المدة",1,"","","","","",""]
[null,null,"محدد المدة",1,{"$f":"IF(OR(N(B835)=0,N(D835)=0),\"\",SUM(N(B835),N(D835*365)))","v":""},{"$f":"IF(A835=\"\",\"\",TODAY())","v":""},"","","",{"$f":"IF(OR(N(E835)=0,N(F835)=0),\"\",SUM(E835-F835))","v":""}]
[null,null,"محدد المدة",1,"","","","","",""]
[null,null,"محدد المدة",1,"","","","","",""]
[null,null,"محدد المدة",1,"","","","","",""]
[null,null,"محدد المدة",1,"","","","","",""]
[null,null,"محدد المدة",1,"","","","","",""]
[null,null,"محدد المدة",1,"","","","","",""]
[null,null,"محدد المدة",1,"","","","","",""]
[null,null,"محدد المدة",1,"","","","","",""]
[null,null,"محدد المدة",1,"","",{"$f":"IFERROR(DATEDIF(F844,E844,\"md\"),\"\")","v":""},{"$f":"IFERROR(DATEDIF(F844,E844,\"ym\"),\"\")","v":""},{"$f":"IFERROR(DATEDIF(F844,E844,\"y\"),\"\")","v":""},""]
[null,null,"محدد المدة",1,"","","","","",""]
[null,null,"محدد المدة",1,"","","","","",""]
[null,null,"محدد المدة",1,"","","","","",""]
[null,null,"محدد المدة",1,"","","","","",""]
[null,null,"محدد المدة",1,"","","","","",""]
[null,null,"محدد المدة",1,"","","","","",""]
[null,null,"محدد المدة",1,"","","","","",""]
[null,null,"محدد المدة",1,"","","","","",""]
[null,null,"محدد المدة",1,"","","","","",""]
[null,null,"محدد المدة",1,"","","","","",""]
[null,null,"محدد المدة",1,"","","","","",""]
[null,null,"محدد المدة",1,"","","","","",""]
[null,null,"محدد المدة",1,"","","","","",""]
[null,null,"محدد المدة",1,"","","","","",""]
[null,null,"محدد المدة",1,"","","","","",""]
[null,null,"محدد المدة",1,"","","","","",""]
[null,null,"محدد المدة",1,"","","","","",""]
[null,null,"محدد المدة",1,"","","","","",""]
[null,null,"محدد المدة",1,"","","","","",""]
[null,null,"محدد المدة",1,"","","","","",""]
[null,null,"محدد المدة",1,"","","","","",""]
[null,null,"محدد المدة",1,"","","","","",""]
[null,null,"محدد المدة",1,"","","","","",""]
[null,null,"محدد المدة",1,"","","","","",""]
[null,null,"محدد المدة",1,"","","","","",""]
[null,null,"محدد المدة",1,"","","","","",""]
[null,null,"محدد المدة",1,"","","","","",""]
[null,null,"محدد المدة",1,"","","","","",""]
[null,null,"محدد المدة",1,"","","","","",""]
[null,null,"محدد المدة",1,"","","","","",""]
[null,null,"محدد المدة",1,"","","","","",""]
[null,null,"محدد المدة",1,"","","","","",""]
[null,null,"محدد المدة",1,"","","","","",""]
[null,null,"محدد المدة",1,"","","","","",""]
[null,null,"محدد المدة",1,"","","","","",""]
[null,null,"محدد المدة",1,"","","","","",""]
[null,null,"محدد المدة",1,"","","","","",""]
[null,null,"محدد المدة",1,"","","","","",""]
[null,null,"محدد المدة",1,"","","","","",""]
[null,null,"محدد المدة",1,"","","","","",""]
[null,null,"محدد المدة",1,"","","","","",""]
[null,null,"محدد المدة",1,"","","","","",""]
[null,null,"محدد المدة",1,"","","","","",""]
[null,null,"محدد المدة",1,"","","","","",""]
[null,null,"محدد المدة",1,"","","","","",""]
[null,null,"محدد المدة",1,"","","","","",""]
[null,null,"محدد المدة",1,"","","","","",""]
[null,null,"محدد المدة",1,"","","","","",""]
[null,null,"محدد المدة",1,"","","","","",""]
[null,null,"محدد المدة",1,"","","","","",""]
[null,null,"محدد المدة",1,"","","","","",""]
[null,null,"محدد المدة",1,"","","","","",""]
[null,null,"محدد المدة",1,"","","","","",""]
[null,null,"محدد المدة",1,"","","","","",""]
[null,null,"محدد المدة",1,{"$f":"IF(OR(N(B899)=0,N(D899)=0),\"\",SUM(N(B899),N(D899*365)))","v":""},{"$f":"IF(A899=\"\",\"\",TODAY())","v":""},"","","",{"$f":"IF(OR(N(E899)=0,N(F899)=0),\"\",SUM(E899-F899))","v":""}]
[null,null,"محدد المدة",1,"","","","","",""]
[null,null,"محدد المدة",1,"","","","","",""]
[null,null,"محدد المدة",1,"","","","","",""]
[null,null,"محدد المدة",1,"","","","","",""]
[null,null,"محدد المدة",1,"","","","","",""]
[null,null,"محدد المدة",1,"","","","","",""]
[null,null,"محدد المدة",1,"","","","","",""]
[null,null,"محدد المدة",1,"","","","","",""]
[null,null,"محدد المدة",1,"","",{"$f":"IFERROR(DATEDIF(F908,E908,\"md\"),\"\")","v":""},{"$f":"IFERROR(DATEDIF(F908,E908,\"ym\"),\"\")","v":""},{"$f":"IFERROR(DATEDIF(F908,E908,\"y\"),\"\")","v":""},""]
[null,null,"محدد المدة",1,"","","","","",""]
[null,null,"محدد المدة",1,"","","","","",""]
[null,null,"محدد المدة",1,"","","","","",""]
[null,null,"محدد المدة",1,"","","","","",""]
[null,null,"محدد المدة",1,"","","","","",""]
[null,null,"محدد المدة",1,"","","","","",""]
[null,null,"محدد المدة",1,"","","","","",""]
[null,null,"محدد المدة",1,"","","","","",""]
[null,null,"محدد المدة",1,"","","","","",""]
[null,null,"محدد المدة",1,"","","","","",""]
[null,null,"محدد المدة",1,"","","","","",""]
[null,null,"محدد المدة",1,"","","","","",""]
[null,null,"محدد المدة",1,"","","","","",""]
[null,null,"محدد المدة",1,"","","","","",""]
[null,null,"محدد المدة",1,"","","","","",""]
[null,null,"محدد المدة",1,"","","","","",""]
[null,null,"محدد المدة",1,"","","","","",""]
[null,null,"محدد المدة",1,"","","","","",""]
[null,null,"محدد المدة",1,"","","","","",""]
[null,null,"محدد المدة",1,"","","","","",""]
[null,null,"محدد المدة",1,"","","","","",""]
[null,null,"محدد المدة",1,"","","","","",""]
[null,null,"محدد المدة",1,"","","","","",""]
[null,null,"محدد المدة",1,"","","","","",""]
[null,null,"محدد المدة",1,"","","","","",""]
[null,null,"محدد المدة",1,"","","","","",""]
[null,null,"محدد المدة",1,"","","","","",""]
[null,null,"محدد المدة",1,"","","","","",""]
[null,null,"محدد المدة",1,"","","","","",""]
[null,null,"محدد المدة",1,"","","","","",""]
[null,null,"محدد المدة",1,"","","","","",""]
[null,null,"محدد المدة",1,"","","","","",""]
[null,null,"محدد المدة",1,"","","","","",""]
[null,null,"محدد المدة",1,"","","","","",""]
[null,null,"محدد المدة",1,"","","","","",""]
[null,null,"محدد المدة",1,"","","","","",""]
[null,null,"محدد المدة",1,"","","","","",""]
[null,null,"محدد المدة",1,"","","","","",""]
[null,null,"محدد المدة",1,"","","","","",""]
[null,null,"محدد المدة",1,"","","","","",""]
[null,null,"محدد المدة",1,"","","","","",""]
[null,null,"محدد المدة",1,"","","","","",""]
[null,null,"محدد المدة",1,"","","","","",""]
[null,null,"محدد المدة",1,"","","","","",""]
[null,null,"محدد المدة",1,"","","","","",""]
[null,null,"محدد المدة",1,"","","","","",""]
[null,null,"محدد المدة",1,"","","","","",""]
[null,null,"محدد المدة",1,"","","","","",""]
[null,null,"محدد المدة",1,"","","","","",""]
[null,null,"محدد المدة",1,"","","","","",""]
[null,null,"محدد المدة",1,"","","","","",""]
[null,null,"محدد المدة",1,"","","","","",""]
[null,null,"محدد المدة",1,"","","","","",""]
[null,null,"محدد المدة",1,"","","","","",""]
[null,null,"محدد المدة",1,{"$f":"IF(OR(N(B963)=0,N(D963)=0),\"\",SUM(N(B963),N(D963*365)))","v":""},{"$f":"IF(A963=\"\",\"\",TODAY())","v":""},"","","",{"$f":"IF(OR(N(E963)=0,N(F963)=0),\"\",SUM(E963-F963))","v":""}]
[null,null,"محدد المدة",1,"","","","","",""]
[null,null,"محدد المدة",1,"","","","","",""]
[null,null,"محدد المدة",1,"","","","","",""]
[null,null,"محدد المدة",1,"","","","","",""]
[null,null,"محدد المدة",1,"","","","","",""]
[null,null,"محدد المدة",1,"","","","","",""]
[null,null,"محدد المدة",1,"","","","","",""]
[null,null,"محدد المدة",1,"","","","","",""]
[null,null,"محدد المدة",1,"","",{"$f":"IFERROR(DATEDIF(F972,E972,\"md\"),\"\")","v":""},{"$f":"IFERROR(DATEDIF(F972,E972,\"ym\"),\"\")","v":""},{"$f":"IFERROR(DATEDIF(F972,E972,\"y\"),\"\")","v":""},""]
[null,null,"محدد المدة",1,"","","","","",""]
[null,null,"محدد المدة",1,"","","","","",""]
[null,null,"محدد المدة",1,"","","","","",""]
[null,null,"محدد المدة",1,"","","","","",""]
[null,null,"محدد المدة",1,"","","","","",""]
[null,null,"محدد المدة",1,"","","","","",""]
[null,null,"محدد المدة",1,"","","","","",""]
[null,null,"محدد المدة",1,"","","","","",""]
[null,null,"محدد المدة",1,"","","","","",""]
[null,null,"محدد المدة",1,"","","","","",""]
[null,null,"محدد المدة",1,"","","","","",""]
[null,null,"محدد المدة",1,"","","","","",""]
[null,null,"محدد المدة",1,"","","","","",""]
[null,null,"محدد المدة",1,"","","","","",""]
[null,null,"محدد المدة",1,"","","","","",""]
[null,null,"محدد المدة",1,"","","","","",""]
[null,null,"محدد المدة",1,"","","","","",""]
[null,null,"محدد المدة",1,"","","","","",""]
[null,null,"محدد المدة",1,"","","","","",""]
[null,null,"محدد المدة",1,"","","","","",""]
[null,null,"محدد المدة",1,"","","","","",""]
[null,null,"محدد المدة",1,"","","","","",""]
[null,null,"محدد المدة",1,"","","","","",""]
[null,null,"محدد المدة",1,"","","","","",""]
[null,null,"محدد المدة",1,"","","","","",""]
[null,null,"محدد المدة",1,"","","","","",""]
[null,null,"محدد المدة",1,"","","","","",""]
[null,null,"محدد المدة",1,"","","","","",""]
[null,null,"محدد المدة",1,"","","","","",""]
[null,null,"محدد المدة",1,"","","","","",""]
[null,null,"محدد المدة",1,"","","","","",""]
[null,null,"محدد المدة",1,"","","","","",""]
[null,null,"محدد المدة",1,"","","","","",""]
[null,null,"محدد المدة",1,"","","","","",""]
[null,null,"محدد المدة",1,"","","","","",""]
[null,null,"محدد المدة",1,"","","","","",""]
[null,null,"محدد المدة",1,"","","","","",""]
[null,null,"محدد المدة",1,"","","","","",""]

{"sheet":"Sheet2","index":1,"n_rows":1000,"n_cols":66,"rows_kept":1000,"cut":false,"hidden":false,"merged":[]}
["رقم الكارتة","الاسم","أسم المؤهل","القسم","مدة العقد","السن","الخبرة","بداية التعين","تاريخ انتهاء العقد","تاريخ اليوم","تاريخ الميلاد","تاريخ تجديد الفيش","بداية الفيش","انتهاء الفيش","المؤهل","كعب العمل","الفيش","شهادة الميلاد","صورة البطاقة","صورة شخصية","العقد","استمارة   1  ","استمارة  6 ","استقالة","اخلاء طرف","اقرار استلام عمل","صحيفة الحالة الاجتماعية","أستمارة 11","نوع المؤهل",null,"رقم كود الادارة","الوظيفة","ملاحظات",null,null,"عالي",null,null,null,null,null,null,null,null,null,null,null,null,null,null,null,null,null,null,null,null,"القسم","الاسم","رقم الكارتة","السن","تاريخ التعين","تاريخ انهاء العقد","تاريخ الميلاد","نوع المؤهل","الوظيفة","ملاحظات"]
[5820,"احمد ابراهيم علي مخلوف ","بكالوريس علوم","التجهيز",1,{"$f":"IF(SUM(N(J2),-N(K2))=0,\"\",ROUND(SUM(N(J2),-N(K2))/365,0))","v":44},{"$f":"IF(SUM(N(J2),-N(H2))=0,\"\",SUM(N(J2),-N(H2))/365)","v":15.2},"2005-09-10",{"$f":"IF(OR(N(H2)=0,N(E2)=0),\"\",SUM(N(H2),N(E2*365)))","v":"2006-09-10"},{"$f":"IF(B2=\"\",\"\",TODAY())","v":"2020-11-18"},"1977-04-28",180,"2005-07-08",{"$f":"IF(OR(N(M2)=0,N(L2)=0),\"\",SUM(M2,L2))","v":"2006-01-04"},"Yes","Yes","Yes","Yes","Yes","Yes","Yes","Yes","No","No","No","No","Yes","Yes","عالي","Yes",null,"مهندس كيمياء(موصفات)",null,"الادارة",null,"فوق متوسط",null,null,null,null,null,null,null,null,null,null,null,null,null,null,null,null,null,null,null,null,{"$f":"D2","v":"التجهيز"},{"$f":"B2","v":"احمد ابراهيم علي مخلوف "},{"$f":"A2","v":5820},{"$f":"F2","v":44},{"$f":"H2","v":"2005-09-10"},{"$f":"I2","v":"2006-09-10"},{"$f":"K2","v":"1977-04-28"},{"$f":"AC2","v":"عالي"},{"$f":"AF2","v":"مهندس كيمياء(موصفات)"},{"$f":"AG2","v":0}]
[7665,"احمد ابراهيم ياقوت اسماعيل ","دبلوم صناعي","التجهيز",1,{"$f":"IF(SUM(N(J3),-N(K3))=0,\"\",ROUND(SUM(N(J3),-N(K3))/365,0))","v":55},{"$f":"IF(SUM(N(J3),-N(H3))=0,\"\",SUM(N(J3),-N(H3))/365)","v":13.753424657534246},"2007-02-20",{"$f":"IF(OR(N(H3)=0,N(E3)=0),\"\",SUM(N(H3),N(E3*365)))","v":"2008-02-20"},{"$f":"IF(B3=\"\",\"\",TODAY())","v":"2020-11-18"},"1965-07-16",180,"2007-07-01",{"$f":"IF(OR(N(M3)=0,N(L3)=0),\"\",SUM(M3,L3))","v":"2007-12-28"},"Yes","Yes","Yes","Yes","Yes","Yes","Yes","Yes","No","No","No","Yes","Yes","Yes","متوسط","No",null,"عامل تجهيز",null,"المصبغة",null,"متوسط",null,null,null,null,null,null,null,null,null,null,null,null,null,null,null,null,null,null,null,null,"التجهيز",{"$f":"B3","v":"احمد ابراهيم ياقوت اسماعيل "},{"$f":"A3","v":7665},{"$f":"F3","v":55},{"$f":"H3","v":"2007-02-20"},{"$f":"I3","v":"2008-02-20"},{"$f":"K3","v":"1965-07-16"},{"$f":"AC3","v":"متوسط"},{"$f":"AF3","v":"عامل تجهيز"},{"$f":"AG3","v":0}]
[10016,"احمد اسماعيل خميس  بركات اسماعيل","بكالوريوس تجاره ","التجهيز",1,38,10.175342465753424,"2010-09-18",{"$f":"IF(OR(N(H4)=0,N(E4)=0),\"\",SUM(N(H4),N(E4*365)))","v":"2011-09-18"},"2020-11-18","1982-10-10",180,"2010-06-20","2010-12-17","Yes","Yes","Yes","Yes","Yes","Yes","Yes","Yes","No","No","No","Yes","Yes","No","عالي",null,null,"مراقب انتاج",null,"التجهيز",null,"بدون",null,null,null,null,null,null,null,null,null,null,null,null,null,null,null,null,null,null,null,null,"التجهيز","احمد اسماعيل خميس  بركات اسماعيل",10016,38,"2010-09-18","2011-09-18","1982-10-10","عالي","مراقب انتاج",0]
[12945,"احمد جابر السيد محمد شرف ","دبلوم صناعي","التجهيز",1,30,4.1589041095890407,"2016-09-22","2017-09-22","2020-11-18","1990-09-09",180,"2016-04-09","2016-10-06","No","Yes","Yes","Yes","Yes","Yes","Yes","Yes","No","No","No","No","Yes","No","متوسط",null,null,"عامل تجهيز",null,"مخزن الكيماويات",null,null,null,null,null,null,null,null,null,null,null,null,null,null,null,null,null,null,null,null,null,null,"التجهيز","احمد جابر السيد محمد شرف ",12945,30,"2016-09-22","2017-09-22","1990-09-09","متوسط","عامل تجهيز",0]
[5850,"احمد رافت محمد يوسف حسب الله","دبلوم صناعي","التجهيز",1,25,15.2,"2005-09-10","2006-09-10","2020-11-18","1995-06-20",180,"2005-08-22","2006-02-18","Yes","Yes","No","No","Yes","No","Yes","Yes","Yes","No","No","No","Yes","No","متوسط",null,null,"عامل تجهيز",null,"المعمل",null,null,null,null,null,null,null,null,null,null,null,null,null,null,null,null,null,null,null,null,null,null,"التجهيز","احمد رافت محمد يوسف حسب الله",5850,25,"2005-09-10","2006-09-10","1995-06-20","متوسط","عامل تجهيز",0]
[9987,"احمد محمد احمد النجار ","دبلوم صناعي","التجهيز",1,{"$f":"IF(SUM(N(J7),-N(K7))=0,\"\",ROUND(SUM(N(J7),-N(K7))/365,0))","v":31},{"$f":"IF(SUM(N(J7),-N(H7))=0,\"\",SUM(N(J7),-N(H7))/365)","v":15.243835616438357},"2005-08-25","2006-08-25","2020-11-18","1989-12-28",180,"2010-08-22","2011-02-18","Yes","Yes","Yes","Yes","Yes","Yes","Yes","Yes","No","No","No","Yes","Yes","Yes","متوسط",null,null,"عامل تجهيز",null,"الورشة",null,null,null,null,null,null,null,null,null,null,null,null,null,null,null,null,null,null,null,null,null,null,"التجهيز","احمد محمد احمد النجار ",9987,31,"2005-08-25","2006-08-25","1989-12-28","متوسط","عامل تجهيز",0]
[7355,"ابراهيم محمد ابراهيم احمد","دبلوم صناعي","التجهيز",1,50,14.03013698630137,"2006-11-11",{"$f":"IF(OR(N(H8)=0,N(E8)=0),\"\",SUM(N(H8),N(E8*365)))","v":"2007-11-11"},"2020-11-18","1970-09-05",180,"2006-09-21",{"$f":"IF(OR(N(M8)=0,N(L8)=0),\"\",SUM(M8,L8))","v":"2007-03-20"},"Yes","Yes","Yes","No","Yes","Yes","Yes","Yes","No","No","No","No","No","No","متوسط",null,null,"عامل تجهيز",null,"التريكو",null,null,null,null,null,null,null,null,null,null,null,null,null,null,null,null,null,null,null,null,null,null,"التجهيز","ابراهيم محمد ابراهيم احمد",7355,50,"2006-11-11","2007-11-11","1970-09-05","متوسط","عامل تجهيز",0]
[925,"اسامه محمد اسماعيل عباس الشترار","دبلوم تجاره","التجهيز",1,45,16.863013698630137,"2004-01-12","2005-01-11","2020-11-18","1976-03-25",180,"2004-10-18","2005-04-16","Yes","Yes","Yes","No","Yes","Yes","Yes","Yes","No","No","No","No","Yes","Yes","متوسط",null,null,"عامل تجهيز",null,"الامن الصناعي",null,null,null,null,null,null,null,null,null,null,null,null,null,null,null,null,null,null,null,null,null,null,"التجهيز","اسامه محمد اسماعيل عباس الشترار",925,45,"2004-01-12","2005-01-11","1976-03-25","متوسط","عامل تجهيز",0]
[13709,"اشرف عبد الستار محمد حسن السيد","دبلوم صناعي","التجهيز",1,38,1.9972602739726026,"2018-11-20","2019-11-20","2020-11-18","1982-06-19",180,"2018-11-17","2019-05-16","No","Yes","Yes","Yes","Yes","Yes","Yes","Yes","Yes","No","No","No","Yes","No","متوسط",null,null,"عامل تجهيز","العقد فاضي","الامن ",null,null,null,null,null,null,null,null,null,null,null,null,null,null,null,null,null,null,null,null,null,null,"التجهيز","اشرف عبد الستار محمد حسن السيد",13709,38,"2018-11-20","2019-11-20","1982-06-19","متوسط","عامل تجهيز","العقد فاضي"]
[13728,"اسلام سمير عبد ى القوي حسن ","دبلوم صناعي ","التجهيز",1,25,1.9726027397260273,"2018-11-29","2019-11-29","2020-11-18","1995-12-25",180,null,"","No","Yes","No","Yes","Yes","Yes","Yes","Yes","No","No","No","Yes","No","No","متوسط",null,null,"عامل تجهيز",null,"الخدمات",null,null,null,null,null,null,null,null,null,null,null,null,null,null,null,null,null,null,null,null,null,null,"التجهيز","اسلام سمير عبد ى القوي حسن ",13728,25,"2018-11-29","2019-11-29","1995-12-25","متوسط","عامل تجهيز",0]
[8566,"حسن ابراهيم  محمد محمود عبد الرحيم ","بكالوريس زرعه","التجهيز",1,41,12.884931506849314,"2008-01-03","2009-01-02","2020-11-18","1980-01-02",180,"2008-04-27","2008-10-24","Yes","Yes","Yes","Yes","Yes","Yes","Yes","Yes","No","No","No","Yes","Yes","No","عالي",null,null,"مهندس تجهيز",null,"المخازن",null,null,null,null,null,null,null,null,null,null,null,null,null,null,null,null,null,null,null,null,null,null,"التجهيز","حسن ابراهيم  محمد محمود عبد الرحيم ",8566,41,"2008-01-03","2009-01-02","1980-01-02","عالي","مهندس تجهيز",0]
[904,"حمدي محمود احمد عبد اللطيف ","دبلوم صناعي","التجهيز",1,56,24.909589041095892,"1995-12-28","1996-12-27","2020-11-18","1965-01-20",180,null,"","No","No","No","No","Yes","Yes","Yes","Yes","No","No","No","No","Yes","No","متوسط",null,null,null,null,"الاستيك",null,null,null,null,null,null,null,null,null,null,null,null,null,null,null,null,null,null,null,null,null,null,"التجهيز","حمدي محمود احمد عبد اللطيف ",904,56,"1995-12-28","1996-12-27","1965-01-20","متوسط",0,0]
[926,"خالد عبد الله عامر ","دبلوم زراعي ","التجهيز",1,52,25.517808219178082,"1995-05-20","1996-05-19","2020-11-18","1968-12-30",180,null,"",null,null,null,"Yes","Yes","Yes","Yes","Yes","No","No","No","No","Yes","No","متوسط",null,null,null,null,null,null,null,null,null,null,null,null,null,null,null,null,null,null,null,null,null,null,null,null,null,null,null,"التجهيز","خالد عبد الله عامر ",926,52,"1995-05-20","1996-05-19","1968-12-30","متوسط",0,0]
[922,"رمضان احمد سرور السيد","بدون مؤهل","التجهيز",1,48,23.263013698630136,"1997-08-20","1998-08-20","2020-11-18","1972-10-07",180,"1996-02-07","1996-08-05",null,null,"Yes","Yes","Yes","Yes","Yes","Yes","No","No","No","No","Yes","No","بدون",null,null,null,null,null,null,null,null,null,null,null,null,null,null,null,null,null,null,null,null,null,null,null,null,null,null,null,"التجهيز","رمضان احمد سرور السيد",922,48,"1997-08-20","1998-08-20","1972-10-07","بدون",0,0]
[10492,"سعد صلاح سعدرمضان عقاب ","بدون","التجهيز",1,35,9.5534246575342472,"2011-05-03","2012-05-02","2020-11-18","1985-11-24",180,"2011-01-24","2011-07-23","No","Yes","Yes","Yes","Yes","Yes","Yes","Yes","No","No","No","Yes","Yes","Yes","بدون",null,null,null,null,null,null,null,null,null,null,null,null,null,null,null,null,null,null,null,null,null,null,null,null,null,null,null,"التجهيز","سعد صلاح سعدرمضان عقاب ",10492,35,"2011-05-03","2012-05-02","1985-11-24","بدون",0,0]
[9608,"سعد محمود سعد محمود حسين ","بدون","التجهيز",1,40,10.131506849315068,"2010-10-04","2011-10-04","2020-11-18","1981-02-25",180,"2010-11-03","2011-05-02","No","Yes","Yes","Yes","Yes","Yes","Yes","Yes","No","No","No","Yes","Yes","Yes","بدون",null,null,null,null,null,null,null,null,null,null,null,null,null,null,null,null,null,null,null,null,null,null,null,null,null,null,null,"التجهيز","سعد محمود سعد محمود حسين ",9608,40,"2010-10-04","2011-10-04","1981-02-25","بدون",0,0]
[5523,"سعيد بدير شعبان ابراهيم  شعبان","اعداديه","التجهيز",1,38,15.04109589041096,"2005-11-07","2006-11-07","2020-11-18","1982-11-16",180,"2005-04-24","2005-10-21","No","Yes","Yes","Yes","Yes","No","Yes","Yes","No","No","No","No","Yes","No","متوسط",null,null,null,null,null,null,null,null,null,null,null,null,null,null,null,null,null,null,null,null,null,null,null,null,null,null,null,"التجهيز","سعيد بدير شعبان ابراهيم  شعبان",5523,38,"2005-11-07","2006-11-07","1982-11-16","متوسط",0,0]
[910,"سعيد علي يوسف احمد","دبلوم تجاره","التجهيز",1,48,25.32054794520548,"1995-07-31","1996-07-30","2020-11-18","1972-08-27",180,null,"","Yes","No","No","Yes","Yes","Yes","Yes","Yes","No","No","No","No","Yes","Yes","متوسط",null,null,null,null,null,null,null,null,null,null,null,null,null,null,null,null,null,null,null,null,null,null,null,null,null,null,null,"التجهيز","سعيد علي يوسف احمد",910,48,"1995-07-31","1996-07-30","1972-08-27","متوسط",0,0]
[11419,"سعيد نصيب يوسف محمد الدمني ","دبلوم صناعي","التجهيز",1,41,8.0904109589041102,"2012-10-18","2013-10-18","2020-11-18","1979-11-10",180,"2012-06-28","2012-12-25","Yes","Yes","Yes","Yes","Yes","Yes","Yes","Yes","No","No","No","Yes","Yes","Yes","متوسط",null,null,null,null,null,null,null,null,null,null,null,null,null,null,null,null,null,null,null,null,null,null,null,null,null,null,null,"التجهيز","سعيد نصيب يوسف محمد الدمني ",11419,41,"2012-10-18","2013-10-18","1979-11-10","متوسط",0,0]
[5267,"صبحي عبدالله عامر ابو الخير ","دبلوم صناعي ","التجهيز",1,56,16.449315068493149,"2004-06-11","2005-06-11","2020-11-18","1965-03-06",180,"2004-10-11","2005-04-09","Yes","Yes","Yes","Yes","Yes","No","Yes","Yes","No","No","No","No","Yes","No","متوسط",null,null,null,null,null,null,null,null,null,null,null,null,null,null,null,null,null,null,null,null,null,null,null,null,null,null,null,"التجهيز","صبحي عبدالله عامر ابو الخير ",5267,56,"2004-06-11","2005-06-11","1965-03-06","متوسط",0,0]
[283,"عادل عبد البدير عويضه غالي","دبلوم تجاره","التجهيز",1,36,23.895890410958906,"1997-01-01","1998-01-01","2020-11-18","1985-03-19",180,"1997-01-03","1997-07-02","Yes","No","No","Yes","Yes","Yes","Yes","Yes","No","No","No","No","No","No","متوسط",null,null,null,null,null,null,null,null,null,null,null,null,null,null,null,null,null,null,null,null,null,null,null,null,null,null,null,"التجهيز","عادل عبد البدير عويضه غالي",283,36,"1997-01-01","1998-01-01","1985-03-19","متوسط",0,0]
[4239,"عبد الجواد محمد عبدالسلام ","بدون","التجهيز",1,49,18.786301369863015,"2002-02-09","2003-02-09","2020-11-18","1971-06-20",180,"2002-06-30","2002-12-27","No","Yes","Yes","Yes","Yes","Yes","Yes","Yes","No","No","No","No","Yes","No","بدون",null,null,null,null,null,null,null,null,null,null,null,null,null,null,null,null,null,null,null,null,null,null,null,null,null,null,null,"التجهيز","عبد الجواد محمد عبدالسلام ",4239,49,"2002-02-09","2003-02-09","1971-06-20","بدون",0,0]
[8223,"عبد الحميد يحي عبد الحميد احمد","ليسانس تربيه","التجهيز",1,36,13.161643835616438,"2007-09-24","2008-09-23","2020-11-18","1985-02-04",180,"2007-09-30","2008-03-28","Yes","Yes","Yes","Yes","Yes","Yes","Yes","Yes","No","No","No","Yes","Yes","No","عالي",null,null,"مهندس تجهيز",null,null,null,null,null,null,null,null,null,null,null,null,null,null,null,null,null,null,null,null,null,null,null,null,"التجهيز","عبد الحميد يحي عبد الحميد احمد",8223,36,"2007-09-24","2008-09-23","1985-02-04","عالي","مهندس تجهيز",0]
[10003,"عبد الجليل عوض عبد الجليل ","دبلوم زراعه ","التجهيز",1,40,10.156164383561643,"2010-09-25","2011-09-25","2020-11-18","1981-05-18",180,"2010-08-24","2011-02-20","Yes","Yes","Yes","Yes","Yes","Yes","Yes","Yes","No","No","No","Yes","Yes","No","متوسط",null,null,"عامل تجهيز",null,null,null,null,null,null,null,null,null,null,null,null,null,null,null,null,null,null,null,null,null,null,null,null,"التجهيز","عبد الجليل عوض عبد الجليل ",10003,40,"2010-09-25","2011-09-25","1981-05-18","متوسط","عامل تجهيز",0]
[13556,"عبدالستار عبدالحميد عبدالستار محمد","دبلوم صناعي","التجهيز",1,25,2.4465753424657533,"2018-06-09","2019-06-09","2020-11-18","1995-06-12",180,null,"","No","Yes","No","No","Yes","Yes","Yes","Yes","No","No","No","Yes","Yes","No","متوسط",null,null,"عامل تجهيز","العقد فاضي",null,null,null,null,null,null,null,null,null,null,null,null,null,null,null,null,null,null,null,null,null,null,null,"التجهيز","عبدالستار عبدالحميد عبدالستار محمد",13556,25,"2018-06-09","2019-06-09","1995-06-12","متوسط","عامل تجهيز","العقد فاضي"]
[572,"عبدالمنعم حسين عبدالحليم ","دبلوم صناعي","التجهيز",1,53,24.942465753424656,"1995-12-16","1996-12-15","2020-11-18","1967-09-24",180,"1984-03-17","1984-09-13","Yes","No","No","Yes","Yes","Yes","Yes","Yes","No","No","No","No","Yes","No","متوسط",null,null,"عامل تجهيز",null,null,null,null,null,null,null,null,null,null,null,null,null,null,null,null,null,null,null,null,null,null,null,null,"التجهيز","عبدالمنعم حسين عبدالحليم ",572,53,"1995-12-16","1996-12-15","1967-09-24","متوسط","عامل تجهيز",0]
[null,null,null,null,1,"","",null,"","",null,null,null,"",null,null,null,null,null,null,null,null,null,null,null,null,null,null,null,null,null,null,null,null,null,null,null,null,null,null,null,null,null,null,null,null,null,null,null,null,null,null,null,null,null,null,"المصبغة",0,0,"","00:00:00","","00:00:00",0,0,0]
[null,null,null,null,1,"","",null,{"$f":"IF(OR(N(H29)=0,N(E29)=0),\"\",SUM(N(H29),N(E29*365)))","v":""},{"$f":"IF(B29=\"\",\"\",TODAY())","v":""},null,180,null,{"$f":"IF(OR(N(M29)=0,N(L29)=0),\"\",SUM(M29,L29))","v":""},null,null,null,null,null,null,null,null,null,null,null,null,null,null,null,null,null,null,null,null,null,null,null,null,null,null,null,null,null,null,null,null,null,null,null,null,null,null,null,null,null,null,null,0,0,null,0,null,0]
[null,null,null,null,1,"","",null,{"$f":"IF(OR(N(H30)=0,N(E30)=0),\"\",SUM(N(H30),N(E30*365)))","v":""},"",null,180,null,"",null,null,null,null,null,null,null,null,null,null,null,null,null,null,null,null,null,null,null,null,null,null,null,null,null,null,null,null,null,null,null,null,null,null,null,null,null,null,null,null,null,null,null,{"$f":"B30","v":0},{"$f":"A30","v":0},null,{"$f":"H30","v":0},null,{"$f":"K30","v":0}]
[null,null,null,null,1,"","",null,"","",null,180,null,"",null,null,null,null,null,null,null,null,null,null,null,null,null,null,null,null,null,null,null,null,null,null,null,null,null,null,null,null,null,null,null,null,null,null,null,null,null,null,null,null,null,null,{"$f":"D31","v":0},0,0,null,0,null,0]
[null,null,null,null,1,"","",null,"","",null,180,null,"",null,null,null,null,null,null,null,null,null,null,null,null,null,null,null,null,null,null,null,null,null,null,null,null,null,null,null,null,null,null,null,null,null,null,null,null,null,null,null,null,null,null,0,0,0,null,0,null,0]
[null,null,null,null,1,"","",null,"","",null,180,null,"",null,null,null,null,null,null,null,null,null,null,null,null,null,null,null,null,null,null,null,null,null,null,null,null,null,null,null,null,null,null,null,null,null,null,null,null,null,null,null,null,null,null,0,0,0,null,0,null,0]
[null,null,null,null,1,"","",null,"","",null,180,null,"",null,null,null,null,null,null,null,null,null,null,null,null,null,null,null,null,null,null,null,null,null,null,null,null,null,null,null,null,null,null,null,null,null,null,null,null,null,null,null,null,null,null,0,0,0,null,0,null,0]
[null,null,null,null,1,"","",null,"","",null,180,null,"",null,null,null,null,null,null,null,null,null,null,null,null,null,null,null,null,null,null,null,null,null,null,null,null,null,null,null,null,null,null,null,null,null,null,null,null,null,null,null,null,null,null,0,0,0,null,0,null,0]
[null,null,null,null,1,"","",null,"","",null,180,null,"",null,null,null,null,null,null,null,null,null,null,null,null,null,null,null,null,null,null,null,null,null,null,null,null,null,null,null,null,null,null,null,null,null,null,null,null,null,null,null,null,null,null,0,0,0,null,0,null,0]
[null,null,null,null,1,"","",null,"","",null,180,null,"",null,null,null,null,null,null,null,null,null,null,null,null,null,null,null,null,null,null,null,null,null,null,null,null,null,null,null,null,null,null,null,null,null,null,null,null,null,null,null,null,null,null,0,0,0,null,0,null,0]
[null,null,null,null,1,"","",null,"","",null,180,null,"",null,null,null,null,null,null,null,null,null,null,null,null,null,null,null,null,null,null,null,null,null,null,null,null,null,null,null,null,null,null,null,null,null,null,null,null,null,null,null,null,null,null,0,0,0,null,0,null,0]
[null,null,null,null,1,"","",null,"","",null,180,null,"",null,null,null,null,null,null,null,null,null,null,null,null,null,null,null,null,null,null,null,null,null,null,null,null,null,null,null,null,null,null,null,null,null,null,null,null,null,null,null,null,null,null,0,0,0,null,0,null,0]
[null,null,null,null,1,"","",null,"","",null,180,null,"",null,null,null,null,null,null,null,null,null,null,null,null,null,null,null,null,null,null,null,null,null,null,null,null,null,null,null,null,null,null,null,null,null,null,null,null,null,null,null,null,null,null,0,0,0,null,0,null,0]
[null,null,null,null,1,"","",null,"","",null,180,null,"",null,null,null,null,null,null,null,null,null,null,null,null,null,null,null,null,null,null,null,null,null,null,null,null,null,null,null,null,null,null,null,null,null,null,null,null,null,null,null,null,null,null,0,0,0,null,0,null,0]
[null,null,null,null,1,"","",null,"","",null,180,null,"",null,null,null,null,null,null,null,null,null,null,null,null,null,null,null,null,null,null,null,null,null,null,null,null,null,null,null,null,null,null,null,null,null,null,null,null,null,null,null,null,null,null,0,0,0,null,0,null,0]
[null,null,null,null,1,"","",null,"","",null,180,null,"",null,null,null,null,null,null,null,null,null,null,null,null,null,null,null,null,null,null,null,null,null,null,null,null,null,null,null,null,null,null,null,null,null,null,null,null,null,null,null,null,null,null,0,0,0,null,0,null,0]
[null,null,null,null,1,"","",null,"","",null,180,null,"",null,null,null,null,null,null,null,null,null,null,null,null,null,null,null,null,null,null,null,null,null,null,null,null,null,null,null,null,null,null,null,null,null,null,null,null,null,null,null,null,null,null,0,0,0,null,0,null,0]
[null,null,null,null,1,"","",null,"","",null,180,null,"",null,null,null,null,null,null,null,null,null,null,null,null,null,null,null,null,null,null,null,null,null,null,null,null,null,null,null,null,null,null,null,null,null,null,null,null,null,null,null,null,null,null,0,0,0,null,0,null,0]
[null,null,null,null,1,"","",null,"","",null,180,null,"",null,null,null,null,null,null,null,null,null,null,null,null,null,null,null,null,null,null,null,null,null,null,null,null,null,null,null,null,null,null,null,null,null,null,null,null,null,null,null,null,null,null,0,0,0,null,0,null,0]
[null,null,null,null,1,"","",null,"","",null,180,null,"",null,null,null,null,null,null,null,null,null,null,null,null,null,null,null,null,null,null,null,null,null,null,null,null,null,null,null,null,null,null,null,null,null,null,null,null,null,null,null,null,null,null,0,0,0,null,0,null,0]
[null,null,null,null,1,"","",null,"","",null,180,null,"",null,null,null,null,null,null,null,null,null,null,null,null,null,null,null,null,null,null,null,null,null,null,null,null,null,null,null,null,null,null,null,null,null,null,null,null,null,null,null,null,null,null,0,0,0,null,0,null,0]
[null,null,null,null,1,"","",null,"","",null,180,null,"",null,null,null,null,null,null,null,null,null,null,null,null,null,null,null,null,null,null,null,null,null,null,null,null,null,null,null,null,null,null,null,null,null,null,null,null,null,null,null,null,null,null,0,0,0,null,0,null,0]
[null,null,null,null,1,"","",null,"","",null,180,null,"",null,null,null,null,null,null,null,null,null,null,null,null,null,null,null,null,null,null,null,null,null,null,null,null,null,null,null,null,null,null,null,null,null,null,null,null,null,null,null,null,null,null,0,0,0,null,0,null,0]
[null,null,null,null,1,"","",null,"","",null,180,null,"",null,null,null,null,null,null,null,null,null,null,null,null,null,null,null,null,null,null,null,null,null,null,null,null,null,null,null,null,null,null,null,null,null,null,null,null,null,null,null,null,null,null,0,0,0,null,0,null,0]
[null,null,null,null,1,"","",null,"","",null,180,null,"",null,null,null,null,null,null,null,null,null,null,null,null,null,null,null,null,null,null,null,null,null,null,null,null,null,null,null,null,null,null,null,null,null,null,null,null,null,null,null,null,null,null,0,0,0,null,0,null,0]
[null,null,null,null,1,"","",null,"","",null,180,null,"",null,null,null,null,null,null,null,null,null,null,null,null,null,null,null,null,null,null,null,null,null,null,null,null,null,null,null,null,null,null,null,null,null,null,null,null,null,null,null,null,null,null,0,0,0,null,0,null,0]
[null,null,null,null,1,"","",null,"","",null,180,null,"",null,null,null,null,null,null,null,null,null,null,null,null,null,null,null,null,null,null,null,null,null,null,null,null,null,null,null,null,null,null,null,null,null,null,null,null,null,null,null,null,null,null,0,0,0,null,0,null,0]
[null,null,null,null,1,"","",null,"","",null,180,null,"",null,null,null,null,null,null,null,null,null,null,null,null,null,null,null,null,null,null,null,null,null,null,null,null,null,null,null,null,null,null,null,null,null,null,null,null,null,null,null,null,null,null,0,0,0,null,0,null,0]
[null,null,null,null,1,"","",null,"","",null,180,null,"",null,null,null,null,null,null,null,null,null,null,null,null,null,null,null,null,null,null,null,null,null,null,null,null,null,null,null,null,null,null,null,null,null,null,null,null,null,null,null,null,null,null,0,0,0,null,0,null,0]
[null,null,null,null,1,"","",null,"","",null,180,null,"",null,null,null,null,null,null,null,null,null,null,null,null,null,null,null,null,null,null,null,null,null,null,null,null,null,null,null,null,null,null,null,null,null,null,null,null,null,null,null,null,null,null,0,0,0,null,0,null,0]
[null,null,null,null,1,"","",null,"","",null,180,null,"",null,null,null,null,null,null,null,null,null,null,null,null,null,null,null,null,null,null,null,null,null,null,null,null,null,null,null,null,null,null,null,null,null,null,null,null,null,null,null,null,null,null,0,0,0,null,0,null,0]
[null,null,null,null,1,"","",null,"","",null,180,null,"",null,null,null,null,null,null,null,null,null,null,null,null,null,null,null,null,null,null,null,null,null,null,null,null,null,null,null,null,null,null,null,null,null,null,null,null,null,null,null,null,null,null,0,0,0,null,0,null,0]
[null,null,null,null,1,"","",null,"","",null,180,null,"",null,null,null,null,null,null,null,null,null,null,null,null,null,null,null,null,null,null,null,null,null,null,null,null,null,null,null,null,null,null,null,null,null,null,null,null,null,null,null,null,null,null,0,0,0,null,0,null,0]
[null,null,null,null,1,"","",null,"","",null,180,null,"",null,null,null,null,null,null,null,null,null,null,null,null,null,null,null,null,null,null,null,null,null,null,null,null,null,null,null,null,null,null,null,null,null,null,null,null,null,null,null,null,null,null,0,0,0,null,0,null,0]
[null,null,null,null,1,"","",null,"","",null,180,null,"",null,null,null,null,null,null,null,null,null,null,null,null,null,null,null,null,null,null,null,null,null,null,null,null,null,null,null,null,null,null,null,null,null,null,null,null,null,null,null,null,null,null,0,0,0,null,0,null,0]
[null,null,null,null,1,"","",null,"","",null,180,null,"",null,null,null,null,null,null,null,null,null,null,null,null,null,null,null,null,null,null,null,null,null,null,null,null,null,null,null,null,null,null,null,null,null,null,null,null,null,null,null,null,null,null,0,0,0,null,0,null,0]
[null,null,null,null,1,"","",null,"","",null,180,null,"",null,null,null,null,null,null,null,null,null,null,null,null,null,null,null,null,null,null,null,null,null,null,null,null,null,null,null,null,null,null,null,null,null,null,null,null,null,null,null,null,null,null,0,0,0,null,0,null,0]
[null,null,null,null,1,"","",null,"","",null,180,null,"",null,null,null,null,null,null,null,null,null,null,null,null,null,null,null,null,null,null,null,null,null,null,null,null,null,null,null,null,null,null,null,null,null,null,null,null,null,null,null,null,null,null,0,0,0,null,0,null,0]
[null,null,null,null,1,"","",null,"","",null,180,null,"",null,null,null,null,null,null,null,null,null,null,null,null,null,null,null,null,null,null,null,null,null,null,null,null,null,null,null,null,null,null,null,null,null,null,null,null,null,null,null,null,null,null,0,0,0,null,0,null,0]
[null,null,null,null,1,{"$f":"IF(SUM(N(J67),-N(K67))=0,\"\",ROUND(SUM(N(J67),-N(K67))/365,0))","v":""},{"$f":"IF(SUM(N(J67),-N(H67))=0,\"\",SUM(N(J67),-N(H67))/365)","v":""},null,"","",null,180,null,{"$f":"IF(OR(N(M67)=0,N(L67)=0),\"\",SUM(M67,L67))","v":""},null,null,null,null,null,null,null,null,null,null,null,null,null,null,null,null,null,null,null,null,null,null,null,null,null,null,null,null,null,null,null,null,null,null,null,null,null,null,null,null,null,null,{"$f":"D67","v":0},0,0,null,0,null,0]
[null,null,null,null,1,"","",null,"","",null,180,null,"",null,null,null,null,null,null,null,null,null,null,null,null,null,null,null,null,null,null,null,null,null,null,null,null,null,null,null,null,null,null,null,null,null,null,null,null,null,null,null,null,null,null,0,0,0,null,0,null,0]
[null,null,null,null,1,"","",null,"","",null,180,null,"",null,null,null,null,null,null,null,null,null,null,null,null,null,null,null,null,null,null,null,null,null,null,null,null,null,null,null,null,null,null,null,null,null,null,null,null,null,null,null,null,null,null,0,0,0,null,0,null,0]
[null,null,null,null,1,"","",null,"","",null,180,null,"",null,null,null,null,null,null,null,null,null,null,null,null,null,null,null,null,null,null,null,null,null,null,null,null,null,null,null,null,null,null,null,null,null,null,null,null,null,null,null,null,null,null,0,0,0,null,0,null,0]
[null,null,null,null,1,"","",null,"","",null,180,null,"",null,null,null,null,null,null,null,null,null,null,null,null,null,null,null,null,null,null,null,null,null,null,null,null,null,null,null,null,null,null,null,null,null,null,null,null,null,null,null,null,null,null,0,0,0,null,0,null,0]
[null,null,null,null,1,"","",null,"","",null,180,null,"",null,null,null,null,null,null,null,null,null,null,null,null,null,null,null,null,null,null,null,null,null,null,null,null,null,null,null,null,null,null,null,null,null,null,null,null,null,null,null,null,null,null,0,0,0,null,0,null,0]
[null,null,null,null,1,"","",null,"","",null,180,null,"",null,null,null,null,null,null,null,null,null,null,null,null,null,null,null,null,null,null,null,null,null,null,null,null,null,null,null,null,null,null,null,null,null,null,null,null,null,null,null,null,null,null,0,0,0,null,0,null,0]
[null,null,null,null,1,"","",null,"","",null,180,null,"",null,null,null,null,null,null,null,null,null,null,null,null,null,null,null,null,null,null,null,null,null,null,null,null,null,null,null,null,null,null,null,null,null,null,null,null,null,null,null,null,null,null,0,0,0,null,0,null,0]
[null,null,null,null,1,"","",null,"","",null,180,null,"",null,null,null,null,null,null,null,null,null,null,null,null,null,null,null,null,null,null,null,null,null,null,null,null,null,null,null,null,null,null,null,null,null,null,null,null,null,null,null,null,null,null,0,0,0,null,0,null,0]
[null,null,null,null,1,"","",null,"","",null,180,null,"",null,null,null,null,null,null,null,null,null,null,null,null,null,null,null,null,null,null,null,null,null,null,null,null,null,null,null,null,null,null,null,null,null,null,null,null,null,null,null,null,null,null,0,0,0,null,0,null,0]
[null,null,null,null,1,"","",null,"","",null,180,null,"",null,null,null,null,null,null,null,null,null,null,null,null,null,null,null,null,null,null,null,null,null,null,null,null,null,null,null,null,null,null,null,null,null,null,null,null,null,null,null,null,null,null,0,0,0,null,0,null,0]
[null,null,null,null,1,"","",null,"","",null,180,null,"",null,null,null,null,null,null,null,null,null,null,null,null,null,null,null,null,null,null,null,null,null,null,null,null,null,null,null,null,null,null,null,null,null,null,null,null,null,null,null,null,null,null,0,0,0,null,0,null,0]
[null,null,null,null,1,"","",null,"","",null,180,null,"",null,null,null,null,null,null,null,null,null,null,null,null,null,null,null,null,null,null,null,null,null,null,null,null,null,null,null,null,null,null,null,null,null,null,null,null,null,null,null,null,null,null,0,0,0,null,0,null,0]
[null,null,null,null,1,"","",null,"","",null,180,null,"",null,null,null,null,null,null,null,null,null,null,null,null,null,null,null,null,null,null,null,null,null,null,null,null,null,null,null,null,null,null,null,null,null,null,null,null,null,null,null,null,null,null,0,0,0,null,0,null,0]
[null,null,null,null,1,"","",null,"","",null,180,null,"",null,null,null,null,null,null,null,null,null,null,null,null,null,null,null,null,null,null,null,null,null,null,null,null,null,null,null,null,null,null,null,null,null,null,null,null,null,null,null,null,null,null,0,0,0,null,0,null,0]
[null,null,null,null,1,"","",null,"","",null,180,null,"",null,null,null,null,null,null,null,null,null,null,null,null,null,null,null,null,null,null,null,null,null,null,null,null,null,null,null,null,null,null,null,null,null,null,null,null,null,null,null,null,null,null,0,0,0,null,0,null,0]
[null,null,null,null,1,"","",null,"","",null,180,null,"",null,null,null,null,null,null,null,null,null,null,null,null,null,null,null,null,null,null,null,null,null,null,null,null,null,null,null,null,null,null,null,null,null,null,null,null,null,null,null,null,null,null,0,0,0,null,0,null,0]
[null,null,null,null,1,"","",null,"","",null,180,null,"",null,null,null,null,null,null,null,null,null,null,null,null,null,null,null,null,null,null,null,null,null,null,null,null,null,null,null,null,null,null,null,null,null,null,null,null,null,null,null,null,null,null,0,0,0,null,0,null,0]
[null,null,null,null,1,"","",null,"","",null,180,null,"",null,null,null,null,null,null,null,null,null,null,null,null,null,null,null,null,null,null,null,null,null,null,null,null,null,null,null,null,null,null,null,null,null,null,null,null,null,null,null,null,null,null,0,0,0,null,0,null,0]
[null,null,null,null,1,"","",null,"","",null,180,null,"",null,null,null,null,null,null,null,null,null,null,null,null,null,null,null,null,null,null,null,null,null,null,null,null,null,null,null,null,null,null,null,null,null,null,null,null,null,null,null,null,null,null,0,0,0,null,0,null,0]
[null,null,null,null,1,"","",null,"","",null,180,null,"",null,null,null,null,null,null,null,null,null,null,null,null,null,null,null,null,null,null,null,null,null,null,null,null,null,null,null,null,null,null,null,null,null,null,null,null,null,null,null,null,null,null,0,0,0,null,0,null,0]
[null,null,null,null,1,"","",null,"","",null,180,null,"",null,null,null,null,null,null,null,null,null,null,null,null,null,null,null,null,null,null,null,null,null,null,null,null,null,null,null,null,null,null,null,null,null,null,null,null,null,null,null,null,null,null,0,0,0,null,0,null,0]
[null,null,null,null,1,"","",null,"","",null,180,null,"",null,null,null,null,null,null,null,null,null,null,null,null,null,null,null,null,null,null,null,null,null,null,null,null,null,null,null,null,null,null,null,null,null,null,null,null,null,null,null,null,null,null,0,0,0,null,0,null,0]
[null,null,null,null,1,"","",null,"","",null,180,null,"",null,null,null,null,null,null,null,null,null,null,null,null,null,null,null,null,null,null,null,null,null,null,null,null,null,null,null,null,null,null,null,null,null,null,null,null,null,null,null,null,null,null,0,0,0,null,0,null,0]
[null,null,null,null,1,"","",null,"","",null,180,null,"",null,null,null,null,null,null,null,null,null,null,null,null,null,null,null,null,null,null,null,null,null,null,null,null,null,null,null,null,null,null,null,null,null,null,null,null,null,null,null,null,null,null,0,0,0,null,0,null,0]
[null,null,null,null,1,"","",null,"","",null,180,null,"",null,null,null,null,null,null,null,null,null,null,null,null,null,null,null,null,null,null,null,null,null,null,null,null,null,null,null,null,null,null,null,null,null,null,null,null,null,null,null,null,null,null,0,0,0,null,0,null,0]
[null,null,null,null,1,"","",null,{"$f":"IF(OR(N(H93)=0,N(E93)=0),\"\",SUM(N(H93),N(E93*365)))","v":""},{"$f":"IF(B93=\"\",\"\",TODAY())","v":""},null,180,null,"",null,null,null,null,null,null,null,null,null,null,null,null,null,null,null,null,null,null,null,null,null,null,null,null,null,null,null,null,null,null,null,null,null,null,null,null,null,null,null,null,null,null,0,0,0,null,0,null,0]
[null,null,null,null,1,"","",null,"","",null,180,null,"",null,null,null,null,null,null,null,null,null,null,null,null,null,null,null,null,null,null,null,null,null,null,null,null,null,null,null,null,null,null,null,null,null,null,null,null,null,null,null,null,null,null,0,{"$f":"B94","v":0},{"$f":"A94","v":0},null,{"$f":"H94","v":0},null,{"$f":"K94","v":0}]
[null,null,null,null,1,"","",null,"","",null,180,null,"",null,null,null,null,null,null,null,null,null,null,null,null,null,null,null,null,null,null,null,null,null,null,null,null,null,null,null,null,null,null,null,null,null,null,null,null,null,null,null,null,null,null,0,0,0,null,0,null,0]
[null,null,null,null,1,"","",null,"","",null,180,null,"",null,null,null,null,null,null,null,null,null,null,null,null,null,null,null,null,null,null,null,null,null,null,null,null,null,null,null,null,null,null,null,null,null,null,null,null,null,null,null,null,null,null,0,0,0,null,0,null,0]
[null,null,null,null,1,"","",null,"","",null,180,null,"",null,null,null,null,null,null,null,null,null,null,null,null,null,null,null,null,null,null,null,null,null,null,null,null,null,null,null,null,null,null,null,null,null,null,null,null,null,null,null,null,null,null,0,0,0,null,0,null,0]
[null,null,null,null,1,"","",null,"","",null,180,null,"",null,null,null,null,null,null,null,null,null,null,null,null,null,null,null,null,null,null,null,null,null,null,null,null,null,null,null,null,null,null,null,null,null,null,null,null,null,null,null,null,null,null,0,0,0,null,0,null,0]
[null,null,null,null,1,"","",null,"","",null,180,null,"",null,null,null,null,null,null,null,null,null,null,null,null,null,null,null,null,null,null,null,null,null,null,null,null,null,null,null,null,null,null,null,null,null,null,null,null,null,null,null,null,null,null,0,0,0,null,0,null,0]
[null,null,null,null,1,"","",null,"","",null,180,null,"",null,null,null,null,null,null,null,null,null,null,null,null,null,null,null,null,null,null,null,null,null,null,null,null,null,null,null,null,null,null,null,null,null,null,null,null,null,null,null,null,null,null,0,0,0,null,0,null,0]
[null,null,null,null,1,"","",null,"","",null,180,null,"",null,null,null,null,null,null,null,null,null,null,null,null,null,null,null,null,null,null,null,null,null,null,null,null,null,null,null,null,null,null,null,null,null,null,null,null,null,null,null,null,null,null,0,0,0,null,0,null,0]
[null,null,null,null,1,"","",null,"","",null,180,null,"",null,null,null,null,null,null,null,null,null,null,null,null,null,null,null,null,null,null,null,null,null,null,null,null,null,null,null,null,null,null,null,null,null,null,null,null,null,null,null,null,null,null,0,0,0,null,0,null,0]
[null,null,null,null,1,"","",null,"","",null,180,null,"",null,null,null,null,null,null,null,null,null,null,null,null,null,null,null,null,null,null,null,null,null,null,null,null,null,null,null,null,null,null,null,null,null,null,null,null,null,null,null,null,null,null,0,0,0,null,0,null,0]
[null,null,null,null,1,"","",null,"","",null,180,null,"",null,null,null,null,null,null,null,null,null,null,null,null,null,null,null,null,null,null,null,null,null,null,null,null,null,null,null,null,null,null,null,null,null,null,null,null,null,null,null,null,null,null,0,0,0,null,0,null,0]
[null,null,null,null,1,"","",null,"","",null,180,null,"",null,null,null,null,null,null,null,null,null,null,null,null,null,null,null,null,null,null,null,null,null,null,null,null,null,null,null,null,null,null,null,null,null,null,null,null,null,null,null,null,null,null,0,0,0,null,0,null,0]
[null,null,null,null,1,"","",null,"","",null,180,null,"",null,null,null,null,null,null,null,null,null,null,null,null,null,null,null,null,null,null,null,null,null,null,null,null,null,null,null,null,null,null,null,null,null,null,null,null,null,null,null,null,null,null,0,0,0,null,0,null,0]
[null,null,null,null,1,"","",null,"","",null,180,null,"",null,null,null,null,null,null,null,null,null,null,null,null,null,null,null,null,null,null,null,null,null,null,null,null,null,null,null,null,null,null,null,null,null,null,null,null,null,null,null,null,null,null,0,0,0,null,0,null,0]
[null,null,null,null,1,"","",null,"","",null,180,null,"",null,null,null,null,null,null,null,null,null,null,null,null,null,null,null,null,null,null,null,null,null,null,null,null,null,null,null,null,null,null,null,null,null,null,null,null,null,null,null,null,null,null,0,0,0,null,0,null,0]
[null,null,null,null,1,"","",null,"","",null,180,null,"",null,null,null,null,null,null,null,null,null,null,null,null,null,null,null,null,null,null,null,null,null,null,null,null,null,null,null,null,null,null,null,null,null,null,null,null,null,null,null,null,null,null,0,0,0,null,0,null,0]
[null,null,null,null,1,"","",null,"","",null,180,null,"",null,null,null,null,null,null,null,null,null,null,null,null,null,null,null,null,null,null,null,null,null,null,null,null,null,null,null,null,null,null,null,null,null,null,null,null,null,null,null,null,null,null,0,0,0,null,0,null,0]
[null,null,null,null,1,"","",null,"","",null,180,null,"",null,null,null,null,null,null,null,null,null,null,null,null,null,null,null,null,null,null,null,null,null,null,null,null,null,null,null,null,null,null,null,null,null,null,null,null,null,null,null,null,null,null,0,0,0,null,0,null,0]
[null,null,null,null,1,"","",null,"","",null,180,null,"",null,null,null,null,null,null,null,null,null,null,null,null,null,null,null,null,null,null,null,null,null,null,null,null,null,null,null,null,null,null,null,null,null,null,null,null,null,null,null,null,null,null,0,0,0,null,0,null,0]
[null,null,null,null,1,"","",null,"","",null,180,null,"",null,null,null,null,null,null,null,null,null,null,null,null,null,null,null,null,null,null,null,null,null,null,null,null,null,null,null,null,null,null,null,null,null,null,null,null,null,null,null,null,null,null,0,0,0,null,0,null,0]
[null,null,null,null,1,"","",null,"","",null,180,null,"",null,null,null,null,null,null,null,null,null,null,null,null,null,null,null,null,null,null,null,null,null,null,null,null,null,null,null,null,null,null,null,null,null,null,null,null,null,null,null,null,null,null,0,0,0,null,0,null,0]
[null,null,null,null,1,"","",null,"","",null,180,null,"",null,null,null,null,null,null,null,null,null,null,null,null,null,null,null,null,null,null,null,null,null,null,null,null,null,null,null,null,null,null,null,null,null,null,null,null,null,null,null,null,null,null,0,0,0,null,0,null,0]
[null,null,null,null,1,"","",null,"","",null,180,null,"",null,null,null,null,null,null,null,null,null,null,null,null,null,null,null,null,null,null,null,null,null,null,null,null,null,null,null,null,null,null,null,null,null,null,null,null,null,null,null,null,null,null,0,0,0,null,0,null,0]
[null,null,null,null,1,"","",null,"","",null,180,null,"",null,null,null,null,null,null,null,null,null,null,null,null,null,null,null,null,null,null,null,null,null,null,null,null,null,null,null,null,null,null,null,null,null,null,null,null,null,null,null,null,null,null,0,0,0,null,0,null,0]
[null,null,null,null,1,"","",null,"","",null,180,null,"",null,null,null,null,null,null,null,null,null,null,null,null,null,null,null,null,null,null,null,null,null,null,null,null,null,null,null,null,null,null,null,null,null,null,null,null,null,null,null,null,null,null,0,0,0,null,0,null,0]
[null,null,null,null,1,"","",null,"","",null,180,null,"",null,null,null,null,null,null,null,null,null,null,null,null,null,null,null,null,null,null,null,null,null,null,null,null,null,null,null,null,null,null,null,null,null,null,null,null,null,null,null,null,null,null,0,0,0,null,0,null,0]
[null,null,null,null,1,"","",null,"","",null,180,null,"",null,null,null,null,null,null,null,null,null,null,null,null,null,null,null,null,null,null,null,null,null,null,null,null,null,null,null,null,null,null,null,null,null,null,null,null,null,null,null,null,null,null,0,0,0,null,0,null,0]
[null,null,null,null,1,"","",null,"","",null,180,null,"",null,null,null,null,null,null,null,null,null,null,null,null,null,null,null,null,null,null,null,null,null,null,null,null,null,null,null,null,null,null,null,null,null,null,null,null,null,null,null,null,null,null,0,0,0,null,0,null,0]
[null,null,null,null,1,"","",null,"","",null,180,null,"",null,null,null,null,null,null,null,null,null,null,null,null,null,null,null,null,null,null,null,null,null,null,null,null,null,null,null,null,null,null,null,null,null,null,null,null,null,null,null,null,null,null,0,0,0,null,0,null,0]
[null,null,null,null,1,"","",null,"","",null,180,null,"",null,null,null,null,null,null,null,null,null,null,null,null,null,null,null,null,null,null,null,null,null,null,null,null,null,null,null,null,null,null,null,null,null,null,null,null,null,null,null,null,null,null,0,0,0,null,0,null,0]
[null,null,null,null,1,"","",null,"","",null,180,null,"",null,null,null,null,null,null,null,null,null,null,null,null,null,null,null,null,null,null,null,null,null,null,null,null,null,null,null,null,null,null,null,null,null,null,null,null,null,null,null,null,null,null,0,0,0,null,0,null,0]
[null,null,null,null,1,"","",null,"","",null,180,null,"",null,null,null,null,null,null,null,null,null,null,null,null,null,null,null,null,null,null,null,null,null,null,null,null,null,null,null,null,null,null,null,null,null,null,null,null,null,null,null,null,null,null,0,0,0,null,0,null,0]
[null,null,null,null,1,"","",null,"","",null,180,null,"",null,null,null,null,null,null,null,null,null,null,null,null,null,null,null,null,null,null,null,null,null,null,null,null,null,null,null,null,null,null,null,null,null,null,null,null,null,null,null,null,null,null,0,0,0,null,0,null,0]
[null,null,null,null,1,"","",null,"","",null,180,null,"",null,null,null,null,null,null,null,null,null,null,null,null,null,null,null,null,null,null,null,null,null,null,null,null,null,null,null,null,null,null,null,null,null,null,null,null,null,null,null,null,null,null,0,0,0,null,0,null,0]
[null,null,null,null,1,"","",null,"","",null,180,null,"",null,null,null,null,null,null,null,null,null,null,null,null,null,null,null,null,null,null,null,null,null,null,null,null,null,null,null,null,null,null,null,null,null,null,null,null,null,null,null,null,null,null,0,0,0,null,0,null,0]
[null,null,null,null,1,"","",null,"","",null,180,null,"",null,null,null,null,null,null,null,null,null,null,null,null,null,null,null,null,null,null,null,null,null,null,null,null,null,null,null,null,null,null,null,null,null,null,null,null,null,null,null,null,null,null,0,0,0,null,0,null,0]
[null,null,null,null,1,"","",null,"","",null,180,null,"",null,null,null,null,null,null,null,null,null,null,null,null,null,null,null,null,null,null,null,null,null,null,null,null,null,null,null,null,null,null,null,null,null,null,null,null,null,null,null,null,null,null,0,0,0,null,0,null,0]
[null,null,null,null,1,{"$f":"IF(SUM(N(J131),-N(K131))=0,\"\",ROUND(SUM(N(J131),-N(K131))/365,0))","v":""},{"$f":"IF(SUM(N(J131),-N(H131))=0,\"\",SUM(N(J131),-N(H131))/365)","v":""},null,"","",null,180,null,{"$f":"IF(OR(N(M131)=0,N(L131)=0),\"\",SUM(M131,L131))","v":""},null,null,null,null,null,null,null,null,null,null,null,null,null,null,null,null,null,null,null,null,null,null,null,null,null,null,null,null,null,null,null,null,null,null,null,null,null,null,null,null,null,null,{"$f":"D131","v":0},0,0,null,0,null,0]
[null,null,null,null,1,"","",null,"","",null,180,null,"",null,null,null,null,null,null,null,null,null,null,null,null,null,null,null,null,null,null,null,null,null,null,null,null,null,null,null,null,null,null,null,null,null,null,null,null,null,null,null,null,null,null,0,0,0,null,0,null,0]
[null,null,null,null,1,"","",null,"","",null,180,null,"",null,null,null,null,null,null,null,null,null,null,null,null,null,null,null,null,null,null,null,null,null,null,null,null,null,null,null,null,null,null,null,null,null,null,null,null,null,null,null,null,null,null,0,0,0,null,0,null,0]
[null,null,null,null,1,"","",null,"","",null,180,null,"",null,null,null,null,null,null,null,null,null,null,null,null,null,null,null,null,null,null,null,null,null,null,null,null,null,null,null,null,null,null,null,null,null,null,null,null,null,null,null,null,null,null,0,0,0,null,0,null,0]
[null,null,null,null,1,"","",null,"","",null,180,null,"",null,null,null,null,null,null,null,null,null,null,null,null,null,null,null,null,null,null,null,null,null,null,null,null,null,null,null,null,null,null,null,null,null,null,null,null,null,null,null,null,null,null,0,0,0,null,0,null,0]
[null,null,null,null,1,"","",null,"","",null,180,null,"",null,null,null,null,null,null,null,null,null,null,null,null,null,null,null,null,null,null,null,null,null,null,null,null,null,null,null,null,null,null,null,null,null,null,null,null,null,null,null,null,null,null,0,0,0,null,0,null,0]
[null,null,null,null,1,"","",null,"","",null,180,null,"",null,null,null,null,null,null,null,null,null,null,null,null,null,null,null,null,null,null,null,null,null,null,null,null,null,null,null,null,null,null,null,null,null,null,null,null,null,null,null,null,null,null,0,0,0,null,0,null,0]
[null,null,null,null,1,"","",null,"","",null,180,null,"",null,null,null,null,null,null,null,null,null,null,null,null,null,null,null,null,null,null,null,null,null,null,null,null,null,null,null,null,null,null,null,null,null,null,null,null,null,null,null,null,null,null,0,0,0,null,0,null,0]
[null,null,null,null,1,"","",null,"","",null,180,null,"",null,null,null,null,null,null,null,null,null,null,null,null,null,null,null,null,null,null,null,null,null,null,null,null,null,null,null,null,null,null,null,null,null,null,null,null,null,null,null,null,null,null,0,0,0,null,0,null,0]
[null,null,null,null,1,"","",null,"","",null,180,null,"",null,null,null,null,null,null,null,null,null,null,null,null,null,null,null,null,null,null,null,null,null,null,null,null,null,null,null,null,null,null,null,null,null,null,null,null,null,null,null,null,null,null,0,0,0,null,0,null,0]
[null,null,null,null,1,"","",null,"","",null,180,null,"",null,null,null,null,null,null,null,null,null,null,null,null,null,null,null,null,null,null,null,null,null,null,null,null,null,null,null,null,null,null,null,null,null,null,null,null,null,null,null,null,null,null,0,0,0,null,0,null,0]
[null,null,null,null,1,"","",null,"","",null,180,null,"",null,null,null,null,null,null,null,null,null,null,null,null,null,null,null,null,null,null,null,null,null,null,null,null,null,null,null,null,null,null,null,null,null,null,null,null,null,null,null,null,null,null,0,0,0,null,0,null,0]
[null,null,null,null,1,"","",null,"","",null,180,null,"",null,null,null,null,null,null,null,null,null,null,null,null,null,null,null,null,null,null,null,null,null,null,null,null,null,null,null,null,null,null,null,null,null,null,null,null,null,null,null,null,null,null,0,0,0,null,0,null,0]
[null,null,null,null,1,"","",null,"","",null,180,null,"",null,null,null,null,null,null,null,null,null,null,null,null,null,null,null,null,null,null,null,null,null,null,null,null,null,null,null,null,null,null,null,null,null,null,null,null,null,null,null,null,null,null,0,0,0,null,0,null,0]
[null,null,null,null,1,"","",null,"","",null,180,null,"",null,null,null,null,null,null,null,null,null,null,null,null,null,null,null,null,null,null,null,null,null,null,null,null,null,null,null,null,null,null,null,null,null,null,null,null,null,null,null,null,null,null,0,0,0,null,0,null,0]
[null,null,null,null,1,"","",null,"","",null,180,null,"",null,null,null,null,null,null,null,null,null,null,null,null,null,null,null,null,null,null,null,null,null,null,null,null,null,null,null,null,null,null,null,null,null,null,null,null,null,null,null,null,null,null,0,0,0,null,0,null,0]
[null,null,null,null,1,"","",null,"","",null,180,null,"",null,null,null,null,null,null,null,null,null,null,null,null,null,null,null,null,null,null,null,null,null,null,null,null,null,null,null,null,null,null,null,null,null,null,null,null,null,null,null,null,null,null,0,0,0,null,0,null,0]
[null,null,null,null,1,"","",null,"","",null,180,null,"",null,null,null,null,null,null,null,null,null,null,null,null,null,null,null,null,null,null,null,null,null,null,null,null,null,null,null,null,null,null,null,null,null,null,null,null,null,null,null,null,null,null,0,0,0,null,0,null,0]
[null,null,null,null,1,"","",null,"","",null,180,null,"",null,null,null,null,null,null,null,null,null,null,null,null,null,null,null,null,null,null,null,null,null,null,null,null,null,null,null,null,null,null,null,null,null,null,null,null,null,null,null,null,null,null,0,0,0,null,0,null,0]
[null,null,null,null,1,"","",null,"","",null,180,null,"",null,null,null,null,null,null,null,null,null,null,null,null,null,null,null,null,null,null,null,null,null,null,null,null,null,null,null,null,null,null,null,null,null,null,null,null,null,null,null,null,null,null,0,0,0,null,0,null,0]
[null,null,null,null,1,"","",null,"","",null,180,null,"",null,null,null,null,null,null,null,null,null,null,null,null,null,null,null,null,null,null,null,null,null,null,null,null,null,null,null,null,null,null,null,null,null,null,null,null,null,null,null,null,null,null,0,0,0,null,0,null,0]
[null,null,null,null,1,"","",null,"","",null,180,null,"",null,null,null,null,null,null,null,null,null,null,null,null,null,null,null,null,null,null,null,null,null,null,null,null,null,null,null,null,null,null,null,null,null,null,null,null,null,null,null,null,null,null,0,0,0,null,0,null,0]
[null,null,null,null,1,"","",null,"","",null,180,null,"",null,null,null,null,null,null,null,null,null,null,null,null,null,null,null,null,null,null,null,null,null,null,null,null,null,null,null,null,null,null,null,null,null,null,null,null,null,null,null,null,null,null,0,0,0,null,0,null,0]
[null,null,null,null,1,"","",null,"","",null,180,null,"",null,null,null,null,null,null,null,null,null,null,null,null,null,null,null,null,null,null,null,null,null,null,null,null,null,null,null,null,null,null,null,null,null,null,null,null,null,null,null,null,null,null,0,0,0,null,0,null,0]
[null,null,null,null,1,"","",null,"","",null,180,null,"",null,null,null,null,null,null,null,null,null,null,null,null,null,null,null,null,null,null,null,null,null,null,null,null,null,null,null,null,null,null,null,null,null,null,null,null,null,null,null,null,null,null,0,0,0,null,0,null,0]
[null,null,null,null,1,"","",null,"","",null,180,null,"",null,null,null,null,null,null,null,null,null,null,null,null,null,null,null,null,null,null,null,null,null,null,null,null,null,null,null,null,null,null,null,null,null,null,null,null,null,null,null,null,null,null,0,0,0,null,0,null,0]
[null,null,null,null,1,"","",null,{"$f":"IF(OR(N(H157)=0,N(E157)=0),\"\",SUM(N(H157),N(E157*365)))","v":""},{"$f":"IF(B157=\"\",\"\",TODAY())","v":""},null,180,null,"",null,null,null,null,null,null,null,null,null,null,null,null,null,null,null,null,null,null,null,null,null,null,null,null,null,null,null,null,null,null,null,null,null,null,null,null,null,null,null,null,null,null,0,0,0,null,0,null,0]
[null,null,null,null,1,"","",null,"","",null,180,null,"",null,null,null,null,null,null,null,null,null,null,null,null,null,null,null,null,null,null,null,null,null,null,null,null,null,null,null,null,null,null,null,null,null,null,null,null,null,null,null,null,null,null,0,{"$f":"B158","v":0},{"$f":"A158","v":0},null,{"$f":"H158","v":0},null,{"$f":"K158","v":0}]
[null,null,null,null,1,"","",null,"","",null,180,null,"",null,null,null,null,null,null,null,null,null,null,null,null,null,null,null,null,null,null,null,null,null,null,null,null,null,null,null,null,null,null,null,null,null,null,null,null,null,null,null,null,null,null,0,0,0,null,0,null,0]
[null,null,null,null,1,"","",null,"","",null,180,null,"",null,null,null,null,null,null,null,null,null,null,null,null,null,null,null,null,null,null,null,null,null,null,null,null,null,null,null,null,null,null,null,null,null,null,null,null,null,null,null,null,null,null,0,0,0,null,0,null,0]
[null,null,null,null,1,"","",null,"","",null,180,null,"",null,null,null,null,null,null,null,null,null,null,null,null,null,null,null,null,null,null,null,null,null,null,null,null,null,null,null,null,null,null,null,null,null,null,null,null,null,null,null,null,null,null,0,0,0,null,0,null,0]
[null,null,null,null,1,"","",null,"","",null,180,null,"",null,null,null,null,null,null,null,null,null,null,null,null,null,null,null,null,null,null,null,null,null,null,null,null,null,null,null,null,null,null,null,null,null,null,null,null,null,null,null,null,null,null,0,0,0,null,0,null,0]
[null,null,null,null,1,"","",null,"","",null,180,null,"",null,null,null,null,null,null,null,null,null,null,null,null,null,null,null,null,null,null,null,null,null,null,null,null,null,null,null,null,null,null,null,null,null,null,null,null,null,null,null,null,null,null,0,0,0,null,0,null,0]
[null,null,null,null,1,"","",null,"","",null,180,null,"",null,null,null,null,null,null,null,null,null,null,null,null,null,null,null,null,null,null,null,null,null,null,null,null,null,null,null,null,null,null,null,null,null,null,null,null,null,null,null,null,null,null,0,0,0,null,0,null,0]
[null,null,null,null,1,"","",null,"","",null,180,null,"",null,null,null,null,null,null,null,null,null,null,null,null,null,null,null,null,null,null,null,null,null,null,null,null,null,null,null,null,null,null,null,null,null,null,null,null,null,null,null,null,null,null,0,0,0,null,0,null,0]
[null,null,null,null,1,"","",null,"","",null,180,null,"",null,null,null,null,null,null,null,null,null,null,null,null,null,null,null,null,null,null,null,null,null,null,null,null,null,null,null,null,null,null,null,null,null,null,null,null,null,null,null,null,null,null,0,0,0,null,0,null,0]
[null,null,null,null,1,"","",null,"","",null,180,null,"",null,null,null,null,null,null,null,null,null,null,null,null,null,null,null,null,null,null,null,null,null,null,null,null,null,null,null,null,null,null,null,null,null,null,null,null,null,null,null,null,null,null,0,0,0,null,0,null,0]
[null,null,null,null,1,"","",null,"","",null,180,null,"",null,null,null,null,null,null,null,null,null,null,null,null,null,null,null,null,null,null,null,null,null,null,null,null,null,null,null,null,null,null,null,null,null,null,null,null,null,null,null,null,null,null,0,0,0,null,0,null,0]
[null,null,null,null,1,"","",null,"","",null,180,null,"",null,null,null,null,null,null,null,null,null,null,null,null,null,null,null,null,null,null,null,null,null,null,null,null,null,null,null,null,null,null,null,null,null,null,null,null,null,null,null,null,null,null,0,0,0,null,0,null,0]
[null,null,null,null,1,"","",null,"","",null,180,null,"",null,null,null,null,null,null,null,null,null,null,null,null,null,null,null,null,null,null,null,null,null,null,null,null,null,null,null,null,null,null,null,null,null,null,null,null,null,null,null,null,null,null,0,0,0,null,0,null,0]
[null,null,null,null,1,"","",null,"","",null,180,null,"",null,null,null,null,null,null,null,null,null,null,null,null,null,null,null,null,null,null,null,null,null,null,null,null,null,null,null,null,null,null,null,null,null,null,null,null,null,null,null,null,null,null,0,0,0,null,0,null,0]
[null,null,null,null,1,"","",null,"","",null,180,null,"",null,null,null,null,null,null,null,null,null,null,null,null,null,null,null,null,null,null,null,null,null,null,null,null,null,null,null,null,null,null,null,null,null,null,null,null,null,null,null,null,null,null,0,0,0,null,0,null,0]
[null,null,null,null,1,"","",null,"","",null,180,null,"",null,null,null,null,null,null,null,null,null,null,null,null,null,null,null,null,null,null,null,null,null,null,null,null,null,null,null,null,null,null,null,null,null,null,null,null,null,null,null,null,null,null,0,0,0,null,0,null,0]
[null,null,null,null,1,"","",null,"","",null,180,null,"",null,null,null,null,null,null,null,null,null,null,null,null,null,null,null,null,null,null,null,null,null,null,null,null,null,null,null,null,null,null,null,null,null,null,null,null,null,null,null,null,null,null,0,0,0,null,0,null,0]
[null,null,null,null,1,"","",null,"","",null,180,null,"",null,null,null,null,null,null,null,null,null,null,null,null,null,null,null,null,null,null,null,null,null,null,null,null,null,null,null,null,null,null,null,null,null,null,null,null,null,null,null,null,null,null,0,0,0,null,0,null,0]
[null,null,null,null,1,"","",null,"","",null,180,null,"",null,null,null,null,null,null,null,null,null,null,null,null,null,null,null,null,null,null,null,null,null,null,null,null,null,null,null,null,null,null,null,null,null,null,null,null,null,null,null,null,null,null,0,0,0,null,0,null,0]
[null,null,null,null,1,"","",null,"","",null,180,null,"",null,null,null,null,null,null,null,null,null,null,null,null,null,null,null,null,null,null,null,null,null,null,null,null,null,null,null,null,null,null,null,null,null,null,null,null,null,null,null,null,null,null,0,0,0,null,0,null,0]
[null,null,null,null,1,"","",null,"","",null,180,null,"",null,null,null,null,null,null,null,null,null,null,null,null,null,null,null,null,null,null,null,null,null,null,null,null,null,null,null,null,null,null,null,null,null,null,null,null,null,null,null,null,null,null,0,0,0,null,0,null,0]
[null,null,null,null,1,"","",null,"","",null,180,null,"",null,null,null,null,null,null,null,null,null,null,null,null,null,null,null,null,null,null,null,null,null,null,null,null,null,null,null,null,null,null,null,null,null,null,null,null,null,null,null,null,null,null,0,0,0,null,0,null,0]
[null,null,null,null,1,"","",null,"","",null,180,null,"",null,null,null,null,null,null,null,null,null,null,null,null,null,null,null,null,null,null,null,null,null,null,null,null,null,null,null,null,null,null,null,null,null,null,null,null,null,null,null,null,null,null,0,0,0,null,0,null,0]
[null,null,null,null,1,"","",null,"","",null,180,null,"",null,null,null,null,null,null,null,null,null,null,null,null,null,null,null,null,null,null,null,null,null,null,null,null,null,null,null,null,null,null,null,null,null,null,null,null,null,null,null,null,null,null,0,0,0,null,0,null,0]
[null,null,null,null,1,"","",null,"","",null,180,null,"",null,null,null,null,null,null,null,null,null,null,null,null,null,null,null,null,null,null,null,null,null,null,null,null,null,null,null,null,null,null,null,null,null,null,null,null,null,null,null,null,null,null,0,0,0,null,0,null,0]
[null,null,null,null,1,"","",null,"","",null,180,null,"",null,null,null,null,null,null,null,null,null,null,null,null,null,null,null,null,null,null,null,null,null,null,null,null,null,null,null,null,null,null,null,null,null,null,null,null,null,null,null,null,null,null,0,0,0,null,0,null,0]
[null,null,null,null,1,"","",null,"","",null,180,null,"",null,null,null,null,null,null,null,null,null,null,null,null,null,null,null,null,null,null,null,null,null,null,null,null,null,null,null,null,null,null,null,null,null,null,null,null,null,null,null,null,null,null,0,0,0,null,0,null,0]
[null,null,null,null,1,"","",null,"","",null,180,null,"",null,null,null,null,null,null,null,null,null,null,null,null,null,null,null,null,null,null,null,null,null,null,null,null,null,null,null,null,null,null,null,null,null,null,null,null,null,null,null,null,null,null,0,0,0,null,0,null,0]
[null,null,null,null,1,"","",null,"","",null,180,null,"",null,null,null,null,null,null,null,null,null,null,null,null,null,null,null,null,null,null,null,null,null,null,null,null,null,null,null,null,null,null,null,null,null,null,null,null,null,null,null,null,null,null,0,0,0,null,0,null,0]
[null,null,null,null,1,"","",null,"","",null,180,null,"",null,null,null,null,null,null,null,null,null,null,null,null,null,null,null,null,null,null,null,null,null,null,null,null,null,null,null,null,null,null,null,null,null,null,null,null,null,null,null,null,null,null,0,0,0,null,0,null,0]
[null,null,null,null,1,"","",null,"","",null,180,null,"",null,null,null,null,null,null,null,null,null,null,null,null,null,null,null,null,null,null,null,null,null,null,null,null,null,null,null,null,null,null,null,null,null,null,null,null,null,null,null,null,null,null,0,0,0,null,0,null,0]
[null,null,null,null,1,"","",null,"","",null,180,null,"",null,null,null,null,null,null,null,null,null,null,null,null,null,null,null,null,null,null,null,null,null,null,null,null,null,null,null,null,null,null,null,null,null,null,null,null,null,null,null,null,null,null,0,0,0,null,0,null,0]
[null,null,null,null,1,"","",null,"","",null,180,null,"",null,null,null,null,null,null,null,null,null,null,null,null,null,null,null,null,null,null,null,null,null,null,null,null,null,null,null,null,null,null,null,null,null,null,null,null,null,null,null,null,null,null,0,0,0,null,0,null,0]
[null,null,null,null,1,"","",null,"","",null,180,null,"",null,null,null,null,null,null,null,null,null,null,null,null,null,null,null,null,null,null,null,null,null,null,null,null,null,null,null,null,null,null,null,null,null,null,null,null,null,null,null,null,null,null,0,0,0,null,0,null,0]
[null,null,null,null,1,"","",null,"","",null,180,null,"",null,null,null,null,null,null,null,null,null,null,null,null,null,null,null,null,null,null,null,null,null,null,null,null,null,null,null,null,null,null,null,null,null,null,null,null,null,null,null,null,null,null,0,0,0,null,0,null,0]
[null,null,null,null,1,"","",null,"","",null,180,null,"",null,null,null,null,null,null,null,null,null,null,null,null,null,null,null,null,null,null,null,null,null,null,null,null,null,null,null,null,null,null,null,null,null,null,null,null,null,null,null,null,null,null,0,0,0,null,0,null,0]
[null,null,null,null,1,"","",null,"","",null,180,null,"",null,null,null,null,null,null,null,null,null,null,null,null,null,null,null,null,null,null,null,null,null,null,null,null,null,null,null,null,null,null,null,null,null,null,null,null,null,null,null,null,null,null,0,0,0,null,0,null,0]
[null,null,null,null,1,{"$f":"IF(SUM(N(J195),-N(K195))=0,\"\",ROUND(SUM(N(J195),-N(K195))/365,0))","v":""},{"$f":"IF(SUM(N(J195),-N(H195))=0,\"\",SUM(N(J195),-N(H195))/365)","v":""},null,"","",null,180,null,{"$f":"IF(OR(N(M195)=0,N(L195)=0),\"\",SUM(M195,L195))","v":""},null,null,null,null,null,null,null,null,null,null,null,null,null,null,null,null,null,null,null,null,null,null,null,null,null,null,null,null,null,null,null,null,null,null,null,null,null,null,null,null,null,null,{"$f":"D195","v":0},0,0,null,0,null,0]
[null,null,null,null,1,"","",null,"","",null,180,null,"",null,null,null,null,null,null,null,null,null,null,null,null,null,null,null,null,null,null,null,null,null,null,null,null,null,null,null,null,null,null,null,null,null,null,null,null,null,null,null,null,null,null,0,0,0,null,0,null,0]
[null,null,null,null,1,"","",null,"","",null,180,null,"",null,null,null,null,null,null,null,null,null,null,null,null,null,null,null,null,null,null,null,null,null,null,null,null,null,null,null,null,null,null,null,null,null,null,null,null,null,null,null,null,null,null,0,0,0,null,0,null,0]
[null,null,null,null,1,"","",null,"","",null,180,null,"",null,null,null,null,null,null,null,null,null,null,null,null,null,null,null,null,null,null,null,null,null,null,null,null,null,null,null,null,null,null,null,null,null,null,null,null,null,null,null,null,null,null,0,0,0,null,0,null,0]
[null,null,null,null,1,"","",null,"","",null,180,null,"",null,null,null,null,null,null,null,null,null,null,null,null,null,null,null,null,null,null,null,null,null,null,null,null,null,null,null,null,null,null,null,null,null,null,null,null,null,null,null,null,null,null,0,0,0,null,0,null,0]
[null,null,null,null,1,"","",null,"","",null,180,null,"",null,null,null,null,null,null,null,null,null,null,null,null,null,null,null,null,null,null,null,null,null,null,null,null,null,null,null,null,null,null,null,null,null,null,null,null,null,null,null,null,null,null,0,0,0,null,0,null,0]
[null,null,null,null,1,"","",null,"","",null,180,null,"",null,null,null,null,null,null,null,null,null,null,null,null,null,null,null,null,null,null,null,null,null,null,null,null,null,null,null,null,null,null,null,null,null,null,null,null,null,null,null,null,null,null,0,0,0,null,0,null,0]
[null,null,null,null,1,"","",null,"","",null,180,null,"",null,null,null,null,null,null,null,null,null,null,null,null,null,null,null,null,null,null,null,null,null,null,null,null,null,null,null,null,null,null,null,null,null,null,null,null,null,null,null,null,null,null,0,0,0,null,0,null,0]
[null,null,null,null,1,"","",null,"","",null,180,null,"",null,null,null,null,null,null,null,null,null,null,null,null,null,null,null,null,null,null,null,null,null,null,null,null,null,null,null,null,null,null,null,null,null,null,null,null,null,null,null,null,null,null,0,0,0,null,0,null,0]
[null,null,null,null,1,"","",null,"","",null,180,null,"",null,null,null,null,null,null,null,null,null,null,null,null,null,null,null,null,null,null,null,null,null,null,null,null,null,null,null,null,null,null,null,null,null,null,null,null,null,null,null,null,null,null,0,0,0,null,0,null,0]
[null,null,null,null,1,"","",null,"","",null,180,null,"",null,null,null,null,null,null,null,null,null,null,null,null,null,null,null,null,null,null,null,null,null,null,null,null,null,null,null,null,null,null,null,null,null,null,null,null,null,null,null,null,null,null,0,0,0,null,0,null,0]
[null,null,null,null,1,"","",null,"","",null,180,null,"",null,null,null,null,null,null,null,null,null,null,null,null,null,null,null,null,null,null,null,null,null,null,null,null,null,null,null,null,null,null,null,null,null,null,null,null,null,null,null,null,null,null,0,0,0,null,0,null,0]
[null,null,null,null,1,"","",null,"","",null,180,null,"",null,null,null,null,null,null,null,null,null,null,null,null,null,null,null,null,null,null,null,null,null,null,null,null,null,null,null,null,null,null,null,null,null,null,null,null,null,null,null,null,null,null,0,0,0,null,0,null,0]
[null,null,null,null,1,"","",null,"","",null,180,null,"",null,null,null,null,null,null,null,null,null,null,null,null,null,null,null,null,null,null,null,null,null,null,null,null,null,null,null,null,null,null,null,null,null,null,null,null,null,null,null,null,null,null,0,0,0,null,0,null,0]
[null,null,null,null,1,"","",null,"","",null,180,null,"",null,null,null,null,null,null,null,null,null,null,null,null,null,null,null,null,null,null,null,null,null,null,null,null,null,null,null,null,null,null,null,null,null,null,null,null,null,null,null,null,null,null,0,0,0,null,0,null,0]
[null,null,null,null,1,"","",null,"","",null,180,null,"",null,null,null,null,null,null,null,null,null,null,null,null,null,null,null,null,null,null,null,null,null,null,null,null,null,null,null,null,null,null,null,null,null,null,null,null,null,null,null,null,null,null,0,0,0,null,0,null,0]
[null,null,null,null,1,"","",null,"","",null,180,null,"",null,null,null,null,null,null,null,null,null,null,null,null,null,null,null,null,null,null,null,null,null,null,null,null,null,null,null,null,null,null,null,null,null,null,null,null,null,null,null,null,null,null,0,0,0,null,0,null,0]
[null,null,null,null,1,"","",null,"","",null,180,null,"",null,null,null,null,null,null,null,null,null,null,null,null,null,null,null,null,null,null,null,null,null,null,null,null,null,null,null,null,null,null,null,null,null,null,null,null,null,null,null,null,null,null,0,0,0,null,0,null,0]
[null,null,null,null,1,"","",null,"","",null,180,null,"",null,null,null,null,null,null,null,null,null,null,null,null,null,null,null,null,null,null,null,null,null,null,null,null,null,null,null,null,null,null,null,null,null,null,null,null,null,null,null,null,null,null,0,0,0,null,0,null,0]
[null,null,null,null,1,"","",null,"","",null,180,null,"",null,null,null,null,null,null,null,null,null,null,null,null,null,null,null,null,null,null,null,null,null,null,null,null,null,null,null,null,null,null,null,null,null,null,null,null,null,null,null,null,null,null,0,0,0,null,0,null,0]
[null,null,null,null,1,"","",null,"","",null,180,null,"",null,null,null,null,null,null,null,null,null,null,null,null,null,null,null,null,null,null,null,null,null,null,null,null,null,null,null,null,null,null,null,null,null,null,null,null,null,null,null,null,null,null,0,0,0,null,0,null,0]
[null,null,null,null,1,"","",null,"","",null,180,null,"",null,null,null,null,null,null,null,null,null,null,null,null,null,null,null,null,null,null,null,null,null,null,null,null,null,null,null,null,null,null,null,null,null,null,null,null,null,null,null,null,null,null,0,0,0,null,0,null,0]
[null,null,null,null,1,"","",null,"","",null,180,null,"",null,null,null,null,null,null,null,null,null,null,null,null,null,null,null,null,null,null,null,null,null,null,null,null,null,null,null,null,null,null,null,null,null,null,null,null,null,null,null,null,null,null,0,0,0,null,0,null,0]
[null,null,null,null,1,"","",null,"","",null,180,null,"",null,null,null,null,null,null,null,null,null,null,null,null,null,null,null,null,null,null,null,null,null,null,null,null,null,null,null,null,null,null,null,null,null,null,null,null,null,null,null,null,null,null,0,0,0,null,0,null,0]
[null,null,null,null,1,"","",null,"","",null,180,null,"",null,null,null,null,null,null,null,null,null,null,null,null,null,null,null,null,null,null,null,null,null,null,null,null,null,null,null,null,null,null,null,null,null,null,null,null,null,null,null,null,null,null,0,0,0,null,0,null,0]
[null,null,null,null,1,"","",null,"","",null,180,null,"",null,null,null,null,null,null,null,null,null,null,null,null,null,null,null,null,null,null,null,null,null,null,null,null,null,null,null,null,null,null,null,null,null,null,null,null,null,null,null,null,null,null,0,0,0,null,0,null,0]
[null,null,null,null,1,"","",null,{"$f":"IF(OR(N(H221)=0,N(E221)=0),\"\",SUM(N(H221),N(E221*365)))","v":""},{"$f":"IF(B221=\"\",\"\",TODAY())","v":""},null,180,null,"",null,null,null,null,null,null,null,null,null,null,null,null,null,null,null,null,null,null,null,null,null,null,null,null,null,null,null,null,null,null,null,null,null,null,null,null,null,null,null,null,null,null,0,0,0,null,0,null,0]
[null,null,null,null,1,"","",null,"","",null,180,null,"",null,null,null,null,null,null,null,null,null,null,null,null,null,null,null,null,null,null,null,null,null,null,null,null,null,null,null,null,null,null,null,null,null,null,null,null,null,null,null,null,null,null,0,{"$f":"B222","v":0},{"$f":"A222","v":0},null,{"$f":"H222","v":0},null,{"$f":"K222","v":0}]
[null,null,null,null,1,"","",null,"","",null,180,null,"",null,null,null,null,null,null,null,null,null,null,null,null,null,null,null,null,null,null,null,null,null,null,null,null,null,null,null,null,null,null,null,null,null,null,null,null,null,null,null,null,null,null,0,0,0,null,0,null,0]
[null,null,null,null,1,"","",null,"","",null,180,null,"",null,null,null,null,null,null,null,null,null,null,null,null,null,null,null,null,null,null,null,null,null,null,null,null,null,null,null,null,null,null,null,null,null,null,null,null,null,null,null,null,null,null,0,0,0,null,0,null,0]
[null,null,null,null,1,"","",null,"","",null,180,null,"",null,null,null,null,null,null,null,null,null,null,null,null,null,null,null,null,null,null,null,null,null,null,null,null,null,null,null,null,null,null,null,null,null,null,null,null,null,null,null,null,null,null,0,0,0,null,0,null,0]
[null,null,null,null,1,"","",null,"","",null,180,null,"",null,null,null,null,null,null,null,null,null,null,null,null,null,null,null,null,null,null,null,null,null,null,null,null,null,null,null,null,null,null,null,null,null,null,null,null,null,null,null,null,null,null,0,0,0,null,0,null,0]
[null,null,null,null,1,"","",null,"","",null,180,null,"",null,null,null,null,null,null,null,null,null,null,null,null,null,null,null,null,null,null,null,null,null,null,null,null,null,null,null,null,null,null,null,null,null,null,null,null,null,null,null,null,null,null,0,0,0,null,0,null,0]
[null,null,null,null,1,"","",null,"","",null,180,null,"",null,null,null,null,null,null,null,null,null,null,null,null,null,null,null,null,null,null,null,null,null,null,null,null,null,null,null,null,null,null,null,null,null,null,null,null,null,null,null,null,null,null,0,0,0,null,0,null,0]
[null,null,null,null,1,"","",null,"","",null,180,null,"",null,null,null,null,null,null,null,null,null,null,null,null,null,null,null,null,null,null,null,null,null,null,null,null,null,null,null,null,null,null,null,null,null,null,null,null,null,null,null,null,null,null,0,0,0,null,0,null,0]
[null,null,null,null,1,"","",null,"","",null,180,null,"",null,null,null,null,null,null,null,null,null,null,null,null,null,null,null,null,null,null,null,null,null,null,null,null,null,null,null,null,null,null,null,null,null,null,null,null,null,null,null,null,null,null,0,0,0,null,0,null,0]
[null,null,null,null,1,"","",null,"","",null,180,null,"",null,null,null,null,null,null,null,null,null,null,null,null,null,null,null,null,null,null,null,null,null,null,null,null,null,null,null,null,null,null,null,null,null,null,null,null,null,null,null,null,null,null,0,0,0,null,0,null,0]
[null,null,null,null,1,"","",null,"","",null,180,null,"",null,null,null,null,null,null,null,null,null,null,null,null,null,null,null,null,null,null,null,null,null,null,null,null,null,null,null,null,null,null,null,null,null,null,null,null,null,null,null,null,null,null,0,0,0,null,0,null,0]
[null,null,null,null,1,"","",null,"","",null,180,null,"",null,null,null,null,null,null,null,null,null,null,null,null,null,null,null,null,null,null,null,null,null,null,null,null,null,null,null,null,null,null,null,null,null,null,null,null,null,null,null,null,null,null,0,0,0,null,0,null,0]
[null,null,null,null,1,"","",null,"","",null,180,null,"",null,null,null,null,null,null,null,null,null,null,null,null,null,null,null,null,null,null,null,null,null,null,null,null,null,null,null,null,null,null,null,null,null,null,null,null,null,null,null,null,null,null,0,0,0,null,0,null,0]
[null,null,null,null,1,"","",null,"","",null,180,null,"",null,null,null,null,null,null,null,null,null,null,null,null,null,null,null,null,null,null,null,null,null,null,null,null,null,null,null,null,null,null,null,null,null,null,null,null,null,null,null,null,null,null,0,0,0,null,0,null,0]
[null,null,null,null,1,"","",null,"","",null,180,null,"",null,null,null,null,null,null,null,null,null,null,null,null,null,null,null,null,null,null,null,null,null,null,null,null,null,null,null,null,null,null,null,null,null,null,null,null,null,null,null,null,null,null,0,0,0,null,0,null,0]
[null,null,null,null,1,"","",null,"","",null,180,null,"",null,null,null,null,null,null,null,null,null,null,null,null,null,null,null,null,null,null,null,null,null,null,null,null,null,null,null,null,null,null,null,null,null,null,null,null,null,null,null,null,null,null,0,0,0,null,0,null,0]
[null,null,null,null,1,"","",null,"","",null,180,null,"",null,null,null,null,null,null,null,null,null,null,null,null,null,null,null,null,null,null,null,null,null,null,null,null,null,null,null,null,null,null,null,null,null,null,null,null,null,null,null,null,null,null,0,0,0,null,0,null,0]
[null,null,null,null,1,"","",null,"","",null,180,null,"",null,null,null,null,null,null,null,null,null,null,null,null,null,null,null,null,null,null,null,null,null,null,null,null,null,null,null,null,null,null,null,null,null,null,null,null,null,null,null,null,null,null,0,0,0,null,0,null,0]
[null,null,null,null,1,"","",null,"","",null,180,null,"",null,null,null,null,null,null,null,null,null,null,null,null,null,null,null,null,null,null,null,null,null,null,null,null,null,null,null,null,null,null,null,null,null,null,null,null,null,null,null,null,null,null,0,0,0,null,0,null,0]
[null,null,null,null,1,"","",null,"","",null,180,null,"",null,null,null,null,null,null,null,null,null,null,null,null,null,null,null,null,null,null,null,null,null,null,null,null,null,null,null,null,null,null,null,null,null,null,null,null,null,null,null,null,null,null,0,0,0,null,0,null,0]
[null,null,null,null,1,"","",null,"","",null,180,null,"",null,null,null,null,null,null,null,null,null,null,null,null,null,null,null,null,null,null,null,null,null,null,null,null,null,null,null,null,null,null,null,null,null,null,null,null,null,null,null,null,null,null,0,0,0,null,0,null,0]
[null,null,null,null,1,"","",null,"","",null,180,null,"",null,null,null,null,null,null,null,null,null,null,null,null,null,null,null,null,null,null,null,null,null,null,null,null,null,null,null,null,null,null,null,null,null,null,null,null,null,null,null,null,null,null,0,0,0,null,0,null,0]
[null,null,null,null,1,"","",null,"","",null,180,null,"",null,null,null,null,null,null,null,null,null,null,null,null,null,null,null,null,null,null,null,null,null,null,null,null,null,null,null,null,null,null,null,null,null,null,null,null,null,null,null,null,null,null,0,0,0,null,0,null,0]
[null,null,null,null,1,"","",null,"","",null,180,null,"",null,null,null,null,null,null,null,null,null,null,null,null,null,null,null,null,null,null,null,null,null,null,null,null,null,null,null,null,null,null,null,null,null,null,null,null,null,null,null,null,null,null,0,0,0,null,0,null,0]
[null,null,null,null,1,"","",null,"","",null,180,null,"",null,null,null,null,null,null,null,null,null,null,null,null,null,null,null,null,null,null,null,null,null,null,null,null,null,null,null,null,null,null,null,null,null,null,null,null,null,null,null,null,null,null,0,0,0,null,0,null,0]
[null,null,null,null,1,"","",null,"","",null,180,null,"",null,null,null,null,null,null,null,null,null,null,null,null,null,null,null,null,null,null,null,null,null,null,null,null,null,null,null,null,null,null,null,null,null,null,null,null,null,null,null,null,null,null,0,0,0,null,0,null,0]
[null,null,null,null,1,"","",null,"","",null,180,null,"",null,null,null,null,null,null,null,null,null,null,null,null,null,null,null,null,null,null,null,null,null,null,null,null,null,null,null,null,null,null,null,null,null,null,null,null,null,null,null,null,null,null,0,0,0,null,0,null,0]
[null,null,null,null,1,"","",null,"","",null,180,null,"",null,null,null,null,null,null,null,null,null,null,null,null,null,null,null,null,null,null,null,null,null,null,null,null,null,null,null,null,null,null,null,null,null,null,null,null,null,null,null,null,null,null,0,0,0,null,0,null,0]
[null,null,null,null,1,"","",null,"","",null,180,null,"",null,null,null,null,null,null,null,null,null,null,null,null,null,null,null,null,null,null,null,null,null,null,null,null,null,null,null,null,null,null,null,null,null,null,null,null,null,null,null,null,null,null,0,0,0,null,0,null,0]
[null,null,null,null,1,"","",null,"","",null,180,null,"",null,null,null,null,null,null,null,null,null,null,null,null,null,null,null,null,null,null,null,null,null,null,null,null,null,null,null,null,null,null,null,null,null,null,null,null,null,null,null,null,null,null,0,0,0,null,0,null,0]
[null,null,null,null,1,"","",null,"","",null,180,null,"",null,null,null,null,null,null,null,null,null,null,null,null,null,null,null,null,null,null,null,null,null,null,null,null,null,null,null,null,null,null,null,null,null,null,null,null,null,null,null,null,null,null,0,0,0,null,0,null,0]
[null,null,null,null,1,"","",null,"","",null,180,null,"",null,null,null,null,null,null,null,null,null,null,null,null,null,null,null,null,null,null,null,null,null,null,null,null,null,null,null,null,null,null,null,null,null,null,null,null,null,null,null,null,null,null,0,0,0,null,0,null,0]
[null,null,null,null,1,"","",null,"","",null,180,null,"",null,null,null,null,null,null,null,null,null,null,null,null,null,null,null,null,null,null,null,null,null,null,null,null,null,null,null,null,null,null,null,null,null,null,null,null,null,null,null,null,null,null,0,0,0,null,0,null,0]
[null,null,null,null,1,"","",null,"","",null,180,null,"",null,null,null,null,null,null,null,null,null,null,null,null,null,null,null,null,null,null,null,null,null,null,null,null,null,null,null,null,null,null,null,null,null,null,null,null,null,null,null,null,null,null,0,0,0,null,0,null,0]
[null,null,null,null,1,"","",null,"","",null,180,null,"",null,null,null,null,null,null,null,null,null,null,null,null,null,null,null,null,null,null,null,null,null,null,null,null,null,null,null,null,null,null,null,null,null,null,null,null,null,null,null,null,null,null,0,0,0,null,0,null,0]
[null,null,null,null,1,"","",null,"","",null,180,null,"",null,null,null,null,null,null,null,null,null,null,null,null,null,null,null,null,null,null,null,null,null,null,null,null,null,null,null,null,null,null,null,null,null,null,null,null,null,null,null,null,null,null,0,0,0,null,0,null,0]
[null,null,null,null,1,"","",null,"","",null,180,null,"",null,null,null,null,null,null,null,null,null,null,null,null,null,null,null,null,null,null,null,null,null,null,null,null,null,null,null,null,null,null,null,null,null,null,null,null,null,null,null,null,null,null,0,0,0,null,0,null,0]
[null,null,null,null,1,{"$f":"IF(SUM(N(J259),-N(K259))=0,\"\",ROUND(SUM(N(J259),-N(K259))/365,0))","v":""},{"$f":"IF(SUM(N(J259),-N(H259))=0,\"\",SUM(N(J259),-N(H259))/365)","v":""},null,"","",null,180,null,{"$f":"IF(OR(N(M259)=0,N(L259)=0),\"\",SUM(M259,L259))","v":""},null,null,null,null,null,null,null,null,null,null,null,null,null,null,null,null,null,null,null,null,null,null,null,null,null,null,null,null,null,null,null,null,null,null,null,null,null,null,null,null,null,null,{"$f":"D259","v":0},0,0,null,0,null,0]
[null,null,null,null,1,"","",null,"","",null,180,null,"",null,null,null,null,null,null,null,null,null,null,null,null,null,null,null,null,null,null,null,null,null,null,null,null,null,null,null,null,null,null,null,null,null,null,null,null,null,null,null,null,null,null,0,0,0,null,0,null,0]
[null,null,null,null,1,"","",null,"","",null,180,null,"",null,null,null,null,null,null,null,null,null,null,null,null,null,null,null,null,null,null,null,null,null,null,null,null,null,null,null,null,null,null,null,null,null,null,null,null,null,null,null,null,null,null,0,0,0,null,0,null,0]
[null,null,null,null,1,"","",null,"","",null,180,null,"",null,null,null,null,null,null,null,null,null,null,null,null,null,null,null,null,null,null,null,null,null,null,null,null,null,null,null,null,null,null,null,null,null,null,null,null,null,null,null,null,null,null,0,0,0,null,0,null,0]
[null,null,null,null,1,"","",null,"","",null,180,null,"",null,null,null,null,null,null,null,null,null,null,null,null,null,null,null,null,null,null,null,null,null,null,null,null,null,null,null,null,null,null,null,null,null,null,null,null,null,null,null,null,null,null,0,0,0,null,0,null,0]
[null,null,null,null,1,"","",null,"","",null,180,null,"",null,null,null,null,null,null,null,null,null,null,null,null,null,null,null,null,null,null,null,null,null,null,null,null,null,null,null,null,null,null,null,null,null,null,null,null,null,null,null,null,null,null,0,0,0,null,0,null,0]
[null,null,null,null,1,"","",null,"","",null,180,null,"",null,null,null,null,null,null,null,null,null,null,null,null,null,null,null,null,null,null,null,null,null,null,null,null,null,null,null,null,null,null,null,null,null,null,null,null,null,null,null,null,null,null,0,0,0,null,0,null,0]
[null,null,null,null,1,"","",null,"","",null,180,null,"",null,null,null,null,null,null,null,null,null,null,null,null,null,null,null,null,null,null,null,null,null,null,null,null,null,null,null,null,null,null,null,null,null,null,null,null,null,null,null,null,null,null,0,0,0,null,0,null,0]
[null,null,null,null,1,"","",null,"","",null,180,null,"",null,null,null,null,null,null,null,null,null,null,null,null,null,null,null,null,null,null,null,null,null,null,null,null,null,null,null,null,null,null,null,null,null,null,null,null,null,null,null,null,null,null,0,0,0,null,0,null,0]
[null,null,null,null,1,"","",null,"","",null,180,null,"",null,null,null,null,null,null,null,null,null,null,null,null,null,null,null,null,null,null,null,null,null,null,null,null,null,null,null,null,null,null,null,null,null,null,null,null,null,null,null,null,null,null,0,0,0,null,0,null,0]
[null,null,null,null,1,"","",null,"","",null,180,null,"",null,null,null,null,null,null,null,null,null,null,null,null,null,null,null,null,null,null,null,null,null,null,null,null,null,null,null,null,null,null,null,null,null,null,null,null,null,null,null,null,null,null,0,0,0,null,0,null,0]
[null,null,null,null,1,"","",null,"","",null,180,null,"",null,null,null,null,null,null,null,null,null,null,null,null,null,null,null,null,null,null,null,null,null,null,null,null,null,null,null,null,null,null,null,null,null,null,null,null,null,null,null,null,null,null,0,0,0,null,0,null,0]
[null,null,null,null,1,"","",null,"","",null,180,null,"",null,null,null,null,null,null,null,null,null,null,null,null,null,null,null,null,null,null,null,null,null,null,null,null,null,null,null,null,null,null,null,null,null,null,null,null,null,null,null,null,null,null,0,0,0,null,0,null,0]
[null,null,null,null,1,"","",null,"","",null,180,null,"",null,null,null,null,null,null,null,null,null,null,null,null,null,null,null,null,null,null,null,null,null,null,null,null,null,null,null,null,null,null,null,null,null,null,null,null,null,null,null,null,null,null,0,0,0,null,0,null,0]
[null,null,null,null,1,"","",null,"","",null,180,null,"",null,null,null,null,null,null,null,null,null,null,null,null,null,null,null,null,null,null,null,null,null,null,null,null,null,null,null,null,null,null,null,null,null,null,null,null,null,null,null,null,null,null,0,0,0,null,0,null,0]
[null,null,null,null,1,"","",null,"","",null,180,null,"",null,null,null,null,null,null,null,null,null,null,null,null,null,null,null,null,null,null,null,null,null,null,null,null,null,null,null,null,null,null,null,null,null,null,null,null,null,null,null,null,null,null,0,0,0,null,0,null,0]
[null,null,null,null,1,"","",null,"","",null,180,null,"",null,null,null,null,null,null,null,null,null,null,null,null,null,null,null,null,null,null,null,null,null,null,null,null,null,null,null,null,null,null,null,null,null,null,null,null,null,null,null,null,null,null,0,0,0,null,0,null,0]
[null,null,null,null,1,"","",null,"","",null,180,null,"",null,null,null,null,null,null,null,null,null,null,null,null,null,null,null,null,null,null,null,null,null,null,null,null,null,null,null,null,null,null,null,null,null,null,null,null,null,null,null,null,null,null,0,0,0,null,0,null,0]
[null,null,null,null,1,"","",null,"","",null,180,null,"",null,null,null,null,null,null,null,null,null,null,null,null,null,null,null,null,null,null,null,null,null,null,null,null,null,null,null,null,null,null,null,null,null,null,null,null,null,null,null,null,null,null,0,0,0,null,0,null,0]
[null,null,null,null,1,"","",null,"","",null,180,null,"",null,null,null,null,null,null,null,null,null,null,null,null,null,null,null,null,null,null,null,null,null,null,null,null,null,null,null,null,null,null,null,null,null,null,null,null,null,null,null,null,null,null,0,0,0,null,0,null,0]
[null,null,null,null,1,"","",null,"","",null,180,null,"",null,null,null,null,null,null,null,null,null,null,null,null,null,null,null,null,null,null,null,null,null,null,null,null,null,null,null,null,null,null,null,null,null,null,null,null,null,null,null,null,null,null,0,0,0,null,0,null,0]
[null,null,null,null,1,"","",null,"","",null,180,null,"",null,null,null,null,null,null,null,null,null,null,null,null,null,null,null,null,null,null,null,null,null,null,null,null,null,null,null,null,null,null,null,null,null,null,null,null,null,null,null,null,null,null,0,0,0,null,0,null,0]
[null,null,null,null,1,"","",null,"","",null,180,null,"",null,null,null,null,null,null,null,null,null,null,null,null,null,null,null,null,null,null,null,null,null,null,null,null,null,null,null,null,null,null,null,null,null,null,null,null,null,null,null,null,null,null,0,0,0,null,0,null,0]
[null,null,null,null,1,"","",null,"","",null,180,null,"",null,null,null,null,null,null,null,null,null,null,null,null,null,null,null,null,null,null,null,null,null,null,null,null,null,null,null,null,null,null,null,null,null,null,null,null,null,null,null,null,null,null,0,0,0,null,0,null,0]
[null,null,null,null,1,"","",null,"","",null,180,null,"",null,null,null,null,null,null,null,null,null,null,null,null,null,null,null,null,null,null,null,null,null,null,null,null,null,null,null,null,null,null,null,null,null,null,null,null,null,null,null,null,null,null,0,0,0,null,0,null,0]
[null,null,null,null,1,"","",null,"","",null,180,null,"",null,null,null,null,null,null,null,null,null,null,null,null,null,null,null,null,null,null,null,null,null,null,null,null,null,null,null,null,null,null,null,null,null,null,null,null,null,null,null,null,null,null,0,0,0,null,0,null,0]
[null,null,null,null,1,"","",null,{"$f":"IF(OR(N(H285)=0,N(E285)=0),\"\",SUM(N(H285),N(E285*365)))","v":""},{"$f":"IF(B285=\"\",\"\",TODAY())","v":""},null,180,null,"",null,null,null,null,null,null,null,null,null,null,null,null,null,null,null,null,null,null,null,null,null,null,null,null,null,null,null,null,null,null,null,null,null,null,null,null,null,null,null,null,null,null,0,0,0,null,0,null,0]
[null,null,null,null,1,"","",null,"","",null,180,null,"",null,null,null,null,null,null,null,null,null,null,null,null,null,null,null,null,null,null,null,null,null,null,null,null,null,null,null,null,null,null,null,null,null,null,null,null,null,null,null,null,null,null,0,{"$f":"B286","v":0},{"$f":"A286","v":0},null,{"$f":"H286","v":0},null,{"$f":"K286","v":0}]
[null,null,null,null,1,"","",null,"","",null,180,null,"",null,null,null,null,null,null,null,null,null,null,null,null,null,null,null,null,null,null,null,null,null,null,null,null,null,null,null,null,null,null,null,null,null,null,null,null,null,null,null,null,null,null,0,0,0,null,0,null,0]
[null,null,null,null,1,"","",null,"","",null,180,null,"",null,null,null,null,null,null,null,null,null,null,null,null,null,null,null,null,null,null,null,null,null,null,null,null,null,null,null,null,null,null,null,null,null,null,null,null,null,null,null,null,null,null,0,0,0,null,0,null,0]
[null,null,null,null,1,"","",null,"","",null,180,null,"",null,null,null,null,null,null,null,null,null,null,null,null,null,null,null,null,null,null,null,null,null,null,null,null,null,null,null,null,null,null,null,null,null,null,null,null,null,null,null,null,null,null,0,0,0,null,0,null,0]
[null,null,null,null,1,"","",null,"","",null,180,null,"",null,null,null,null,null,null,null,null,null,null,null,null,null,null,null,null,null,null,null,null,null,null,null,null,null,null,null,null,null,null,null,null,null,null,null,null,null,null,null,null,null,null,0,0,0,null,0,null,0]
[null,null,null,null,1,"","",null,"","",null,180,null,"",null,null,null,null,null,null,null,null,null,null,null,null,null,null,null,null,null,null,null,null,null,null,null,null,null,null,null,null,null,null,null,null,null,null,null,null,null,null,null,null,null,null,0,0,0,null,0,null,0]
[null,null,null,null,1,"","",null,"","",null,180,null,"",null,null,null,null,null,null,null,null,null,null,null,null,null,null,null,null,null,null,null,null,null,null,null,null,null,null,null,null,null,null,null,null,null,null,null,null,null,null,null,null,null,null,0,0,0,null,0,null,0]
[null,null,null,null,1,"","",null,"","",null,180,null,"",null,null,null,null,null,null,null,null,null,null,null,null,null,null,null,null,null,null,null,null,null,null,null,null,null,null,null,null,null,null,null,null,null,null,null,null,null,null,null,null,null,null,0,0,0,null,0,null,0]
[null,null,null,null,1,"","",null,"","",null,180,null,"",null,null,null,null,null,null,null,null,null,null,null,null,null,null,null,null,null,null,null,null,null,null,null,null,null,null,null,null,null,null,null,null,null,null,null,null,null,null,null,null,null,null,0,0,0,null,0,null,0]
[null,null,null,null,1,"","",null,"","",null,180,null,"",null,null,null,null,null,null,null,null,null,null,null,null,null,null,null,null,null,null,null,null,null,null,null,null,null,null,null,null,null,null,null,null,null,null,null,null,null,null,null,null,null,null,0,0,0,null,0,null,0]
[null,null,null,null,1,"","",null,"","",null,180,null,"",null,null,null,null,null,null,null,null,null,null,null,null,null,null,null,null,null,null,null,null,null,null,null,null,null,null,null,null,null,null,null,null,null,null,null,null,null,null,null,null,null,null,0,0,0,null,0,null,0]
[null,null,null,null,1,"","",null,"","",null,180,null,"",null,null,null,null,null,null,null,null,null,null,null,null,null,null,null,null,null,null,null,null,null,null,null,null,null,null,null,null,null,null,null,null,null,null,null,null,null,null,null,null,null,null,0,0,0,null,0,null,0]
[null,null,null,null,1,"","",null,"","",null,180,null,"",null,null,null,null,null,null,null,null,null,null,null,null,null,null,null,null,null,null,null,null,null,null,null,null,null,null,null,null,null,null,null,null,null,null,null,null,null,null,null,null,null,null,0,0,0,null,0,null,0]
[null,null,null,null,1,"","",null,"","",null,180,null,"",null,null,null,null,null,null,null,null,null,null,null,null,null,null,null,null,null,null,null,null,null,null,null,null,null,null,null,null,null,null,null,null,null,null,null,null,null,null,null,null,null,null,0,0,0,null,0,null,0]
[null,null,null,null,1,"","",null,"","",null,180,null,"",null,null,null,null,null,null,null,null,null,null,null,null,null,null,null,null,null,null,null,null,null,null,null,null,null,null,null,null,null,null,null,null,null,null,null,null,null,null,null,null,null,null,0,0,0,null,0,null,0]
[null,null,null,null,1,"","",null,"","",null,180,null,"",null,null,null,null,null,null,null,null,null,null,null,null,null,null,null,null,null,null,null,null,null,null,null,null,null,null,null,null,null,null,null,null,null,null,null,null,null,null,null,null,null,null,0,0,0,null,0,null,0]
[null,null,null,null,1,"","",null,"","",null,180,null,"",null,null,null,null,null,null,null,null,null,null,null,null,null,null,null,null,null,null,null,null,null,null,null,null,null,null,null,null,null,null,null,null,null,null,null,null,null,null,null,null,null,null,0,0,0,null,0,null,0]
[null,null,null,null,1,"","",null,"","",null,180,null,"",null,null,null,null,null,null,null,null,null,null,null,null,null,null,null,null,null,null,null,null,null,null,null,null,null,null,null,null,null,null,null,null,null,null,null,null,null,null,null,null,null,null,0,0,0,null,0,null,0]
[null,null,null,null,1,"","",null,"","",null,180,null,"",null,null,null,null,null,null,null,null,null,null,null,null,null,null,null,null,null,null,null,null,null,null,null,null,null,null,null,null,null,null,null,null,null,null,null,null,null,null,null,null,null,null,0,0,0,null,0,null,0]
[null,null,null,null,1,"","",null,"","",null,180,null,"",null,null,null,null,null,null,null,null,null,null,null,null,null,null,null,null,null,null,null,null,null,null,null,null,null,null,null,null,null,null,null,null,null,null,null,null,null,null,null,null,null,null,0,0,0,null,0,null,0]
[null,null,null,null,1,"","",null,"","",null,180,null,"",null,null,null,null,null,null,null,null,null,null,null,null,null,null,null,null,null,null,null,null,null,null,null,null,null,null,null,null,null,null,null,null,null,null,null,null,null,null,null,null,null,null,0,0,0,null,0,null,0]
[null,null,null,null,1,"","",null,"","",null,180,null,"",null,null,null,null,null,null,null,null,null,null,null,null,null,null,null,null,null,null,null,null,null,null,null,null,null,null,null,null,null,null,null,null,null,null,null,null,null,null,null,null,null,null,0,0,0,null,0,null,0]
[null,null,null,null,1,"","",null,"","",null,180,null,"",null,null,null,null,null,null,null,null,null,null,null,null,null,null,null,null,null,null,null,null,null,null,null,null,null,null,null,null,null,null,null,null,null,null,null,null,null,null,null,null,null,null,0,0,0,null,0,null,0]
[null,null,null,null,1,"","",null,"","",null,180,null,"",null,null,null,null,null,null,null,null,null,null,null,null,null,null,null,null,null,null,null,null,null,null,null,null,null,null,null,null,null,null,null,null,null,null,null,null,null,null,null,null,null,null,0,0,0,null,0,null,0]
[null,null,null,null,1,"","",null,"","",null,180,null,"",null,null,null,null,null,null,null,null,null,null,null,null,null,null,null,null,null,null,null,null,null,null,null,null,null,null,null,null,null,null,null,null,null,null,null,null,null,null,null,null,null,null,0,0,0,null,0,null,0]
[null,null,null,null,1,"","",null,"","",null,180,null,"",null,null,null,null,null,null,null,null,null,null,null,null,null,null,null,null,null,null,null,null,null,null,null,null,null,null,null,null,null,null,null,null,null,null,null,null,null,null,null,null,null,null,0,0,0,null,0,null,0]
[null,null,null,null,1,"","",null,"","",null,180,null,"",null,null,null,null,null,null,null,null,null,null,null,null,null,null,null,null,null,null,null,null,null,null,null,null,null,null,null,null,null,null,null,null,null,null,null,null,null,null,null,null,null,null,0,0,0,null,0,null,0]
[null,null,null,null,1,"","",null,"","",null,180,null,"",null,null,null,null,null,null,null,null,null,null,null,null,null,null,null,null,null,null,null,null,null,null,null,null,null,null,null,null,null,null,null,null,null,null,null,null,null,null,null,null,null,null,0,0,0,null,0,null,0]
[null,null,null,null,1,"","",null,"","",null,180,null,"",null,null,null,null,null,null,null,null,null,null,null,null,null,null,null,null,null,null,null,null,null,null,null,null,null,null,null,null,null,null,null,null,null,null,null,null,null,null,null,null,null,null,0,0,0,null,0,null,0]
[null,null,null,null,1,"","",null,"","",null,180,null,"",null,null,null,null,null,null,null,null,null,null,null,null,null,null,null,null,null,null,null,null,null,null,null,null,null,null,null,null,null,null,null,null,null,null,null,null,null,null,null,null,null,null,0,0,0,null,0,null,0]
[null,null,null,null,1,"","",null,"","",null,180,null,"",null,null,null,null,null,null,null,null,null,null,null,null,null,null,null,null,null,null,null,null,null,null,null,null,null,null,null,null,null,null,null,null,null,null,null,null,null,null,null,null,null,null,0,0,0,null,0,null,0]
[null,null,null,null,1,"","",null,"","",null,180,null,"",null,null,null,null,null,null,null,null,null,null,null,null,null,null,null,null,null,null,null,null,null,null,null,null,null,null,null,null,null,null,null,null,null,null,null,null,null,null,null,null,null,null,0,0,0,null,0,null,0]
[null,null,null,null,1,"","",null,"","",null,180,null,"",null,null,null,null,null,null,null,null,null,null,null,null,null,null,null,null,null,null,null,null,null,null,null,null,null,null,null,null,null,null,null,null,null,null,null,null,null,null,null,null,null,null,0,0,0,null,0,null,0]
[null,null,null,null,1,"","",null,"","",null,180,null,"",null,null,null,null,null,null,null,null,null,null,null,null,null,null,null,null,null,null,null,null,null,null,null,null,null,null,null,null,null,null,null,null,null,null,null,null,null,null,null,null,null,null,0,0,0,null,0,null,0]
[null,null,null,null,1,"","",null,"","",null,180,null,"",null,null,null,null,null,null,null,null,null,null,null,null,null,null,null,null,null,null,null,null,null,null,null,null,null,null,null,null,null,null,null,null,null,null,null,null,null,null,null,null,null,null,0,0,0,null,0,null,0]
[null,null,null,null,1,"","",null,"","",null,180,null,"",null,null,null,null,null,null,null,null,null,null,null,null,null,null,null,null,null,null,null,null,null,null,null,null,null,null,null,null,null,null,null,null,null,null,null,null,null,null,null,null,null,null,0,0,0,null,0,null,0]
[null,null,null,null,1,"","",null,"","",null,180,null,"",null,null,null,null,null,null,null,null,null,null,null,null,null,null,null,null,null,null,null,null,null,null,null,null,null,null,null,null,null,null,null,null,null,null,null,null,null,null,null,null,null,null,0,0,0,null,0,null,0]
[null,null,null,null,1,{"$f":"IF(SUM(N(J323),-N(K323))=0,\"\",ROUND(SUM(N(J323),-N(K323))/365,0))","v":""},{"$f":"IF(SUM(N(J323),-N(H323))=0,\"\",SUM(N(J323),-N(H323))/365)","v":""},null,"","",null,180,null,{"$f":"IF(OR(N(M323)=0,N(L323)=0),\"\",SUM(M323,L323))","v":""},null,null,null,null,null,null,null,null,null,null,null,null,null,null,null,null,null,null,null,null,null,null,null,null,null,null,null,null,null,null,null,null,null,null,null,null,null,null,null,null,null,null,{"$f":"D323","v":0},0,0,null,0,null,0]
[null,null,null,null,1,"","",null,"","",null,180,null,"",null,null,null,null,null,null,null,null,null,null,null,null,null,null,null,null,null,null,null,null,null,null,null,null,null,null,null,null,null,null,null,null,null,null,null,null,null,null,null,null,null,null,0,0,0,null,0,null,0]
[null,null,null,null,1,"","",null,"","",null,180,null,"",null,null,null,null,null,null,null,null,null,null,null,null,null,null,null,null,null,null,null,null,null,null,null,null,null,null,null,null,null,null,null,null,null,null,null,null,null,null,null,null,null,null,0,0,0,null,0,null,0]
[null,null,null,null,1,"","",null,"","",null,180,null,"",null,null,null,null,null,null,null,null,null,null,null,null,null,null,null,null,null,null,null,null,null,null,null,null,null,null,null,null,null,null,null,null,null,null,null,null,null,null,null,null,null,null,0,0,0,null,0,null,0]
[null,null,null,null,1,"","",null,"","",null,180,null,"",null,null,null,null,null,null,null,null,null,null,null,null,null,null,null,null,null,null,null,null,null,null,null,null,null,null,null,null,null,null,null,null,null,null,null,null,null,null,null,null,null,null,0,0,0,null,0,null,0]
[null,null,null,null,1,"","",null,"","",null,180,null,"",null,null,null,null,null,null,null,null,null,null,null,null,null,null,null,null,null,null,null,null,null,null,null,null,null,null,null,null,null,null,null,null,null,null,null,null,null,null,null,null,null,null,0,0,0,null,0,null,0]
[null,null,null,null,1,"","",null,"","",null,180,null,"",null,null,null,null,null,null,null,null,null,null,null,null,null,null,null,null,null,null,null,null,null,null,null,null,null,null,null,null,null,null,null,null,null,null,null,null,null,null,null,null,null,null,0,0,0,null,0,null,0]
[null,null,null,null,1,"","",null,"","",null,180,null,"",null,null,null,null,null,null,null,null,null,null,null,null,null,null,null,null,null,null,null,null,null,null,null,null,null,null,null,null,null,null,null,null,null,null,null,null,null,null,null,null,null,null,0,0,0,null,0,null,0]
[null,null,null,null,1,"","",null,"","",null,180,null,"",null,null,null,null,null,null,null,null,null,null,null,null,null,null,null,null,null,null,null,null,null,null,null,null,null,null,null,null,null,null,null,null,null,null,null,null,null,null,null,null,null,null,0,0,0,null,0,null,0]
[null,null,null,null,1,"","",null,"","",null,180,null,"",null,null,null,null,null,null,null,null,null,null,null,null,null,null,null,null,null,null,null,null,null,null,null,null,null,null,null,null,null,null,null,null,null,null,null,null,null,null,null,null,null,null,0,0,0,null,0,null,0]
[null,null,null,null,1,"","",null,"","",null,180,null,"",null,null,null,null,null,null,null,null,null,null,null,null,null,null,null,null,null,null,null,null,null,null,null,null,null,null,null,null,null,null,null,null,null,null,null,null,null,null,null,null,null,null,0,0,0,null,0,null,0]
[null,null,null,null,1,"","",null,"","",null,180,null,"",null,null,null,null,null,null,null,null,null,null,null,null,null,null,null,null,null,null,null,null,null,null,null,null,null,null,null,null,null,null,null,null,null,null,null,null,null,null,null,null,null,null,0,0,0,null,0,null,0]
[null,null,null,null,1,"","",null,"","",null,180,null,"",null,null,null,null,null,null,null,null,null,null,null,null,null,null,null,null,null,null,null,null,null,null,null,null,null,null,null,null,null,null,null,null,null,null,null,null,null,null,null,null,null,null,0,0,0,null,0,null,0]
[null,null,null,null,1,"","",null,"","",null,180,null,"",null,null,null,null,null,null,null,null,null,null,null,null,null,null,null,null,null,null,null,null,null,null,null,null,null,null,null,null,null,null,null,null,null,null,null,null,null,null,null,null,null,null,0,0,0,null,0,null,0]
[null,null,null,null,1,"","",null,"","",null,180,null,"",null,null,null,null,null,null,null,null,null,null,null,null,null,null,null,null,null,null,null,null,null,null,null,null,null,null,null,null,null,null,null,null,null,null,null,null,null,null,null,null,null,null,0,0,0,null,0,null,0]
[null,null,null,null,1,"","",null,"","",null,180,null,"",null,null,null,null,null,null,null,null,null,null,null,null,null,null,null,null,null,null,null,null,null,null,null,null,null,null,null,null,null,null,null,null,null,null,null,null,null,null,null,null,null,null,0,0,0,null,0,null,0]
[null,null,null,null,1,"","",null,"","",null,180,null,"",null,null,null,null,null,null,null,null,null,null,null,null,null,null,null,null,null,null,null,null,null,null,null,null,null,null,null,null,null,null,null,null,null,null,null,null,null,null,null,null,null,null,0,0,0,null,0,null,0]
[null,null,null,null,1,"","",null,"","",null,180,null,"",null,null,null,null,null,null,null,null,null,null,null,null,null,null,null,null,null,null,null,null,null,null,null,null,null,null,null,null,null,null,null,null,null,null,null,null,null,null,null,null,null,null,0,0,0,null,0,null,0]
[null,null,null,null,1,"","",null,"","",null,180,null,"",null,null,null,null,null,null,null,null,null,null,null,null,null,null,null,null,null,null,null,null,null,null,null,null,null,null,null,null,null,null,null,null,null,null,null,null,null,null,null,null,null,null,0,0,0,null,0,null,0]
[null,null,null,null,1,"","",null,"","",null,180,null,"",null,null,null,null,null,null,null,null,null,null,null,null,null,null,null,null,null,null,null,null,null,null,null,null,null,null,null,null,null,null,null,null,null,null,null,null,null,null,null,null,null,null,0,0,0,null,0,null,0]
[null,null,null,null,1,"","",null,"","",null,180,null,"",null,null,null,null,null,null,null,null,null,null,null,null,null,null,null,null,null,null,null,null,null,null,null,null,null,null,null,null,null,null,null,null,null,null,null,null,null,null,null,null,null,null,0,0,0,null,0,null,0]
[null,null,null,null,1,"","",null,"","",null,180,null,"",null,null,null,null,null,null,null,null,null,null,null,null,null,null,null,null,null,null,null,null,null,null,null,null,null,null,null,null,null,null,null,null,null,null,null,null,null,null,null,null,null,null,0,0,0,null,0,null,0]
[null,null,null,null,1,"","",null,"","",null,180,null,"",null,null,null,null,null,null,null,null,null,null,null,null,null,null,null,null,null,null,null,null,null,null,null,null,null,null,null,null,null,null,null,null,null,null,null,null,null,null,null,null,null,null,0,0,0,null,0,null,0]
[null,null,null,null,1,"","",null,"","",null,180,null,"",null,null,null,null,null,null,null,null,null,null,null,null,null,null,null,null,null,null,null,null,null,null,null,null,null,null,null,null,null,null,null,null,null,null,null,null,null,null,null,null,null,null,0,0,0,null,0,null,0]
[null,null,null,null,1,"","",null,"","",null,180,null,"",null,null,null,null,null,null,null,null,null,null,null,null,null,null,null,null,null,null,null,null,null,null,null,null,null,null,null,null,null,null,null,null,null,null,null,null,null,null,null,null,null,null,0,0,0,null,0,null,0]
[null,null,null,null,1,"","",null,"","",null,180,null,"",null,null,null,null,null,null,null,null,null,null,null,null,null,null,null,null,null,null,null,null,null,null,null,null,null,null,null,null,null,null,null,null,null,null,null,null,null,null,null,null,null,null,0,0,0,null,0,null,0]
[null,null,null,null,1,"","",null,{"$f":"IF(OR(N(H349)=0,N(E349)=0),\"\",SUM(N(H349),N(E349*365)))","v":""},{"$f":"IF(B349=\"\",\"\",TODAY())","v":""},null,180,null,"",null,null,null,null,null,null,null,null,null,null,null,null,null,null,null,null,null,null,null,null,null,null,null,null,null,null,null,null,null,null,null,null,null,null,null,null,null,null,null,null,null,null,0,0,0,null,0,null,0]
[null,null,null,null,1,"","",null,"","",null,180,null,"",null,null,null,null,null,null,null,null,null,null,null,null,null,null,null,null,null,null,null,null,null,null,null,null,null,null,null,null,null,null,null,null,null,null,null,null,null,null,null,null,null,null,0,{"$f":"B350","v":0},{"$f":"A350","v":0},null,{"$f":"H350","v":0},null,{"$f":"K350","v":0}]
[null,null,null,null,1,"","",null,"","",null,180,null,"",null,null,null,null,null,null,null,null,null,null,null,null,null,null,null,null,null,null,null,null,null,null,null,null,null,null,null,null,null,null,null,null,null,null,null,null,null,null,null,null,null,null,0,0,0,null,0,null,0]
[null,null,null,null,1,"","",null,"","",null,180,null,"",null,null,null,null,null,null,null,null,null,null,null,null,null,null,null,null,null,null,null,null,null,null,null,null,null,null,null,null,null,null,null,null,null,null,null,null,null,null,null,null,null,null,0,0,0,null,0,null,0]
[null,null,null,null,1,"","",null,"","",null,180,null,"",null,null,null,null,null,null,null,null,null,null,null,null,null,null,null,null,null,null,null,null,null,null,null,null,null,null,null,null,null,null,null,null,null,null,null,null,null,null,null,null,null,null,0,0,0,null,0,null,0]
[null,null,null,null,1,"","",null,"","",null,180,null,"",null,null,null,null,null,null,null,null,null,null,null,null,null,null,null,null,null,null,null,null,null,null,null,null,null,null,null,null,null,null,null,null,null,null,null,null,null,null,null,null,null,null,0,0,0,null,0,null,0]
[null,null,null,null,1,"","",null,"","",null,180,null,"",null,null,null,null,null,null,null,null,null,null,null,null,null,null,null,null,null,null,null,null,null,null,null,null,null,null,null,null,null,null,null,null,null,null,null,null,null,null,null,null,null,null,0,0,0,null,0,null,0]
[null,null,null,null,1,"","",null,"","",null,180,null,"",null,null,null,null,null,null,null,null,null,null,null,null,null,null,null,null,null,null,null,null,null,null,null,null,null,null,null,null,null,null,null,null,null,null,null,null,null,null,null,null,null,null,0,0,0,null,0,null,0]
[null,null,null,null,1,"","",null,"","",null,180,null,"",null,null,null,null,null,null,null,null,null,null,null,null,null,null,null,null,null,null,null,null,null,null,null,null,null,null,null,null,null,null,null,null,null,null,null,null,null,null,null,null,null,null,0,0,0,null,0,null,0]
[null,null,null,null,1,"","",null,"","",null,180,null,"",null,null,null,null,null,null,null,null,null,null,null,null,null,null,null,null,null,null,null,null,null,null,null,null,null,null,null,null,null,null,null,null,null,null,null,null,null,null,null,null,null,null,0,0,0,null,0,null,0]
[null,null,null,null,1,"","",null,"","",null,180,null,"",null,null,null,null,null,null,null,null,null,null,null,null,null,null,null,null,null,null,null,null,null,null,null,null,null,null,null,null,null,null,null,null,null,null,null,null,null,null,null,null,null,null,0,0,0,null,0,null,0]
[null,null,null,null,1,"","",null,"","",null,180,null,"",null,null,null,null,null,null,null,null,null,null,null,null,null,null,null,null,null,null,null,null,null,null,null,null,null,null,null,null,null,null,null,null,null,null,null,null,null,null,null,null,null,null,0,0,0,null,0,null,0]
[null,null,null,null,1,"","",null,"","",null,180,null,"",null,null,null,null,null,null,null,null,null,null,null,null,null,null,null,null,null,null,null,null,null,null,null,null,null,null,null,null,null,null,null,null,null,null,null,null,null,null,null,null,null,null,0,0,0,null,0,null,0]
[null,null,null,null,1,"","",null,"","",null,180,null,"",null,null,null,null,null,null,null,null,null,null,null,null,null,null,null,null,null,null,null,null,null,null,null,null,null,null,null,null,null,null,null,null,null,null,null,null,null,null,null,null,null,null,0,0,0,null,0,null,0]
[null,null,null,null,1,"","",null,"","",null,180,null,"",null,null,null,null,null,null,null,null,null,null,null,null,null,null,null,null,null,null,null,null,null,null,null,null,null,null,null,null,null,null,null,null,null,null,null,null,null,null,null,null,null,null,0,0,0,null,0,null,0]
[null,null,null,null,1,"","",null,"","",null,180,null,"",null,null,null,null,null,null,null,null,null,null,null,null,null,null,null,null,null,null,null,null,null,null,null,null,null,null,null,null,null,null,null,null,null,null,null,null,null,null,null,null,null,null,0,0,0,null,0,null,0]
[null,null,null,null,1,"","",null,"","",null,180,null,"",null,null,null,null,null,null,null,null,null,null,null,null,null,null,null,null,null,null,null,null,null,null,null,null,null,null,null,null,null,null,null,null,null,null,null,null,null,null,null,null,null,null,0,0,0,null,0,null,0]
[null,null,null,null,1,"","",null,"","",null,180,null,"",null,null,null,null,null,null,null,null,null,null,null,null,null,null,null,null,null,null,null,null,null,null,null,null,null,null,null,null,null,null,null,null,null,null,null,null,null,null,null,null,null,null,0,0,0,null,0,null,0]
[null,null,null,null,1,"","",null,"","",null,180,null,"",null,null,null,null,null,null,null,null,null,null,null,null,null,null,null,null,null,null,null,null,null,null,null,null,null,null,null,null,null,null,null,null,null,null,null,null,null,null,null,null,null,null,0,0,0,null,0,null,0]
[null,null,null,null,1,"","",null,"","",null,180,null,"",null,null,null,null,null,null,null,null,null,null,null,null,null,null,null,null,null,null,null,null,null,null,null,null,null,null,null,null,null,null,null,null,null,null,null,null,null,null,null,null,null,null,0,0,0,null,0,null,0]
[null,null,null,null,1,"","",null,"","",null,180,null,"",null,null,null,null,null,null,null,null,null,null,null,null,null,null,null,null,null,null,null,null,null,null,null,null,null,null,null,null,null,null,null,null,null,null,null,null,null,null,null,null,null,null,0,0,0,null,0,null,0]
[null,null,null,null,1,"","",null,"","",null,180,null,"",null,null,null,null,null,null,null,null,null,null,null,null,null,null,null,null,null,null,null,null,null,null,null,null,null,null,null,null,null,null,null,null,null,null,null,null,null,null,null,null,null,null,0,0,0,null,0,null,0]
[null,null,null,null,1,"","",null,"","",null,180,null,"",null,null,null,null,null,null,null,null,null,null,null,null,null,null,null,null,null,null,null,null,null,null,null,null,null,null,null,null,null,null,null,null,null,null,null,null,null,null,null,null,null,null,0,0,0,null,0,null,0]
[null,null,null,null,1,"","",null,"","",null,180,null,"",null,null,null,null,null,null,null,null,null,null,null,null,null,null,null,null,null,null,null,null,null,null,null,null,null,null,null,null,null,null,null,null,null,null,null,null,null,null,null,null,null,null,0,0,0,null,0,null,0]
[null,null,null,null,1,"","",null,"","",null,180,null,"",null,null,null,null,null,null,null,null,null,null,null,null,null,null,null,null,null,null,null,null,null,null,null,null,null,null,null,null,null,null,null,null,null,null,null,null,null,null,null,null,null,null,0,0,0,null,0,null,0]
[null,null,null,null,1,"","",null,"","",null,180,null,"",null,null,null,null,null,null,null,null,null,null,null,null,null,null,null,null,null,null,null,null,null,null,null,null,null,null,null,null,null,null,null,null,null,null,null,null,null,null,null,null,null,null,0,0,0,null,0,null,0]
[null,null,null,null,1,"","",null,"","",null,180,null,"",null,null,null,null,null,null,null,null,null,null,null,null,null,null,null,null,null,null,null,null,null,null,null,null,null,null,null,null,null,null,null,null,null,null,null,null,null,null,null,null,null,null,0,0,0,null,0,null,0]
[null,null,null,null,1,"","",null,"","",null,180,null,"",null,null,null,null,null,null,null,null,null,null,null,null,null,null,null,null,null,null,null,null,null,null,null,null,null,null,null,null,null,null,null,null,null,null,null,null,null,null,null,null,null,null,0,0,0,null,0,null,0]
[null,null,null,null,1,"","",null,"","",null,180,null,"",null,null,null,null,null,null,null,null,null,null,null,null,null,null,null,null,null,null,null,null,null,null,null,null,null,null,null,null,null,null,null,null,null,null,null,null,null,null,null,null,null,null,0,0,0,null,0,null,0]
[null,null,null,null,1,"","",null,"","",null,180,null,"",null,null,null,null,null,null,null,null,null,null,null,null,null,null,null,null,null,null,null,null,null,null,null,null,null,null,null,null,null,null,null,null,null,null,null,null,null,null,null,null,null,null,0,0,0,null,0,null,0]
[null,null,null,null,1,"","",null,"","",null,180,null,"",null,null,null,null,null,null,null,null,null,null,null,null,null,null,null,null,null,null,null,null,null,null,null,null,null,null,null,null,null,null,null,null,null,null,null,null,null,null,null,null,null,null,0,0,0,null,0,null,0]
[null,null,null,null,1,"","",null,"","",null,180,null,"",null,null,null,null,null,null,null,null,null,null,null,null,null,null,null,null,null,null,null,null,null,null,null,null,null,null,null,null,null,null,null,null,null,null,null,null,null,null,null,null,null,null,0,0,0,null,0,null,0]
[null,null,null,null,1,"","",null,"","",null,180,null,"",null,null,null,null,null,null,null,null,null,null,null,null,null,null,null,null,null,null,null,null,null,null,null,null,null,null,null,null,null,null,null,null,null,null,null,null,null,null,null,null,null,null,0,0,0,null,0,null,0]
[null,null,null,null,1,"","",null,"","",null,180,null,"",null,null,null,null,null,null,null,null,null,null,null,null,null,null,null,null,null,null,null,null,null,null,null,null,null,null,null,null,null,null,null,null,null,null,null,null,null,null,null,null,null,null,0,0,0,null,0,null,0]
[null,null,null,null,1,"","",null,"","",null,180,null,"",null,null,null,null,null,null,null,null,null,null,null,null,null,null,null,null,null,null,null,null,null,null,null,null,null,null,null,null,null,null,null,null,null,null,null,null,null,null,null,null,null,null,0,0,0,null,0,null,0]
[null,null,null,null,1,"","",null,"","",null,180,null,"",null,null,null,null,null,null,null,null,null,null,null,null,null,null,null,null,null,null,null,null,null,null,null,null,null,null,null,null,null,null,null,null,null,null,null,null,null,null,null,null,null,null,0,0,0,null,0,null,0]
[null,null,null,null,1,"","",null,"","",null,180,null,"",null,null,null,null,null,null,null,null,null,null,null,null,null,null,null,null,null,null,null,null,null,null,null,null,null,null,null,null,null,null,null,null,null,null,null,null,null,null,null,null,null,null,0,0,0,null,0,null,0]
[null,null,null,null,1,"","",null,"","",null,180,null,"",null,null,null,null,null,null,null,null,null,null,null,null,null,null,null,null,null,null,null,null,null,null,null,null,null,null,null,null,null,null,null,null,null,null,null,null,null,null,null,null,null,null,0,0,0,null,0,null,0]
[null,null,null,null,1,{"$f":"IF(SUM(N(J387),-N(K387))=0,\"\",ROUND(SUM(N(J387),-N(K387))/365,0))","v":""},{"$f":"IF(SUM(N(J387),-N(H387))=0,\"\",SUM(N(J387),-N(H387))/365)","v":""},null,"","",null,180,null,{"$f":"IF(OR(N(M387)=0,N(L387)=0),\"\",SUM(M387,L387))","v":""},null,null,null,null,null,null,null,null,null,null,null,null,null,null,null,null,null,null,null,null,null,null,null,null,null,null,null,null,null,null,null,null,null,null,null,null,null,null,null,null,null,null,{"$f":"D387","v":0},0,0,null,0,null,0]
[null,null,null,null,1,"","",null,"","",null,180,null,"",null,null,null,null,null,null,null,null,null,null,null,null,null,null,null,null,null,null,null,null,null,null,null,null,null,null,null,null,null,null,null,null,null,null,null,null,null,null,null,null,null,null,0,0,0,null,0,null,0]
[null,null,null,null,1,"","",null,"","",null,180,null,"",null,null,null,null,null,null,null,null,null,null,null,null,null,null,null,null,null,null,null,null,null,null,null,null,null,null,null,null,null,null,null,null,null,null,null,null,null,null,null,null,null,null,0,0,0,null,0,null,0]
[null,null,null,null,1,"","",null,"","",null,180,null,"",null,null,null,null,null,null,null,null,null,null,null,null,null,null,null,null,null,null,null,null,null,null,null,null,null,null,null,null,null,null,null,null,null,null,null,null,null,null,null,null,null,null,0,0,0,null,0,null,0]
[null,null,null,null,1,"","",null,"","",null,180,null,"",null,null,null,null,null,null,null,null,null,null,null,null,null,null,null,null,null,null,null,null,null,null,null,null,null,null,null,null,null,null,null,null,null,null,null,null,null,null,null,null,null,null,0,0,0,null,0,null,0]
[null,null,null,null,1,"","",null,"","",null,180,null,"",null,null,null,null,null,null,null,null,null,null,null,null,null,null,null,null,null,null,null,null,null,null,null,null,null,null,null,null,null,null,null,null,null,null,null,null,null,null,null,null,null,null,0,0,0,null,0,null,0]
[null,null,null,null,1,"","",null,"","",null,180,null,"",null,null,null,null,null,null,null,null,null,null,null,null,null,null,null,null,null,null,null,null,null,null,null,null,null,null,null,null,null,null,null,null,null,null,null,null,null,null,null,null,null,null,0,0,0,null,0,null,0]
[null,null,null,null,1,"","",null,"","",null,180,null,"",null,null,null,null,null,null,null,null,null,null,null,null,null,null,null,null,null,null,null,null,null,null,null,null,null,null,null,null,null,null,null,null,null,null,null,null,null,null,null,null,null,null,0,0,0,null,0,null,0]
[null,null,null,null,1,"","",null,"","",null,180,null,"",null,null,null,null,null,null,null,null,null,null,null,null,null,null,null,null,null,null,null,null,null,null,null,null,null,null,null,null,null,null,null,null,null,null,null,null,null,null,null,null,null,null,0,0,0,null,0,null,0]
[null,null,null,null,1,"","",null,"","",null,180,null,"",null,null,null,null,null,null,null,null,null,null,null,null,null,null,null,null,null,null,null,null,null,null,null,null,null,null,null,null,null,null,null,null,null,null,null,null,null,null,null,null,null,null,0,0,0,null,0,null,0]
[null,null,null,null,1,"","",null,"","",null,180,null,"",null,null,null,null,null,null,null,null,null,null,null,null,null,null,null,null,null,null,null,null,null,null,null,null,null,null,null,null,null,null,null,null,null,null,null,null,null,null,null,null,null,null,0,0,0,null,0,null,0]
[null,null,null,null,1,"","",null,"","",null,180,null,"",null,null,null,null,null,null,null,null,null,null,null,null,null,null,null,null,null,null,null,null,null,null,null,null,null,null,null,null,null,null,null,null,null,null,null,null,null,null,null,null,null,null,0,0,0,null,0,null,0]
[null,null,null,null,1,"","",null,"","",null,180,null,"",null,null,null,null,null,null,null,null,null,null,null,null,null,null,null,null,null,null,null,null,null,null,null,null,null,null,null,null,null,null,null,null,null,null,null,null,null,null,null,null,null,null,0,0,0,null,0,null,0]
[null,null,null,null,1,"","",null,"","",null,180,null,"",null,null,null,null,null,null,null,null,null,null,null,null,null,null,null,null,null,null,null,null,null,null,null,null,null,null,null,null,null,null,null,null,null,null,null,null,null,null,null,null,null,null,0,0,0,null,0,null,0]
[null,null,null,null,1,"","",null,"","",null,180,null,"",null,null,null,null,null,null,null,null,null,null,null,null,null,null,null,null,null,null,null,null,null,null,null,null,null,null,null,null,null,null,null,null,null,null,null,null,null,null,null,null,null,null,0,0,0,null,0,null,0]
[null,null,null,null,1,"","",null,"","",null,180,null,"",null,null,null,null,null,null,null,null,null,null,null,null,null,null,null,null,null,null,null,null,null,null,null,null,null,null,null,null,null,null,null,null,null,null,null,null,null,null,null,null,null,null,0,0,0,null,0,null,0]
[null,null,null,null,1,"","",null,"","",null,180,null,"",null,null,null,null,null,null,null,null,null,null,null,null,null,null,null,null,null,null,null,null,null,null,null,null,null,null,null,null,null,null,null,null,null,null,null,null,null,null,null,null,null,null,0,0,0,null,0,null,0]
[null,null,null,null,1,"","",null,"","",null,180,null,"",null,null,null,null,null,null,null,null,null,null,null,null,null,null,null,null,null,null,null,null,null,null,null,null,null,null,null,null,null,null,null,null,null,null,null,null,null,null,null,null,null,null,0,0,0,null,0,null,0]
[null,null,null,null,1,"","",null,"","",null,180,null,"",null,null,null,null,null,null,null,null,null,null,null,null,null,null,null,null,null,null,null,null,null,null,null,null,null,null,null,null,null,null,null,null,null,null,null,null,null,null,null,null,null,null,0,0,0,null,0,null,0]
[null,null,null,null,1,"","",null,"","",null,180,null,"",null,null,null,null,null,null,null,null,null,null,null,null,null,null,null,null,null,null,null,null,null,null,null,null,null,null,null,null,null,null,null,null,null,null,null,null,null,null,null,null,null,null,0,0,0,null,0,null,0]
[null,null,null,null,1,"","",null,"","",null,180,null,"",null,null,null,null,null,null,null,null,null,null,null,null,null,null,null,null,null,null,null,null,null,null,null,null,null,null,null,null,null,null,null,null,null,null,null,null,null,null,null,null,null,null,0,0,0,null,0,null,0]
[null,null,null,null,1,"","",null,"","",null,180,null,"",null,null,null,null,null,null,null,null,null,null,null,null,null,null,null,null,null,null,null,null,null,null,null,null,null,null,null,null,null,null,null,null,null,null,null,null,null,null,null,null,null,null,0,0,0,null,0,null,0]
[null,null,null,null,1,"","",null,"","",null,180,null,"",null,null,null,null,null,null,null,null,null,null,null,null,null,null,null,null,null,null,null,null,null,null,null,null,null,null,null,null,null,null,null,null,null,null,null,null,null,null,null,null,null,null,0,0,0,null,0,null,0]
[null,null,null,null,1,"","",null,"","",null,180,null,"",null,null,null,null,null,null,null,null,null,null,null,null,null,null,null,null,null,null,null,null,null,null,null,null,null,null,null,null,null,null,null,null,null,null,null,null,null,null,null,null,null,null,0,0,0,null,0,null,0]
[null,null,null,null,1,"","",null,"","",null,180,null,"",null,null,null,null,null,null,null,null,null,null,null,null,null,null,null,null,null,null,null,null,null,null,null,null,null,null,null,null,null,null,null,null,null,null,null,null,null,null,null,null,null,null,0,0,0,null,0,null,0]
[null,null,null,null,1,"","",null,"","",null,180,null,"",null,null,null,null,null,null,null,null,null,null,null,null,null,null,null,null,null,null,null,null,null,null,null,null,null,null,null,null,null,null,null,null,null,null,null,null,null,null,null,null,null,null,0,0,0,null,0,null,0]
[null,null,null,null,1,"","",null,{"$f":"IF(OR(N(H413)=0,N(E413)=0),\"\",SUM(N(H413),N(E413*365)))","v":""},{"$f":"IF(B413=\"\",\"\",TODAY())","v":""},null,180,null,"",null,null,null,null,null,null,null,null,null,null,null,null,null,null,null,null,null,null,null,null,null,null,null,null,null,null,null,null,null,null,null,null,null,null,null,null,null,null,null,null,null,null,0,0,0,null,0,null,0]
[null,null,null,null,1,"","",null,"","",null,180,null,"",null,null,null,null,null,null,null,null,null,null,null,null,null,null,null,null,null,null,null,null,null,null,null,null,null,null,null,null,null,null,null,null,null,null,null,null,null,null,null,null,null,null,0,{"$f":"B414","v":0},{"$f":"A414","v":0},null,{"$f":"H414","v":0},null,{"$f":"K414","v":0}]
[null,null,null,null,1,"","",null,"","",null,180,null,"",null,null,null,null,null,null,null,null,null,null,null,null,null,null,null,null,null,null,null,null,null,null,null,null,null,null,null,null,null,null,null,null,null,null,null,null,null,null,null,null,null,null,0,0,0,null,0,null,0]
[null,null,null,null,1,"","",null,"","",null,180,null,"",null,null,null,null,null,null,null,null,null,null,null,null,null,null,null,null,null,null,null,null,null,null,null,null,null,null,null,null,null,null,null,null,null,null,null,null,null,null,null,null,null,null,0,0,0,null,0,null,0]
[null,null,null,null,1,"","",null,"","",null,180,null,"",null,null,null,null,null,null,null,null,null,null,null,null,null,null,null,null,null,null,null,null,null,null,null,null,null,null,null,null,null,null,null,null,null,null,null,null,null,null,null,null,null,null,0,0,0,null,0,null,0]
[null,null,null,null,1,"","",null,"","",null,180,null,"",null,null,null,null,null,null,null,null,null,null,null,null,null,null,null,null,null,null,null,null,null,null,null,null,null,null,null,null,null,null,null,null,null,null,null,null,null,null,null,null,null,null,0,0,0,null,0,null,0]
[null,null,null,null,1,"","",null,"","",null,180,null,"",null,null,null,null,null,null,null,null,null,null,null,null,null,null,null,null,null,null,null,null,null,null,null,null,null,null,null,null,null,null,null,null,null,null,null,null,null,null,null,null,null,null,0,0,0,null,0,null,0]
[null,null,null,null,1,"","",null,"","",null,180,null,"",null,null,null,null,null,null,null,null,null,null,null,null,null,null,null,null,null,null,null,null,null,null,null,null,null,null,null,null,null,null,null,null,null,null,null,null,null,null,null,null,null,null,0,0,0,null,0,null,0]
[null,null,null,null,1,"","",null,"","",null,180,null,"",null,null,null,null,null,null,null,null,null,null,null,null,null,null,null,null,null,null,null,null,null,null,null,null,null,null,null,null,null,null,null,null,null,null,null,null,null,null,null,null,null,null,0,0,0,null,0,null,0]
[null,null,null,null,1,"","",null,"","",null,180,null,"",null,null,null,null,null,null,null,null,null,null,null,null,null,null,null,null,null,null,null,null,null,null,null,null,null,null,null,null,null,null,null,null,null,null,null,null,null,null,null,null,null,null,0,0,0,null,0,null,0]
[null,null,null,null,1,"","",null,"","",null,180,null,"",null,null,null,null,null,null,null,null,null,null,null,null,null,null,null,null,null,null,null,null,null,null,null,null,null,null,null,null,null,null,null,null,null,null,null,null,null,null,null,null,null,null,0,0,0,null,0,null,0]
[null,null,null,null,1,"","",null,"","",null,180,null,"",null,null,null,null,null,null,null,null,null,null,null,null,null,null,null,null,null,null,null,null,null,null,null,null,null,null,null,null,null,null,null,null,null,null,null,null,null,null,null,null,null,null,0,0,0,null,0,null,0]
[null,null,null,null,1,"","",null,"","",null,180,null,"",null,null,null,null,null,null,null,null,null,null,null,null,null,null,null,null,null,null,null,null,null,null,null,null,null,null,null,null,null,null,null,null,null,null,null,null,null,null,null,null,null,null,0,0,0,null,0,null,0]
[null,null,null,null,1,"","",null,"","",null,180,null,"",null,null,null,null,null,null,null,null,null,null,null,null,null,null,null,null,null,null,null,null,null,null,null,null,null,null,null,null,null,null,null,null,null,null,null,null,null,null,null,null,null,null,0,0,0,null,0,null,0]
[null,null,null,null,1,"","",null,"","",null,180,null,"",null,null,null,null,null,null,null,null,null,null,null,null,null,null,null,null,null,null,null,null,null,null,null,null,null,null,null,null,null,null,null,null,null,null,null,null,null,null,null,null,null,null,0,0,0,null,0,null,0]
[null,null,null,null,1,"","",null,"","",null,180,null,"",null,null,null,null,null,null,null,null,null,null,null,null,null,null,null,null,null,null,null,null,null,null,null,null,null,null,null,null,null,null,null,null,null,null,null,null,null,null,null,null,null,null,0,0,0,null,0,null,0]
[null,null,null,null,1,"","",null,"","",null,180,null,"",null,null,null,null,null,null,null,null,null,null,null,null,null,null,null,null,null,null,null,null,null,null,null,null,null,null,null,null,null,null,null,null,null,null,null,null,null,null,null,null,null,null,0,0,0,null,0,null,0]
[null,null,null,null,1,"","",null,"","",null,180,null,"",null,null,null,null,null,null,null,null,null,null,null,null,null,null,null,null,null,null,null,null,null,null,null,null,null,null,null,null,null,null,null,null,null,null,null,null,null,null,null,null,null,null,0,0,0,null,0,null,0]
[null,null,null,null,1,"","",null,"","",null,180,null,"",null,null,null,null,null,null,null,null,null,null,null,null,null,null,null,null,null,null,null,null,null,null,null,null,null,null,null,null,null,null,null,null,null,null,null,null,null,null,null,null,null,null,0,0,0,null,0,null,0]
[null,null,null,null,1,"","",null,"","",null,180,null,"",null,null,null,null,null,null,null,null,null,null,null,null,null,null,null,null,null,null,null,null,null,null,null,null,null,null,null,null,null,null,null,null,null,null,null,null,null,null,null,null,null,null,0,0,0,null,0,null,0]
[null,null,null,null,1,"","",null,"","",null,180,null,"",null,null,null,null,null,null,null,null,null,null,null,null,null,null,null,null,null,null,null,null,null,null,null,null,null,null,null,null,null,null,null,null,null,null,null,null,null,null,null,null,null,null,0,0,0,null,0,null,0]
[null,null,null,null,1,"","",null,"","",null,180,null,"",null,null,null,null,null,null,null,null,null,null,null,null,null,null,null,null,null,null,null,null,null,null,null,null,null,null,null,null,null,null,null,null,null,null,null,null,null,null,null,null,null,null,0,0,0,null,0,null,0]
[null,null,null,null,1,"","",null,"","",null,180,null,"",null,null,null,null,null,null,null,null,null,null,null,null,null,null,null,null,null,null,null,null,null,null,null,null,null,null,null,null,null,null,null,null,null,null,null,null,null,null,null,null,null,null,0,0,0,null,0,null,0]
[null,null,null,null,1,"","",null,"","",null,180,null,"",null,null,null,null,null,null,null,null,null,null,null,null,null,null,null,null,null,null,null,null,null,null,null,null,null,null,null,null,null,null,null,null,null,null,null,null,null,null,null,null,null,null,0,0,0,null,0,null,0]
[null,null,null,null,1,"","",null,"","",null,180,null,"",null,null,null,null,null,null,null,null,null,null,null,null,null,null,null,null,null,null,null,null,null,null,null,null,null,null,null,null,null,null,null,null,null,null,null,null,null,null,null,null,null,null,0,0,0,null,0,null,0]
[null,null,null,null,1,"","",null,"","",null,180,null,"",null,null,null,null,null,null,null,null,null,null,null,null,null,null,null,null,null,null,null,null,null,null,null,null,null,null,null,null,null,null,null,null,null,null,null,null,null,null,null,null,null,null,0,0,0,null,0,null,0]
[null,null,null,null,1,"","",null,"","",null,180,null,"",null,null,null,null,null,null,null,null,null,null,null,null,null,null,null,null,null,null,null,null,null,null,null,null,null,null,null,null,null,null,null,null,null,null,null,null,null,null,null,null,null,null,0,0,0,null,0,null,0]
[null,null,null,null,1,"","",null,"","",null,180,null,"",null,null,null,null,null,null,null,null,null,null,null,null,null,null,null,null,null,null,null,null,null,null,null,null,null,null,null,null,null,null,null,null,null,null,null,null,null,null,null,null,null,null,0,0,0,null,0,null,0]
[null,null,null,null,1,"","",null,"","",null,180,null,"",null,null,null,null,null,null,null,null,null,null,null,null,null,null,null,null,null,null,null,null,null,null,null,null,null,null,null,null,null,null,null,null,null,null,null,null,null,null,null,null,null,null,0,0,0,null,0,null,0]
[null,null,null,null,1,"","",null,"","",null,180,null,"",null,null,null,null,null,null,null,null,null,null,null,null,null,null,null,null,null,null,null,null,null,null,null,null,null,null,null,null,null,null,null,null,null,null,null,null,null,null,null,null,null,null,0,0,0,null,0,null,0]
[null,null,null,null,1,"","",null,"","",null,180,null,"",null,null,null,null,null,null,null,null,null,null,null,null,null,null,null,null,null,null,null,null,null,null,null,null,null,null,null,null,null,null,null,null,null,null,null,null,null,null,null,null,null,null,0,0,0,null,0,null,0]
[null,null,null,null,1,"","",null,"","",null,180,null,"",null,null,null,null,null,null,null,null,null,null,null,null,null,null,null,null,null,null,null,null,null,null,null,null,null,null,null,null,null,null,null,null,null,null,null,null,null,null,null,null,null,null,0,0,0,null,0,null,0]
[null,null,null,null,1,"","",null,"","",null,180,null,"",null,null,null,null,null,null,null,null,null,null,null,null,null,null,null,null,null,null,null,null,null,null,null,null,null,null,null,null,null,null,null,null,null,null,null,null,null,null,null,null,null,null,0,0,0,null,0,null,0]
[null,null,null,null,1,"","",null,"","",null,180,null,"",null,null,null,null,null,null,null,null,null,null,null,null,null,null,null,null,null,null,null,null,null,null,null,null,null,null,null,null,null,null,null,null,null,null,null,null,null,null,null,null,null,null,0,0,0,null,0,null,0]
[null,null,null,null,1,"","",null,"","",null,180,null,"",null,null,null,null,null,null,null,null,null,null,null,null,null,null,null,null,null,null,null,null,null,null,null,null,null,null,null,null,null,null,null,null,null,null,null,null,null,null,null,null,null,null,0,0,0,null,0,null,0]
[null,null,null,null,1,"","",null,"","",null,180,null,"",null,null,null,null,null,null,null,null,null,null,null,null,null,null,null,null,null,null,null,null,null,null,null,null,null,null,null,null,null,null,null,null,null,null,null,null,null,null,null,null,null,null,0,0,0,null,0,null,0]
[null,null,null,null,1,"","",null,"","",null,180,null,"",null,null,null,null,null,null,null,null,null,null,null,null,null,null,null,null,null,null,null,null,null,null,null,null,null,null,null,null,null,null,null,null,null,null,null,null,null,null,null,null,null,null,0,0,0,null,0,null,0]
[null,null,null,null,1,"","",null,"","",null,180,null,"",null,null,null,null,null,null,null,null,null,null,null,null,null,null,null,null,null,null,null,null,null,null,null,null,null,null,null,null,null,null,null,null,null,null,null,null,null,null,null,null,null,null,0,0,0,null,0,null,0]
[null,null,null,null,1,{"$f":"IF(SUM(N(J451),-N(K451))=0,\"\",ROUND(SUM(N(J451),-N(K451))/365,0))","v":""},{"$f":"IF(SUM(N(J451),-N(H451))=0,\"\",SUM(N(J451),-N(H451))/365)","v":""},null,"","",null,180,null,{"$f":"IF(OR(N(M451)=0,N(L451)=0),\"\",SUM(M451,L451))","v":""},null,null,null,null,null,null,null,null,null,null,null,null,null,null,null,null,null,null,null,null,null,null,null,null,null,null,null,null,null,null,null,null,null,null,null,null,null,null,null,null,null,null,{"$f":"D451","v":0},0,0,null,0,null,0]
[null,null,null,null,1,"","",null,"","",null,180,null,"",null,null,null,null,null,null,null,null,null,null,null,null,null,null,null,null,null,null,null,null,null,null,null,null,null,null,null,null,null,null,null,null,null,null,null,null,null,null,null,null,null,null,0,0,0,null,0,null,0]
[null,null,null,null,1,"","",null,"","",null,180,null,"",null,null,null,null,null,null,null,null,null,null,null,null,null,null,null,null,null,null,null,null,null,null,null,null,null,null,null,null,null,null,null,null,null,null,null,null,null,null,null,null,null,null,0,0,0,null,0,null,0]
[null,null,null,null,1,"","",null,"","",null,180,null,"",null,null,null,null,null,null,null,null,null,null,null,null,null,null,null,null,null,null,null,null,null,null,null,null,null,null,null,null,null,null,null,null,null,null,null,null,null,null,null,null,null,null,0,0,0,null,0,null,0]
[null,null,null,null,1,"","",null,"","",null,180,null,"",null,null,null,null,null,null,null,null,null,null,null,null,null,null,null,null,null,null,null,null,null,null,null,null,null,null,null,null,null,null,null,null,null,null,null,null,null,null,null,null,null,null,0,0,0,null,0,null,0]
[null,null,null,null,1,"","",null,"","",null,180,null,"",null,null,null,null,null,null,null,null,null,null,null,null,null,null,null,null,null,null,null,null,null,null,null,null,null,null,null,null,null,null,null,null,null,null,null,null,null,null,null,null,null,null,0,0,0,null,0,null,0]
[null,null,null,null,1,"","",null,"","",null,180,null,"",null,null,null,null,null,null,null,null,null,null,null,null,null,null,null,null,null,null,null,null,null,null,null,null,null,null,null,null,null,null,null,null,null,null,null,null,null,null,null,null,null,null,0,0,0,null,0,null,0]
[null,null,null,null,1,"","",null,"","",null,180,null,"",null,null,null,null,null,null,null,null,null,null,null,null,null,null,null,null,null,null,null,null,null,null,null,null,null,null,null,null,null,null,null,null,null,null,null,null,null,null,null,null,null,null,0,0,0,null,0,null,0]
[null,null,null,null,1,"","",null,"","",null,180,null,"",null,null,null,null,null,null,null,null,null,null,null,null,null,null,null,null,null,null,null,null,null,null,null,null,null,null,null,null,null,null,null,null,null,null,null,null,null,null,null,null,null,null,0,0,0,null,0,null,0]
[null,null,null,null,1,"","",null,"","",null,180,null,"",null,null,null,null,null,null,null,null,null,null,null,null,null,null,null,null,null,null,null,null,null,null,null,null,null,null,null,null,null,null,null,null,null,null,null,null,null,null,null,null,null,null,0,0,0,null,0,null,0]
[null,null,null,null,1,"","",null,"","",null,180,null,"",null,null,null,null,null,null,null,null,null,null,null,null,null,null,null,null,null,null,null,null,null,null,null,null,null,null,null,null,null,null,null,null,null,null,null,null,null,null,null,null,null,null,0,0,0,null,0,null,0]
[null,null,null,null,1,"","",null,"","",null,180,null,"",null,null,null,null,null,null,null,null,null,null,null,null,null,null,null,null,null,null,null,null,null,null,null,null,null,null,null,null,null,null,null,null,null,null,null,null,null,null,null,null,null,null,0,0,0,null,0,null,0]
[null,null,null,null,1,"","",null,"","",null,180,null,"",null,null,null,null,null,null,null,null,null,null,null,null,null,null,null,null,null,null,null,null,null,null,null,null,null,null,null,null,null,null,null,null,null,null,null,null,null,null,null,null,null,null,0,0,0,null,0,null,0]
[null,null,null,null,1,"","",null,"","",null,180,null,"",null,null,null,null,null,null,null,null,null,null,null,null,null,null,null,null,null,null,null,null,null,null,null,null,null,null,null,null,null,null,null,null,null,null,null,null,null,null,null,null,null,null,0,0,0,null,0,null,0]
[null,null,null,null,1,"","",null,"","",null,180,null,"",null,null,null,null,null,null,null,null,null,null,null,null,null,null,null,null,null,null,null,null,null,null,null,null,null,null,null,null,null,null,null,null,null,null,null,null,null,null,null,null,null,null,0,0,0,null,0,null,0]
[null,null,null,null,1,"","",null,"","",null,180,null,"",null,null,null,null,null,null,null,null,null,null,null,null,null,null,null,null,null,null,null,null,null,null,null,null,null,null,null,null,null,null,null,null,null,null,null,null,null,null,null,null,null,null,0,0,0,null,0,null,0]
[null,null,null,null,1,"","",null,"","",null,180,null,"",null,null,null,null,null,null,null,null,null,null,null,null,null,null,null,null,null,null,null,null,null,null,null,null,null,null,null,null,null,null,null,null,null,null,null,null,null,null,null,null,null,null,0,0,0,null,0,null,0]
[null,null,null,null,1,"","",null,"","",null,180,null,"",null,null,null,null,null,null,null,null,null,null,null,null,null,null,null,null,null,null,null,null,null,null,null,null,null,null,null,null,null,null,null,null,null,null,null,null,null,null,null,null,null,null,0,0,0,null,0,null,0]
[null,null,null,null,1,"","",null,"","",null,180,null,"",null,null,null,null,null,null,null,null,null,null,null,null,null,null,null,null,null,null,null,null,null,null,null,null,null,null,null,null,null,null,null,null,null,null,null,null,null,null,null,null,null,null,0,0,0,null,0,null,0]
[null,null,null,null,1,"","",null,"","",null,180,null,"",null,null,null,null,null,null,null,null,null,null,null,null,null,null,null,null,null,null,null,null,null,null,null,null,null,null,null,null,null,null,null,null,null,null,null,null,null,null,null,null,null,null,0,0,0,null,0,null,0]
[null,null,null,null,1,"","",null,"","",null,180,null,"",null,null,null,null,null,null,null,null,null,null,null,null,null,null,null,null,null,null,null,null,null,null,null,null,null,null,null,null,null,null,null,null,null,null,null,null,null,null,null,null,null,null,0,0,0,null,0,null,0]
[null,null,null,null,1,"","",null,"","",null,180,null,"",null,null,null,null,null,null,null,null,null,null,null,null,null,null,null,null,null,null,null,null,null,null,null,null,null,null,null,null,null,null,null,null,null,null,null,null,null,null,null,null,null,null,0,0,0,null,0,null,0]
[null,null,null,null,1,"","",null,"","",null,180,null,"",null,null,null,null,null,null,null,null,null,null,null,null,null,null,null,null,null,null,null,null,null,null,null,null,null,null,null,null,null,null,null,null,null,null,null,null,null,null,null,null,null,null,0,0,0,null,0,null,0]
[null,null,null,null,1,"","",null,"","",null,180,null,"",null,null,null,null,null,null,null,null,null,null,null,null,null,null,null,null,null,null,null,null,null,null,null,null,null,null,null,null,null,null,null,null,null,null,null,null,null,null,null,null,null,null,0,0,0,null,0,null,0]
[null,null,null,null,1,"","",null,"","",null,180,null,"",null,null,null,null,null,null,null,null,null,null,null,null,null,null,null,null,null,null,null,null,null,null,null,null,null,null,null,null,null,null,null,null,null,null,null,null,null,null,null,null,null,null,0,0,0,null,0,null,0]
[null,null,null,null,1,"","",null,"","",null,180,null,"",null,null,null,null,null,null,null,null,null,null,null,null,null,null,null,null,null,null,null,null,null,null,null,null,null,null,null,null,null,null,null,null,null,null,null,null,null,null,null,null,null,null,0,0,0,null,0,null,0]
[null,null,null,null,1,"","",null,{"$f":"IF(OR(N(H477)=0,N(E477)=0),\"\",SUM(N(H477),N(E477*365)))","v":""},{"$f":"IF(B477=\"\",\"\",TODAY())","v":""},null,180,null,"",null,null,null,null,null,null,null,null,null,null,null,null,null,null,null,null,null,null,null,null,null,null,null,null,null,null,null,null,null,null,null,null,null,null,null,null,null,null,null,null,null,null,0,0,0,null,0,null,0]
[null,null,null,null,1,"","",null,"","",null,180,null,"",null,null,null,null,null,null,null,null,null,null,null,null,null,null,null,null,null,null,null,null,null,null,null,null,null,null,null,null,null,null,null,null,null,null,null,null,null,null,null,null,null,null,0,{"$f":"B478","v":0},{"$f":"A478","v":0},null,{"$f":"H478","v":0},null,{"$f":"K478","v":0}]
[null,null,null,null,1,"","",null,"","",null,180,null,"",null,null,null,null,null,null,null,null,null,null,null,null,null,null,null,null,null,null,null,null,null,null,null,null,null,null,null,null,null,null,null,null,null,null,null,null,null,null,null,null,null,null,0,0,0,null,0,null,0]
[null,null,null,null,1,"","",null,"","",null,180,null,"",null,null,null,null,null,null,null,null,null,null,null,null,null,null,null,null,null,null,null,null,null,null,null,null,null,null,null,null,null,null,null,null,null,null,null,null,null,null,null,null,null,null,0,0,0,null,0,null,0]
[null,null,null,null,1,"","",null,"","",null,180,null,"",null,null,null,null,null,null,null,null,null,null,null,null,null,null,null,null,null,null,null,null,null,null,null,null,null,null,null,null,null,null,null,null,null,null,null,null,null,null,null,null,null,null,0,0,0,null,0,null,0]
[null,null,null,null,1,"","",null,"","",null,180,null,"",null,null,null,null,null,null,null,null,null,null,null,null,null,null,null,null,null,null,null,null,null,null,null,null,null,null,null,null,null,null,null,null,null,null,null,null,null,null,null,null,null,null,0,0,0,null,0,null,0]
[null,null,null,null,1,"","",null,"","",null,180,null,"",null,null,null,null,null,null,null,null,null,null,null,null,null,null,null,null,null,null,null,null,null,null,null,null,null,null,null,null,null,null,null,null,null,null,null,null,null,null,null,null,null,null,0,0,0,null,0,null,0]
[null,null,null,null,1,"","",null,"","",null,180,null,"",null,null,null,null,null,null,null,null,null,null,null,null,null,null,null,null,null,null,null,null,null,null,null,null,null,null,null,null,null,null,null,null,null,null,null,null,null,null,null,null,null,null,0,0,0,null,0,null,0]
[null,null,null,null,1,"","",null,"","",null,180,null,"",null,null,null,null,null,null,null,null,null,null,null,null,null,null,null,null,null,null,null,null,null,null,null,null,null,null,null,null,null,null,null,null,null,null,null,null,null,null,null,null,null,null,0,0,0,null,0,null,0]
[null,null,null,null,1,"","",null,"","",null,180,null,"",null,null,null,null,null,null,null,null,null,null,null,null,null,null,null,null,null,null,null,null,null,null,null,null,null,null,null,null,null,null,null,null,null,null,null,null,null,null,null,null,null,null,0,0,0,null,0,null,0]
[null,null,null,null,1,"","",null,"","",null,180,null,"",null,null,null,null,null,null,null,null,null,null,null,null,null,null,null,null,null,null,null,null,null,null,null,null,null,null,null,null,null,null,null,null,null,null,null,null,null,null,null,null,null,null,0,0,0,null,0,null,0]
[null,null,null,null,1,"","",null,"","",null,180,null,"",null,null,null,null,null,null,null,null,null,null,null,null,null,null,null,null,null,null,null,null,null,null,null,null,null,null,null,null,null,null,null,null,null,null,null,null,null,null,null,null,null,null,0,0,0,null,0,null,0]
[null,null,null,null,1,"","",null,"","",null,180,null,"",null,null,null,null,null,null,null,null,null,null,null,null,null,null,null,null,null,null,null,null,null,null,null,null,null,null,null,null,null,null,null,null,null,null,null,null,null,null,null,null,null,null,0,0,0,null,0,null,0]
[null,null,null,null,1,"","",null,"","",null,180,null,"",null,null,null,null,null,null,null,null,null,null,null,null,null,null,null,null,null,null,null,null,null,null,null,null,null,null,null,null,null,null,null,null,null,null,null,null,null,null,null,null,null,null,0,0,0,null,0,null,0]
[null,null,null,null,1,"","",null,"","",null,180,null,"",null,null,null,null,null,null,null,null,null,null,null,null,null,null,null,null,null,null,null,null,null,null,null,null,null,null,null,null,null,null,null,null,null,null,null,null,null,null,null,null,null,null,0,0,0,null,0,null,0]
[null,null,null,null,1,"","",null,"","",null,180,null,"",null,null,null,null,null,null,null,null,null,null,null,null,null,null,null,null,null,null,null,null,null,null,null,null,null,null,null,null,null,null,null,null,null,null,null,null,null,null,null,null,null,null,0,0,0,null,0,null,0]
[null,null,null,null,1,"","",null,"","",null,180,null,"",null,null,null,null,null,null,null,null,null,null,null,null,null,null,null,null,null,null,null,null,null,null,null,null,null,null,null,null,null,null,null,null,null,null,null,null,null,null,null,null,null,null,0,0,0,null,0,null,0]
[null,null,null,null,1,"","",null,"","",null,180,null,"",null,null,null,null,null,null,null,null,null,null,null,null,null,null,null,null,null,null,null,null,null,null,null,null,null,null,null,null,null,null,null,null,null,null,null,null,null,null,null,null,null,null,0,0,0,null,0,null,0]
[null,null,null,null,1,"","",null,"","",null,180,null,"",null,null,null,null,null,null,null,null,null,null,null,null,null,null,null,null,null,null,null,null,null,null,null,null,null,null,null,null,null,null,null,null,null,null,null,null,null,null,null,null,null,null,0,0,0,null,0,null,0]
[null,null,null,null,1,"","",null,"","",null,180,null,"",null,null,null,null,null,null,null,null,null,null,null,null,null,null,null,null,null,null,null,null,null,null,null,null,null,null,null,null,null,null,null,null,null,null,null,null,null,null,null,null,null,null,0,0,0,null,0,null,0]
[null,null,null,null,1,"","",null,"","",null,180,null,"",null,null,null,null,null,null,null,null,null,null,null,null,null,null,null,null,null,null,null,null,null,null,null,null,null,null,null,null,null,null,null,null,null,null,null,null,null,null,null,null,null,null,0,0,0,null,0,null,0]
[null,null,null,null,1,"","",null,"","",null,180,null,"",null,null,null,null,null,null,null,null,null,null,null,null,null,null,null,null,null,null,null,null,null,null,null,null,null,null,null,null,null,null,null,null,null,null,null,null,null,null,null,null,null,null,0,0,0,null,0,null,0]
[null,null,null,null,1,"","",null,"","",null,180,null,"",null,null,null,null,null,null,null,null,null,null,null,null,null,null,null,null,null,null,null,null,null,null,null,null,null,null,null,null,null,null,null,null,null,null,null,null,null,null,null,null,null,null,0,0,0,null,0,null,0]
[null,null,null,null,1,"","",null,"","",null,180,null,"",null,null,null,null,null,null,null,null,null,null,null,null,null,null,null,null,null,null,null,null,null,null,null,null,null,null,null,null,null,null,null,null,null,null,null,null,null,null,null,null,null,null,0,0,0,null,0,null,0]
[null,null,null,null,1,"","",null,"","",null,180,null,"",null,null,null,null,null,null,null,null,null,null,null,null,null,null,null,null,null,null,null,null,null,null,null,null,null,null,null,null,null,null,null,null,null,null,null,null,null,null,null,null,null,null,0,0,0,null,0,null,0]
[null,null,null,null,1,"","",null,"","",null,180,null,"",null,null,null,null,null,null,null,null,null,null,null,null,null,null,null,null,null,null,null,null,null,null,null,null,null,null,null,null,null,null,null,null,null,null,null,null,null,null,null,null,null,null,0,0,0,null,0,null,0]
[null,null,null,null,1,"","",null,"","",null,180,null,"",null,null,null,null,null,null,null,null,null,null,null,null,null,null,null,null,null,null,null,null,null,null,null,null,null,null,null,null,null,null,null,null,null,null,null,null,null,null,null,null,null,null,0,0,0,null,0,null,0]
[null,null,null,null,1,"","",null,"","",null,180,null,"",null,null,null,null,null,null,null,null,null,null,null,null,null,null,null,null,null,null,null,null,null,null,null,null,null,null,null,null,null,null,null,null,null,null,null,null,null,null,null,null,null,null,0,0,0,null,0,null,0]
[null,null,null,null,1,"","",null,"","",null,180,null,"",null,null,null,null,null,null,null,null,null,null,null,null,null,null,null,null,null,null,null,null,null,null,null,null,null,null,null,null,null,null,null,null,null,null,null,null,null,null,null,null,null,null,0,0,0,null,0,null,0]
[null,null,null,null,1,"","",null,"","",null,180,null,"",null,null,null,null,null,null,null,null,null,null,null,null,null,null,null,null,null,null,null,null,null,null,null,null,null,null,null,null,null,null,null,null,null,null,null,null,null,null,null,null,null,null,0,0,0,null,0,null,0]
[null,null,null,null,1,"","",null,"","",null,180,null,"",null,null,null,null,null,null,null,null,null,null,null,null,null,null,null,null,null,null,null,null,null,null,null,null,null,null,null,null,null,null,null,null,null,null,null,null,null,null,null,null,null,null,0,0,0,null,0,null,0]
[null,null,null,null,1,"","",null,"","",null,180,null,"",null,null,null,null,null,null,null,null,null,null,null,null,null,null,null,null,null,null,null,null,null,null,null,null,null,null,null,null,null,null,null,null,null,null,null,null,null,null,null,null,null,null,0,0,0,null,0,null,0]
[null,null,null,null,1,"","",null,"","",null,180,null,"",null,null,null,null,null,null,null,null,null,null,null,null,null,null,null,null,null,null,null,null,null,null,null,null,null,null,null,null,null,null,null,null,null,null,null,null,null,null,null,null,null,null,0,0,0,null,0,null,0]
[null,null,null,null,1,"","",null,"","",null,180,null,"",null,null,null,null,null,null,null,null,null,null,null,null,null,null,null,null,null,null,null,null,null,null,null,null,null,null,null,null,null,null,null,null,null,null,null,null,null,null,null,null,null,null,0,0,0,null,0,null,0]
[null,null,null,null,1,"","",null,"","",null,180,null,"",null,null,null,null,null,null,null,null,null,null,null,null,null,null,null,null,null,null,null,null,null,null,null,null,null,null,null,null,null,null,null,null,null,null,null,null,null,null,null,null,null,null,0,0,0,null,0,null,0]
[null,null,null,null,1,"","",null,"","",null,180,null,"",null,null,null,null,null,null,null,null,null,null,null,null,null,null,null,null,null,null,null,null,null,null,null,null,null,null,null,null,null,null,null,null,null,null,null,null,null,null,null,null,null,null,0,0,0,null,0,null,0]
[null,null,null,null,1,"","",null,"","",null,180,null,"",null,null,null,null,null,null,null,null,null,null,null,null,null,null,null,null,null,null,null,null,null,null,null,null,null,null,null,null,null,null,null,null,null,null,null,null,null,null,null,null,null,null,0,0,0,null,0,null,0]
[null,null,null,null,1,"","",null,"","",null,180,null,"",null,null,null,null,null,null,null,null,null,null,null,null,null,null,null,null,null,null,null,null,null,null,null,null,null,null,null,null,null,null,null,null,null,null,null,null,null,null,null,null,null,null,0,0,0,null,0,null,0]
[null,null,null,null,1,{"$f":"IF(SUM(N(J515),-N(K515))=0,\"\",ROUND(SUM(N(J515),-N(K515))/365,0))","v":""},{"$f":"IF(SUM(N(J515),-N(H515))=0,\"\",SUM(N(J515),-N(H515))/365)","v":""},null,"","",null,180,null,{"$f":"IF(OR(N(M515)=0,N(L515)=0),\"\",SUM(M515,L515))","v":""},null,null,null,null,null,null,null,null,null,null,null,null,null,null,null,null,null,null,null,null,null,null,null,null,null,null,null,null,null,null,null,null,null,null,null,null,null,null,null,null,null,null,{"$f":"D515","v":0},0,0,null,0,null,0]
[null,null,null,null,1,"","",null,"","",null,180,null,"",null,null,null,null,null,null,null,null,null,null,null,null,null,null,null,null,null,null,null,null,null,null,null,null,null,null,null,null,null,null,null,null,null,null,null,null,null,null,null,null,null,null,0,0,0,null,0,null,0]
[null,null,null,null,1,"","",null,"","",null,180,null,"",null,null,null,null,null,null,null,null,null,null,null,null,null,null,null,null,null,null,null,null,null,null,null,null,null,null,null,null,null,null,null,null,null,null,null,null,null,null,null,null,null,null,0,0,0,null,0,null,0]
[null,null,null,null,1,"","",null,"","",null,180,null,"",null,null,null,null,null,null,null,null,null,null,null,null,null,null,null,null,null,null,null,null,null,null,null,null,null,null,null,null,null,null,null,null,null,null,null,null,null,null,null,null,null,null,0,0,0,null,0,null,0]
[null,null,null,null,1,"","",null,"","",null,180,null,"",null,null,null,null,null,null,null,null,null,null,null,null,null,null,null,null,null,null,null,null,null,null,null,null,null,null,null,null,null,null,null,null,null,null,null,null,null,null,null,null,null,null,0,0,0,null,0,null,0]
[null,null,null,null,1,"","",null,"","",null,180,null,"",null,null,null,null,null,null,null,null,null,null,null,null,null,null,null,null,null,null,null,null,null,null,null,null,null,null,null,null,null,null,null,null,null,null,null,null,null,null,null,null,null,null,0,0,0,null,0,null,0]
[null,null,null,null,1,"","",null,"","",null,180,null,"",null,null,null,null,null,null,null,null,null,null,null,null,null,null,null,null,null,null,null,null,null,null,null,null,null,null,null,null,null,null,null,null,null,null,null,null,null,null,null,null,null,null,0,0,0,null,0,null,0]
[null,null,null,null,1,"","",null,"","",null,180,null,"",null,null,null,null,null,null,null,null,null,null,null,null,null,null,null,null,null,null,null,null,null,null,null,null,null,null,null,null,null,null,null,null,null,null,null,null,null,null,null,null,null,null,0,0,0,null,0,null,0]
[null,null,null,null,1,"","",null,"","",null,180,null,"",null,null,null,null,null,null,null,null,null,null,null,null,null,null,null,null,null,null,null,null,null,null,null,null,null,null,null,null,null,null,null,null,null,null,null,null,null,null,null,null,null,null,0,0,0,null,0,null,0]
[null,null,null,null,1,"","",null,"","",null,180,null,"",null,null,null,null,null,null,null,null,null,null,null,null,null,null,null,null,null,null,null,null,null,null,null,null,null,null,null,null,null,null,null,null,null,null,null,null,null,null,null,null,null,null,0,0,0,null,0,null,0]
[null,null,null,null,1,"","",null,"","",null,180,null,"",null,null,null,null,null,null,null,null,null,null,null,null,null,null,null,null,null,null,null,null,null,null,null,null,null,null,null,null,null,null,null,null,null,null,null,null,null,null,null,null,null,null,0,0,0,null,0,null,0]
[null,null,null,null,1,"","",null,"","",null,180,null,"",null,null,null,null,null,null,null,null,null,null,null,null,null,null,null,null,null,null,null,null,null,null,null,null,null,null,null,null,null,null,null,null,null,null,null,null,null,null,null,null,null,null,0,0,0,null,0,null,0]
[null,null,null,null,1,"","",null,"","",null,180,null,"",null,null,null,null,null,null,null,null,null,null,null,null,null,null,null,null,null,null,null,null,null,null,null,null,null,null,null,null,null,null,null,null,null,null,null,null,null,null,null,null,null,null,0,0,0,null,0,null,0]
[null,null,null,null,1,"","",null,"","",null,180,null,"",null,null,null,null,null,null,null,null,null,null,null,null,null,null,null,null,null,null,null,null,null,null,null,null,null,null,null,null,null,null,null,null,null,null,null,null,null,null,null,null,null,null,0,0,0,null,0,null,0]
[null,null,null,null,1,"","",null,"","",null,180,null,"",null,null,null,null,null,null,null,null,null,null,null,null,null,null,null,null,null,null,null,null,null,null,null,null,null,null,null,null,null,null,null,null,null,null,null,null,null,null,null,null,null,null,0,0,0,null,0,null,0]
[null,null,null,null,1,"","",null,"","",null,180,null,"",null,null,null,null,null,null,null,null,null,null,null,null,null,null,null,null,null,null,null,null,null,null,null,null,null,null,null,null,null,null,null,null,null,null,null,null,null,null,null,null,null,null,0,0,0,null,0,null,0]
[null,null,null,null,1,"","",null,"","",null,180,null,"",null,null,null,null,null,null,null,null,null,null,null,null,null,null,null,null,null,null,null,null,null,null,null,null,null,null,null,null,null,null,null,null,null,null,null,null,null,null,null,null,null,null,0,0,0,null,0,null,0]
[null,null,null,null,1,"","",null,"","",null,180,null,"",null,null,null,null,null,null,null,null,null,null,null,null,null,null,null,null,null,null,null,null,null,null,null,null,null,null,null,null,null,null,null,null,null,null,null,null,null,null,null,null,null,null,0,0,0,null,0,null,0]
[null,null,null,null,1,"","",null,"","",null,180,null,"",null,null,null,null,null,null,null,null,null,null,null,null,null,null,null,null,null,null,null,null,null,null,null,null,null,null,null,null,null,null,null,null,null,null,null,null,null,null,null,null,null,null,0,0,0,null,0,null,0]
[null,null,null,null,1,"","",null,"","",null,180,null,"",null,null,null,null,null,null,null,null,null,null,null,null,null,null,null,null,null,null,null,null,null,null,null,null,null,null,null,null,null,null,null,null,null,null,null,null,null,null,null,null,null,null,0,0,0,null,0,null,0]
[null,null,null,null,1,"","",null,"","",null,180,null,"",null,null,null,null,null,null,null,null,null,null,null,null,null,null,null,null,null,null,null,null,null,null,null,null,null,null,null,null,null,null,null,null,null,null,null,null,null,null,null,null,null,null,0,0,0,null,0,null,0]
[null,null,null,null,1,"","",null,"","",null,180,null,"",null,null,null,null,null,null,null,null,null,null,null,null,null,null,null,null,null,null,null,null,null,null,null,null,null,null,null,null,null,null,null,null,null,null,null,null,null,null,null,null,null,null,0,0,0,null,0,null,0]
[null,null,null,null,1,"","",null,"","",null,180,null,"",null,null,null,null,null,null,null,null,null,null,null,null,null,null,null,null,null,null,null,null,null,null,null,null,null,null,null,null,null,null,null,null,null,null,null,null,null,null,null,null,null,null,0,0,0,null,0,null,0]
[null,null,null,null,1,"","",null,"","",null,180,null,"",null,null,null,null,null,null,null,null,null,null,null,null,null,null,null,null,null,null,null,null,null,null,null,null,null,null,null,null,null,null,null,null,null,null,null,null,null,null,null,null,null,null,0,0,0,null,0,null,0]
[null,null,null,null,1,"","",null,"","",null,180,null,"",null,null,null,null,null,null,null,null,null,null,null,null,null,null,null,null,null,null,null,null,null,null,null,null,null,null,null,null,null,null,null,null,null,null,null,null,null,null,null,null,null,null,0,0,0,null,0,null,0]
[null,null,null,null,1,"","",null,"","",null,180,null,"",null,null,null,null,null,null,null,null,null,null,null,null,null,null,null,null,null,null,null,null,null,null,null,null,null,null,null,null,null,null,null,null,null,null,null,null,null,null,null,null,null,null,0,0,0,null,0,null,0]
[null,null,null,null,1,"","",null,{"$f":"IF(OR(N(H541)=0,N(E541)=0),\"\",SUM(N(H541),N(E541*365)))","v":""},{"$f":"IF(B541=\"\",\"\",TODAY())","v":""},null,180,null,"",null,null,null,null,null,null,null,null,null,null,null,null,null,null,null,null,null,null,null,null,null,null,null,null,null,null,null,null,null,null,null,null,null,null,null,null,null,null,null,null,null,null,0,0,0,null,0,null,0]
[null,null,null,null,1,"","",null,"","",null,180,null,"",null,null,null,null,null,null,null,null,null,null,null,null,null,null,null,null,null,null,null,null,null,null,null,null,null,null,null,null,null,null,null,null,null,null,null,null,null,null,null,null,null,null,0,{"$f":"B542","v":0},{"$f":"A542","v":0},null,{"$f":"H542","v":0},null,{"$f":"K542","v":0}]
[null,null,null,null,1,"","",null,"","",null,180,null,"",null,null,null,null,null,null,null,null,null,null,null,null,null,null,null,null,null,null,null,null,null,null,null,null,null,null,null,null,null,null,null,null,null,null,null,null,null,null,null,null,null,null,0,0,0,null,0,null,0]
[null,null,null,null,1,"","",null,"","",null,180,null,"",null,null,null,null,null,null,null,null,null,null,null,null,null,null,null,null,null,null,null,null,null,null,null,null,null,null,null,null,null,null,null,null,null,null,null,null,null,null,null,null,null,null,0,0,0,null,0,null,0]
[null,null,null,null,1,"","",null,"","",null,180,null,"",null,null,null,null,null,null,null,null,null,null,null,null,null,null,null,null,null,null,null,null,null,null,null,null,null,null,null,null,null,null,null,null,null,null,null,null,null,null,null,null,null,null,0,0,0,null,0,null,0]
[null,null,null,null,1,"","",null,"","",null,180,null,"",null,null,null,null,null,null,null,null,null,null,null,null,null,null,null,null,null,null,null,null,null,null,null,null,null,null,null,null,null,null,null,null,null,null,null,null,null,null,null,null,null,null,0,0,0,null,0,null,0]
[null,null,null,null,1,"","",null,"","",null,180,null,"",null,null,null,null,null,null,null,null,null,null,null,null,null,null,null,null,null,null,null,null,null,null,null,null,null,null,null,null,null,null,null,null,null,null,null,null,null,null,null,null,null,null,0,0,0,null,0,null,0]
[null,null,null,null,1,"","",null,"","",null,180,null,"",null,null,null,null,null,null,null,null,null,null,null,null,null,null,null,null,null,null,null,null,null,null,null,null,null,null,null,null,null,null,null,null,null,null,null,null,null,null,null,null,null,null,0,0,0,null,0,null,0]
[null,null,null,null,1,"","",null,"","",null,180,null,"",null,null,null,null,null,null,null,null,null,null,null,null,null,null,null,null,null,null,null,null,null,null,null,null,null,null,null,null,null,null,null,null,null,null,null,null,null,null,null,null,null,null,0,0,0,null,0,null,0]
[null,null,null,null,1,"","",null,"","",null,180,null,"",null,null,null,null,null,null,null,null,null,null,null,null,null,null,null,null,null,null,null,null,null,null,null,null,null,null,null,null,null,null,null,null,null,null,null,null,null,null,null,null,null,null,0,0,0,null,0,null,0]
[null,null,null,null,1,"","",null,"","",null,180,null,"",null,null,null,null,null,null,null,null,null,null,null,null,null,null,null,null,null,null,null,null,null,null,null,null,null,null,null,null,null,null,null,null,null,null,null,null,null,null,null,null,null,null,0,0,0,null,0,null,0]
[null,null,null,null,1,"","",null,"","",null,180,null,"",null,null,null,null,null,null,null,null,null,null,null,null,null,null,null,null,null,null,null,null,null,null,null,null,null,null,null,null,null,null,null,null,null,null,null,null,null,null,null,null,null,null,0,0,0,null,0,null,0]
[null,null,null,null,1,"","",null,"","",null,180,null,"",null,null,null,null,null,null,null,null,null,null,null,null,null,null,null,null,null,null,null,null,null,null,null,null,null,null,null,null,null,null,null,null,null,null,null,null,null,null,null,null,null,null,0,0,0,null,0,null,0]
[null,null,null,null,1,"","",null,"","",null,180,null,"",null,null,null,null,null,null,null,null,null,null,null,null,null,null,null,null,null,null,null,null,null,null,null,null,null,null,null,null,null,null,null,null,null,null,null,null,null,null,null,null,null,null,0,0,0,null,0,null,0]
[null,null,null,null,1,"","",null,"","",null,180,null,"",null,null,null,null,null,null,null,null,null,null,null,null,null,null,null,null,null,null,null,null,null,null,null,null,null,null,null,null,null,null,null,null,null,null,null,null,null,null,null,null,null,null,0,0,0,null,0,null,0]
[null,null,null,null,1,"","",null,"","",null,180,null,"",null,null,null,null,null,null,null,null,null,null,null,null,null,null,null,null,null,null,null,null,null,null,null,null,null,null,null,null,null,null,null,null,null,null,null,null,null,null,null,null,null,null,0,0,0,null,0,null,0]
[null,null,null,null,1,"","",null,"","",null,180,null,"",null,null,null,null,null,null,null,null,null,null,null,null,null,null,null,null,null,null,null,null,null,null,null,null,null,null,null,null,null,null,null,null,null,null,null,null,null,null,null,null,null,null,0,0,0,null,0,null,0]
[null,null,null,null,1,"","",null,"","",null,180,null,"",null,null,null,null,null,null,null,null,null,null,null,null,null,null,null,null,null,null,null,null,null,null,null,null,null,null,null,null,null,null,null,null,null,null,null,null,null,null,null,null,null,null,0,0,0,null,0,null,0]
[null,null,null,null,1,"","",null,"","",null,180,null,"",null,null,null,null,null,null,null,null,null,null,null,null,null,null,null,null,null,null,null,null,null,null,null,null,null,null,null,null,null,null,null,null,null,null,null,null,null,null,null,null,null,null,0,0,0,null,0,null,0]
[null,null,null,null,1,"","",null,"","",null,180,null,"",null,null,null,null,null,null,null,null,null,null,null,null,null,null,null,null,null,null,null,null,null,null,null,null,null,null,null,null,null,null,null,null,null,null,null,null,null,null,null,null,null,null,0,0,0,null,0,null,0]
[null,null,null,null,1,"","",null,"","",null,180,null,"",null,null,null,null,null,null,null,null,null,null,null,null,null,null,null,null,null,null,null,null,null,null,null,null,null,null,null,null,null,null,null,null,null,null,null,null,null,null,null,null,null,null,0,0,0,null,0,null,0]
[null,null,null,null,1,"","",null,"","",null,180,null,"",null,null,null,null,null,null,null,null,null,null,null,null,null,null,null,null,null,null,null,null,null,null,null,null,null,null,null,null,null,null,null,null,null,null,null,null,null,null,null,null,null,null,0,0,0,null,0,null,0]
[null,null,null,null,1,"","",null,"","",null,180,null,"",null,null,null,null,null,null,null,null,null,null,null,null,null,null,null,null,null,null,null,null,null,null,null,null,null,null,null,null,null,null,null,null,null,null,null,null,null,null,null,null,null,null,0,0,0,null,0,null,0]
[null,null,null,null,1,"","",null,"","",null,180,null,"",null,null,null,null,null,null,null,null,null,null,null,null,null,null,null,null,null,null,null,null,null,null,null,null,null,null,null,null,null,null,null,null,null,null,null,null,null,null,null,null,null,null,0,0,0,null,0,null,0]
[null,null,null,null,1,"","",null,"","",null,180,null,"",null,null,null,null,null,null,null,null,null,null,null,null,null,null,null,null,null,null,null,null,null,null,null,null,null,null,null,null,null,null,null,null,null,null,null,null,null,null,null,null,null,null,0,0,0,null,0,null,0]
[null,null,null,null,1,"","",null,"","",null,180,null,"",null,null,null,null,null,null,null,null,null,null,null,null,null,null,null,null,null,null,null,null,null,null,null,null,null,null,null,null,null,null,null,null,null,null,null,null,null,null,null,null,null,null,0,0,0,null,0,null,0]
[null,null,null,null,1,"","",null,"","",null,180,null,"",null,null,null,null,null,null,null,null,null,null,null,null,null,null,null,null,null,null,null,null,null,null,null,null,null,null,null,null,null,null,null,null,null,null,null,null,null,null,null,null,null,null,0,0,0,null,0,null,0]
[null,null,null,null,1,"","",null,"","",null,180,null,"",null,null,null,null,null,null,null,null,null,null,null,null,null,null,null,null,null,null,null,null,null,null,null,null,null,null,null,null,null,null,null,null,null,null,null,null,null,null,null,null,null,null,0,0,0,null,0,null,0]
[null,null,null,null,1,"","",null,"","",null,180,null,"",null,null,null,null,null,null,null,null,null,null,null,null,null,null,null,null,null,null,null,null,null,null,null,null,null,null,null,null,null,null,null,null,null,null,null,null,null,null,null,null,null,null,0,0,0,null,0,null,0]
[null,null,null,null,1,"","",null,"","",null,180,null,"",null,null,null,null,null,null,null,null,null,null,null,null,null,null,null,null,null,null,null,null,null,null,null,null,null,null,null,null,null,null,null,null,null,null,null,null,null,null,null,null,null,null,0,0,0,null,0,null,0]
[null,null,null,null,1,"","",null,"","",null,180,null,"",null,null,null,null,null,null,null,null,null,null,null,null,null,null,null,null,null,null,null,null,null,null,null,null,null,null,null,null,null,null,null,null,null,null,null,null,null,null,null,null,null,null,0,0,0,null,0,null,0]
[null,null,null,null,1,"","",null,"","",null,180,null,"",null,null,null,null,null,null,null,null,null,null,null,null,null,null,null,null,null,null,null,null,null,null,null,null,null,null,null,null,null,null,null,null,null,null,null,null,null,null,null,null,null,null,0,0,0,null,0,null,0]
[null,null,null,null,1,"","",null,"","",null,180,null,"",null,null,null,null,null,null,null,null,null,null,null,null,null,null,null,null,null,null,null,null,null,null,null,null,null,null,null,null,null,null,null,null,null,null,null,null,null,null,null,null,null,null,0,0,0,null,0,null,0]
[null,null,null,null,1,"","",null,"","",null,180,null,"",null,null,null,null,null,null,null,null,null,null,null,null,null,null,null,null,null,null,null,null,null,null,null,null,null,null,null,null,null,null,null,null,null,null,null,null,null,null,null,null,null,null,0,0,0,null,0,null,0]
[null,null,null,null,1,"","",null,"","",null,180,null,"",null,null,null,null,null,null,null,null,null,null,null,null,null,null,null,null,null,null,null,null,null,null,null,null,null,null,null,null,null,null,null,null,null,null,null,null,null,null,null,null,null,null,0,0,0,null,0,null,0]
[null,null,null,null,1,"","",null,"","",null,180,null,"",null,null,null,null,null,null,null,null,null,null,null,null,null,null,null,null,null,null,null,null,null,null,null,null,null,null,null,null,null,null,null,null,null,null,null,null,null,null,null,null,null,null,0,0,0,null,0,null,0]
[null,null,null,null,1,"","",null,"","",null,180,null,"",null,null,null,null,null,null,null,null,null,null,null,null,null,null,null,null,null,null,null,null,null,null,null,null,null,null,null,null,null,null,null,null,null,null,null,null,null,null,null,null,null,null,0,0,0,null,0,null,0]
[null,null,null,null,1,"","",null,"","",null,180,null,"",null,null,null,null,null,null,null,null,null,null,null,null,null,null,null,null,null,null,null,null,null,null,null,null,null,null,null,null,null,null,null,null,null,null,null,null,null,null,null,null,null,null,0,0,0,null,0,null,0]
[null,null,null,null,1,{"$f":"IF(SUM(N(J579),-N(K579))=0,\"\",ROUND(SUM(N(J579),-N(K579))/365,0))","v":""},{"$f":"IF(SUM(N(J579),-N(H579))=0,\"\",SUM(N(J579),-N(H579))/365)","v":""},null,"","",null,180,null,{"$f":"IF(OR(N(M579)=0,N(L579)=0),\"\",SUM(M579,L579))","v":""},null,null,null,null,null,null,null,null,null,null,null,null,null,null,null,null,null,null,null,null,null,null,null,null,null,null,null,null,null,null,null,null,null,null,null,null,null,null,null,null,null,null,{"$f":"D579","v":0},0,0,null,0,null,0]
[null,null,null,null,1,"","",null,"","",null,180,null,"",null,null,null,null,null,null,null,null,null,null,null,null,null,null,null,null,null,null,null,null,null,null,null,null,null,null,null,null,null,null,null,null,null,null,null,null,null,null,null,null,null,null,0,0,0,null,0,null,0]
[null,null,null,null,1,"","",null,"","",null,180,null,"",null,null,null,null,null,null,null,null,null,null,null,null,null,null,null,null,null,null,null,null,null,null,null,null,null,null,null,null,null,null,null,null,null,null,null,null,null,null,null,null,null,null,0,0,0,null,0,null,0]
[null,null,null,null,1,"","",null,"","",null,180,null,"",null,null,null,null,null,null,null,null,null,null,null,null,null,null,null,null,null,null,null,null,null,null,null,null,null,null,null,null,null,null,null,null,null,null,null,null,null,null,null,null,null,null,0,0,0,null,0,null,0]
[null,null,null,null,1,"","",null,"","",null,180,null,"",null,null,null,null,null,null,null,null,null,null,null,null,null,null,null,null,null,null,null,null,null,null,null,null,null,null,null,null,null,null,null,null,null,null,null,null,null,null,null,null,null,null,0,0,0,null,0,null,0]
[null,null,null,null,1,"","",null,"","",null,180,null,"",null,null,null,null,null,null,null,null,null,null,null,null,null,null,null,null,null,null,null,null,null,null,null,null,null,null,null,null,null,null,null,null,null,null,null,null,null,null,null,null,null,null,0,0,0,null,0,null,0]
[null,null,null,null,1,"","",null,"","",null,180,null,"",null,null,null,null,null,null,null,null,null,null,null,null,null,null,null,null,null,null,null,null,null,null,null,null,null,null,null,null,null,null,null,null,null,null,null,null,null,null,null,null,null,null,0,0,0,null,0,null,0]
[null,null,null,null,1,"","",null,"","",null,180,null,"",null,null,null,null,null,null,null,null,null,null,null,null,null,null,null,null,null,null,null,null,null,null,null,null,null,null,null,null,null,null,null,null,null,null,null,null,null,null,null,null,null,null,0,0,0,null,0,null,0]
[null,null,null,null,1,"","",null,"","",null,180,null,"",null,null,null,null,null,null,null,null,null,null,null,null,null,null,null,null,null,null,null,null,null,null,null,null,null,null,null,null,null,null,null,null,null,null,null,null,null,null,null,null,null,null,0,0,0,null,0,null,0]
[null,null,null,null,1,"","",null,"","",null,180,null,"",null,null,null,null,null,null,null,null,null,null,null,null,null,null,null,null,null,null,null,null,null,null,null,null,null,null,null,null,null,null,null,null,null,null,null,null,null,null,null,null,null,null,0,0,0,null,0,null,0]
[null,null,null,null,1,"","",null,"","",null,180,null,"",null,null,null,null,null,null,null,null,null,null,null,null,null,null,null,null,null,null,null,null,null,null,null,null,null,null,null,null,null,null,null,null,null,null,null,null,null,null,null,null,null,null,0,0,0,null,0,null,0]
[null,null,null,null,1,"","",null,"","",null,180,null,"",null,null,null,null,null,null,null,null,null,null,null,null,null,null,null,null,null,null,null,null,null,null,null,null,null,null,null,null,null,null,null,null,null,null,null,null,null,null,null,null,null,null,0,0,0,null,0,null,0]
[null,null,null,null,1,"","",null,"","",null,180,null,"",null,null,null,null,null,null,null,null,null,null,null,null,null,null,null,null,null,null,null,null,null,null,null,null,null,null,null,null,null,null,null,null,null,null,null,null,null,null,null,null,null,null,0,0,0,null,0,null,0]
[null,null,null,null,1,"","",null,"","",null,180,null,"",null,null,null,null,null,null,null,null,null,null,null,null,null,null,null,null,null,null,null,null,null,null,null,null,null,null,null,null,null,null,null,null,null,null,null,null,null,null,null,null,null,null,0,0,0,null,0,null,0]
[null,null,null,null,1,"","",null,"","",null,180,null,"",null,null,null,null,null,null,null,null,null,null,null,null,null,null,null,null,null,null,null,null,null,null,null,null,null,null,null,null,null,null,null,null,null,null,null,null,null,null,null,null,null,null,0,0,0,null,0,null,0]
[null,null,null,null,1,"","",null,"","",null,180,null,"",null,null,null,null,null,null,null,null,null,null,null,null,null,null,null,null,null,null,null,null,null,null,null,null,null,null,null,null,null,null,null,null,null,null,null,null,null,null,null,null,null,null,0,0,0,null,0,null,0]
[null,null,null,null,1,"","",null,"","",null,180,null,"",null,null,null,null,null,null,null,null,null,null,null,null,null,null,null,null,null,null,null,null,null,null,null,null,null,null,null,null,null,null,null,null,null,null,null,null,null,null,null,null,null,null,0,0,0,null,0,null,0]
[null,null,null,null,1,"","",null,"","",null,180,null,"",null,null,null,null,null,null,null,null,null,null,null,null,null,null,null,null,null,null,null,null,null,null,null,null,null,null,null,null,null,null,null,null,null,null,null,null,null,null,null,null,null,null,0,0,0,null,0,null,0]
[null,null,null,null,1,"","",null,"","",null,180,null,"",null,null,null,null,null,null,null,null,null,null,null,null,null,null,null,null,null,null,null,null,null,null,null,null,null,null,null,null,null,null,null,null,null,null,null,null,null,null,null,null,null,null,0,0,0,null,0,null,0]
[null,null,null,null,1,"","",null,"","",null,180,null,"",null,null,null,null,null,null,null,null,null,null,null,null,null,null,null,null,null,null,null,null,null,null,null,null,null,null,null,null,null,null,null,null,null,null,null,null,null,null,null,null,null,null,0,0,0,null,0,null,0]
[null,null,null,null,1,"","",null,"","",null,180,null,"",null,null,null,null,null,null,null,null,null,null,null,null,null,null,null,null,null,null,null,null,null,null,null,null,null,null,null,null,null,null,null,null,null,null,null,null,null,null,null,null,null,null,0,0,0,null,0,null,0]
[null,null,null,null,1,"","",null,"","",null,180,null,"",null,null,null,null,null,null,null,null,null,null,null,null,null,null,null,null,null,null,null,null,null,null,null,null,null,null,null,null,null,null,null,null,null,null,null,null,null,null,null,null,null,null,0,0,0,null,0,null,0]
[null,null,null,null,1,"","",null,"","",null,180,null,"",null,null,null,null,null,null,null,null,null,null,null,null,null,null,null,null,null,null,null,null,null,null,null,null,null,null,null,null,null,null,null,null,null,null,null,null,null,null,null,null,null,null,0,0,0,null,0,null,0]
[null,null,null,null,1,"","",null,"","",null,180,null,"",null,null,null,null,null,null,null,null,null,null,null,null,null,null,null,null,null,null,null,null,null,null,null,null,null,null,null,null,null,null,null,null,null,null,null,null,null,null,null,null,null,null,0,0,0,null,0,null,0]
[null,null,null,null,1,"","",null,"","",null,180,null,"",null,null,null,null,null,null,null,null,null,null,null,null,null,null,null,null,null,null,null,null,null,null,null,null,null,null,null,null,null,null,null,null,null,null,null,null,null,null,null,null,null,null,0,0,0,null,0,null,0]
[null,null,null,null,1,"","",null,"","",null,180,null,"",null,null,null,null,null,null,null,null,null,null,null,null,null,null,null,null,null,null,null,null,null,null,null,null,null,null,null,null,null,null,null,null,null,null,null,null,null,null,null,null,null,null,0,0,0,null,0,null,0]
[null,null,null,null,1,"","",null,{"$f":"IF(OR(N(H605)=0,N(E605)=0),\"\",SUM(N(H605),N(E605*365)))","v":""},{"$f":"IF(B605=\"\",\"\",TODAY())","v":""},null,180,null,"",null,null,null,null,null,null,null,null,null,null,null,null,null,null,null,null,null,null,null,null,null,null,null,null,null,null,null,null,null,null,null,null,null,null,null,null,null,null,null,null,null,null,0,0,0,null,0,null,0]
[null,null,null,null,1,"","",null,"","",null,180,null,"",null,null,null,null,null,null,null,null,null,null,null,null,null,null,null,null,null,null,null,null,null,null,null,null,null,null,null,null,null,null,null,null,null,null,null,null,null,null,null,null,null,null,0,{"$f":"B606","v":0},{"$f":"A606","v":0},null,{"$f":"H606","v":0},null,{"$f":"K606","v":0}]
[null,null,null,null,1,"","",null,"","",null,180,null,"",null,null,null,null,null,null,null,null,null,null,null,null,null,null,null,null,null,null,null,null,null,null,null,null,null,null,null,null,null,null,null,null,null,null,null,null,null,null,null,null,null,null,0,0,0,null,0,null,0]
[null,null,null,null,1,"","",null,"","",null,180,null,"",null,null,null,null,null,null,null,null,null,null,null,null,null,null,null,null,null,null,null,null,null,null,null,null,null,null,null,null,null,null,null,null,null,null,null,null,null,null,null,null,null,null,0,0,0,null,0,null,0]
[null,null,null,null,1,"","",null,"","",null,180,null,"",null,null,null,null,null,null,null,null,null,null,null,null,null,null,null,null,null,null,null,null,null,null,null,null,null,null,null,null,null,null,null,null,null,null,null,null,null,null,null,null,null,null,0,0,0,null,0,null,0]
[null,null,null,null,1,"","",null,"","",null,180,null,"",null,null,null,null,null,null,null,null,null,null,null,null,null,null,null,null,null,null,null,null,null,null,null,null,null,null,null,null,null,null,null,null,null,null,null,null,null,null,null,null,null,null,0,0,0,null,0,null,0]
[null,null,null,null,1,"","",null,"","",null,180,null,"",null,null,null,null,null,null,null,null,null,null,null,null,null,null,null,null,null,null,null,null,null,null,null,null,null,null,null,null,null,null,null,null,null,null,null,null,null,null,null,null,null,null,0,0,0,null,0,null,0]
[null,null,null,null,1,"","",null,"","",null,180,null,"",null,null,null,null,null,null,null,null,null,null,null,null,null,null,null,null,null,null,null,null,null,null,null,null,null,null,null,null,null,null,null,null,null,null,null,null,null,null,null,null,null,null,0,0,0,null,0,null,0]
[null,null,null,null,1,"","",null,"","",null,180,null,"",null,null,null,null,null,null,null,null,null,null,null,null,null,null,null,null,null,null,null,null,null,null,null,null,null,null,null,null,null,null,null,null,null,null,null,null,null,null,null,null,null,null,0,0,0,null,0,null,0]
[null,null,null,null,1,"","",null,"","",null,180,null,"",null,null,null,null,null,null,null,null,null,null,null,null,null,null,null,null,null,null,null,null,null,null,null,null,null,null,null,null,null,null,null,null,null,null,null,null,null,null,null,null,null,null,0,0,0,null,0,null,0]
[null,null,null,null,1,"","",null,"","",null,180,null,"",null,null,null,null,null,null,null,null,null,null,null,null,null,null,null,null,null,null,null,null,null,null,null,null,null,null,null,null,null,null,null,null,null,null,null,null,null,null,null,null,null,null,0,0,0,null,0,null,0]
[null,null,null,null,1,"","",null,"","",null,180,null,"",null,null,null,null,null,null,null,null,null,null,null,null,null,null,null,null,null,null,null,null,null,null,null,null,null,null,null,null,null,null,null,null,null,null,null,null,null,null,null,null,null,null,0,0,0,null,0,null,0]
[null,null,null,null,1,"","",null,"","",null,180,null,"",null,null,null,null,null,null,null,null,null,null,null,null,null,null,null,null,null,null,null,null,null,null,null,null,null,null,null,null,null,null,null,null,null,null,null,null,null,null,null,null,null,null,0,0,0,null,0,null,0]
[null,null,null,null,1,"","",null,"","",null,180,null,"",null,null,null,null,null,null,null,null,null,null,null,null,null,null,null,null,null,null,null,null,null,null,null,null,null,null,null,null,null,null,null,null,null,null,null,null,null,null,null,null,null,null,0,0,0,null,0,null,0]
[null,null,null,null,1,"","",null,"","",null,180,null,"",null,null,null,null,null,null,null,null,null,null,null,null,null,null,null,null,null,null,null,null,null,null,null,null,null,null,null,null,null,null,null,null,null,null,null,null,null,null,null,null,null,null,0,0,0,null,0,null,0]
[null,null,null,null,1,"","",null,"","",null,180,null,"",null,null,null,null,null,null,null,null,null,null,null,null,null,null,null,null,null,null,null,null,null,null,null,null,null,null,null,null,null,null,null,null,null,null,null,null,null,null,null,null,null,null,0,0,0,null,0,null,0]
[null,null,null,null,1,"","",null,"","",null,180,null,"",null,null,null,null,null,null,null,null,null,null,null,null,null,null,null,null,null,null,null,null,null,null,null,null,null,null,null,null,null,null,null,null,null,null,null,null,null,null,null,null,null,null,0,0,0,null,0,null,0]
[null,null,null,null,1,"","",null,"","",null,180,null,"",null,null,null,null,null,null,null,null,null,null,null,null,null,null,null,null,null,null,null,null,null,null,null,null,null,null,null,null,null,null,null,null,null,null,null,null,null,null,null,null,null,null,0,0,0,null,0,null,0]
[null,null,null,null,1,"","",null,"","",null,180,null,"",null,null,null,null,null,null,null,null,null,null,null,null,null,null,null,null,null,null,null,null,null,null,null,null,null,null,null,null,null,null,null,null,null,null,null,null,null,null,null,null,null,null,0,0,0,null,0,null,0]
[null,null,null,null,1,"","",null,"","",null,180,null,"",null,null,null,null,null,null,null,null,null,null,null,null,null,null,null,null,null,null,null,null,null,null,null,null,null,null,null,null,null,null,null,null,null,null,null,null,null,null,null,null,null,null,0,0,0,null,0,null,0]
[null,null,null,null,1,"","",null,"","",null,180,null,"",null,null,null,null,null,null,null,null,null,null,null,null,null,null,null,null,null,null,null,null,null,null,null,null,null,null,null,null,null,null,null,null,null,null,null,null,null,null,null,null,null,null,0,0,0,null,0,null,0]
[null,null,null,null,1,"","",null,"","",null,180,null,"",null,null,null,null,null,null,null,null,null,null,null,null,null,null,null,null,null,null,null,null,null,null,null,null,null,null,null,null,null,null,null,null,null,null,null,null,null,null,null,null,null,null,0,0,0,null,0,null,0]
[null,null,null,null,1,"","",null,"","",null,180,null,"",null,null,null,null,null,null,null,null,null,null,null,null,null,null,null,null,null,null,null,null,null,null,null,null,null,null,null,null,null,null,null,null,null,null,null,null,null,null,null,null,null,null,0,0,0,null,0,null,0]
[null,null,null,null,1,"","",null,"","",null,180,null,"",null,null,null,null,null,null,null,null,null,null,null,null,null,null,null,null,null,null,null,null,null,null,null,null,null,null,null,null,null,null,null,null,null,null,null,null,null,null,null,null,null,null,0,0,0,null,0,null,0]
[null,null,null,null,1,"","",null,"","",null,180,null,"",null,null,null,null,null,null,null,null,null,null,null,null,null,null,null,null,null,null,null,null,null,null,null,null,null,null,null,null,null,null,null,null,null,null,null,null,null,null,null,null,null,null,0,0,0,null,0,null,0]
[null,null,null,null,1,"","",null,"","",null,180,null,"",null,null,null,null,null,null,null,null,null,null,null,null,null,null,null,null,null,null,null,null,null,null,null,null,null,null,null,null,null,null,null,null,null,null,null,null,null,null,null,null,null,null,0,0,0,null,0,null,0]
[null,null,null,null,1,"","",null,"","",null,180,null,"",null,null,null,null,null,null,null,null,null,null,null,null,null,null,null,null,null,null,null,null,null,null,null,null,null,null,null,null,null,null,null,null,null,null,null,null,null,null,null,null,null,null,0,0,0,null,0,null,0]
[null,null,null,null,1,"","",null,"","",null,180,null,"",null,null,null,null,null,null,null,null,null,null,null,null,null,null,null,null,null,null,null,null,null,null,null,null,null,null,null,null,null,null,null,null,null,null,null,null,null,null,null,null,null,null,0,0,0,null,0,null,0]
[null,null,null,null,1,"","",null,"","",null,180,null,"",null,null,null,null,null,null,null,null,null,null,null,null,null,null,null,null,null,null,null,null,null,null,null,null,null,null,null,null,null,null,null,null,null,null,null,null,null,null,null,null,null,null,0,0,0,null,0,null,0]
[null,null,null,null,1,"","",null,"","",null,180,null,"",null,null,null,null,null,null,null,null,null,null,null,null,null,null,null,null,null,null,null,null,null,null,null,null,null,null,null,null,null,null,null,null,null,null,null,null,null,null,null,null,null,null,0,0,0,null,0,null,0]
[null,null,null,null,1,"","",null,"","",null,180,null,"",null,null,null,null,null,null,null,null,null,null,null,null,null,null,null,null,null,null,null,null,null,null,null,null,null,null,null,null,null,null,null,null,null,null,null,null,null,null,null,null,null,null,0,0,0,null,0,null,0]
[null,null,null,null,1,"","",null,"","",null,180,null,"",null,null,null,null,null,null,null,null,null,null,null,null,null,null,null,null,null,null,null,null,null,null,null,null,null,null,null,null,null,null,null,null,null,null,null,null,null,null,null,null,null,null,0,0,0,null,0,null,0]
[null,null,null,null,1,"","",null,"","",null,180,null,"",null,null,null,null,null,null,null,null,null,null,null,null,null,null,null,null,null,null,null,null,null,null,null,null,null,null,null,null,null,null,null,null,null,null,null,null,null,null,null,null,null,null,0,0,0,null,0,null,0]
[null,null,null,null,1,"","",null,"","",null,180,null,"",null,null,null,null,null,null,null,null,null,null,null,null,null,null,null,null,null,null,null,null,null,null,null,null,null,null,null,null,null,null,null,null,null,null,null,null,null,null,null,null,null,null,0,0,0,null,0,null,0]
[null,null,null,null,1,"","",null,"","",null,180,null,"",null,null,null,null,null,null,null,null,null,null,null,null,null,null,null,null,null,null,null,null,null,null,null,null,null,null,null,null,null,null,null,null,null,null,null,null,null,null,null,null,null,null,0,0,0,null,0,null,0]
[null,null,null,null,1,"","",null,"","",null,180,null,"",null,null,null,null,null,null,null,null,null,null,null,null,null,null,null,null,null,null,null,null,null,null,null,null,null,null,null,null,null,null,null,null,null,null,null,null,null,null,null,null,null,null,0,0,0,null,0,null,0]
[null,null,null,null,1,"","",null,"","",null,180,null,"",null,null,null,null,null,null,null,null,null,null,null,null,null,null,null,null,null,null,null,null,null,null,null,null,null,null,null,null,null,null,null,null,null,null,null,null,null,null,null,null,null,null,0,0,0,null,0,null,0]
[null,null,null,null,1,"","",null,"","",null,180,null,"",null,null,null,null,null,null,null,null,null,null,null,null,null,null,null,null,null,null,null,null,null,null,null,null,null,null,null,null,null,null,null,null,null,null,null,null,null,null,null,null,null,null,0,0,0,null,0,null,0]
[null,null,null,null,1,{"$f":"IF(SUM(N(J643),-N(K643))=0,\"\",ROUND(SUM(N(J643),-N(K643))/365,0))","v":""},{"$f":"IF(SUM(N(J643),-N(H643))=0,\"\",SUM(N(J643),-N(H643))/365)","v":""},null,"","",null,180,null,{"$f":"IF(OR(N(M643)=0,N(L643)=0),\"\",SUM(M643,L643))","v":""},null,null,null,null,null,null,null,null,null,null,null,null,null,null,null,null,null,null,null,null,null,null,null,null,null,null,null,null,null,null,null,null,null,null,null,null,null,null,null,null,null,null,{"$f":"D643","v":0},0,0,null,0,null,0]
[null,null,null,null,1,"","",null,"","",null,180,null,"",null,null,null,null,null,null,null,null,null,null,null,null,null,null,null,null,null,null,null,null,null,null,null,null,null,null,null,null,null,null,null,null,null,null,null,null,null,null,null,null,null,null,0,0,0,null,0,null,0]
[null,null,null,null,1,"","",null,"","",null,180,null,"",null,null,null,null,null,null,null,null,null,null,null,null,null,null,null,null,null,null,null,null,null,null,null,null,null,null,null,null,null,null,null,null,null,null,null,null,null,null,null,null,null,null,0,0,0,null,0,null,0]
[null,null,null,null,1,"","",null,"","",null,180,null,"",null,null,null,null,null,null,null,null,null,null,null,null,null,null,null,null,null,null,null,null,null,null,null,null,null,null,null,null,null,null,null,null,null,null,null,null,null,null,null,null,null,null,0,0,0,null,0,null,0]
[null,null,null,null,1,"","",null,"","",null,180,null,"",null,null,null,null,null,null,null,null,null,null,null,null,null,null,null,null,null,null,null,null,null,null,null,null,null,null,null,null,null,null,null,null,null,null,null,null,null,null,null,null,null,null,0,0,0,null,0,null,0]
[null,null,null,null,1,"","",null,"","",null,180,null,"",null,null,null,null,null,null,null,null,null,null,null,null,null,null,null,null,null,null,null,null,null,null,null,null,null,null,null,null,null,null,null,null,null,null,null,null,null,null,null,null,null,null,0,0,0,null,0,null,0]
[null,null,null,null,1,"","",null,"","",null,180,null,"",null,null,null,null,null,null,null,null,null,null,null,null,null,null,null,null,null,null,null,null,null,null,null,null,null,null,null,null,null,null,null,null,null,null,null,null,null,null,null,null,null,null,0,0,0,null,0,null,0]
[null,null,null,null,1,"","",null,"","",null,180,null,"",null,null,null,null,null,null,null,null,null,null,null,null,null,null,null,null,null,null,null,null,null,null,null,null,null,null,null,null,null,null,null,null,null,null,null,null,null,null,null,null,null,null,0,0,0,null,0,null,0]
[null,null,null,null,1,"","",null,"","",null,180,null,"",null,null,null,null,null,null,null,null,null,null,null,null,null,null,null,null,null,null,null,null,null,null,null,null,null,null,null,null,null,null,null,null,null,null,null,null,null,null,null,null,null,null,0,0,0,null,0,null,0]
[null,null,null,null,1,"","",null,"","",null,180,null,"",null,null,null,null,null,null,null,null,null,null,null,null,null,null,null,null,null,null,null,null,null,null,null,null,null,null,null,null,null,null,null,null,null,null,null,null,null,null,null,null,null,null,0,0,0,null,0,null,0]
[null,null,null,null,1,"","",null,"","",null,180,null,"",null,null,null,null,null,null,null,null,null,null,null,null,null,null,null,null,null,null,null,null,null,null,null,null,null,null,null,null,null,null,null,null,null,null,null,null,null,null,null,null,null,null,0,0,0,null,0,null,0]
[null,null,null,null,1,"","",null,"","",null,180,null,"",null,null,null,null,null,null,null,null,null,null,null,null,null,null,null,null,null,null,null,null,null,null,null,null,null,null,null,null,null,null,null,null,null,null,null,null,null,null,null,null,null,null,0,0,0,null,0,null,0]
[null,null,null,null,1,"","",null,"","",null,180,null,"",null,null,null,null,null,null,null,null,null,null,null,null,null,null,null,null,null,null,null,null,null,null,null,null,null,null,null,null,null,null,null,null,null,null,null,null,null,null,null,null,null,null,0,0,0,null,0,null,0]
[null,null,null,null,1,"","",null,"","",null,180,null,"",null,null,null,null,null,null,null,null,null,null,null,null,null,null,null,null,null,null,null,null,null,null,null,null,null,null,null,null,null,null,null,null,null,null,null,null,null,null,null,null,null,null,0,0,0,null,0,null,0]
[null,null,null,null,1,"","",null,"","",null,180,null,"",null,null,null,null,null,null,null,null,null,null,null,null,null,null,null,null,null,null,null,null,null,null,null,null,null,null,null,null,null,null,null,null,null,null,null,null,null,null,null,null,null,null,0,0,0,null,0,null,0]
[null,null,null,null,1,"","",null,"","",null,180,null,"",null,null,null,null,null,null,null,null,null,null,null,null,null,null,null,null,null,null,null,null,null,null,null,null,null,null,null,null,null,null,null,null,null,null,null,null,null,null,null,null,null,null,0,0,0,null,0,null,0]
[null,null,null,null,1,"","",null,"","",null,180,null,"",null,null,null,null,null,null,null,null,null,null,null,null,null,null,null,null,null,null,null,null,null,null,null,null,null,null,null,null,null,null,null,null,null,null,null,null,null,null,null,null,null,null,0,0,0,null,0,null,0]
[null,null,null,null,1,"","",null,"","",null,180,null,"",null,null,null,null,null,null,null,null,null,null,null,null,null,null,null,null,null,null,null,null,null,null,null,null,null,null,null,null,null,null,null,null,null,null,null,null,null,null,null,null,null,null,0,0,0,null,0,null,0]
[null,null,null,null,1,"","",null,"","",null,180,null,"",null,null,null,null,null,null,null,null,null,null,null,null,null,null,null,null,null,null,null,null,null,null,null,null,null,null,null,null,null,null,null,null,null,null,null,null,null,null,null,null,null,null,0,0,0,null,0,null,0]
[null,null,null,null,1,"","",null,"","",null,180,null,"",null,null,null,null,null,null,null,null,null,null,null,null,null,null,null,null,null,null,null,null,null,null,null,null,null,null,null,null,null,null,null,null,null,null,null,null,null,null,null,null,null,null,0,0,0,null,0,null,0]
[null,null,null,null,1,"","",null,"","",null,180,null,"",null,null,null,null,null,null,null,null,null,null,null,null,null,null,null,null,null,null,null,null,null,null,null,null,null,null,null,null,null,null,null,null,null,null,null,null,null,null,null,null,null,null,0,0,0,null,0,null,0]
[null,null,null,null,1,"","",null,"","",null,180,null,"",null,null,null,null,null,null,null,null,null,null,null,null,null,null,null,null,null,null,null,null,null,null,null,null,null,null,null,null,null,null,null,null,null,null,null,null,null,null,null,null,null,null,0,0,0,null,0,null,0]
[null,null,null,null,1,"","",null,"","",null,180,null,"",null,null,null,null,null,null,null,null,null,null,null,null,null,null,null,null,null,null,null,null,null,null,null,null,null,null,null,null,null,null,null,null,null,null,null,null,null,null,null,null,null,null,0,0,0,null,0,null,0]
[null,null,null,null,1,"","",null,"","",null,180,null,"",null,null,null,null,null,null,null,null,null,null,null,null,null,null,null,null,null,null,null,null,null,null,null,null,null,null,null,null,null,null,null,null,null,null,null,null,null,null,null,null,null,null,0,0,0,null,0,null,0]
[null,null,null,null,1,"","",null,"","",null,180,null,"",null,null,null,null,null,null,null,null,null,null,null,null,null,null,null,null,null,null,null,null,null,null,null,null,null,null,null,null,null,null,null,null,null,null,null,null,null,null,null,null,null,null,0,0,0,null,0,null,0]
[null,null,null,null,1,"","",null,"","",null,180,null,"",null,null,null,null,null,null,null,null,null,null,null,null,null,null,null,null,null,null,null,null,null,null,null,null,null,null,null,null,null,null,null,null,null,null,null,null,null,null,null,null,null,null,0,0,0,null,0,null,0]
[null,null,null,null,1,"","",null,{"$f":"IF(OR(N(H669)=0,N(E669)=0),\"\",SUM(N(H669),N(E669*365)))","v":""},{"$f":"IF(B669=\"\",\"\",TODAY())","v":""},null,180,null,"",null,null,null,null,null,null,null,null,null,null,null,null,null,null,null,null,null,null,null,null,null,null,null,null,null,null,null,null,null,null,null,null,null,null,null,null,null,null,null,null,null,null,0,0,0,null,0,null,0]
[null,null,null,null,1,"","",null,"","",null,180,null,"",null,null,null,null,null,null,null,null,null,null,null,null,null,null,null,null,null,null,null,null,null,null,null,null,null,null,null,null,null,null,null,null,null,null,null,null,null,null,null,null,null,null,0,{"$f":"B670","v":0},{"$f":"A670","v":0},null,{"$f":"H670","v":0},null,{"$f":"K670","v":0}]
[null,null,null,null,1,"","",null,"","",null,180,null,"",null,null,null,null,null,null,null,null,null,null,null,null,null,null,null,null,null,null,null,null,null,null,null,null,null,null,null,null,null,null,null,null,null,null,null,null,null,null,null,null,null,null,0,0,0,null,0,null,0]
[null,null,null,null,1,"","",null,"","",null,180,null,"",null,null,null,null,null,null,null,null,null,null,null,null,null,null,null,null,null,null,null,null,null,null,null,null,null,null,null,null,null,null,null,null,null,null,null,null,null,null,null,null,null,null,0,0,0,null,0,null,0]
[null,null,null,null,1,"","",null,"","",null,180,null,"",null,null,null,null,null,null,null,null,null,null,null,null,null,null,null,null,null,null,null,null,null,null,null,null,null,null,null,null,null,null,null,null,null,null,null,null,null,null,null,null,null,null,0,0,0,null,0,null,0]
[null,null,null,null,1,"","",null,"","",null,180,null,"",null,null,null,null,null,null,null,null,null,null,null,null,null,null,null,null,null,null,null,null,null,null,null,null,null,null,null,null,null,null,null,null,null,null,null,null,null,null,null,null,null,null,0,0,0,null,0,null,0]
[null,null,null,null,1,"","",null,"","",null,180,null,"",null,null,null,null,null,null,null,null,null,null,null,null,null,null,null,null,null,null,null,null,null,null,null,null,null,null,null,null,null,null,null,null,null,null,null,null,null,null,null,null,null,null,0,0,0,null,0,null,0]
[null,null,null,null,1,"","",null,"","",null,180,null,"",null,null,null,null,null,null,null,null,null,null,null,null,null,null,null,null,null,null,null,null,null,null,null,null,null,null,null,null,null,null,null,null,null,null,null,null,null,null,null,null,null,null,0,0,0,null,0,null,0]
[null,null,null,null,1,"","",null,"","",null,180,null,"",null,null,null,null,null,null,null,null,null,null,null,null,null,null,null,null,null,null,null,null,null,null,null,null,null,null,null,null,null,null,null,null,null,null,null,null,null,null,null,null,null,null,0,0,0,null,0,null,0]
[null,null,null,null,1,"","",null,"","",null,180,null,"",null,null,null,null,null,null,null,null,null,null,null,null,null,null,null,null,null,null,null,null,null,null,null,null,null,null,null,null,null,null,null,null,null,null,null,null,null,null,null,null,null,null,0,0,0,null,0,null,0]
[null,null,null,null,1,"","",null,"","",null,180,null,"",null,null,null,null,null,null,null,null,null,null,null,null,null,null,null,null,null,null,null,null,null,null,null,null,null,null,null,null,null,null,null,null,null,null,null,null,null,null,null,null,null,null,0,0,0,null,0,null,0]
[null,null,null,null,1,"","",null,"","",null,180,null,"",null,null,null,null,null,null,null,null,null,null,null,null,null,null,null,null,null,null,null,null,null,null,null,null,null,null,null,null,null,null,null,null,null,null,null,null,null,null,null,null,null,null,0,0,0,null,0,null,0]
[null,null,null,null,1,"","",null,"","",null,180,null,"",null,null,null,null,null,null,null,null,null,null,null,null,null,null,null,null,null,null,null,null,null,null,null,null,null,null,null,null,null,null,null,null,null,null,null,null,null,null,null,null,null,null,0,0,0,null,0,null,0]
[null,null,null,null,1,"","",null,"","",null,180,null,"",null,null,null,null,null,null,null,null,null,null,null,null,null,null,null,null,null,null,null,null,null,null,null,null,null,null,null,null,null,null,null,null,null,null,null,null,null,null,null,null,null,null,0,0,0,null,0,null,0]
[null,null,null,null,1,"","",null,"","",null,180,null,"",null,null,null,null,null,null,null,null,null,null,null,null,null,null,null,null,null,null,null,null,null,null,null,null,null,null,null,null,null,null,null,null,null,null,null,null,null,null,null,null,null,null,0,0,0,null,0,null,0]
[null,null,null,null,1,"","",null,"","",null,180,null,"",null,null,null,null,null,null,null,null,null,null,null,null,null,null,null,null,null,null,null,null,null,null,null,null,null,null,null,null,null,null,null,null,null,null,null,null,null,null,null,null,null,null,0,0,0,null,0,null,0]
[null,null,null,null,1,"","",null,"","",null,180,null,"",null,null,null,null,null,null,null,null,null,null,null,null,null,null,null,null,null,null,null,null,null,null,null,null,null,null,null,null,null,null,null,null,null,null,null,null,null,null,null,null,null,null,0,0,0,null,0,null,0]
[null,null,null,null,1,"","",null,"","",null,180,null,"",null,null,null,null,null,null,null,null,null,null,null,null,null,null,null,null,null,null,null,null,null,null,null,null,null,null,null,null,null,null,null,null,null,null,null,null,null,null,null,null,null,null,0,0,0,null,0,null,0]
[null,null,null,null,1,"","",null,"","",null,180,null,"",null,null,null,null,null,null,null,null,null,null,null,null,null,null,null,null,null,null,null,null,null,null,null,null,null,null,null,null,null,null,null,null,null,null,null,null,null,null,null,null,null,null,0,0,0,null,0,null,0]
[null,null,null,null,1,"","",null,"","",null,180,null,"",null,null,null,null,null,null,null,null,null,null,null,null,null,null,null,null,null,null,null,null,null,null,null,null,null,null,null,null,null,null,null,null,null,null,null,null,null,null,null,null,null,null,0,0,0,null,0,null,0]
[null,null,null,null,1,"","",null,"","",null,180,null,"",null,null,null,null,null,null,null,null,null,null,null,null,null,null,null,null,null,null,null,null,null,null,null,null,null,null,null,null,null,null,null,null,null,null,null,null,null,null,null,null,null,null,0,0,0,null,0,null,0]
[null,null,null,null,1,"","",null,"","",null,180,null,"",null,null,null,null,null,null,null,null,null,null,null,null,null,null,null,null,null,null,null,null,null,null,null,null,null,null,null,null,null,null,null,null,null,null,null,null,null,null,null,null,null,null,0,0,0,null,0,null,0]
[null,null,null,null,1,"","",null,"","",null,180,null,"",null,null,null,null,null,null,null,null,null,null,null,null,null,null,null,null,null,null,null,null,null,null,null,null,null,null,null,null,null,null,null,null,null,null,null,null,null,null,null,null,null,null,0,0,0,null,0,null,0]
[null,null,null,null,1,"","",null,"","",null,180,null,"",null,null,null,null,null,null,null,null,null,null,null,null,null,null,null,null,null,null,null,null,null,null,null,null,null,null,null,null,null,null,null,null,null,null,null,null,null,null,null,null,null,null,0,0,0,null,0,null,0]
[null,null,null,null,1,"","",null,"","",null,180,null,"",null,null,null,null,null,null,null,null,null,null,null,null,null,null,null,null,null,null,null,null,null,null,null,null,null,null,null,null,null,null,null,null,null,null,null,null,null,null,null,null,null,null,0,0,0,null,0,null,0]
[null,null,null,null,1,"","",null,"","",null,180,null,"",null,null,null,null,null,null,null,null,null,null,null,null,null,null,null,null,null,null,null,null,null,null,null,null,null,null,null,null,null,null,null,null,null,null,null,null,null,null,null,null,null,null,0,0,0,null,0,null,0]
[null,null,null,null,1,"","",null,"","",null,180,null,"",null,null,null,null,null,null,null,null,null,null,null,null,null,null,null,null,null,null,null,null,null,null,null,null,null,null,null,null,null,null,null,null,null,null,null,null,null,null,null,null,null,null,0,0,0,null,0,null,0]
[null,null,null,null,1,"","",null,"","",null,180,null,"",null,null,null,null,null,null,null,null,null,null,null,null,null,null,null,null,null,null,null,null,null,null,null,null,null,null,null,null,null,null,null,null,null,null,null,null,null,null,null,null,null,null,0,0,0,null,0,null,0]
[null,null,null,null,1,"","",null,"","",null,180,null,"",null,null,null,null,null,null,null,null,null,null,null,null,null,null,null,null,null,null,null,null,null,null,null,null,null,null,null,null,null,null,null,null,null,null,null,null,null,null,null,null,null,null,0,0,0,null,0,null,0]
[null,null,null,null,1,"","",null,"","",null,180,null,"",null,null,null,null,null,null,null,null,null,null,null,null,null,null,null,null,null,null,null,null,null,null,null,null,null,null,null,null,null,null,null,null,null,null,null,null,null,null,null,null,null,null,0,0,0,null,0,null,0]
[null,null,null,null,1,"","",null,"","",null,180,null,"",null,null,null,null,null,null,null,null,null,null,null,null,null,null,null,null,null,null,null,null,null,null,null,null,null,null,null,null,null,null,null,null,null,null,null,null,null,null,null,null,null,null,0,0,0,null,0,null,0]
[null,null,null,null,1,"","",null,"","",null,180,null,"",null,null,null,null,null,null,null,null,null,null,null,null,null,null,null,null,null,null,null,null,null,null,null,null,null,null,null,null,null,null,null,null,null,null,null,null,null,null,null,null,null,null,0,0,0,null,0,null,0]
[null,null,null,null,1,"","",null,"","",null,180,null,"",null,null,null,null,null,null,null,null,null,null,null,null,null,null,null,null,null,null,null,null,null,null,null,null,null,null,null,null,null,null,null,null,null,null,null,null,null,null,null,null,null,null,0,0,0,null,0,null,0]
[null,null,null,null,1,"","",null,"","",null,180,null,"",null,null,null,null,null,null,null,null,null,null,null,null,null,null,null,null,null,null,null,null,null,null,null,null,null,null,null,null,null,null,null,null,null,null,null,null,null,null,null,null,null,null,0,0,0,null,0,null,0]
[null,null,null,null,1,"","",null,"","",null,180,null,"",null,null,null,null,null,null,null,null,null,null,null,null,null,null,null,null,null,null,null,null,null,null,null,null,null,null,null,null,null,null,null,null,null,null,null,null,null,null,null,null,null,null,0,0,0,null,0,null,0]
[null,null,null,null,1,"","",null,"","",null,180,null,"",null,null,null,null,null,null,null,null,null,null,null,null,null,null,null,null,null,null,null,null,null,null,null,null,null,null,null,null,null,null,null,null,null,null,null,null,null,null,null,null,null,null,0,0,0,null,0,null,0]
[null,null,null,null,1,"","",null,"","",null,180,null,"",null,null,null,null,null,null,null,null,null,null,null,null,null,null,null,null,null,null,null,null,null,null,null,null,null,null,null,null,null,null,null,null,null,null,null,null,null,null,null,null,null,null,0,0,0,null,0,null,0]
[null,null,null,null,1,"","",null,"","",null,180,null,"",null,null,null,null,null,null,null,null,null,null,null,null,null,null,null,null,null,null,null,null,null,null,null,null,null,null,null,null,null,null,null,null,null,null,null,null,null,null,null,null,null,null,0,0,0,null,0,null,0]
[null,null,null,null,1,{"$f":"IF(SUM(N(J707),-N(K707))=0,\"\",ROUND(SUM(N(J707),-N(K707))/365,0))","v":""},{"$f":"IF(SUM(N(J707),-N(H707))=0,\"\",SUM(N(J707),-N(H707))/365)","v":""},null,"","",null,180,null,{"$f":"IF(OR(N(M707)=0,N(L707)=0),\"\",SUM(M707,L707))","v":""},null,null,null,null,null,null,null,null,null,null,null,null,null,null,null,null,null,null,null,null,null,null,null,null,null,null,null,null,null,null,null,null,null,null,null,null,null,null,null,null,null,null,{"$f":"D707","v":0},0,0,null,0,null,0]
[null,null,null,null,1,"","",null,"","",null,180,null,"",null,null,null,null,null,null,null,null,null,null,null,null,null,null,null,null,null,null,null,null,null,null,null,null,null,null,null,null,null,null,null,null,null,null,null,null,null,null,null,null,null,null,0,0,0,null,0,null,0]
[null,null,null,null,1,"","",null,"","",null,180,null,"",null,null,null,null,null,null,null,null,null,null,null,null,null,null,null,null,null,null,null,null,null,null,null,null,null,null,null,null,null,null,null,null,null,null,null,null,null,null,null,null,null,null,0,0,0,null,0,null,0]
[null,null,null,null,1,"","",null,"","",null,180,null,"",null,null,null,null,null,null,null,null,null,null,null,null,null,null,null,null,null,null,null,null,null,null,null,null,null,null,null,null,null,null,null,null,null,null,null,null,null,null,null,null,null,null,0,0,0,null,0,null,0]
[null,null,null,null,1,"","",null,"","",null,180,null,"",null,null,null,null,null,null,null,null,null,null,null,null,null,null,null,null,null,null,null,null,null,null,null,null,null,null,null,null,null,null,null,null,null,null,null,null,null,null,null,null,null,null,0,0,0,null,0,null,0]
[null,null,null,null,1,"","",null,"","",null,180,null,"",null,null,null,null,null,null,null,null,null,null,null,null,null,null,null,null,null,null,null,null,null,null,null,null,null,null,null,null,null,null,null,null,null,null,null,null,null,null,null,null,null,null,0,0,0,null,0,null,0]
[null,null,null,null,1,"","",null,"","",null,180,null,"",null,null,null,null,null,null,null,null,null,null,null,null,null,null,null,null,null,null,null,null,null,null,null,null,null,null,null,null,null,null,null,null,null,null,null,null,null,null,null,null,null,null,0,0,0,null,0,null,0]
[null,null,null,null,1,"","",null,"","",null,180,null,"",null,null,null,null,null,null,null,null,null,null,null,null,null,null,null,null,null,null,null,null,null,null,null,null,null,null,null,null,null,null,null,null,null,null,null,null,null,null,null,null,null,null,0,0,0,null,0,null,0]
[null,null,null,null,1,"","",null,"","",null,180,null,"",null,null,null,null,null,null,null,null,null,null,null,null,null,null,null,null,null,null,null,null,null,null,null,null,null,null,null,null,null,null,null,null,null,null,null,null,null,null,null,null,null,null,0,0,0,null,0,null,0]
[null,null,null,null,1,"","",null,"","",null,180,null,"",null,null,null,null,null,null,null,null,null,null,null,null,null,null,null,null,null,null,null,null,null,null,null,null,null,null,null,null,null,null,null,null,null,null,null,null,null,null,null,null,null,null,0,0,0,null,0,null,0]
[null,null,null,null,1,"","",null,"","",null,180,null,"",null,null,null,null,null,null,null,null,null,null,null,null,null,null,null,null,null,null,null,null,null,null,null,null,null,null,null,null,null,null,null,null,null,null,null,null,null,null,null,null,null,null,0,0,0,null,0,null,0]
[null,null,null,null,1,"","",null,"","",null,180,null,"",null,null,null,null,null,null,null,null,null,null,null,null,null,null,null,null,null,null,null,null,null,null,null,null,null,null,null,null,null,null,null,null,null,null,null,null,null,null,null,null,null,null,0,0,0,null,0,null,0]
[null,null,null,null,1,"","",null,"","",null,180,null,"",null,null,null,null,null,null,null,null,null,null,null,null,null,null,null,null,null,null,null,null,null,null,null,null,null,null,null,null,null,null,null,null,null,null,null,null,null,null,null,null,null,null,0,0,0,null,0,null,0]
[null,null,null,null,1,"","",null,"","",null,180,null,"",null,null,null,null,null,null,null,null,null,null,null,null,null,null,null,null,null,null,null,null,null,null,null,null,null,null,null,null,null,null,null,null,null,null,null,null,null,null,null,null,null,null,0,0,0,null,0,null,0]
[null,null,null,null,1,"","",null,"","",null,180,null,"",null,null,null,null,null,null,null,null,null,null,null,null,null,null,null,null,null,null,null,null,null,null,null,null,null,null,null,null,null,null,null,null,null,null,null,null,null,null,null,null,null,null,0,0,0,null,0,null,0]
[null,null,null,null,1,"","",null,"","",null,180,null,"",null,null,null,null,null,null,null,null,null,null,null,null,null,null,null,null,null,null,null,null,null,null,null,null,null,null,null,null,null,null,null,null,null,null,null,null,null,null,null,null,null,null,0,0,0,null,0,null,0]
[null,null,null,null,1,"","",null,"","",null,180,null,"",null,null,null,null,null,null,null,null,null,null,null,null,null,null,null,null,null,null,null,null,null,null,null,null,null,null,null,null,null,null,null,null,null,null,null,null,null,null,null,null,null,null,0,0,0,null,0,null,0]
[null,null,null,null,1,"","",null,"","",null,180,null,"",null,null,null,null,null,null,null,null,null,null,null,null,null,null,null,null,null,null,null,null,null,null,null,null,null,null,null,null,null,null,null,null,null,null,null,null,null,null,null,null,null,null,0,0,0,null,0,null,0]
[null,null,null,null,1,"","",null,"","",null,180,null,"",null,null,null,null,null,null,null,null,null,null,null,null,null,null,null,null,null,null,null,null,null,null,null,null,null,null,null,null,null,null,null,null,null,null,null,null,null,null,null,null,null,null,0,0,0,null,0,null,0]
[null,null,null,null,1,"","",null,"","",null,180,null,"",null,null,null,null,null,null,null,null,null,null,null,null,null,null,null,null,null,null,null,null,null,null,null,null,null,null,null,null,null,null,null,null,null,null,null,null,null,null,null,null,null,null,0,0,0,null,0,null,0]
[null,null,null,null,1,"","",null,"","",null,180,null,"",null,null,null,null,null,null,null,null,null,null,null,null,null,null,null,null,null,null,null,null,null,null,null,null,null,null,null,null,null,null,null,null,null,null,null,null,null,null,null,null,null,null,0,0,0,null,0,null,0]
[null,null,null,null,1,"","",null,"","",null,180,null,"",null,null,null,null,null,null,null,null,null,null,null,null,null,null,null,null,null,null,null,null,null,null,null,null,null,null,null,null,null,null,null,null,null,null,null,null,null,null,null,null,null,null,0,0,0,null,0,null,0]
[null,null,null,null,1,"","",null,"","",null,180,null,"",null,null,null,null,null,null,null,null,null,null,null,null,null,null,null,null,null,null,null,null,null,null,null,null,null,null,null,null,null,null,null,null,null,null,null,null,null,null,null,null,null,null,0,0,0,null,0,null,0]
[null,null,null,null,1,"","",null,"","",null,180,null,"",null,null,null,null,null,null,null,null,null,null,null,null,null,null,null,null,null,null,null,null,null,null,null,null,null,null,null,null,null,null,null,null,null,null,null,null,null,null,null,null,null,null,0,0,0,null,0,null,0]
[null,null,null,null,1,"","",null,"","",null,180,null,"",null,null,null,null,null,null,null,null,null,null,null,null,null,null,null,null,null,null,null,null,null,null,null,null,null,null,null,null,null,null,null,null,null,null,null,null,null,null,null,null,null,null,0,0,0,null,0,null,0]
[null,null,null,null,1,"","",null,"","",null,180,null,"",null,null,null,null,null,null,null,null,null,null,null,null,null,null,null,null,null,null,null,null,null,null,null,null,null,null,null,null,null,null,null,null,null,null,null,null,null,null,null,null,null,null,0,0,0,null,0,null,0]
[null,null,null,null,1,"","",null,{"$f":"IF(OR(N(H733)=0,N(E733)=0),\"\",SUM(N(H733),N(E733*365)))","v":""},{"$f":"IF(B733=\"\",\"\",TODAY())","v":""},null,180,null,"",null,null,null,null,null,null,null,null,null,null,null,null,null,null,null,null,null,null,null,null,null,null,null,null,null,null,null,null,null,null,null,null,null,null,null,null,null,null,null,null,null,null,0,0,0,null,0,null,0]
[null,null,null,null,1,"","",null,"","",null,180,null,"",null,null,null,null,null,null,null,null,null,null,null,null,null,null,null,null,null,null,null,null,null,null,null,null,null,null,null,null,null,null,null,null,null,null,null,null,null,null,null,null,null,null,0,{"$f":"B734","v":0},{"$f":"A734","v":0},null,{"$f":"H734","v":0},null,{"$f":"K734","v":0}]
[null,null,null,null,1,"","",null,"","",null,180,null,"",null,null,null,null,null,null,null,null,null,null,null,null,null,null,null,null,null,null,null,null,null,null,null,null,null,null,null,null,null,null,null,null,null,null,null,null,null,null,null,null,null,null,0,0,0,null,0,null,0]
[null,null,null,null,1,"","",null,"","",null,180,null,"",null,null,null,null,null,null,null,null,null,null,null,null,null,null,null,null,null,null,null,null,null,null,null,null,null,null,null,null,null,null,null,null,null,null,null,null,null,null,null,null,null,null,0,0,0,null,0,null,0]
[null,null,null,null,1,"","",null,"","",null,180,null,"",null,null,null,null,null,null,null,null,null,null,null,null,null,null,null,null,null,null,null,null,null,null,null,null,null,null,null,null,null,null,null,null,null,null,null,null,null,null,null,null,null,null,0,0,0,null,0,null,0]
[null,null,null,null,1,"","",null,"","",null,180,null,"",null,null,null,null,null,null,null,null,null,null,null,null,null,null,null,null,null,null,null,null,null,null,null,null,null,null,null,null,null,null,null,null,null,null,null,null,null,null,null,null,null,null,0,0,0,null,0,null,0]
[null,null,null,null,1,"","",null,"","",null,180,null,"",null,null,null,null,null,null,null,null,null,null,null,null,null,null,null,null,null,null,null,null,null,null,null,null,null,null,null,null,null,null,null,null,null,null,null,null,null,null,null,null,null,null,0,0,0,null,0,null,0]
[null,null,null,null,1,"","",null,"","",null,180,null,"",null,null,null,null,null,null,null,null,null,null,null,null,null,null,null,null,null,null,null,null,null,null,null,null,null,null,null,null,null,null,null,null,null,null,null,null,null,null,null,null,null,null,0,0,0,null,0,null,0]
[null,null,null,null,1,"","",null,"","",null,180,null,"",null,null,null,null,null,null,null,null,null,null,null,null,null,null,null,null,null,null,null,null,null,null,null,null,null,null,null,null,null,null,null,null,null,null,null,null,null,null,null,null,null,null,0,0,0,null,0,null,0]
[null,null,null,null,1,"","",null,"","",null,180,null,"",null,null,null,null,null,null,null,null,null,null,null,null,null,null,null,null,null,null,null,null,null,null,null,null,null,null,null,null,null,null,null,null,null,null,null,null,null,null,null,null,null,null,0,0,0,null,0,null,0]
[null,null,null,null,1,"","",null,"","",null,180,null,"",null,null,null,null,null,null,null,null,null,null,null,null,null,null,null,null,null,null,null,null,null,null,null,null,null,null,null,null,null,null,null,null,null,null,null,null,null,null,null,null,null,null,0,0,0,null,0,null,0]
[null,null,null,null,1,"","",null,"","",null,180,null,"",null,null,null,null,null,null,null,null,null,null,null,null,null,null,null,null,null,null,null,null,null,null,null,null,null,null,null,null,null,null,null,null,null,null,null,null,null,null,null,null,null,null,0,0,0,null,0,null,0]
[null,null,null,null,1,"","",null,"","",null,180,null,"",null,null,null,null,null,null,null,null,null,null,null,null,null,null,null,null,null,null,null,null,null,null,null,null,null,null,null,null,null,null,null,null,null,null,null,null,null,null,null,null,null,null,0,0,0,null,0,null,0]
[null,null,null,null,1,"","",null,"","",null,180,null,"",null,null,null,null,null,null,null,null,null,null,null,null,null,null,null,null,null,null,null,null,null,null,null,null,null,null,null,null,null,null,null,null,null,null,null,null,null,null,null,null,null,null,0,0,0,null,0,null,0]
[null,null,null,null,1,"","",null,"","",null,180,null,"",null,null,null,null,null,null,null,null,null,null,null,null,null,null,null,null,null,null,null,null,null,null,null,null,null,null,null,null,null,null,null,null,null,null,null,null,null,null,null,null,null,null,0,0,0,null,0,null,0]
[null,null,null,null,1,"","",null,"","",null,180,null,"",null,null,null,null,null,null,null,null,null,null,null,null,null,null,null,null,null,null,null,null,null,null,null,null,null,null,null,null,null,null,null,null,null,null,null,null,null,null,null,null,null,null,0,0,0,null,0,null,0]
[null,null,null,null,1,"","",null,"","",null,180,null,"",null,null,null,null,null,null,null,null,null,null,null,null,null,null,null,null,null,null,null,null,null,null,null,null,null,null,null,null,null,null,null,null,null,null,null,null,null,null,null,null,null,null,0,0,0,null,0,null,0]
[null,null,null,null,1,"","",null,"","",null,180,null,"",null,null,null,null,null,null,null,null,null,null,null,null,null,null,null,null,null,null,null,null,null,null,null,null,null,null,null,null,null,null,null,null,null,null,null,null,null,null,null,null,null,null,0,0,0,null,0,null,0]
[null,null,null,null,1,"","",null,"","",null,180,null,"",null,null,null,null,null,null,null,null,null,null,null,null,null,null,null,null,null,null,null,null,null,null,null,null,null,null,null,null,null,null,null,null,null,null,null,null,null,null,null,null,null,null,0,0,0,null,0,null,0]
[null,null,null,null,1,"","",null,"","",null,180,null,"",null,null,null,null,null,null,null,null,null,null,null,null,null,null,null,null,null,null,null,null,null,null,null,null,null,null,null,null,null,null,null,null,null,null,null,null,null,null,null,null,null,null,0,0,0,null,0,null,0]
[null,null,null,null,1,"","",null,"","",null,180,null,"",null,null,null,null,null,null,null,null,null,null,null,null,null,null,null,null,null,null,null,null,null,null,null,null,null,null,null,null,null,null,null,null,null,null,null,null,null,null,null,null,null,null,0,0,0,null,0,null,0]
[null,null,null,null,1,"","",null,"","",null,180,null,"",null,null,null,null,null,null,null,null,null,null,null,null,null,null,null,null,null,null,null,null,null,null,null,null,null,null,null,null,null,null,null,null,null,null,null,null,null,null,null,null,null,null,0,0,0,null,0,null,0]
[null,null,null,null,1,"","",null,"","",null,180,null,"",null,null,null,null,null,null,null,null,null,null,null,null,null,null,null,null,null,null,null,null,null,null,null,null,null,null,null,null,null,null,null,null,null,null,null,null,null,null,null,null,null,null,0,0,0,null,0,null,0]
[null,null,null,null,1,"","",null,"","",null,180,null,"",null,null,null,null,null,null,null,null,null,null,null,null,null,null,null,null,null,null,null,null,null,null,null,null,null,null,null,null,null,null,null,null,null,null,null,null,null,null,null,null,null,null,0,0,0,null,0,null,0]
[null,null,null,null,1,"","",null,"","",null,180,null,"",null,null,null,null,null,null,null,null,null,null,null,null,null,null,null,null,null,null,null,null,null,null,null,null,null,null,null,null,null,null,null,null,null,null,null,null,null,null,null,null,null,null,0,0,0,null,0,null,0]
[null,null,null,null,1,"","",null,"","",null,180,null,"",null,null,null,null,null,null,null,null,null,null,null,null,null,null,null,null,null,null,null,null,null,null,null,null,null,null,null,null,null,null,null,null,null,null,null,null,null,null,null,null,null,null,0,0,0,null,0,null,0]
[null,null,null,null,1,"","",null,"","",null,180,null,"",null,null,null,null,null,null,null,null,null,null,null,null,null,null,null,null,null,null,null,null,null,null,null,null,null,null,null,null,null,null,null,null,null,null,null,null,null,null,null,null,null,null,0,0,0,null,0,null,0]
[null,null,null,null,1,"","",null,"","",null,180,null,"",null,null,null,null,null,null,null,null,null,null,null,null,null,null,null,null,null,null,null,null,null,null,null,null,null,null,null,null,null,null,null,null,null,null,null,null,null,null,null,null,null,null,0,0,0,null,0,null,0]
[null,null,null,null,1,"","",null,"","",null,180,null,"",null,null,null,null,null,null,null,null,null,null,null,null,null,null,null,null,null,null,null,null,null,null,null,null,null,null,null,null,null,null,null,null,null,null,null,null,null,null,null,null,null,null,0,0,0,null,0,null,0]
[null,null,null,null,1,"","",null,"","",null,180,null,"",null,null,null,null,null,null,null,null,null,null,null,null,null,null,null,null,null,null,null,null,null,null,null,null,null,null,null,null,null,null,null,null,null,null,null,null,null,null,null,null,null,null,0,0,0,null,0,null,0]
[null,null,null,null,1,"","",null,"","",null,180,null,"",null,null,null,null,null,null,null,null,null,null,null,null,null,null,null,null,null,null,null,null,null,null,null,null,null,null,null,null,null,null,null,null,null,null,null,null,null,null,null,null,null,null,0,0,0,null,0,null,0]
[null,null,null,null,1,"","",null,"","",null,180,null,"",null,null,null,null,null,null,null,null,null,null,null,null,null,null,null,null,null,null,null,null,null,null,null,null,null,null,null,null,null,null,null,null,null,null,null,null,null,null,null,null,null,null,0,0,0,null,0,null,0]
[null,null,null,null,1,"","",null,"","",null,180,null,"",null,null,null,null,null,null,null,null,null,null,null,null,null,null,null,null,null,null,null,null,null,null,null,null,null,null,null,null,null,null,null,null,null,null,null,null,null,null,null,null,null,null,0,0,0,null,0,null,0]
[null,null,null,null,1,"","",null,"","",null,180,null,"",null,null,null,null,null,null,null,null,null,null,null,null,null,null,null,null,null,null,null,null,null,null,null,null,null,null,null,null,null,null,null,null,null,null,null,null,null,null,null,null,null,null,0,0,0,null,0,null,0]
[null,null,null,null,1,"","",null,"","",null,180,null,"",null,null,null,null,null,null,null,null,null,null,null,null,null,null,null,null,null,null,null,null,null,null,null,null,null,null,null,null,null,null,null,null,null,null,null,null,null,null,null,null,null,null,0,0,0,null,0,null,0]
[null,null,null,null,1,"","",null,"","",null,180,null,"",null,null,null,null,null,null,null,null,null,null,null,null,null,null,null,null,null,null,null,null,null,null,null,null,null,null,null,null,null,null,null,null,null,null,null,null,null,null,null,null,null,null,0,0,0,null,0,null,0]
[null,null,null,null,1,"","",null,"","",null,180,null,"",null,null,null,null,null,null,null,null,null,null,null,null,null,null,null,null,null,null,null,null,null,null,null,null,null,null,null,null,null,null,null,null,null,null,null,null,null,null,null,null,null,null,0,0,0,null,0,null,0]
[null,null,null,null,1,"","",null,"","",null,180,null,"",null,null,null,null,null,null,null,null,null,null,null,null,null,null,null,null,null,null,null,null,null,null,null,null,null,null,null,null,null,null,null,null,null,null,null,null,null,null,null,null,null,null,0,0,0,null,0,null,0]
[null,null,null,null,1,{"$f":"IF(SUM(N(J771),-N(K771))=0,\"\",ROUND(SUM(N(J771),-N(K771))/365,0))","v":""},{"$f":"IF(SUM(N(J771),-N(H771))=0,\"\",SUM(N(J771),-N(H771))/365)","v":""},null,"","",null,180,null,{"$f":"IF(OR(N(M771)=0,N(L771)=0),\"\",SUM(M771,L771))","v":""},null,null,null,null,null,null,null,null,null,null,null,null,null,null,null,null,null,null,null,null,null,null,null,null,null,null,null,null,null,null,null,null,null,null,null,null,null,null,null,null,null,null,{"$f":"D771","v":0},0,0,null,0,null,0]
[null,null,null,null,1,"","",null,"","",null,180,null,"",null,null,null,null,null,null,null,null,null,null,null,null,null,null,null,null,null,null,null,null,null,null,null,null,null,null,null,null,null,null,null,null,null,null,null,null,null,null,null,null,null,null,0,0,0,null,0,null,0]
[null,null,null,null,1,"","",null,"","",null,180,null,"",null,null,null,null,null,null,null,null,null,null,null,null,null,null,null,null,null,null,null,null,null,null,null,null,null,null,null,null,null,null,null,null,null,null,null,null,null,null,null,null,null,null,0,0,0,null,0,null,0]
[null,null,null,null,1,"","",null,"","",null,180,null,"",null,null,null,null,null,null,null,null,null,null,null,null,null,null,null,null,null,null,null,null,null,null,null,null,null,null,null,null,null,null,null,null,null,null,null,null,null,null,null,null,null,null,0,0,0,null,0,null,0]
[null,null,null,null,1,"","",null,"","",null,180,null,"",null,null,null,null,null,null,null,null,null,null,null,null,null,null,null,null,null,null,null,null,null,null,null,null,null,null,null,null,null,null,null,null,null,null,null,null,null,null,null,null,null,null,0,0,0,null,0,null,0]
[null,null,null,null,1,"","",null,"","",null,180,null,"",null,null,null,null,null,null,null,null,null,null,null,null,null,null,null,null,null,null,null,null,null,null,null,null,null,null,null,null,null,null,null,null,null,null,null,null,null,null,null,null,null,null,0,0,0,null,0,null,0]
[null,null,null,null,1,"","",null,"","",null,180,null,"",null,null,null,null,null,null,null,null,null,null,null,null,null,null,null,null,null,null,null,null,null,null,null,null,null,null,null,null,null,null,null,null,null,null,null,null,null,null,null,null,null,null,0,0,0,null,0,null,0]
[null,null,null,null,1,"","",null,"","",null,180,null,"",null,null,null,null,null,null,null,null,null,null,null,null,null,null,null,null,null,null,null,null,null,null,null,null,null,null,null,null,null,null,null,null,null,null,null,null,null,null,null,null,null,null,0,0,0,null,0,null,0]
[null,null,null,null,1,"","",null,"","",null,180,null,"",null,null,null,null,null,null,null,null,null,null,null,null,null,null,null,null,null,null,null,null,null,null,null,null,null,null,null,null,null,null,null,null,null,null,null,null,null,null,null,null,null,null,0,0,0,null,0,null,0]
[null,null,null,null,1,"","",null,"","",null,180,null,"",null,null,null,null,null,null,null,null,null,null,null,null,null,null,null,null,null,null,null,null,null,null,null,null,null,null,null,null,null,null,null,null,null,null,null,null,null,null,null,null,null,null,0,0,0,null,0,null,0]
[null,null,null,null,1,"","",null,"","",null,180,null,"",null,null,null,null,null,null,null,null,null,null,null,null,null,null,null,null,null,null,null,null,null,null,null,null,null,null,null,null,null,null,null,null,null,null,null,null,null,null,null,null,null,null,0,0,0,null,0,null,0]
[null,null,null,null,1,"","",null,"","",null,180,null,"",null,null,null,null,null,null,null,null,null,null,null,null,null,null,null,null,null,null,null,null,null,null,null,null,null,null,null,null,null,null,null,null,null,null,null,null,null,null,null,null,null,null,0,0,0,null,0,null,0]
[null,null,null,null,1,"","",null,"","",null,180,null,"",null,null,null,null,null,null,null,null,null,null,null,null,null,null,null,null,null,null,null,null,null,null,null,null,null,null,null,null,null,null,null,null,null,null,null,null,null,null,null,null,null,null,0,0,0,null,0,null,0]
[null,null,null,null,1,"","",null,"","",null,180,null,"",null,null,null,null,null,null,null,null,null,null,null,null,null,null,null,null,null,null,null,null,null,null,null,null,null,null,null,null,null,null,null,null,null,null,null,null,null,null,null,null,null,null,0,0,0,null,0,null,0]
[null,null,null,null,1,"","",null,"","",null,180,null,"",null,null,null,null,null,null,null,null,null,null,null,null,null,null,null,null,null,null,null,null,null,null,null,null,null,null,null,null,null,null,null,null,null,null,null,null,null,null,null,null,null,null,0,0,0,null,0,null,0]
[null,null,null,null,1,"","",null,"","",null,180,null,"",null,null,null,null,null,null,null,null,null,null,null,null,null,null,null,null,null,null,null,null,null,null,null,null,null,null,null,null,null,null,null,null,null,null,null,null,null,null,null,null,null,null,0,0,0,null,0,null,0]
[null,null,null,null,1,"","",null,"","",null,180,null,"",null,null,null,null,null,null,null,null,null,null,null,null,null,null,null,null,null,null,null,null,null,null,null,null,null,null,null,null,null,null,null,null,null,null,null,null,null,null,null,null,null,null,0,0,0,null,0,null,0]
[null,null,null,null,1,"","",null,"","",null,180,null,"",null,null,null,null,null,null,null,null,null,null,null,null,null,null,null,null,null,null,null,null,null,null,null,null,null,null,null,null,null,null,null,null,null,null,null,null,null,null,null,null,null,null,0,0,0,null,0,null,0]
[null,null,null,null,1,"","",null,"","",null,180,null,"",null,null,null,null,null,null,null,null,null,null,null,null,null,null,null,null,null,null,null,null,null,null,null,null,null,null,null,null,null,null,null,null,null,null,null,null,null,null,null,null,null,null,0,0,0,null,0,null,0]
[null,null,null,null,1,"","",null,"","",null,180,null,"",null,null,null,null,null,null,null,null,null,null,null,null,null,null,null,null,null,null,null,null,null,null,null,null,null,null,null,null,null,null,null,null,null,null,null,null,null,null,null,null,null,null,0,0,0,null,0,null,0]
[null,null,null,null,1,"","",null,"","",null,180,null,"",null,null,null,null,null,null,null,null,null,null,null,null,null,null,null,null,null,null,null,null,null,null,null,null,null,null,null,null,null,null,null,null,null,null,null,null,null,null,null,null,null,null,0,0,0,null,0,null,0]
[null,null,null,null,1,"","",null,"","",null,180,null,"",null,null,null,null,null,null,null,null,null,null,null,null,null,null,null,null,null,null,null,null,null,null,null,null,null,null,null,null,null,null,null,null,null,null,null,null,null,null,null,null,null,null,0,0,0,null,0,null,0]
[null,null,null,null,1,"","",null,"","",null,180,null,"",null,null,null,null,null,null,null,null,null,null,null,null,null,null,null,null,null,null,null,null,null,null,null,null,null,null,null,null,null,null,null,null,null,null,null,null,null,null,null,null,null,null,0,0,0,null,0,null,0]
[null,null,null,null,1,"","",null,"","",null,180,null,"",null,null,null,null,null,null,null,null,null,null,null,null,null,null,null,null,null,null,null,null,null,null,null,null,null,null,null,null,null,null,null,null,null,null,null,null,null,null,null,null,null,null,0,0,0,null,0,null,0]
[null,null,null,null,1,"","",null,"","",null,180,null,"",null,null,null,null,null,null,null,null,null,null,null,null,null,null,null,null,null,null,null,null,null,null,null,null,null,null,null,null,null,null,null,null,null,null,null,null,null,null,null,null,null,null,0,0,0,null,0,null,0]
[null,null,null,null,1,"","",null,"","",null,180,null,"",null,null,null,null,null,null,null,null,null,null,null,null,null,null,null,null,null,null,null,null,null,null,null,null,null,null,null,null,null,null,null,null,null,null,null,null,null,null,null,null,null,null,0,0,0,null,0,null,0]
[null,null,null,null,1,"","",null,{"$f":"IF(OR(N(H797)=0,N(E797)=0),\"\",SUM(N(H797),N(E797*365)))","v":""},{"$f":"IF(B797=\"\",\"\",TODAY())","v":""},null,180,null,"",null,null,null,null,null,null,null,null,null,null,null,null,null,null,null,null,null,null,null,null,null,null,null,null,null,null,null,null,null,null,null,null,null,null,null,null,null,null,null,null,null,null,0,0,0,null,0,null,0]
[null,null,null,null,1,"","",null,"","",null,180,null,"",null,null,null,null,null,null,null,null,null,null,null,null,null,null,null,null,null,null,null,null,null,null,null,null,null,null,null,null,null,null,null,null,null,null,null,null,null,null,null,null,null,null,0,{"$f":"B798","v":0},{"$f":"A798","v":0},null,{"$f":"H798","v":0},null,{"$f":"K798","v":0}]
[null,null,null,null,1,"","",null,"","",null,180,null,"",null,null,null,null,null,null,null,null,null,null,null,null,null,null,null,null,null,null,null,null,null,null,null,null,null,null,null,null,null,null,null,null,null,null,null,null,null,null,null,null,null,null,0,0,0,null,0,null,0]
[null,null,null,null,1,"","",null,"","",null,180,null,"",null,null,null,null,null,null,null,null,null,null,null,null,null,null,null,null,null,null,null,null,null,null,null,null,null,null,null,null,null,null,null,null,null,null,null,null,null,null,null,null,null,null,0,0,0,null,0,null,0]
[null,null,null,null,1,"","",null,"","",null,180,null,"",null,null,null,null,null,null,null,null,null,null,null,null,null,null,null,null,null,null,null,null,null,null,null,null,null,null,null,null,null,null,null,null,null,null,null,null,null,null,null,null,null,null,0,0,0,null,0,null,0]
[null,null,null,null,1,"","",null,"","",null,180,null,"",null,null,null,null,null,null,null,null,null,null,null,null,null,null,null,null,null,null,null,null,null,null,null,null,null,null,null,null,null,null,null,null,null,null,null,null,null,null,null,null,null,null,0,0,0,null,0,null,0]
[null,null,null,null,1,"","",null,"","",null,180,null,"",null,null,null,null,null,null,null,null,null,null,null,null,null,null,null,null,null,null,null,null,null,null,null,null,null,null,null,null,null,null,null,null,null,null,null,null,null,null,null,null,null,null,0,0,0,null,0,null,0]
[null,null,null,null,1,"","",null,"","",null,180,null,"",null,null,null,null,null,null,null,null,null,null,null,null,null,null,null,null,null,null,null,null,null,null,null,null,null,null,null,null,null,null,null,null,null,null,null,null,null,null,null,null,null,null,0,0,0,null,0,null,0]
[null,null,null,null,1,"","",null,"","",null,180,null,"",null,null,null,null,null,null,null,null,null,null,null,null,null,null,null,null,null,null,null,null,null,null,null,null,null,null,null,null,null,null,null,null,null,null,null,null,null,null,null,null,null,null,0,0,0,null,0,null,0]
[null,null,null,null,1,"","",null,"","",null,180,null,"",null,null,null,null,null,null,null,null,null,null,null,null,null,null,null,null,null,null,null,null,null,null,null,null,null,null,null,null,null,null,null,null,null,null,null,null,null,null,null,null,null,null,0,0,0,null,0,null,0]
[null,null,null,null,1,"","",null,"","",null,180,null,"",null,null,null,null,null,null,null,null,null,null,null,null,null,null,null,null,null,null,null,null,null,null,null,null,null,null,null,null,null,null,null,null,null,null,null,null,null,null,null,null,null,null,0,0,0,null,0,null,0]
[null,null,null,null,1,"","",null,"","",null,180,null,"",null,null,null,null,null,null,null,null,null,null,null,null,null,null,null,null,null,null,null,null,null,null,null,null,null,null,null,null,null,null,null,null,null,null,null,null,null,null,null,null,null,null,0,0,0,null,0,null,0]
[null,null,null,null,1,"","",null,"","",null,180,null,"",null,null,null,null,null,null,null,null,null,null,null,null,null,null,null,null,null,null,null,null,null,null,null,null,null,null,null,null,null,null,null,null,null,null,null,null,null,null,null,null,null,null,0,0,0,null,0,null,0]
[null,null,null,null,1,"","",null,"","",null,180,null,"",null,null,null,null,null,null,null,null,null,null,null,null,null,null,null,null,null,null,null,null,null,null,null,null,null,null,null,null,null,null,null,null,null,null,null,null,null,null,null,null,null,null,0,0,0,null,0,null,0]
[null,null,null,null,1,"","",null,"","",null,180,null,"",null,null,null,null,null,null,null,null,null,null,null,null,null,null,null,null,null,null,null,null,null,null,null,null,null,null,null,null,null,null,null,null,null,null,null,null,null,null,null,null,null,null,0,0,0,null,0,null,0]
[null,null,null,null,1,"","",null,"","",null,180,null,"",null,null,null,null,null,null,null,null,null,null,null,null,null,null,null,null,null,null,null,null,null,null,null,null,null,null,null,null,null,null,null,null,null,null,null,null,null,null,null,null,null,null,0,0,0,null,0,null,0]
[null,null,null,null,1,"","",null,"","",null,180,null,"",null,null,null,null,null,null,null,null,null,null,null,null,null,null,null,null,null,null,null,null,null,null,null,null,null,null,null,null,null,null,null,null,null,null,null,null,null,null,null,null,null,null,0,0,0,null,0,null,0]
[null,null,null,null,1,"","",null,"","",null,180,null,"",null,null,null,null,null,null,null,null,null,null,null,null,null,null,null,null,null,null,null,null,null,null,null,null,null,null,null,null,null,null,null,null,null,null,null,null,null,null,null,null,null,null,0,0,0,null,0,null,0]
[null,null,null,null,1,"","",null,"","",null,180,null,"",null,null,null,null,null,null,null,null,null,null,null,null,null,null,null,null,null,null,null,null,null,null,null,null,null,null,null,null,null,null,null,null,null,null,null,null,null,null,null,null,null,null,0,0,0,null,0,null,0]
[null,null,null,null,1,"","",null,"","",null,180,null,"",null,null,null,null,null,null,null,null,null,null,null,null,null,null,null,null,null,null,null,null,null,null,null,null,null,null,null,null,null,null,null,null,null,null,null,null,null,null,null,null,null,null,0,0,0,null,0,null,0]
[null,null,null,null,1,"","",null,"","",null,180,null,"",null,null,null,null,null,null,null,null,null,null,null,null,null,null,null,null,null,null,null,null,null,null,null,null,null,null,null,null,null,null,null,null,null,null,null,null,null,null,null,null,null,null,0,0,0,null,0,null,0]
[null,null,null,null,1,"","",null,"","",null,180,null,"",null,null,null,null,null,null,null,null,null,null,null,null,null,null,null,null,null,null,null,null,null,null,null,null,null,null,null,null,null,null,null,null,null,null,null,null,null,null,null,null,null,null,0,0,0,null,0,null,0]
[null,null,null,null,1,"","",null,"","",null,180,null,"",null,null,null,null,null,null,null,null,null,null,null,null,null,null,null,null,null,null,null,null,null,null,null,null,null,null,null,null,null,null,null,null,null,null,null,null,null,null,null,null,null,null,0,0,0,null,0,null,0]
[null,null,null,null,1,"","",null,"","",null,180,null,"",null,null,null,null,null,null,null,null,null,null,null,null,null,null,null,null,null,null,null,null,null,null,null,null,null,null,null,null,null,null,null,null,null,null,null,null,null,null,null,null,null,null,0,0,0,null,0,null,0]
[null,null,null,null,1,"","",null,"","",null,180,null,"",null,null,null,null,null,null,null,null,null,null,null,null,null,null,null,null,null,null,null,null,null,null,null,null,null,null,null,null,null,null,null,null,null,null,null,null,null,null,null,null,null,null,0,0,0,null,0,null,0]
[null,null,null,null,1,"","",null,"","",null,180,null,"",null,null,null,null,null,null,null,null,null,null,null,null,null,null,null,null,null,null,null,null,null,null,null,null,null,null,null,null,null,null,null,null,null,null,null,null,null,null,null,null,null,null,0,0,0,null,0,null,0]
[null,null,null,null,1,"","",null,"","",null,180,null,"",null,null,null,null,null,null,null,null,null,null,null,null,null,null,null,null,null,null,null,null,null,null,null,null,null,null,null,null,null,null,null,null,null,null,null,null,null,null,null,null,null,null,0,0,0,null,0,null,0]
[null,null,null,null,1,"","",null,"","",null,180,null,"",null,null,null,null,null,null,null,null,null,null,null,null,null,null,null,null,null,null,null,null,null,null,null,null,null,null,null,null,null,null,null,null,null,null,null,null,null,null,null,null,null,null,0,0,0,null,0,null,0]
[null,null,null,null,1,"","",null,"","",null,180,null,"",null,null,null,null,null,null,null,null,null,null,null,null,null,null,null,null,null,null,null,null,null,null,null,null,null,null,null,null,null,null,null,null,null,null,null,null,null,null,null,null,null,null,0,0,0,null,0,null,0]
[null,null,null,null,1,"","",null,"","",null,180,null,"",null,null,null,null,null,null,null,null,null,null,null,null,null,null,null,null,null,null,null,null,null,null,null,null,null,null,null,null,null,null,null,null,null,null,null,null,null,null,null,null,null,null,0,0,0,null,0,null,0]
[null,null,null,null,1,"","",null,"","",null,180,null,"",null,null,null,null,null,null,null,null,null,null,null,null,null,null,null,null,null,null,null,null,null,null,null,null,null,null,null,null,null,null,null,null,null,null,null,null,null,null,null,null,null,null,0,0,0,null,0,null,0]
[null,null,null,null,1,"","",null,"","",null,180,null,"",null,null,null,null,null,null,null,null,null,null,null,null,null,null,null,null,null,null,null,null,null,null,null,null,null,null,null,null,null,null,null,null,null,null,null,null,null,null,null,null,null,null,0,0,0,null,0,null,0]
[null,null,null,null,1,"","",null,"","",null,180,null,"",null,null,null,null,null,null,null,null,null,null,null,null,null,null,null,null,null,null,null,null,null,null,null,null,null,null,null,null,null,null,null,null,null,null,null,null,null,null,null,null,null,null,0,0,0,null,0,null,0]
[null,null,null,null,1,"","",null,"","",null,180,null,"",null,null,null,null,null,null,null,null,null,null,null,null,null,null,null,null,null,null,null,null,null,null,null,null,null,null,null,null,null,null,null,null,null,null,null,null,null,null,null,null,null,null,0,0,0,null,0,null,0]
[null,null,null,null,1,"","",null,"","",null,180,null,"",null,null,null,null,null,null,null,null,null,null,null,null,null,null,null,null,null,null,null,null,null,null,null,null,null,null,null,null,null,null,null,null,null,null,null,null,null,null,null,null,null,null,0,0,0,null,0,null,0]
[null,null,null,null,1,"","",null,"","",null,180,null,"",null,null,null,null,null,null,null,null,null,null,null,null,null,null,null,null,null,null,null,null,null,null,null,null,null,null,null,null,null,null,null,null,null,null,null,null,null,null,null,null,null,null,0,0,0,null,0,null,0]
[null,null,null,null,1,"","",null,"","",null,180,null,"",null,null,null,null,null,null,null,null,null,null,null,null,null,null,null,null,null,null,null,null,null,null,null,null,null,null,null,null,null,null,null,null,null,null,null,null,null,null,null,null,null,null,0,0,0,null,0,null,0]
[null,null,null,null,1,"","",null,"","",null,180,null,"",null,null,null,null,null,null,null,null,null,null,null,null,null,null,null,null,null,null,null,null,null,null,null,null,null,null,null,null,null,null,null,null,null,null,null,null,null,null,null,null,null,null,0,0,0,null,0,null,0]
[null,null,null,null,1,{"$f":"IF(SUM(N(J835),-N(K835))=0,\"\",ROUND(SUM(N(J835),-N(K835))/365,0))","v":""},{"$f":"IF(SUM(N(J835),-N(H835))=0,\"\",SUM(N(J835),-N(H835))/365)","v":""},null,"","",null,180,null,{"$f":"IF(OR(N(M835)=0,N(L835)=0),\"\",SUM(M835,L835))","v":""},null,null,null,null,null,null,null,null,null,null,null,null,null,null,null,null,null,null,null,null,null,null,null,null,null,null,null,null,null,null,null,null,null,null,null,null,null,null,null,null,null,null,{"$f":"D835","v":0},0,0,null,0,null,0]
[null,null,null,null,1,"","",null,"","",null,180,null,"",null,null,null,null,null,null,null,null,null,null,null,null,null,null,null,null,null,null,null,null,null,null,null,null,null,null,null,null,null,null,null,null,null,null,null,null,null,null,null,null,null,null,0,0,0,null,0,null,0]
[null,null,null,null,1,"","",null,"","",null,180,null,"",null,null,null,null,null,null,null,null,null,null,null,null,null,null,null,null,null,null,null,null,null,null,null,null,null,null,null,null,null,null,null,null,null,null,null,null,null,null,null,null,null,null,0,0,0,null,0,null,0]
[null,null,null,null,1,"","",null,"","",null,180,null,"",null,null,null,null,null,null,null,null,null,null,null,null,null,null,null,null,null,null,null,null,null,null,null,null,null,null,null,null,null,null,null,null,null,null,null,null,null,null,null,null,null,null,0,0,0,null,0,null,0]
[null,null,null,null,1,"","",null,"","",null,180,null,"",null,null,null,null,null,null,null,null,null,null,null,null,null,null,null,null,null,null,null,null,null,null,null,null,null,null,null,null,null,null,null,null,null,null,null,null,null,null,null,null,null,null,0,0,0,null,0,null,0]
[null,null,null,null,1,"","",null,"","",null,180,null,"",null,null,null,null,null,null,null,null,null,null,null,null,null,null,null,null,null,null,null,null,null,null,null,null,null,null,null,null,null,null,null,null,null,null,null,null,null,null,null,null,null,null,0,0,0,null,0,null,0]
[null,null,null,null,1,"","",null,"","",null,180,null,"",null,null,null,null,null,null,null,null,null,null,null,null,null,null,null,null,null,null,null,null,null,null,null,null,null,null,null,null,null,null,null,null,null,null,null,null,null,null,null,null,null,null,0,0,0,null,0,null,0]
[null,null,null,null,1,"","",null,"","",null,180,null,"",null,null,null,null,null,null,null,null,null,null,null,null,null,null,null,null,null,null,null,null,null,null,null,null,null,null,null,null,null,null,null,null,null,null,null,null,null,null,null,null,null,null,0,0,0,null,0,null,0]
[null,null,null,null,1,"","",null,"","",null,180,null,"",null,null,null,null,null,null,null,null,null,null,null,null,null,null,null,null,null,null,null,null,null,null,null,null,null,null,null,null,null,null,null,null,null,null,null,null,null,null,null,null,null,null,0,0,0,null,0,null,0]
[null,null,null,null,1,"","",null,"","",null,180,null,"",null,null,null,null,null,null,null,null,null,null,null,null,null,null,null,null,null,null,null,null,null,null,null,null,null,null,null,null,null,null,null,null,null,null,null,null,null,null,null,null,null,null,0,0,0,null,0,null,0]
[null,null,null,null,1,"","",null,"","",null,180,null,"",null,null,null,null,null,null,null,null,null,null,null,null,null,null,null,null,null,null,null,null,null,null,null,null,null,null,null,null,null,null,null,null,null,null,null,null,null,null,null,null,null,null,0,0,0,null,0,null,0]
[null,null,null,null,1,"","",null,"","",null,180,null,"",null,null,null,null,null,null,null,null,null,null,null,null,null,null,null,null,null,null,null,null,null,null,null,null,null,null,null,null,null,null,null,null,null,null,null,null,null,null,null,null,null,null,0,0,0,null,0,null,0]
[null,null,null,null,1,"","",null,"","",null,180,null,"",null,null,null,null,null,null,null,null,null,null,null,null,null,null,null,null,null,null,null,null,null,null,null,null,null,null,null,null,null,null,null,null,null,null,null,null,null,null,null,null,null,null,0,0,0,null,0,null,0]
[null,null,null,null,1,"","",null,"","",null,180,null,"",null,null,null,null,null,null,null,null,null,null,null,null,null,null,null,null,null,null,null,null,null,null,null,null,null,null,null,null,null,null,null,null,null,null,null,null,null,null,null,null,null,null,0,0,0,null,0,null,0]
[null,null,null,null,1,"","",null,"","",null,180,null,"",null,null,null,null,null,null,null,null,null,null,null,null,null,null,null,null,null,null,null,null,null,null,null,null,null,null,null,null,null,null,null,null,null,null,null,null,null,null,null,null,null,null,0,0,0,null,0,null,0]
[null,null,null,null,1,"","",null,"","",null,180,null,"",null,null,null,null,null,null,null,null,null,null,null,null,null,null,null,null,null,null,null,null,null,null,null,null,null,null,null,null,null,null,null,null,null,null,null,null,null,null,null,null,null,null,0,0,0,null,0,null,0]
[null,null,null,null,1,"","",null,"","",null,180,null,"",null,null,null,null,null,null,null,null,null,null,null,null,null,null,null,null,null,null,null,null,null,null,null,null,null,null,null,null,null,null,null,null,null,null,null,null,null,null,null,null,null,null,0,0,0,null,0,null,0]
[null,null,null,null,1,"","",null,"","",null,180,null,"",null,null,null,null,null,null,null,null,null,null,null,null,null,null,null,null,null,null,null,null,null,null,null,null,null,null,null,null,null,null,null,null,null,null,null,null,null,null,null,null,null,null,0,0,0,null,0,null,0]
[null,null,null,null,1,"","",null,"","",null,180,null,"",null,null,null,null,null,null,null,null,null,null,null,null,null,null,null,null,null,null,null,null,null,null,null,null,null,null,null,null,null,null,null,null,null,null,null,null,null,null,null,null,null,null,0,0,0,null,0,null,0]
[null,null,null,null,1,"","",null,"","",null,180,null,"",null,null,null,null,null,null,null,null,null,null,null,null,null,null,null,null,null,null,null,null,null,null,null,null,null,null,null,null,null,null,null,null,null,null,null,null,null,null,null,null,null,null,0,0,0,null,0,null,0]
[null,null,null,null,1,"","",null,"","",null,180,null,"",null,null,null,null,null,null,null,null,null,null,null,null,null,null,null,null,null,null,null,null,null,null,null,null,null,null,null,null,null,null,null,null,null,null,null,null,null,null,null,null,null,null,0,0,0,null,0,null,0]
[null,null,null,null,1,"","",null,"","",null,180,null,"",null,null,null,null,null,null,null,null,null,null,null,null,null,null,null,null,null,null,null,null,null,null,null,null,null,null,null,null,null,null,null,null,null,null,null,null,null,null,null,null,null,null,0,0,0,null,0,null,0]
[null,null,null,null,1,"","",null,"","",null,180,null,"",null,null,null,null,null,null,null,null,null,null,null,null,null,null,null,null,null,null,null,null,null,null,null,null,null,null,null,null,null,null,null,null,null,null,null,null,null,null,null,null,null,null,0,0,0,null,0,null,0]
[null,null,null,null,1,"","",null,"","",null,180,null,"",null,null,null,null,null,null,null,null,null,null,null,null,null,null,null,null,null,null,null,null,null,null,null,null,null,null,null,null,null,null,null,null,null,null,null,null,null,null,null,null,null,null,0,0,0,null,0,null,0]
[null,null,null,null,1,"","",null,"","",null,180,null,"",null,null,null,null,null,null,null,null,null,null,null,null,null,null,null,null,null,null,null,null,null,null,null,null,null,null,null,null,null,null,null,null,null,null,null,null,null,null,null,null,null,null,0,0,0,null,0,null,0]
[null,null,null,null,1,"","",null,"","",null,180,null,"",null,null,null,null,null,null,null,null,null,null,null,null,null,null,null,null,null,null,null,null,null,null,null,null,null,null,null,null,null,null,null,null,null,null,null,null,null,null,null,null,null,null,0,0,0,null,0,null,0]
[null,null,null,null,1,"","",null,{"$f":"IF(OR(N(H861)=0,N(E861)=0),\"\",SUM(N(H861),N(E861*365)))","v":""},{"$f":"IF(B861=\"\",\"\",TODAY())","v":""},null,180,null,"",null,null,null,null,null,null,null,null,null,null,null,null,null,null,null,null,null,null,null,null,null,null,null,null,null,null,null,null,null,null,null,null,null,null,null,null,null,null,null,null,null,null,0,0,0,null,0,null,0]
[null,null,null,null,1,"","",null,"","",null,180,null,"",null,null,null,null,null,null,null,null,null,null,null,null,null,null,null,null,null,null,null,null,null,null,null,null,null,null,null,null,null,null,null,null,null,null,null,null,null,null,null,null,null,null,0,{"$f":"B862","v":0},{"$f":"A862","v":0},null,{"$f":"H862","v":0},null,{"$f":"K862","v":0}]
[null,null,null,null,1,"","",null,"","",null,180,null,"",null,null,null,null,null,null,null,null,null,null,null,null,null,null,null,null,null,null,null,null,null,null,null,null,null,null,null,null,null,null,null,null,null,null,null,null,null,null,null,null,null,null,0,0,0,null,0,null,0]
[null,null,null,null,1,"","",null,"","",null,180,null,"",null,null,null,null,null,null,null,null,null,null,null,null,null,null,null,null,null,null,null,null,null,null,null,null,null,null,null,null,null,null,null,null,null,null,null,null,null,null,null,null,null,null,0,0,0,null,0,null,0]
[null,null,null,null,1,"","",null,"","",null,180,null,"",null,null,null,null,null,null,null,null,null,null,null,null,null,null,null,null,null,null,null,null,null,null,null,null,null,null,null,null,null,null,null,null,null,null,null,null,null,null,null,null,null,null,0,0,0,null,0,null,0]
[null,null,null,null,1,"","",null,"","",null,180,null,"",null,null,null,null,null,null,null,null,null,null,null,null,null,null,null,null,null,null,null,null,null,null,null,null,null,null,null,null,null,null,null,null,null,null,null,null,null,null,null,null,null,null,0,0,0,null,0,null,0]
[null,null,null,null,1,"","",null,"","",null,180,null,"",null,null,null,null,null,null,null,null,null,null,null,null,null,null,null,null,null,null,null,null,null,null,null,null,null,null,null,null,null,null,null,null,null,null,null,null,null,null,null,null,null,null,0,0,0,null,0,null,0]
[null,null,null,null,1,"","",null,"","",null,180,null,"",null,null,null,null,null,null,null,null,null,null,null,null,null,null,null,null,null,null,null,null,null,null,null,null,null,null,null,null,null,null,null,null,null,null,null,null,null,null,null,null,null,null,0,0,0,null,0,null,0]
[null,null,null,null,1,"","",null,"","",null,180,null,"",null,null,null,null,null,null,null,null,null,null,null,null,null,null,null,null,null,null,null,null,null,null,null,null,null,null,null,null,null,null,null,null,null,null,null,null,null,null,null,null,null,null,0,0,0,null,0,null,0]
[null,null,null,null,1,"","",null,"","",null,180,null,"",null,null,null,null,null,null,null,null,null,null,null,null,null,null,null,null,null,null,null,null,null,null,null,null,null,null,null,null,null,null,null,null,null,null,null,null,null,null,null,null,null,null,0,0,0,null,0,null,0]
[null,null,null,null,1,"","",null,"","",null,180,null,"",null,null,null,null,null,null,null,null,null,null,null,null,null,null,null,null,null,null,null,null,null,null,null,null,null,null,null,null,null,null,null,null,null,null,null,null,null,null,null,null,null,null,0,0,0,null,0,null,0]
[null,null,null,null,1,"","",null,"","",null,180,null,"",null,null,null,null,null,null,null,null,null,null,null,null,null,null,null,null,null,null,null,null,null,null,null,null,null,null,null,null,null,null,null,null,null,null,null,null,null,null,null,null,null,null,0,0,0,null,0,null,0]
[null,null,null,null,1,"","",null,"","",null,180,null,"",null,null,null,null,null,null,null,null,null,null,null,null,null,null,null,null,null,null,null,null,null,null,null,null,null,null,null,null,null,null,null,null,null,null,null,null,null,null,null,null,null,null,0,0,0,null,0,null,0]
[null,null,null,null,1,"","",null,"","",null,180,null,"",null,null,null,null,null,null,null,null,null,null,null,null,null,null,null,null,null,null,null,null,null,null,null,null,null,null,null,null,null,null,null,null,null,null,null,null,null,null,null,null,null,null,0,0,0,null,0,null,0]
[null,null,null,null,1,"","",null,"","",null,180,null,"",null,null,null,null,null,null,null,null,null,null,null,null,null,null,null,null,null,null,null,null,null,null,null,null,null,null,null,null,null,null,null,null,null,null,null,null,null,null,null,null,null,null,0,0,0,null,0,null,0]
[null,null,null,null,1,"","",null,"","",null,180,null,"",null,null,null,null,null,null,null,null,null,null,null,null,null,null,null,null,null,null,null,null,null,null,null,null,null,null,null,null,null,null,null,null,null,null,null,null,null,null,null,null,null,null,0,0,0,null,0,null,0]
[null,null,null,null,1,"","",null,"","",null,180,null,"",null,null,null,null,null,null,null,null,null,null,null,null,null,null,null,null,null,null,null,null,null,null,null,null,null,null,null,null,null,null,null,null,null,null,null,null,null,null,null,null,null,null,0,0,0,null,0,null,0]
[null,null,null,null,1,"","",null,"","",null,180,null,"",null,null,null,null,null,null,null,null,null,null,null,null,null,null,null,null,null,null,null,null,null,null,null,null,null,null,null,null,null,null,null,null,null,null,null,null,null,null,null,null,null,null,0,0,0,null,0,null,0]
[null,null,null,null,1,"","",null,"","",null,180,null,"",null,null,null,null,null,null,null,null,null,null,null,null,null,null,null,null,null,null,null,null,null,null,null,null,null,null,null,null,null,null,null,null,null,null,null,null,null,null,null,null,null,null,0,0,0,null,0,null,0]
[null,null,null,null,1,"","",null,"","",null,180,null,"",null,null,null,null,null,null,null,null,null,null,null,null,null,null,null,null,null,null,null,null,null,null,null,null,null,null,null,null,null,null,null,null,null,null,null,null,null,null,null,null,null,null,0,0,0,null,0,null,0]
[null,null,null,null,1,"","",null,"","",null,180,null,"",null,null,null,null,null,null,null,null,null,null,null,null,null,null,null,null,null,null,null,null,null,null,null,null,null,null,null,null,null,null,null,null,null,null,null,null,null,null,null,null,null,null,0,0,0,null,0,null,0]
[null,null,null,null,1,"","",null,"","",null,180,null,"",null,null,null,null,null,null,null,null,null,null,null,null,null,null,null,null,null,null,null,null,null,null,null,null,null,null,null,null,null,null,null,null,null,null,null,null,null,null,null,null,null,null,0,0,0,null,0,null,0]
[null,null,null,null,1,"","",null,"","",null,180,null,"",null,null,null,null,null,null,null,null,null,null,null,null,null,null,null,null,null,null,null,null,null,null,null,null,null,null,null,null,null,null,null,null,null,null,null,null,null,null,null,null,null,null,0,0,0,null,0,null,0]
[null,null,null,null,1,"","",null,"","",null,180,null,"",null,null,null,null,null,null,null,null,null,null,null,null,null,null,null,null,null,null,null,null,null,null,null,null,null,null,null,null,null,null,null,null,null,null,null,null,null,null,null,null,null,null,0,0,0,null,0,null,0]
[null,null,null,null,1,"","",null,"","",null,180,null,"",null,null,null,null,null,null,null,null,null,null,null,null,null,null,null,null,null,null,null,null,null,null,null,null,null,null,null,null,null,null,null,null,null,null,null,null,null,null,null,null,null,null,0,0,0,null,0,null,0]
[null,null,null,null,1,"","",null,"","",null,180,null,"",null,null,null,null,null,null,null,null,null,null,null,null,null,null,null,null,null,null,null,null,null,null,null,null,null,null,null,null,null,null,null,null,null,null,null,null,null,null,null,null,null,null,0,0,0,null,0,null,0]
[null,null,null,null,1,"","",null,"","",null,180,null,"",null,null,null,null,null,null,null,null,null,null,null,null,null,null,null,null,null,null,null,null,null,null,null,null,null,null,null,null,null,null,null,null,null,null,null,null,null,null,null,null,null,null,0,0,0,null,0,null,0]
[null,null,null,null,1,"","",null,"","",null,180,null,"",null,null,null,null,null,null,null,null,null,null,null,null,null,null,null,null,null,null,null,null,null,null,null,null,null,null,null,null,null,null,null,null,null,null,null,null,null,null,null,null,null,null,0,0,0,null,0,null,0]
[null,null,null,null,1,"","",null,"","",null,180,null,"",null,null,null,null,null,null,null,null,null,null,null,null,null,null,null,null,null,null,null,null,null,null,null,null,null,null,null,null,null,null,null,null,null,null,null,null,null,null,null,null,null,null,0,0,0,null,0,null,0]
[null,null,null,null,1,"","",null,"","",null,180,null,"",null,null,null,null,null,null,null,null,null,null,null,null,null,null,null,null,null,null,null,null,null,null,null,null,null,null,null,null,null,null,null,null,null,null,null,null,null,null,null,null,null,null,0,0,0,null,0,null,0]
[null,null,null,null,1,"","",null,"","",null,180,null,"",null,null,null,null,null,null,null,null,null,null,null,null,null,null,null,null,null,null,null,null,null,null,null,null,null,null,null,null,null,null,null,null,null,null,null,null,null,null,null,null,null,null,0,0,0,null,0,null,0]
[null,null,null,null,1,"","",null,"","",null,180,null,"",null,null,null,null,null,null,null,null,null,null,null,null,null,null,null,null,null,null,null,null,null,null,null,null,null,null,null,null,null,null,null,null,null,null,null,null,null,null,null,null,null,null,0,0,0,null,0,null,0]
[null,null,null,null,1,"","",null,"","",null,180,null,"",null,null,null,null,null,null,null,null,null,null,null,null,null,null,null,null,null,null,null,null,null,null,null,null,null,null,null,null,null,null,null,null,null,null,null,null,null,null,null,null,null,null,0,0,0,null,0,null,0]
[null,null,null,null,1,"","",null,"","",null,180,null,"",null,null,null,null,null,null,null,null,null,null,null,null,null,null,null,null,null,null,null,null,null,null,null,null,null,null,null,null,null,null,null,null,null,null,null,null,null,null,null,null,null,null,0,0,0,null,0,null,0]
[null,null,null,null,1,"","",null,"","",null,180,null,"",null,null,null,null,null,null,null,null,null,null,null,null,null,null,null,null,null,null,null,null,null,null,null,null,null,null,null,null,null,null,null,null,null,null,null,null,null,null,null,null,null,null,0,0,0,null,0,null,0]
[null,null,null,null,1,"","",null,"","",null,180,null,"",null,null,null,null,null,null,null,null,null,null,null,null,null,null,null,null,null,null,null,null,null,null,null,null,null,null,null,null,null,null,null,null,null,null,null,null,null,null,null,null,null,null,0,0,0,null,0,null,0]
[null,null,null,null,1,"","",null,"","",null,180,null,"",null,null,null,null,null,null,null,null,null,null,null,null,null,null,null,null,null,null,null,null,null,null,null,null,null,null,null,null,null,null,null,null,null,null,null,null,null,null,null,null,null,null,0,0,0,null,0,null,0]
[null,null,null,null,1,"","",null,"","",null,180,null,"",null,null,null,null,null,null,null,null,null,null,null,null,null,null,null,null,null,null,null,null,null,null,null,null,null,null,null,null,null,null,null,null,null,null,null,null,null,null,null,null,null,null,0,0,0,null,0,null,0]
[null,null,null,null,1,{"$f":"IF(SUM(N(J899),-N(K899))=0,\"\",ROUND(SUM(N(J899),-N(K899))/365,0))","v":""},{"$f":"IF(SUM(N(J899),-N(H899))=0,\"\",SUM(N(J899),-N(H899))/365)","v":""},null,"","",null,180,null,{"$f":"IF(OR(N(M899)=0,N(L899)=0),\"\",SUM(M899,L899))","v":""},null,null,null,null,null,null,null,null,null,null,null,null,null,null,null,null,null,null,null,null,null,null,null,null,null,null,null,null,null,null,null,null,null,null,null,null,null,null,null,null,null,null,{"$f":"D899","v":0},0,0,null,0,null,0]
[null,null,null,null,1,"","",null,"","",null,180,null,"",null,null,null,null,null,null,null,null,null,null,null,null,null,null,null,null,null,null,null,null,null,null,null,null,null,null,null,null,null,null,null,null,null,null,null,null,null,null,null,null,null,null,0,0,0,null,0,null,0]
[null,null,null,null,1,"","",null,"","",null,180,null,"",null,null,null,null,null,null,null,null,null,null,null,null,null,null,null,null,null,null,null,null,null,null,null,null,null,null,null,null,null,null,null,null,null,null,null,null,null,null,null,null,null,null,0,0,0,null,0,null,0]
[null,null,null,null,1,"","",null,"","",null,180,null,"",null,null,null,null,null,null,null,null,null,null,null,null,null,null,null,null,null,null,null,null,null,null,null,null,null,null,null,null,null,null,null,null,null,null,null,null,null,null,null,null,null,null,0,0,0,null,0,null,0]
[null,null,null,null,1,"","",null,"","",null,180,null,"",null,null,null,null,null,null,null,null,null,null,null,null,null,null,null,null,null,null,null,null,null,null,null,null,null,null,null,null,null,null,null,null,null,null,null,null,null,null,null,null,null,null,0,0,0,null,0,null,0]
[null,null,null,null,1,"","",null,"","",null,180,null,"",null,null,null,null,null,null,null,null,null,null,null,null,null,null,null,null,null,null,null,null,null,null,null,null,null,null,null,null,null,null,null,null,null,null,null,null,null,null,null,null,null,null,0,0,0,null,0,null,0]
[null,null,null,null,1,"","",null,"","",null,180,null,"",null,null,null,null,null,null,null,null,null,null,null,null,null,null,null,null,null,null,null,null,null,null,null,null,null,null,null,null,null,null,null,null,null,null,null,null,null,null,null,null,null,null,0,0,0,null,0,null,0]
[null,null,null,null,1,"","",null,"","",null,180,null,"",null,null,null,null,null,null,null,null,null,null,null,null,null,null,null,null,null,null,null,null,null,null,null,null,null,null,null,null,null,null,null,null,null,null,null,null,null,null,null,null,null,null,0,0,0,null,0,null,0]
[null,null,null,null,1,"","",null,"","",null,180,null,"",null,null,null,null,null,null,null,null,null,null,null,null,null,null,null,null,null,null,null,null,null,null,null,null,null,null,null,null,null,null,null,null,null,null,null,null,null,null,null,null,null,null,0,0,0,null,0,null,0]
[null,null,null,null,1,"","",null,"","",null,180,null,"",null,null,null,null,null,null,null,null,null,null,null,null,null,null,null,null,null,null,null,null,null,null,null,null,null,null,null,null,null,null,null,null,null,null,null,null,null,null,null,null,null,null,0,0,0,null,0,null,0]
[null,null,null,null,1,"","",null,"","",null,180,null,"",null,null,null,null,null,null,null,null,null,null,null,null,null,null,null,null,null,null,null,null,null,null,null,null,null,null,null,null,null,null,null,null,null,null,null,null,null,null,null,null,null,null,0,0,0,null,0,null,0]
[null,null,null,null,1,"","",null,"","",null,180,null,"",null,null,null,null,null,null,null,null,null,null,null,null,null,null,null,null,null,null,null,null,null,null,null,null,null,null,null,null,null,null,null,null,null,null,null,null,null,null,null,null,null,null,0,0,0,null,0,null,0]
[null,null,null,null,1,"","",null,"","",null,180,null,"",null,null,null,null,null,null,null,null,null,null,null,null,null,null,null,null,null,null,null,null,null,null,null,null,null,null,null,null,null,null,null,null,null,null,null,null,null,null,null,null,null,null,0,0,0,null,0,null,0]
[null,null,null,null,1,"","",null,"","",null,180,null,"",null,null,null,null,null,null,null,null,null,null,null,null,null,null,null,null,null,null,null,null,null,null,null,null,null,null,null,null,null,null,null,null,null,null,null,null,null,null,null,null,null,null,0,0,0,null,0,null,0]
[null,null,null,null,1,"","",null,"","",null,180,null,"",null,null,null,null,null,null,null,null,null,null,null,null,null,null,null,null,null,null,null,null,null,null,null,null,null,null,null,null,null,null,null,null,null,null,null,null,null,null,null,null,null,null,0,0,0,null,0,null,0]
[null,null,null,null,1,"","",null,"","",null,180,null,"",null,null,null,null,null,null,null,null,null,null,null,null,null,null,null,null,null,null,null,null,null,null,null,null,null,null,null,null,null,null,null,null,null,null,null,null,null,null,null,null,null,null,0,0,0,null,0,null,0]
[null,null,null,null,1,"","",null,"","",null,180,null,"",null,null,null,null,null,null,null,null,null,null,null,null,null,null,null,null,null,null,null,null,null,null,null,null,null,null,null,null,null,null,null,null,null,null,null,null,null,null,null,null,null,null,0,0,0,null,0,null,0]
[null,null,null,null,1,"","",null,"","",null,180,null,"",null,null,null,null,null,null,null,null,null,null,null,null,null,null,null,null,null,null,null,null,null,null,null,null,null,null,null,null,null,null,null,null,null,null,null,null,null,null,null,null,null,null,0,0,0,null,0,null,0]
[null,null,null,null,1,"","",null,"","",null,180,null,"",null,null,null,null,null,null,null,null,null,null,null,null,null,null,null,null,null,null,null,null,null,null,null,null,null,null,null,null,null,null,null,null,null,null,null,null,null,null,null,null,null,null,0,0,0,null,0,null,0]
[null,null,null,null,1,"","",null,"","",null,180,null,"",null,null,null,null,null,null,null,null,null,null,null,null,null,null,null,null,null,null,null,null,null,null,null,null,null,null,null,null,null,null,null,null,null,null,null,null,null,null,null,null,null,null,0,0,0,null,0,null,0]
[null,null,null,null,1,"","",null,"","",null,180,null,"",null,null,null,null,null,null,null,null,null,null,null,null,null,null,null,null,null,null,null,null,null,null,null,null,null,null,null,null,null,null,null,null,null,null,null,null,null,null,null,null,null,null,0,0,0,null,0,null,0]
[null,null,null,null,1,"","",null,"","",null,180,null,"",null,null,null,null,null,null,null,null,null,null,null,null,null,null,null,null,null,null,null,null,null,null,null,null,null,null,null,null,null,null,null,null,null,null,null,null,null,null,null,null,null,null,0,0,0,null,0,null,0]
[null,null,null,null,1,"","",null,"","",null,180,null,"",null,null,null,null,null,null,null,null,null,null,null,null,null,null,null,null,null,null,null,null,null,null,null,null,null,null,null,null,null,null,null,null,null,null,null,null,null,null,null,null,null,null,0,0,0,null,0,null,0]
[null,null,null,null,1,"","",null,"","",null,180,null,"",null,null,null,null,null,null,null,null,null,null,null,null,null,null,null,null,null,null,null,null,null,null,null,null,null,null,null,null,null,null,null,null,null,null,null,null,null,null,null,null,null,null,0,0,0,null,0,null,0]
[null,null,null,null,1,"","",null,"","",null,180,null,"",null,null,null,null,null,null,null,null,null,null,null,null,null,null,null,null,null,null,null,null,null,null,null,null,null,null,null,null,null,null,null,null,null,null,null,null,null,null,null,null,null,null,0,0,0,null,0,null,0]
[null,null,null,null,1,"","",null,"","",null,180,null,"",null,null,null,null,null,null,null,null,null,null,null,null,null,null,null,null,null,null,null,null,null,null,null,null,null,null,null,null,null,null,null,null,null,null,null,null,null,null,null,null,null,null,0,0,0,null,0,null,0]
[null,null,null,null,1,"","",null,{"$f":"IF(OR(N(H925)=0,N(E925)=0),\"\",SUM(N(H925),N(E925*365)))","v":""},{"$f":"IF(B925=\"\",\"\",TODAY())","v":""},null,180,null,"",null,null,null,null,null,null,null,null,null,null,null,null,null,null,null,null,null,null,null,null,null,null,null,null,null,null,null,null,null,null,null,null,null,null,null,null,null,null,null,null,null,null,0,0,0,null,0,null,0]
[null,null,null,null,1,"","",null,"","",null,180,null,"",null,null,null,null,null,null,null,null,null,null,null,null,null,null,null,null,null,null,null,null,null,null,null,null,null,null,null,null,null,null,null,null,null,null,null,null,null,null,null,null,null,null,0,{"$f":"B926","v":0},{"$f":"A926","v":0},null,{"$f":"H926","v":0},null,{"$f":"K926","v":0}]
[null,null,null,null,1,"","",null,"","",null,180,null,"",null,null,null,null,null,null,null,null,null,null,null,null,null,null,null,null,null,null,null,null,null,null,null,null,null,null,null,null,null,null,null,null,null,null,null,null,null,null,null,null,null,null,0,0,0,null,0,null,0]
[null,null,null,null,1,"","",null,"","",null,180,null,"",null,null,null,null,null,null,null,null,null,null,null,null,null,null,null,null,null,null,null,null,null,null,null,null,null,null,null,null,null,null,null,null,null,null,null,null,null,null,null,null,null,null,0,0,0,null,0,null,0]
[null,null,null,null,1,"","",null,"","",null,180,null,"",null,null,null,null,null,null,null,null,null,null,null,null,null,null,null,null,null,null,null,null,null,null,null,null,null,null,null,null,null,null,null,null,null,null,null,null,null,null,null,null,null,null,0,0,0,null,0,null,0]
[null,null,null,null,1,"","",null,"","",null,180,null,"",null,null,null,null,null,null,null,null,null,null,null,null,null,null,null,null,null,null,null,null,null,null,null,null,null,null,null,null,null,null,null,null,null,null,null,null,null,null,null,null,null,null,0,0,0,null,0,null,0]
[null,null,null,null,1,"","",null,"","",null,180,null,"",null,null,null,null,null,null,null,null,null,null,null,null,null,null,null,null,null,null,null,null,null,null,null,null,null,null,null,null,null,null,null,null,null,null,null,null,null,null,null,null,null,null,0,0,0,null,0,null,0]
[null,null,null,null,1,"","",null,"","",null,180,null,"",null,null,null,null,null,null,null,null,null,null,null,null,null,null,null,null,null,null,null,null,null,null,null,null,null,null,null,null,null,null,null,null,null,null,null,null,null,null,null,null,null,null,0,0,0,null,0,null,0]
[null,null,null,null,1,"","",null,"","",null,180,null,"",null,null,null,null,null,null,null,null,null,null,null,null,null,null,null,null,null,null,null,null,null,null,null,null,null,null,null,null,null,null,null,null,null,null,null,null,null,null,null,null,null,null,0,0,0,null,0,null,0]
[null,null,null,null,1,"","",null,"","",null,180,null,"",null,null,null,null,null,null,null,null,null,null,null,null,null,null,null,null,null,null,null,null,null,null,null,null,null,null,null,null,null,null,null,null,null,null,null,null,null,null,null,null,null,null,0,0,0,null,0,null,0]
[null,null,null,null,1,"","",null,"","",null,180,null,"",null,null,null,null,null,null,null,null,null,null,null,null,null,null,null,null,null,null,null,null,null,null,null,null,null,null,null,null,null,null,null,null,null,null,null,null,null,null,null,null,null,null,0,0,0,null,0,null,0]
[null,null,null,null,1,"","",null,"","",null,180,null,"",null,null,null,null,null,null,null,null,null,null,null,null,null,null,null,null,null,null,null,null,null,null,null,null,null,null,null,null,null,null,null,null,null,null,null,null,null,null,null,null,null,null,0,0,0,null,0,null,0]
[null,null,null,null,1,"","",null,"","",null,180,null,"",null,null,null,null,null,null,null,null,null,null,null,null,null,null,null,null,null,null,null,null,null,null,null,null,null,null,null,null,null,null,null,null,null,null,null,null,null,null,null,null,null,null,0,0,0,null,0,null,0]
[null,null,null,null,1,"","",null,"","",null,180,null,"",null,null,null,null,null,null,null,null,null,null,null,null,null,null,null,null,null,null,null,null,null,null,null,null,null,null,null,null,null,null,null,null,null,null,null,null,null,null,null,null,null,null,0,0,0,null,0,null,0]
[null,null,null,null,1,"","",null,"","",null,180,null,"",null,null,null,null,null,null,null,null,null,null,null,null,null,null,null,null,null,null,null,null,null,null,null,null,null,null,null,null,null,null,null,null,null,null,null,null,null,null,null,null,null,null,0,0,0,null,0,null,0]
[null,null,null,null,1,"","",null,"","",null,180,null,"",null,null,null,null,null,null,null,null,null,null,null,null,null,null,null,null,null,null,null,null,null,null,null,null,null,null,null,null,null,null,null,null,null,null,null,null,null,null,null,null,null,null,0,0,0,null,0,null,0]
[null,null,null,null,1,"","",null,"","",null,180,null,"",null,null,null,null,null,null,null,null,null,null,null,null,null,null,null,null,null,null,null,null,null,null,null,null,null,null,null,null,null,null,null,null,null,null,null,null,null,null,null,null,null,null,0,0,0,null,0,null,0]
[null,null,null,null,1,"","",null,"","",null,180,null,"",null,null,null,null,null,null,null,null,null,null,null,null,null,null,null,null,null,null,null,null,null,null,null,null,null,null,null,null,null,null,null,null,null,null,null,null,null,null,null,null,null,null,0,0,0,null,0,null,0]
[null,null,null,null,1,"","",null,"","",null,180,null,"",null,null,null,null,null,null,null,null,null,null,null,null,null,null,null,null,null,null,null,null,null,null,null,null,null,null,null,null,null,null,null,null,null,null,null,null,null,null,null,null,null,null,0,0,0,null,0,null,0]
[null,null,null,null,1,"","",null,"","",null,180,null,"",null,null,null,null,null,null,null,null,null,null,null,null,null,null,null,null,null,null,null,null,null,null,null,null,null,null,null,null,null,null,null,null,null,null,null,null,null,null,null,null,null,null,0,0,0,null,0,null,0]
[null,null,null,null,1,"","",null,"","",null,180,null,"",null,null,null,null,null,null,null,null,null,null,null,null,null,null,null,null,null,null,null,null,null,null,null,null,null,null,null,null,null,null,null,null,null,null,null,null,null,null,null,null,null,null,0,0,0,null,0,null,0]
[null,null,null,null,1,"","",null,"","",null,180,null,"",null,null,null,null,null,null,null,null,null,null,null,null,null,null,null,null,null,null,null,null,null,null,null,null,null,null,null,null,null,null,null,null,null,null,null,null,null,null,null,null,null,null,0,0,0,null,0,null,0]
[null,null,null,null,1,"","",null,"","",null,180,null,"",null,null,null,null,null,null,null,null,null,null,null,null,null,null,null,null,null,null,null,null,null,null,null,null,null,null,null,null,null,null,null,null,null,null,null,null,null,null,null,null,null,null,0,0,0,null,0,null,0]
[null,null,null,null,1,"","",null,"","",null,180,null,"",null,null,null,null,null,null,null,null,null,null,null,null,null,null,null,null,null,null,null,null,null,null,null,null,null,null,null,null,null,null,null,null,null,null,null,null,null,null,null,null,null,null,0,0,0,null,0,null,0]
[null,null,null,null,1,"","",null,"","",null,180,null,"",null,null,null,null,null,null,null,null,null,null,null,null,null,null,null,null,null,null,null,null,null,null,null,null,null,null,null,null,null,null,null,null,null,null,null,null,null,null,null,null,null,null,0,0,0,null,0,null,0]
[null,null,null,null,1,"","",null,"","",null,180,null,"",null,null,null,null,null,null,null,null,null,null,null,null,null,null,null,null,null,null,null,null,null,null,null,null,null,null,null,null,null,null,null,null,null,null,null,null,null,null,null,null,null,null,0,0,0,null,0,null,0]
[null,null,null,null,1,"","",null,"","",null,180,null,"",null,null,null,null,null,null,null,null,null,null,null,null,null,null,null,null,null,null,null,null,null,null,null,null,null,null,null,null,null,null,null,null,null,null,null,null,null,null,null,null,null,null,0,0,0,null,0,null,0]
[null,null,null,null,1,"","",null,"","",null,180,null,"",null,null,null,null,null,null,null,null,null,null,null,null,null,null,null,null,null,null,null,null,null,null,null,null,null,null,null,null,null,null,null,null,null,null,null,null,null,null,null,null,null,null,0,0,0,null,0,null,0]
[null,null,null,null,1,"","",null,"","",null,180,null,"",null,null,null,null,null,null,null,null,null,null,null,null,null,null,null,null,null,null,null,null,null,null,null,null,null,null,null,null,null,null,null,null,null,null,null,null,null,null,null,null,null,null,0,0,0,null,0,null,0]
[null,null,null,null,1,"","",null,"","",null,180,null,"",null,null,null,null,null,null,null,null,null,null,null,null,null,null,null,null,null,null,null,null,null,null,null,null,null,null,null,null,null,null,null,null,null,null,null,null,null,null,null,null,null,null,0,0,0,null,0,null,0]
[null,null,null,null,1,"","",null,"","",null,180,null,"",null,null,null,null,null,null,null,null,null,null,null,null,null,null,null,null,null,null,null,null,null,null,null,null,null,null,null,null,null,null,null,null,null,null,null,null,null,null,null,null,null,null,0,0,0,null,0,null,0]
[null,null,null,null,1,"","",null,"","",null,180,null,"",null,null,null,null,null,null,null,null,null,null,null,null,null,null,null,null,null,null,null,null,null,null,null,null,null,null,null,null,null,null,null,null,null,null,null,null,null,null,null,null,null,null,0,0,0,null,0,null,0]
[null,null,null,null,1,"","",null,"","",null,180,null,"",null,null,null,null,null,null,null,null,null,null,null,null,null,null,null,null,null,null,null,null,null,null,null,null,null,null,null,null,null,null,null,null,null,null,null,null,null,null,null,null,null,null,0,0,0,null,0,null,0]
[null,null,null,null,1,"","",null,"","",null,180,null,"",null,null,null,null,null,null,null,null,null,null,null,null,null,null,null,null,null,null,null,null,null,null,null,null,null,null,null,null,null,null,null,null,null,null,null,null,null,null,null,null,null,null,0,0,0,null,0,null,0]
[null,null,null,null,1,"","",null,"","",null,180,null,"",null,null,null,null,null,null,null,null,null,null,null,null,null,null,null,null,null,null,null,null,null,null,null,null,null,null,null,null,null,null,null,null,null,null,null,null,null,null,null,null,null,null,0,0,0,null,0,null,0]
[null,null,null,null,1,"","",null,"","",null,180,null,"",null,null,null,null,null,null,null,null,null,null,null,null,null,null,null,null,null,null,null,null,null,null,null,null,null,null,null,null,null,null,null,null,null,null,null,null,null,null,null,null,null,null,0,0,0,null,0,null,0]
[null,null,null,null,1,"","",null,"","",null,180,null,"",null,null,null,null,null,null,null,null,null,null,null,null,null,null,null,null,null,null,null,null,null,null,null,null,null,null,null,null,null,null,null,null,null,null,null,null,null,null,null,null,null,null,0,0,0,null,0,null,0]
[null,null,null,null,1,"","",null,"","",null,180,null,"",null,null,null,null,null,null,null,null,null,null,null,null,null,null,null,null,null,null,null,null,null,null,null,null,null,null,null,null,null,null,null,null,null,null,null,null,null,null,null,null,null,null,0,0,0,null,0,null,0]
[null,null,null,null,1,{"$f":"IF(SUM(N(J963),-N(K963))=0,\"\",ROUND(SUM(N(J963),-N(K963))/365,0))","v":""},{"$f":"IF(SUM(N(J963),-N(H963))=0,\"\",SUM(N(J963),-N(H963))/365)","v":""},null,"","",null,180,null,{"$f":"IF(OR(N(M963)=0,N(L963)=0),\"\",SUM(M963,L963))","v":""},null,null,null,null,null,null,null,null,null,null,null,null,null,null,null,null,null,null,null,null,null,null,null,null,null,null,null,null,null,null,null,null,null,null,null,null,null,null,null,null,null,null,{"$f":"D963","v":0},0,0,null,0,null,0]
[null,null,null,null,1,"","",null,"","",null,180,null,"",null,null,null,null,null,null,null,null,null,null,null,null,null,null,null,null,null,null,null,null,null,null,null,null,null,null,null,null,null,null,null,null,null,null,null,null,null,null,null,null,null,null,0,0,0,null,0,null,0]
[null,null,null,null,1,"","",null,"","",null,180,null,"",null,null,null,null,null,null,null,null,null,null,null,null,null,null,null,null,null,null,null,null,null,null,null,null,null,null,null,null,null,null,null,null,null,null,null,null,null,null,null,null,null,null,0,0,0,null,0,null,0]
[null,null,null,null,1,"","",null,"","",null,180,null,"",null,null,null,null,null,null,null,null,null,null,null,null,null,null,null,null,null,null,null,null,null,null,null,null,null,null,null,null,null,null,null,null,null,null,null,null,null,null,null,null,null,null,0,0,0,null,0,null,0]
[null,null,null,null,1,"","",null,"","",null,180,null,"",null,null,null,null,null,null,null,null,null,null,null,null,null,null,null,null,null,null,null,null,null,null,null,null,null,null,null,null,null,null,null,null,null,null,null,null,null,null,null,null,null,null,0,0,0,null,0,null,0]
[null,null,null,null,1,"","",null,"","",null,180,null,"",null,null,null,null,null,null,null,null,null,null,null,null,null,null,null,null,null,null,null,null,null,null,null,null,null,null,null,null,null,null,null,null,null,null,null,null,null,null,null,null,null,null,0,0,0,null,0,null,0]
[null,null,null,null,1,"","",null,"","",null,180,null,"",null,null,null,null,null,null,null,null,null,null,null,null,null,null,null,null,null,null,null,null,null,null,null,null,null,null,null,null,null,null,null,null,null,null,null,null,null,null,null,null,null,null,0,0,0,null,0,null,0]
[null,null,null,null,1,"","",null,"","",null,180,null,"",null,null,null,null,null,null,null,null,null,null,null,null,null,null,null,null,null,null,null,null,null,null,null,null,null,null,null,null,null,null,null,null,null,null,null,null,null,null,null,null,null,null,0,0,0,null,0,null,0]
[null,null,null,null,1,"","",null,"","",null,180,null,"",null,null,null,null,null,null,null,null,null,null,null,null,null,null,null,null,null,null,null,null,null,null,null,null,null,null,null,null,null,null,null,null,null,null,null,null,null,null,null,null,null,null,0,0,0,null,0,null,0]
[null,null,null,null,1,"","",null,"","",null,180,null,"",null,null,null,null,null,null,null,null,null,null,null,null,null,null,null,null,null,null,null,null,null,null,null,null,null,null,null,null,null,null,null,null,null,null,null,null,null,null,null,null,null,null,0,0,0,null,0,null,0]
[null,null,null,null,1,"","",null,"","",null,180,null,"",null,null,null,null,null,null,null,null,null,null,null,null,null,null,null,null,null,null,null,null,null,null,null,null,null,null,null,null,null,null,null,null,null,null,null,null,null,null,null,null,null,null,0,0,0,null,0,null,0]
[null,null,null,null,1,"","",null,"","",null,180,null,"",null,null,null,null,null,null,null,null,null,null,null,null,null,null,null,null,null,null,null,null,null,null,null,null,null,null,null,null,null,null,null,null,null,null,null,null,null,null,null,null,null,null,0,0,0,null,0,null,0]
[null,null,null,null,1,"","",null,"","",null,180,null,"",null,null,null,null,null,null,null,null,null,null,null,null,null,null,null,null,null,null,null,null,null,null,null,null,null,null,null,null,null,null,null,null,null,null,null,null,null,null,null,null,null,null,0,0,0,null,0,null,0]
[null,null,null,null,1,"","",null,"","",null,180,null,"",null,null,null,null,null,null,null,null,null,null,null,null,null,null,null,null,null,null,null,null,null,null,null,null,null,null,null,null,null,null,null,null,null,null,null,null,null,null,null,null,null,null,0,0,0,null,0,null,0]
[null,null,null,null,1,"","",null,"","",null,180,null,"",null,null,null,null,null,null,null,null,null,null,null,null,null,null,null,null,null,null,null,null,null,null,null,null,null,null,null,null,null,null,null,null,null,null,null,null,null,null,null,null,null,null,0,0,0,null,0,null,0]
[null,null,null,null,1,"","",null,"","",null,180,null,"",null,null,null,null,null,null,null,null,null,null,null,null,null,null,null,null,null,null,null,null,null,null,null,null,null,null,null,null,null,null,null,null,null,null,null,null,null,null,null,null,null,null,0,0,0,null,0,null,0]
[null,null,null,null,1,"","",null,"","",null,180,null,"",null,null,null,null,null,null,null,null,null,null,null,null,null,null,null,null,null,null,null,null,null,null,null,null,null,null,null,null,null,null,null,null,null,null,null,null,null,null,null,null,null,null,0,0,0,null,0,null,0]
[null,null,null,null,1,"","",null,"","",null,180,null,"",null,null,null,null,null,null,null,null,null,null,null,null,null,null,null,null,null,null,null,null,null,null,null,null,null,null,null,null,null,null,null,null,null,null,null,null,null,null,null,null,null,null,0,0,0,null,0,null,0]
[null,null,null,null,1,"","",null,"","",null,180,null,"",null,null,null,null,null,null,null,null,null,null,null,null,null,null,null,null,null,null,null,null,null,null,null,null,null,null,null,null,null,null,null,null,null,null,null,null,null,null,null,null,null,null,0,0,0,null,0,null,0]
[null,null,null,null,1,"","",null,"","",null,180,null,"",null,null,null,null,null,null,null,null,null,null,null,null,null,null,null,null,null,null,null,null,null,null,null,null,null,null,null,null,null,null,null,null,null,null,null,null,null,null,null,null,null,null,0,0,0,null,0,null,0]
[null,null,null,null,1,"","",null,"","",null,180,null,"",null,null,null,null,null,null,null,null,null,null,null,null,null,null,null,null,null,null,null,null,null,null,null,null,null,null,null,null,null,null,null,null,null,null,null,null,null,null,null,null,null,null,0,0,0,null,0,null,0]
[null,null,null,null,1,"","",null,"","",null,180,null,"",null,null,null,null,null,null,null,null,null,null,null,null,null,null,null,null,null,null,null,null,null,null,null,null,null,null,null,null,null,null,null,null,null,null,null,null,null,null,null,null,null,null,0,0,0,null,0,null,0]
[null,null,null,null,1,"","",null,"","",null,180,null,"",null,null,null,null,null,null,null,null,null,null,null,null,null,null,null,null,null,null,null,null,null,null,null,null,null,null,null,null,null,null,null,null,null,null,null,null,null,null,null,null,null,null,0,0,0,null,0,null,0]
[null,null,null,null,1,"","",null,"","",null,180,null,"",null,null,null,null,null,null,null,null,null,null,null,null,null,null,null,null,null,null,null,null,null,null,null,null,null,null,null,null,null,null,null,null,null,null,null,null,null,null,null,null,null,null,0,0,0,null,0,null,0]
[null,null,null,null,1,"","",null,"","",null,180,null,"",null,null,null,null,null,null,null,null,null,null,null,null,null,null,null,null,null,null,null,null,null,null,null,null,null,null,null,null,null,null,null,null,null,null,null,null,null,null,null,null,null,null,0,0,0,null,0,null,0]
[null,null,null,null,1,"","",null,"","",null,180,null,"",null,null,null,null,null,null,null,null,null,null,null,null,null,null,null,null,null,null,null,null,null,null,null,null,null,null,null,null,null,null,null,null,null,null,null,null,null,null,null,null,null,null,0,0,0,null,0,null,0]
[null,null,null,null,1,"","",null,{"$f":"IF(OR(N(H989)=0,N(E989)=0),\"\",SUM(N(H989),N(E989*365)))","v":""},{"$f":"IF(B989=\"\",\"\",TODAY())","v":""},null,180,null,"",null,null,null,null,null,null,null,null,null,null,null,null,null,null,null,null,null,null,null,null,null,null,null,null,null,null,null,null,null,null,null,null,null,null,null,null,null,null,null,null,null,null,0,0,0,null,0,null,0]
[null,null,null,null,1,"","",null,"","",null,180,null,"",null,null,null,null,null,null,null,null,null,null,null,null,null,null,null,null,null,null,null,null,null,null,null,null,null,null,null,null,null,null,null,null,null,null,null,null,null,null,null,null,null,null,0,{"$f":"B990","v":0},{"$f":"A990","v":0},null,{"$f":"H990","v":0},null,{"$f":"K990","v":0}]
[null,null,null,null,1,"","",null,"","",null,180,null,"",null,null,null,null,null,null,null,null,null,null,null,null,null,null,null,null,null,null,null,null,null,null,null,null,null,null,null,null,null,null,null,null,null,null,null,null,null,null,null,null,null,null,0,0,0,null,0,null,0]
[null,null,null,null,1,"","",null,"","",null,180,null,"",null,null,null,null,null,null,null,null,null,null,null,null,null,null,null,null,null,null,null,null,null,null,null,null,null,null,null,null,null,null,null,null,null,null,null,null,null,null,null,null,null,null,0,0,0,null,0,null,0]
[null,null,null,null,1,"","",null,"","",null,180,null,"",null,null,null,null,null,null,null,null,null,null,null,null,null,null,null,null,null,null,null,null,null,null,null,null,null,null,null,null,null,null,null,null,null,null,null,null,null,null,null,null,null,null,0,0,0,null,0,null,0]
[null,null,null,null,1,"","",null,"","",null,180,null,"",null,null,null,null,null,null,null,null,null,null,null,null,null,null,null,null,null,null,null,null,null,null,null,null,null,null,null,null,null,null,null,null,null,null,null,null,null,null,null,null,null,null,0,0,0,null,0,null,0]
[null,null,null,null,1,"","",null,"","",null,180,null,"",null,null,null,null,null,null,null,null,null,null,null,null,null,null,null,null,null,null,null,null,null,null,null,null,null,null,null,null,null,null,null,null,null,null,null,null,null,null,null,null,null,null,0,0,0,null,0,null,0]
[null,null,null,null,1,"","",null,"","",null,180,null,"",null,null,null,null,null,null,null,null,null,null,null,null,null,null,null,null,null,null,null,null,null,null,null,null,null,null,null,null,null,null,null,null,null,null,null,null,null,null,null,null,null,null,0,0,0,null,0,null,0]
[null,null,null,null,1,"","",null,"","",null,180,null,"",null,null,null,null,null,null,null,null,null,null,null,null,null,null,null,null,null,null,null,null,null,null,null,null,null,null,null,null,null,null,null,null,null,null,null,null,null,null,null,null,null,null,0,0,0,null,0,null,0]
[null,null,null,null,1,"","",null,"","",null,180,null,"",null,null,null,null,null,null,null,null,null,null,null,null,null,null,null,null,null,null,null,null,null,null,null,null,null,null,null,null,null,null,null,null,null,null,null,null,null,null,null,null,null,null,0,0,0,null,0,null,0]
[null,null,null,null,1,"","",null,"","",null,180,null,"",null,null,null,null,null,null,null,null,null,null,null,null,null,null,null,null,null,null,null,null,null,null,null,null,null,null,null,null,null,null,null,null,null,null,null,null,null,null,null,null,null,null,0,0,0,null,0,null,0]
[null,null,null,null,1,"","",null,"","",null,null,null,"",null,null,null,null,null,null,null,null,null,null,null,null,null,null,null,null,null,null,null,null,null,null,null,null,null,null,null,null,null,null,null,null,null,null,null,null,null,null,null,null,null,null,0,0,0,null,0,null,0]

{"sheet":"الادارة","index":2,"n_rows":1,"n_cols":29,"rows_kept":1,"cut":false,"hidden":false,"merged":[]}
["رقم الكارتة","الاسم","أسم المؤهل","القسم","السن","الخبرة","بداية التعين","تاريخ انتهاء العقد","تاريخ اليوم","تاريخ الميلاد","بداية الفيش","انتهاء الفيش","المؤهل","كعب العمل","الفيش","شهادة الميلاد","صورة البطاقة","صورة شخصية","العقد","استمارة   1  ","استمارة  6 ","استقالة","اخلاء طرف","اقرار استلام عمل","صحيفة الحالة الاجتماعية","أستمارة 11","نوع المؤهل","رقم كود الادارة","الوظيفة"]

{"sheet":"المصبغة","index":3,"n_rows":1,"n_cols":29,"rows_kept":1,"cut":false,"hidden":false,"merged":[]}
["رقم الكارتة","الاسم","أسم المؤهل","القسم","السن","الخبرة","بداية التعين","تاريخ انتهاء العقد","تاريخ اليوم","تاريخ الميلاد","بداية الفيش","انتهاء الفيش","المؤهل","كعب العمل","الفيش","شهادة الميلاد","صورة البطاقة","صورة شخصية","العقد","استمارة   1  ","استمارة  6 ","استقالة","اخلاء طرف","اقرار استلام عمل","صحيفة الحالة الاجتماعية","أستمارة 11","نوع المؤهل","رقم كود الادارة","الوظيفة"]

{"sheet":"التجهيز","index":4,"n_rows":11,"n_cols":30,"rows_kept":11,"cut":false,"hidden":false,"merged":[]}
["رقم الكارتة","الاسم","أسم المؤهل","القسم","السن","الخبرة","بداية التعين","تاريخ انتهاء العقد","تاريخ اليوم","تاريخ الميلاد","بداية الفيش","انتهاء الفيش","المؤهل","كعب العمل","الفيش","شهادة الميلاد","صورة البطاقة","صورة شخصية","العقد","استمارة   1  ","استمارة  6 ","استقالة","اخلاء طرف","اقرار استلام عمل","صحيفة الحالة الاجتماعية","أستمارة 11","نوع المؤهل","رقم كود الادارة","الوظيفة"]
[7355,"ابراهيم محمد ابراهيم احمد","دبلوم صناعي","التجهيز",50,14.024657534246575,"2006-11-11","2007-11-11","2020-11-16","1970-09-05","2006-09-21","2007-03-20","Yes","Yes","Yes","No","Yes","Yes","Yes","Yes","No","No","No","No","No","No","متوسط",null,"عامل تجهيز","التريكو"]
[5820,"احمد ابراهيم علي مخلوف ","بكالوريس علوم","التجهيز",44,15.194520547945206,"2005-09-10","2006-09-10","2020-11-16","1977-04-28","2005-07-08","2006-01-04","Yes","Yes","Yes","Yes","Yes","Yes","Yes","Yes","No","No","No","No","Yes","Yes","عالي",null,"مهندس كيمياء(موصفات)","الادارة"]
[7665,"احمد ابراهيم ياقوت اسماعيل ","دبلوم صناعي","التجهيز",55,13.747945205479452,"2007-02-20","2008-02-20","2020-11-16","1965-07-16","2007-07-01","2007-12-28","Yes","Yes","Yes","Yes","Yes","Yes","Yes","Yes","No","No","No","Yes","Yes","Yes","متوسط",null,"عامل تجهيز","المصبغة"]
[10016,"احمد اسماعيل خميس  بركات اسماعيل","بكالوريوس تجاره ","التجهيز",38,10.169863013698631,"2010-09-18","2011-09-18","2020-11-16","1982-10-10","2010-06-20","2010-12-17","Yes","Yes","Yes","Yes","Yes","Yes","Yes","Yes","No","No","No","Yes","Yes","No","عالي",null,"مراقب انتاج","التجهيز"]
[12945,"احمد جابر السيد محمد شرف ","دبلوم صناعي","التجهيز",30,4.1534246575342468,"2016-09-22","2017-09-22","2020-11-16","1990-09-09","2016-04-09","2016-10-06","No","Yes","Yes","Yes","Yes","Yes","Yes","Yes","No","No","No","No","Yes","No","متوسط",null,"عامل تجهيز","مخزن الكيماويات"]
[5850,"احمد رافت محمد يوسف حسب الله","دبلوم صناعي","التجهيز",25,15.194520547945206,"2005-09-10","2006-09-10","2020-11-16","1995-06-20","2005-08-22","2006-02-18","Yes","Yes",null,"No","Yes","No","Yes","Yes","Yes","No","No","No","Yes","No","متوسط",null,"عامل تجهيز","المعمل"]
[9987,"احمد محمد احمد النجار ","دبلوم صناعي","التجهيز",31,15.238356164383562,"2005-08-25","2006-08-25","2020-11-16","1989-12-28","2010-08-22","2011-02-18","Yes","Yes","Yes","Yes","Yes","Yes","Yes","Yes","No","No","No","Yes","Yes","Yes","متوسط",null,"عامل تجهيز","الورشة"]
[925,"اسامه محمد اسماعيل عباس الشترار","دبلوم تجاره","التجهيز",45,16.857534246575341,"2004-01-12","2005-01-11","2020-11-16","1976-03-25","2004-10-18","2005-04-16","Yes","Yes","Yes","No","Yes","Yes","Yes","Yes","No","No","No","No","Yes","Yes","متوسط",null,"عامل تجهيز","الامن الصناعي"]
[13728,"اسلام سمير عبد ى القوي حسن ","دبلوم صناعي ","التجهيز",25,120.96164383561644,"29-11-2018","","2020-11-16","1995-12-25",null,"","No","Yes","No","Yes","Yes","Yes","Yes","Yes","No","No","No","Yes","No","No","متوسط",null,"عامل تجهيز","الخدمات"]
[13709,"اشرف عبد الستار محمد حسن السيد","دبلوم صناعي","التجهيز",38,1.9917808219178081,"2018-11-20","2019-11-20","2020-11-16","1982-06-19","2018-11-17","2019-05-16","No","Yes","Yes","Yes","Yes","Yes","Yes","Yes","Yes","No","No","No","Yes","No","متوسط",null,"عامل تجهيز","الامن "]

{"sheet":"مخزن الكيماويات","index":5,"n_rows":1,"n_cols":29,"rows_kept":1,"cut":false,"hidden":false,"merged":[]}
["رقم الكارتة","الاسم","أسم المؤهل","القسم","السن","الخبرة","بداية التعين","تاريخ انتهاء العقد","تاريخ اليوم","تاريخ الميلاد","بداية الفيش","انتهاء الفيش","المؤهل","كعب العمل","الفيش","شهادة الميلاد","صورة البطاقة","صورة شخصية","العقد","استمارة   1  ","استمارة  6 ","استقالة","اخلاء طرف","اقرار استلام عمل","صحيفة الحالة الاجتماعية","أستمارة 11","نوع المؤهل","رقم كود الادارة","الوظيفة"]

{"sheet":"المعامل","index":6,"n_rows":1,"n_cols":29,"rows_kept":1,"cut":false,"hidden":false,"merged":[]}
["رقم الكارتة","الاسم","أسم المؤهل","القسم","السن","الخبرة","بداية التعين","تاريخ انتهاء العقد","تاريخ اليوم","تاريخ الميلاد","بداية الفيش","انتهاء الفيش","المؤهل","كعب العمل","الفيش","شهادة الميلاد","صورة البطاقة","صورة شخصية","العقد","استمارة   1  ","استمارة  6 ","استقالة","اخلاء طرف","اقرار استلام عمل","صحيفة الحالة الاجتماعية","أستمارة 11","نوع المؤهل","رقم كود الادارة","الوظيفة"]

{"sheet":"الورشة","index":7,"n_rows":1,"n_cols":29,"rows_kept":1,"cut":false,"hidden":false,"merged":[]}
["رقم الكارتة","الاسم","أسم المؤهل","القسم","السن","الخبرة","بداية التعين","تاريخ انتهاء العقد","تاريخ اليوم","تاريخ الميلاد","بداية الفيش","انتهاء الفيش","المؤهل","كعب العمل","الفيش","شهادة الميلاد","صورة البطاقة","صورة شخصية","العقد","استمارة   1  ","استمارة  6 ","استقالة","اخلاء طرف","اقرار استلام عمل","صحيفة الحالة الاجتماعية","أستمارة 11","نوع المؤهل","رقم كود الادارة","الوظيفة"]

{"sheet":"التريكو","index":8,"n_rows":1,"n_cols":29,"rows_kept":1,"cut":false,"hidden":false,"merged":[]}
["رقم الكارتة","الاسم","أسم المؤهل","القسم","السن","الخبرة","بداية التعين","تاريخ انتهاء العقد","تاريخ اليوم","تاريخ الميلاد","بداية الفيش","انتهاء الفيش","المؤهل","كعب العمل","الفيش","شهادة الميلاد","صورة البطاقة","صورة شخصية","العقد","استمارة   1  ","استمارة  6 ","استقالة","اخلاء طرف","اقرار استلام عمل","صحيفة الحالة الاجتماعية","أستمارة 11","نوع المؤهل","رقم كود الادارة","الوظيفة"]

{"sheet":"الامن الصناعي","index":9,"n_rows":1,"n_cols":29,"rows_kept":1,"cut":false,"hidden":false,"merged":[]}
["رقم الكارتة","الاسم","أسم المؤهل","القسم","السن","الخبرة","بداية التعين","تاريخ انتهاء العقد","تاريخ اليوم","تاريخ الميلاد","بداية الفيش","انتهاء الفيش","المؤهل","كعب العمل","الفيش","شهادة الميلاد","صورة البطاقة","صورة شخصية","العقد","استمارة   1  ","استمارة  6 ","استقالة","اخلاء طرف","اقرار استلام عمل","صحيفة الحالة الاجتماعية","أستمارة 11","نوع المؤهل","رقم كود الادارة","الوظيفة"]

{"sheet":"الامن","index":10,"n_rows":1,"n_cols":29,"rows_kept":1,"cut":false,"hidden":false,"merged":[]}
["رقم الكارتة","الاسم","أسم المؤهل","القسم","السن","الخبرة","بداية التعين","تاريخ انتهاء العقد","تاريخ اليوم","تاريخ الميلاد","بداية الفيش","انتهاء الفيش","المؤهل","كعب العمل","الفيش","شهادة الميلاد","صورة البطاقة","صورة شخصية","العقد","استمارة   1  ","استمارة  6 ","استقالة","اخلاء طرف","اقرار استلام عمل","صحيفة الحالة الاجتماعية","أستمارة 11","نوع المؤهل","رقم كود الادارة","الوظيفة"]

{"sheet":"الخدمات","index":11,"n_rows":1,"n_cols":29,"rows_kept":1,"cut":false,"hidden":false,"merged":[]}
["رقم الكارتة","الاسم","أسم المؤهل","القسم","السن","الخبرة","بداية التعين","تاريخ انتهاء العقد","تاريخ اليوم","تاريخ الميلاد","بداية الفيش","انتهاء الفيش","المؤهل","كعب العمل","الفيش","شهادة الميلاد","صورة البطاقة","صورة شخصية","العقد","استمارة   1  ","استمارة  6 ","استقالة","اخلاء طرف","اقرار استلام عمل","صحيفة الحالة الاجتماعية","أستمارة 11","نوع المؤهل","رقم كود الادارة","الوظيفة"]

{"sheet":"المخازن","index":12,"n_rows":1,"n_cols":29,"rows_kept":1,"cut":false,"hidden":false,"merged":[]}
["رقم الكارتة","الاسم","أسم المؤهل","القسم","السن","الخبرة","بداية التعين","تاريخ انتهاء العقد","تاريخ اليوم","تاريخ الميلاد","بداية الفيش","انتهاء الفيش","المؤهل","كعب العمل","الفيش","شهادة الميلاد","صورة البطاقة","صورة شخصية","العقد","استمارة   1  ","استمارة  6 ","استقالة","اخلاء طرف","اقرار استلام عمل","صحيفة الحالة الاجتماعية","أستمارة 11","نوع المؤهل","رقم كود الادارة","الوظيفة"]

{"sheet":"الاستيك","index":13,"n_rows":1,"n_cols":29,"rows_kept":1,"cut":false,"hidden":false,"merged":[]}
["رقم الكارتة","الاسم","أسم المؤهل","القسم","السن","الخبرة","بداية التعين","تاريخ انتهاء العقد","تاريخ اليوم","تاريخ الميلاد","بداية الفيش","انتهاء الفيش","المؤهل","كعب العمل","الفيش","شهادة الميلاد","صورة البطاقة","صورة شخصية","العقد","استمارة   1  ","استمارة  6 ","استقالة","اخلاء طرف","اقرار استلام عمل","صحيفة الحالة الاجتماعية","أستمارة 11","نوع المؤهل","رقم كود الادارة","الوظيفة"]

{"sheet":"العقود المنتهية","index":14,"n_rows":1,"n_cols":6,"rows_kept":1,"cut":false,"hidden":false,"merged":[]}
["الاسم","بداية تعيين","نوع العقد","مدة العقد","تاريخ الانتهاء","اجمالي المتبقي بالايام"]